Workbook

Sheet Summary
A1: 분 전
A2: minutes
A3: 일전
A4: days
A5: 시간 전
A6: hours
A7: 방금
A8: 1 minutes
A10: 브론즈
A11: Bronze
A12: 실버
A13: Silver
A14: 골드
A15: Gold
A16: 플래티넘
A17: Platinum
A18: 다이아몬드
A19: Diamond
A20: 마스터
A21: Master
A22: 그랜드마스터
A23: Grandmaster
A25: =A2&"-"&C2&"|"&F2&"-"&H2&"|"&K2&"-"&M2&"|"&P2&"-"&R2

Sheet Charting
B1: Percentages | J1: Raw
A2: Week Start | C2: Zerg | K2: Zerg
B3: Weeks Remaining | C3: Bronze | D3: Silver | E3: Gold | F3: Platinum | G3: Diamond | H3: Master | J3: Weeks Remaining | K3: Bronze | L3: Silver | M3: Gold | N3: Platinum | O3: Diamond | P3: Master
A4: 2014-11-10 | B4: 1 | C4: ='Analysis - 1v1'!B99 -> 0.1583476764 | D4: ='Analysis - 1v1'!F99 -> 0.1758118701 | E4: ='Analysis - 1v1'!J99 -> 0.3011482255 | F4: ='Analysis - 1v1'!N99 -> 0.3521308653 | G4: ='Analysis - 1v1'!R99 -> 0.3543198529 | H4: ='Analysis - 1v1'!V99 -> 0.3620689655 | J4: 1 | K4: ='Analysis - 1v1'!B73 -> 92 | L4: ='Analysis - 1v1'!F73 -> 157 | M4: ='Analysis - 1v1'!J73 -> 1154 | N4: ='Analysis - 1v1'!N73 -> 818 | O4: ='Analysis - 1v1'!R73 -> 771 | P4: ='Analysis - 1v1'!V73 -> 42
A5: 2014-11-17 | B5: 2 | C5: ='Analysis - 1v1'!B100 -> 0.1477832512 | D5: ='Analysis - 1v1'!F100 -> 0.1962365591 | E5: ='Analysis - 1v1'!J100 -> 0.3139223561 | F5: ='Analysis - 1v1'!N100 -> 0.3585365854 | G5: ='Analysis - 1v1'!R100 -> 0.3800623053 | H5: ='Analysis - 1v1'!V100 -> 0.3620689655 | J5: 2 | K5: ='Analysis - 1v1'!B74 -> 30 | L5: ='Analysis - 1v1'!F74 -> 73 | M5: ='Analysis - 1v1'!J74 -> 469 | N5: ='Analysis - 1v1'!N74 -> 294 | O5: ='Analysis - 1v1'!R74 -> 244 | P5: ='Analysis - 1v1'!V74 -> 21
A6: 2014-11-24 | B6: 3 | C6: ='Analysis - 1v1'!B101 -> 0.1871345029 | D6: ='Analysis - 1v1'!F101 -> 0.252900232 | E6: ='Analysis - 1v1'!J101 -> 0.326873385 | F6: ='Analysis - 1v1'!N101 -> 0.3778580024 | G6: ='Analysis - 1v1'!R101 -> 0.331092437 | H6: ='Analysis - 1v1'!V101 -> 0.3666666667 | J6: 3 | K6: ='Analysis - 1v1'!B75 -> 32 | L6: ='Analysis - 1v1'!F75 -> 109 | M6: ='Analysis - 1v1'!J75 -> 506 | N6: ='Analysis - 1v1'!N75 -> 314 | O6: ='Analysis - 1v1'!R75 -> 197 | P6: ='Analysis - 1v1'!V75 -> 22
A7: 2014-12-01 | B7: 4 | C7: ='Analysis - 1v1'!B102 -> 0.2 | D7: ='Analysis - 1v1'!F102 -> 0.2413087935 | E7: ='Analysis - 1v1'!J102 -> 0.3456410256 | F7: ='Analysis - 1v1'!N102 -> 0.3716075157 | G7: ='Analysis - 1v1'!R102 -> 0.3453355155 | H7: ='Analysis - 1v1'!V102 -> 0.3777777778 | J7: 4 | K7: ='Analysis - 1v1'!B76 -> 44 | L7: ='Analysis - 1v1'!F76 -> 118 | M7: ='Analysis - 1v1'!J76 -> 674 | N7: ='Analysis - 1v1'!N76 -> 356 | O7: ='Analysis - 1v1'!R76 -> 211 | P7: ='Analysis - 1v1'!V76 -> 34
A8: 2014-12-08 | B8: 5 | C8: ='Analysis - 1v1'!B103 -> 0.2222222222 | D8: ='Analysis - 1v1'!F103 -> 0.2293706294 | E8: ='Analysis - 1v1'!J103 -> 0.3501762632 | F8: ='Analysis - 1v1'!N103 -> 0.3714020427 | G8: ='Analysis - 1v1'!R103 -> 0.3611111111 | H8: ='Analysis - 1v1'!V103 -> 0.3 | J8: 5 | K8: ='Analysis - 1v1'!B77 -> 64 | L8: ='Analysis - 1v1'!F77 -> 164 | M8: ='Analysis - 1v1'!J77 -> 894 | N8: ='Analysis - 1v1'!N77 -> 400 | O8: ='Analysis - 1v1'!R77 -> 234 | P8: ='Analysis - 1v1'!V77 -> 24
A9: 2014-12-15 | B9: 6 | C9: ='Analysis - 1v1'!B104 -> 0.2139303483 | D9: ='Analysis - 1v1'!F104 -> 0.2550675676 | E9: ='Analysis - 1v1'!J104 -> 0.342690678 | F9: ='Analysis - 1v1'!N104 -> 0.3901639344 | G9: ='Analysis - 1v1'!R104 -> 0.351233672 | H9: ='Analysis - 1v1'!V104 -> 0.3402061856 | J9: 6 | K9: ='Analysis - 1v1'!B78 -> 86 | L9: ='Analysis - 1v1'!F78 -> 302 | M9: ='Analysis - 1v1'!J78 -> 1294 | N9: ='Analysis - 1v1'!N78 -> 476 | O9: ='Analysis - 1v1'!R78 -> 242 | P9: ='Analysis - 1v1'!V78 -> 33
A10: 2014-12-22 | B10: 7 | C10: ='Analysis - 1v1'!B105 -> 0.2203147353 | D10: ='Analysis - 1v1'!F105 -> 0.265329296 | E10: ='Analysis - 1v1'!J105 -> 0.3392384106 | F10: ='Analysis - 1v1'!N105 -> 0.3744740533 | G10: ='Analysis - 1v1'!R105 -> 0.3397190294 | H10: ='Analysis - 1v1'!V105 -> 0.2421052632 | J10: 7 | K10: ='Analysis - 1v1'!B79 -> 154 | L10: ='Analysis - 1v1'!F79 -> 701 | M10: ='Analysis - 1v1'!J79 -> 2049 | N10: ='Analysis - 1v1'!N79 -> 534 | O10: ='Analysis - 1v1'!R79 -> 266 | P10: ='Analysis - 1v1'!V79 -> 23
A11: 2014-12-29 | B11: 8 | C11: ='Analysis - 1v1'!B106 -> 0.2466091245 | D11: ='Analysis - 1v1'!F106 -> 0.2711846977 | E11: ='Analysis - 1v1'!J106 -> 0.3369004843 | F11: ='Analysis - 1v1'!N106 -> 0.3529222864 | G11: ='Analysis - 1v1'!R106 -> 0.3464373464 | H11: ='Analysis - 1v1'!V106 -> 0.3370165746 | J11: 8 | K11: ='Analysis - 1v1'!B80 -> 1200 | L11: ='Analysis - 1v1'!F80 -> 5274 | M11: ='Analysis - 1v1'!J80 -> 4313 | N11: ='Analysis - 1v1'!N80 -> 1099 | O11: ='Analysis - 1v1'!R80 -> 423 | P11: ='Analysis - 1v1'!V80 -> 61
A12: 1/5/2015 (season lock) | B12: 9 | C12: ='Analysis - 1v1'!B107 ->  | D12: ='Analysis - 1v1'!F107 ->  | E12: ='Analysis - 1v1'!J107 ->  | F12: ='Analysis - 1v1'!N107 ->  | G12: ='Analysis - 1v1'!R107 ->  | H12: ='Analysis - 1v1'!V107 ->  | J12: 9 | K12: ='Analysis - 1v1'!B81 -> 0 | L12: ='Analysis - 1v1'!F81 -> 0 | M12: ='Analysis - 1v1'!J81 -> 0 | N12: ='Analysis - 1v1'!N81 -> 0 | O12: ='Analysis - 1v1'!R81 -> 0 | P12: ='Analysis - 1v1'!V81 -> 0
A13: 2015-01-12 | B13: 10 | C13: ='Analysis - 1v1'!B108 ->  | D13: ='Analysis - 1v1'!F108 ->  | E13: ='Analysis - 1v1'!J108 ->  | F13: ='Analysis - 1v1'!N108 ->  | G13: ='Analysis - 1v1'!R108 ->  | H13: ='Analysis - 1v1'!V108 ->  | J13: 10 | K13: ='Analysis - 1v1'!B82 -> 0 | L13: ='Analysis - 1v1'!F82 -> 0 | M13: ='Analysis - 1v1'!J82 -> 0 | N13: ='Analysis - 1v1'!N82 -> 0 | O13: ='Analysis - 1v1'!R82 -> 0 | P13: ='Analysis - 1v1'!V82 -> 0
B14: 11 | C14: ='Analysis - 1v1'!B109 ->  | D14: ='Analysis - 1v1'!F109 ->  | E14: ='Analysis - 1v1'!J109 ->  | F14: ='Analysis - 1v1'!N109 ->  | G14: ='Analysis - 1v1'!R109 ->  | H14: ='Analysis - 1v1'!V109 ->  | J14: 11 | K14: ='Analysis - 1v1'!B83 -> 0 | L14: ='Analysis - 1v1'!F83 -> 0 | M14: ='Analysis - 1v1'!J83 -> 0 | N14: ='Analysis - 1v1'!N83 -> 0 | O14: ='Analysis - 1v1'!R83 -> 0 | P14: ='Analysis - 1v1'!V83 -> 0
B15: =B14+1 -> 12 | C15: ='Analysis - 1v1'!B110 ->  | D15: ='Analysis - 1v1'!F110 ->  | E15: ='Analysis - 1v1'!J110 ->  | F15: ='Analysis - 1v1'!N110 ->  | G15: ='Analysis - 1v1'!R110 ->  | H15: ='Analysis - 1v1'!V110 ->  | J15: =J14+1 -> 12 | K15: ='Analysis - 1v1'!B84 -> 0 | L15: ='Analysis - 1v1'!F84 -> 0 | M15: ='Analysis - 1v1'!J84 -> 0 | N15: ='Analysis - 1v1'!N84 -> 0 | O15: ='Analysis - 1v1'!R84 -> 0 | P15: ='Analysis - 1v1'!V84 -> 0
B16: =B15+1 -> 13 | C16: ='Analysis - 1v1'!B111 ->  | D16: ='Analysis - 1v1'!F111 ->  | E16: ='Analysis - 1v1'!J111 ->  | F16: ='Analysis - 1v1'!N111 ->  | G16: ='Analysis - 1v1'!R111 ->  | H16: ='Analysis - 1v1'!V111 ->  | J16: =J15+1 -> 13 | K16: ='Analysis - 1v1'!B85 -> 0 | L16: ='Analysis - 1v1'!F85 -> 0 | M16: ='Analysis - 1v1'!J85 -> 0 | N16: ='Analysis - 1v1'!N85 -> 0 | O16: ='Analysis - 1v1'!R85 -> 0 | P16: ='Analysis - 1v1'!V85 -> 0
B17: 14 | C17: ='Analysis - 1v1'!B112 ->  | D17: ='Analysis - 1v1'!F112 ->  | E17: ='Analysis - 1v1'!J112 ->  | F17: ='Analysis - 1v1'!N112 ->  | G17: ='Analysis - 1v1'!R112 ->  | H17: ='Analysis - 1v1'!V112 ->  | J17: 14 | K17: ='Analysis - 1v1'!B86 -> 0 | L17: ='Analysis - 1v1'!F86 -> 0 | M17: ='Analysis - 1v1'!J86 -> 0 | N17: ='Analysis - 1v1'!N86 -> 0 | O17: ='Analysis - 1v1'!R86 -> 0 | P17: ='Analysis - 1v1'!V86 -> 0
B18: 15 | C18: ='Analysis - 1v1'!B113 ->  | D18: ='Analysis - 1v1'!F113 ->  | E18: ='Analysis - 1v1'!J113 ->  | F18: ='Analysis - 1v1'!N113 ->  | G18: ='Analysis - 1v1'!R113 ->  | H18: ='Analysis - 1v1'!V113 ->  | J18: 15 | K18: ='Analysis - 1v1'!B87 -> 0 | L18: ='Analysis - 1v1'!F87 -> 0 | M18: ='Analysis - 1v1'!J87 -> 0 | N18: ='Analysis - 1v1'!N87 -> 0 | O18: ='Analysis - 1v1'!R87 -> 0 | P18: ='Analysis - 1v1'!V87 -> 0
B19: 16 | C19: ='Analysis - 1v1'!B114 ->  | D19: ='Analysis - 1v1'!F114 ->  | E19: ='Analysis - 1v1'!J114 ->  | F19: ='Analysis - 1v1'!N114 ->  | G19: ='Analysis - 1v1'!R114 ->  | H19: ='Analysis - 1v1'!V114 ->  | J19: 16 | K19: ='Analysis - 1v1'!B88 -> 0 | L19: ='Analysis - 1v1'!F88 -> 0 | M19: ='Analysis - 1v1'!J88 -> 0 | N19: ='Analysis - 1v1'!N88 -> 0 | O19: ='Analysis - 1v1'!R88 -> 0 | P19: ='Analysis - 1v1'!V88 -> 0
B20: 17 | C20: ='Analysis - 1v1'!B115 ->  | D20: ='Analysis - 1v1'!F115 ->  | E20: ='Analysis - 1v1'!J115 ->  | F20: ='Analysis - 1v1'!N115 ->  | G20: ='Analysis - 1v1'!R115 ->  | H20: ='Analysis - 1v1'!V115 ->  | J20: 17 | K20: ='Analysis - 1v1'!B89 -> 0 | L20: ='Analysis - 1v1'!F89 -> 0 | M20: ='Analysis - 1v1'!J89 -> 0 | N20: ='Analysis - 1v1'!N89 -> 0 | O20: ='Analysis - 1v1'!R89 -> 0 | P20: ='Analysis - 1v1'!V89 -> 0
B21: 18 | C21: ='Analysis - 1v1'!B116 ->  | D21: ='Analysis - 1v1'!F116 ->  | E21: ='Analysis - 1v1'!J116 ->  | F21: ='Analysis - 1v1'!N116 ->  | G21: ='Analysis - 1v1'!R116 ->  | H21: ='Analysis - 1v1'!V116 ->  | J21: 18 | K21: ='Analysis - 1v1'!B90 -> 0 | L21: ='Analysis - 1v1'!F90 -> 0 | M21: ='Analysis - 1v1'!J90 -> 0 | N21: ='Analysis - 1v1'!N90 -> 0 | O21: ='Analysis - 1v1'!R90 -> 0 | P21: ='Analysis - 1v1'!V90 -> 0
C24: Terran | K24: Terran
B25: Weeks Remaining | C25: Bronze | D25: Silver | E25: Gold | F25: Platinum | G25: Diamond | H25: Master | J25: Weeks Remaining | K25: Bronze | L25: Silver | M25: Gold | N25: Platinum | O25: Diamond | P25: Master
A26: 2014-11-10 | B26: 1 | C26: ='Analysis - 1v1'!C99 -> 0.4388984509 | D26: ='Analysis - 1v1'!G99 -> 0.4087346025 | E26: ='Analysis - 1v1'!K99 -> 0.3462943633 | F26: ='Analysis - 1v1'!O99 -> 0.3099440379 | G26: ='Analysis - 1v1'!S99 -> 0.328125 | H26: ='Analysis - 1v1'!W99 -> 0.2844827586 | J26: 1 | K26: ='Analysis - 1v1'!C73 -> 255 | L26: ='Analysis - 1v1'!G73 -> 365 | M26: ='Analysis - 1v1'!K73 -> 1327 | N26: ='Analysis - 1v1'!O73 -> 720 | O26: ='Analysis - 1v1'!S73 -> 714 | P26: ='Analysis - 1v1'!W73 -> 33
A27: 2014-11-17 | B27: 2 | C27: ='Analysis - 1v1'!C100 -> 0.4729064039 | D27: ='Analysis - 1v1'!G100 -> 0.3951612903 | E27: ='Analysis - 1v1'!K100 -> 0.3165997323 | F27: ='Analysis - 1v1'!O100 -> 0.2853658537 | G27: ='Analysis - 1v1'!S100 -> 0.3146417445 | H27: ='Analysis - 1v1'!W100 -> 0.224137931 | J27: 2 | K27: ='Analysis - 1v1'!C74 -> 96 | L27: ='Analysis - 1v1'!G74 -> 147 | M27: ='Analysis - 1v1'!K74 -> 473 | N27: ='Analysis - 1v1'!O74 -> 234 | O27: ='Analysis - 1v1'!S74 -> 202 | P27: ='Analysis - 1v1'!W74 -> 13
A28: 2014-11-24 | B28: 3 | C28: ='Analysis - 1v1'!C101 -> 0.4152046784 | D28: ='Analysis - 1v1'!G101 -> 0.3201856148 | E28: ='Analysis - 1v1'!K101 -> 0.2868217054 | F28: ='Analysis - 1v1'!O101 -> 0.2563176895 | G28: ='Analysis - 1v1'!S101 -> 0.3529411765 | H28: ='Analysis - 1v1'!W101 -> 0.35 | J28: 3 | K28: ='Analysis - 1v1'!C75 -> 71 | L28: ='Analysis - 1v1'!G75 -> 138 | M28: ='Analysis - 1v1'!K75 -> 444 | N28: ='Analysis - 1v1'!O75 -> 213 | O28: ='Analysis - 1v1'!S75 -> 210 | P28: ='Analysis - 1v1'!W75 -> 21
A29: 2014-12-01 | B29: 4 | C29: ='Analysis - 1v1'!C102 -> 0.4 | D29: ='Analysis - 1v1'!G102 -> 0.3476482618 | E29: ='Analysis - 1v1'!K102 -> 0.2753846154 | F29: ='Analysis - 1v1'!O102 -> 0.2755741127 | G29: ='Analysis - 1v1'!S102 -> 0.3093289689 | H29: ='Analysis - 1v1'!W102 -> 0.3 | J29: 4 | K29: ='Analysis - 1v1'!C76 -> 88 | L29: ='Analysis - 1v1'!G76 -> 170 | M29: ='Analysis - 1v1'!K76 -> 537 | N29: ='Analysis - 1v1'!O76 -> 264 | O29: ='Analysis - 1v1'!S76 -> 189 | P29: ='Analysis - 1v1'!W76 -> 27
A30: 2014-12-08 | B30: 5 | C30: ='Analysis - 1v1'!C103 -> 0.40625 | D30: ='Analysis - 1v1'!G103 -> 0.3608391608 | E30: ='Analysis - 1v1'!K103 -> 0.2710536624 | F30: ='Analysis - 1v1'!O103 -> 0.2980501393 | G30: ='Analysis - 1v1'!S103 -> 0.2962962963 | H30: ='Analysis - 1v1'!W103 -> 0.2875 | J30: 5 | K30: ='Analysis - 1v1'!C77 -> 117 | L30: ='Analysis - 1v1'!G77 -> 258 | M30: ='Analysis - 1v1'!K77 -> 692 | N30: ='Analysis - 1v1'!O77 -> 321 | O30: ='Analysis - 1v1'!S77 -> 192 | P30: ='Analysis - 1v1'!W77 -> 23
A31: 2014-12-15 | B31: 6 | C31: ='Analysis - 1v1'!C104 -> 0.4129353234 | D31: ='Analysis - 1v1'!G104 -> 0.3378378378 | E31: ='Analysis - 1v1'!K104 -> 0.2793961864 | F31: ='Analysis - 1v1'!O104 -> 0.2696721311 | G31: ='Analysis - 1v1'!S104 -> 0.3323657475 | H31: ='Analysis - 1v1'!W104 -> 0.2680412371 | J31: 6 | K31: ='Analysis - 1v1'!C78 -> 166 | L31: ='Analysis - 1v1'!G78 -> 400 | M31: ='Analysis - 1v1'!K78 -> 1055 | N31: ='Analysis - 1v1'!O78 -> 329 | O31: ='Analysis - 1v1'!S78 -> 229 | P31: ='Analysis - 1v1'!W78 -> 26
A32: 2014-12-22 | B32: 7 | C32: ='Analysis - 1v1'!C105 -> 0.3876967096 | D32: ='Analysis - 1v1'!G105 -> 0.3133989402 | E32: ='Analysis - 1v1'!K105 -> 0.2629139073 | F32: ='Analysis - 1v1'!O105 -> 0.2952314165 | G32: ='Analysis - 1v1'!S105 -> 0.3409961686 | H32: ='Analysis - 1v1'!W105 -> 0.3263157895 | J32: 7 | K32: ='Analysis - 1v1'!C79 -> 271 | L32: ='Analysis - 1v1'!G79 -> 828 | M32: ='Analysis - 1v1'!K79 -> 1588 | N32: ='Analysis - 1v1'!O79 -> 421 | O32: ='Analysis - 1v1'!S79 -> 267 | P32: ='Analysis - 1v1'!W79 -> 31
A33: 2014-12-29 | B33: 8 | C33: ='Analysis - 1v1'!C106 -> 0.3489519112 | D33: ='Analysis - 1v1'!G106 -> 0.3116001645 | E33: ='Analysis - 1v1'!K106 -> 0.2804249336 | F33: ='Analysis - 1v1'!O106 -> 0.2835581246 | G33: ='Analysis - 1v1'!S106 -> 0.312039312 | H33: ='Analysis - 1v1'!W106 -> 0.3535911602 | J33: 8 | K33: ='Analysis - 1v1'!C80 -> 1698 | L33: ='Analysis - 1v1'!G80 -> 6060 | M33: ='Analysis - 1v1'!K80 -> 3590 | N33: ='Analysis - 1v1'!O80 -> 883 | O33: ='Analysis - 1v1'!S80 -> 381 | P33: ='Analysis - 1v1'!W80 -> 64
A34: 1/5/2015 (season lock) | B34: 9 | C34: ='Analysis - 1v1'!C107 ->  | D34: ='Analysis - 1v1'!G107 ->  | E34: ='Analysis - 1v1'!K107 ->  | F34: ='Analysis - 1v1'!O107 ->  | G34: ='Analysis - 1v1'!S107 ->  | H34: ='Analysis - 1v1'!W107 ->  | J34: 9 | K34: ='Analysis - 1v1'!C81 -> 0 | L34: ='Analysis - 1v1'!G81 -> 0 | M34: ='Analysis - 1v1'!K81 -> 0 | N34: ='Analysis - 1v1'!O81 -> 0 | O34: ='Analysis - 1v1'!S81 -> 0 | P34: ='Analysis - 1v1'!W81 -> 0
A35: 2015-01-12 | B35: 10 | C35: ='Analysis - 1v1'!C108 ->  | D35: ='Analysis - 1v1'!G108 ->  | E35: ='Analysis - 1v1'!K108 ->  | F35: ='Analysis - 1v1'!O108 ->  | G35: ='Analysis - 1v1'!S108 ->  | H35: ='Analysis - 1v1'!W108 ->  | J35: 10 | K35: ='Analysis - 1v1'!C82 -> 0 | L35: ='Analysis - 1v1'!G82 -> 0 | M35: ='Analysis - 1v1'!K82 -> 0 | N35: ='Analysis - 1v1'!O82 -> 0 | O35: ='Analysis - 1v1'!S82 -> 0 | P35: ='Analysis - 1v1'!W82 -> 0
B36: 11 | C36: ='Analysis - 1v1'!C109 ->  | D36: ='Analysis - 1v1'!G109 ->  | E36: ='Analysis - 1v1'!K109 ->  | F36: ='Analysis - 1v1'!O109 ->  | G36: ='Analysis - 1v1'!S109 ->  | H36: ='Analysis - 1v1'!W109 ->  | J36: 11 | K36: ='Analysis - 1v1'!C83 -> 0 | L36: ='Analysis - 1v1'!G83 -> 0 | M36: ='Analysis - 1v1'!K83 -> 0 | N36: ='Analysis - 1v1'!O83 -> 0 | O36: ='Analysis - 1v1'!S83 -> 0 | P36: ='Analysis - 1v1'!W83 -> 0
B37: =B36+1 -> 12 | C37: ='Analysis - 1v1'!C110 ->  | D37: ='Analysis - 1v1'!G110 ->  | E37: ='Analysis - 1v1'!K110 ->  | F37: ='Analysis - 1v1'!O110 ->  | G37: ='Analysis - 1v1'!S110 ->  | H37: ='Analysis - 1v1'!W110 ->  | J37: =J36+1 -> 12 | K37: ='Analysis - 1v1'!C84 -> 0 | L37: ='Analysis - 1v1'!G84 -> 0 | M37: ='Analysis - 1v1'!K84 -> 0 | N37: ='Analysis - 1v1'!O84 -> 0 | O37: ='Analysis - 1v1'!S84 -> 0 | P37: ='Analysis - 1v1'!W84 -> 0
B38: =B37+1 -> 13 | C38: ='Analysis - 1v1'!C111 ->  | D38: ='Analysis - 1v1'!G111 ->  | E38: ='Analysis - 1v1'!K111 ->  | F38: ='Analysis - 1v1'!O111 ->  | G38: ='Analysis - 1v1'!S111 ->  | H38: ='Analysis - 1v1'!W111 ->  | J38: =J37+1 -> 13 | K38: ='Analysis - 1v1'!C85 -> 0 | L38: ='Analysis - 1v1'!G85 -> 0 | M38: ='Analysis - 1v1'!K85 -> 0 | N38: ='Analysis - 1v1'!O85 -> 0 | O38: ='Analysis - 1v1'!S85 -> 0 | P38: ='Analysis - 1v1'!W85 -> 0
B39: 14 | C39: ='Analysis - 1v1'!C112 ->  | D39: ='Analysis - 1v1'!G112 ->  | E39: ='Analysis - 1v1'!K112 ->  | F39: ='Analysis - 1v1'!O112 ->  | G39: ='Analysis - 1v1'!S112 ->  | H39: ='Analysis - 1v1'!W112 ->  | J39: 14 | K39: ='Analysis - 1v1'!C86 -> 0 | L39: ='Analysis - 1v1'!G86 -> 0 | M39: ='Analysis - 1v1'!K86 -> 0 | N39: ='Analysis - 1v1'!O86 -> 0 | O39: ='Analysis - 1v1'!S86 -> 0 | P39: ='Analysis - 1v1'!W86 -> 0
B40: 15 | C40: ='Analysis - 1v1'!C113 ->  | D40: ='Analysis - 1v1'!G113 ->  | E40: ='Analysis - 1v1'!K113 ->  | F40: ='Analysis - 1v1'!O113 ->  | G40: ='Analysis - 1v1'!S113 ->  | H40: ='Analysis - 1v1'!W113 ->  | J40: 15 | K40: ='Analysis - 1v1'!C87 -> 0 | L40: ='Analysis - 1v1'!G87 -> 0 | M40: ='Analysis - 1v1'!K87 -> 0 | N40: ='Analysis - 1v1'!O87 -> 0 | O40: ='Analysis - 1v1'!S87 -> 0 | P40: ='Analysis - 1v1'!W87 -> 0
B41: 16 | C41: ='Analysis - 1v1'!C114 ->  | D41: ='Analysis - 1v1'!G114 ->  | E41: ='Analysis - 1v1'!K114 ->  | F41: ='Analysis - 1v1'!O114 ->  | G41: ='Analysis - 1v1'!S114 ->  | H41: ='Analysis - 1v1'!W114 ->  | J41: 16 | K41: ='Analysis - 1v1'!C88 -> 0 | L41: ='Analysis - 1v1'!G88 -> 0 | M41: ='Analysis - 1v1'!K88 -> 0 | N41: ='Analysis - 1v1'!O88 -> 0 | O41: ='Analysis - 1v1'!S88 -> 0 | P41: ='Analysis - 1v1'!W88 -> 0
B42: 17 | C42: ='Analysis - 1v1'!C115 ->  | D42: ='Analysis - 1v1'!G115 ->  | E42: ='Analysis - 1v1'!K115 ->  | F42: ='Analysis - 1v1'!O115 ->  | G42: ='Analysis - 1v1'!S115 ->  | H42: ='Analysis - 1v1'!W115 ->  | J42: 17 | K42: ='Analysis - 1v1'!C89 -> 0 | L42: ='Analysis - 1v1'!G89 -> 0 | M42: ='Analysis - 1v1'!K89 -> 0 | N42: ='Analysis - 1v1'!O89 -> 0 | O42: ='Analysis - 1v1'!S89 -> 0 | P42: ='Analysis - 1v1'!W89 -> 0
B43: 18 | C43: ='Analysis - 1v1'!C116 ->  | D43: ='Analysis - 1v1'!G116 ->  | E43: ='Analysis - 1v1'!K116 ->  | F43: ='Analysis - 1v1'!O116 ->  | G43: ='Analysis - 1v1'!S116 ->  | H43: ='Analysis - 1v1'!W116 ->  | J43: 18 | K43: ='Analysis - 1v1'!C90 -> 0 | L43: ='Analysis - 1v1'!G90 -> 0 | M43: ='Analysis - 1v1'!K90 -> 0 | N43: ='Analysis - 1v1'!O90 -> 0 | O43: ='Analysis - 1v1'!S90 -> 0 | P43: ='Analysis - 1v1'!W90 -> 0
C46: Protoss | K46: Protoss
B47: Weeks Remaining | C47: Bronze | D47: Silver | E47: Gold | F47: Platinum | G47: Diamond | H47: Master | J47: Weeks Remaining | K47: Bronze | L47: Silver | M47: Gold | N47: Platinum | O47: Diamond | P47: Master
A48: 2014-11-10 | B48: 1 | C48: ='Analysis - 1v1'!D99 -> 0.2736660929 | D48: ='Analysis - 1v1'!H99 -> 0.2821948488 | E48: ='Analysis - 1v1'!L99 -> 0.2489561587 | F48: ='Analysis - 1v1'!P99 -> 0.2574257426 | G48: ='Analysis - 1v1'!T99 -> 0.2729779412 | H48: ='Analysis - 1v1'!X99 -> 0.3534482759 | J48: 1 | K48: ='Analysis - 1v1'!D73 -> 159 | L48: ='Analysis - 1v1'!H73 -> 252 | M48: ='Analysis - 1v1'!L73 -> 954 | N48: ='Analysis - 1v1'!P73 -> 598 | O48: ='Analysis - 1v1'!T73 -> 594 | P48: ='Analysis - 1v1'!X73 -> 41
A49: 2014-11-17 | B49: 2 | C49: ='Analysis - 1v1'!D100 -> 0.2807881773 | D49: ='Analysis - 1v1'!H100 -> 0.3091397849 | E49: ='Analysis - 1v1'!L100 -> 0.2677376171 | F49: ='Analysis - 1v1'!P100 -> 0.2634146341 | G49: ='Analysis - 1v1'!T100 -> 0.2507788162 | H49: ='Analysis - 1v1'!X100 -> 0.3793103448 | J49: 2 | K49: ='Analysis - 1v1'!D74 -> 57 | L49: ='Analysis - 1v1'!H74 -> 115 | M49: ='Analysis - 1v1'!L74 -> 400 | N49: ='Analysis - 1v1'!P74 -> 216 | O49: ='Analysis - 1v1'!T74 -> 161 | P49: ='Analysis - 1v1'!X74 -> 22
A50: 2014-11-24 | B50: 3 | C50: ='Analysis - 1v1'!D101 -> 0.3216374269 | D50: ='Analysis - 1v1'!H101 -> 0.2969837587 | E50: ='Analysis - 1v1'!L101 -> 0.2674418605 | F50: ='Analysis - 1v1'!P101 -> 0.2515042118 | G50: ='Analysis - 1v1'!T101 -> 0.2705882353 | H50: ='Analysis - 1v1'!X101 -> 0.25 | J50: 3 | K50: ='Analysis - 1v1'!D75 -> 55 | L50: ='Analysis - 1v1'!H75 -> 128 | M50: ='Analysis - 1v1'!L75 -> 414 | N50: ='Analysis - 1v1'!P75 -> 209 | O50: ='Analysis - 1v1'!T75 -> 161 | P50: ='Analysis - 1v1'!X75 -> 15
A51: 2014-12-01 | B51: 4 | C51: ='Analysis - 1v1'!D102 -> 0.3090909091 | D51: ='Analysis - 1v1'!H102 -> 0.327198364 | E51: ='Analysis - 1v1'!L102 -> 0.2728205128 | F51: ='Analysis - 1v1'!P102 -> 0.2567849687 | G51: ='Analysis - 1v1'!T102 -> 0.2880523732 | H51: ='Analysis - 1v1'!X102 -> 0.2777777778 | J51: 4 | K51: ='Analysis - 1v1'!D76 -> 68 | L51: ='Analysis - 1v1'!H76 -> 160 | M51: ='Analysis - 1v1'!L76 -> 532 | N51: ='Analysis - 1v1'!P76 -> 246 | O51: ='Analysis - 1v1'!T76 -> 176 | P51: ='Analysis - 1v1'!X76 -> 25
A52: 2014-12-08 | B52: 5 | C52: ='Analysis - 1v1'!D103 -> 0.2986111111 | D52: ='Analysis - 1v1'!H103 -> 0.2979020979 | E52: ='Analysis - 1v1'!L103 -> 0.2820211516 | F52: ='Analysis - 1v1'!P103 -> 0.2553389044 | G52: ='Analysis - 1v1'!T103 -> 0.2839506173 | H52: ='Analysis - 1v1'!X103 -> 0.3875 | J52: 5 | K52: ='Analysis - 1v1'!D77 -> 86 | L52: ='Analysis - 1v1'!H77 -> 213 | M52: ='Analysis - 1v1'!L77 -> 720 | N52: ='Analysis - 1v1'!P77 -> 275 | O52: ='Analysis - 1v1'!T77 -> 184 | P52: ='Analysis - 1v1'!X77 -> 31
A53: 2014-12-15 | B53: 6 | C53: ='Analysis - 1v1'!D104 -> 0.3009950249 | D53: ='Analysis - 1v1'!H104 -> 0.2896959459 | E53: ='Analysis - 1v1'!L104 -> 0.2743644068 | F53: ='Analysis - 1v1'!P104 -> 0.2540983607 | G53: ='Analysis - 1v1'!T104 -> 0.2612481858 | H53: ='Analysis - 1v1'!X104 -> 0.3505154639 | J53: 6 | K53: ='Analysis - 1v1'!D78 -> 121 | L53: ='Analysis - 1v1'!H78 -> 343 | M53: ='Analysis - 1v1'!L78 -> 1036 | N53: ='Analysis - 1v1'!P78 -> 310 | O53: ='Analysis - 1v1'!T78 -> 180 | P53: ='Analysis - 1v1'!X78 -> 34
A54: 2014-12-22 | B54: 7 | C54: ='Analysis - 1v1'!D105 -> 0.2975679542 | D54: ='Analysis - 1v1'!H105 -> 0.3058289175 | E54: ='Analysis - 1v1'!L105 -> 0.2754966887 | F54: ='Analysis - 1v1'!P105 -> 0.2440392707 | G54: ='Analysis - 1v1'!T105 -> 0.2656449553 | H54: ='Analysis - 1v1'!X105 -> 0.3789473684 | J54: 7 | K54: ='Analysis - 1v1'!D79 -> 208 | L54: ='Analysis - 1v1'!H79 -> 808 | M54: ='Analysis - 1v1'!L79 -> 1664 | N54: ='Analysis - 1v1'!P79 -> 348 | O54: ='Analysis - 1v1'!T79 -> 208 | P54: ='Analysis - 1v1'!X79 -> 36
A55: 2014-12-29 | B55: 8 | C55: ='Analysis - 1v1'!D106 -> 0.2957254418 | D55: ='Analysis - 1v1'!H106 -> 0.2967400247 | E55: ='Analysis - 1v1'!L106 -> 0.2680049992 | F55: ='Analysis - 1v1'!P106 -> 0.2713551702 | G55: ='Analysis - 1v1'!T106 -> 0.2735462735 | H55: ='Analysis - 1v1'!X106 -> 0.2817679558 | J55: 8 | K55: ='Analysis - 1v1'!D80 -> 1439 | L55: ='Analysis - 1v1'!H80 -> 5771 | M55: ='Analysis - 1v1'!L80 -> 3431 | N55: ='Analysis - 1v1'!P80 -> 845 | O55: ='Analysis - 1v1'!T80 -> 334 | P55: ='Analysis - 1v1'!X80 -> 51
A56: 1/5/2015 (season lock) | B56: 9 | C56: ='Analysis - 1v1'!D107 ->  | D56: ='Analysis - 1v1'!H107 ->  | E56: ='Analysis - 1v1'!L107 ->  | F56: ='Analysis - 1v1'!P107 ->  | G56: ='Analysis - 1v1'!T107 ->  | H56: ='Analysis - 1v1'!X107 ->  | J56: 9 | K56: ='Analysis - 1v1'!D81 -> 0 | L56: ='Analysis - 1v1'!H81 -> 0 | M56: ='Analysis - 1v1'!L81 -> 0 | N56: ='Analysis - 1v1'!P81 -> 0 | O56: ='Analysis - 1v1'!T81 -> 0 | P56: ='Analysis - 1v1'!X81 -> 0
A57: 2015-01-12 | B57: 10 | C57: ='Analysis - 1v1'!D108 ->  | D57: ='Analysis - 1v1'!H108 ->  | E57: ='Analysis - 1v1'!L108 ->  | F57: ='Analysis - 1v1'!P108 ->  | G57: ='Analysis - 1v1'!T108 ->  | H57: ='Analysis - 1v1'!X108 ->  | J57: 10 | K57: ='Analysis - 1v1'!D82 -> 0 | L57: ='Analysis - 1v1'!H82 -> 0 | M57: ='Analysis - 1v1'!L82 -> 0 | N57: ='Analysis - 1v1'!P82 -> 0 | O57: ='Analysis - 1v1'!T82 -> 0 | P57: ='Analysis - 1v1'!X82 -> 0
B58: 11 | C58: ='Analysis - 1v1'!D109 ->  | D58: ='Analysis - 1v1'!H109 ->  | E58: ='Analysis - 1v1'!L109 ->  | F58: ='Analysis - 1v1'!P109 ->  | G58: ='Analysis - 1v1'!T109 ->  | H58: ='Analysis - 1v1'!X109 ->  | J58: 11 | K58: ='Analysis - 1v1'!D83 -> 0 | L58: ='Analysis - 1v1'!H83 -> 0 | M58: ='Analysis - 1v1'!L83 -> 0 | N58: ='Analysis - 1v1'!P83 -> 0 | O58: ='Analysis - 1v1'!T83 -> 0 | P58: ='Analysis - 1v1'!X83 -> 0
B59: =B58+1 -> 12 | C59: ='Analysis - 1v1'!D110 ->  | D59: ='Analysis - 1v1'!H110 ->  | E59: ='Analysis - 1v1'!L110 ->  | F59: ='Analysis - 1v1'!P110 ->  | G59: ='Analysis - 1v1'!T110 ->  | H59: ='Analysis - 1v1'!X110 ->  | J59: =J58+1 -> 12 | K59: ='Analysis - 1v1'!D84 -> 0 | L59: ='Analysis - 1v1'!H84 -> 0 | M59: ='Analysis - 1v1'!L84 -> 0 | N59: ='Analysis - 1v1'!P84 -> 0 | O59: ='Analysis - 1v1'!T84 -> 0 | P59: ='Analysis - 1v1'!X84 -> 0
B60: =B59+1 -> 13 | C60: ='Analysis - 1v1'!D111 ->  | D60: ='Analysis - 1v1'!H111 ->  | E60: ='Analysis - 1v1'!L111 ->  | F60: ='Analysis - 1v1'!P111 ->  | G60: ='Analysis - 1v1'!T111 ->  | H60: ='Analysis - 1v1'!X111 ->  | J60: =J59+1 -> 13 | K60: ='Analysis - 1v1'!D85 -> 0 | L60: ='Analysis - 1v1'!H85 -> 0 | M60: ='Analysis - 1v1'!L85 -> 0 | N60: ='Analysis - 1v1'!P85 -> 0 | O60: ='Analysis - 1v1'!T85 -> 0 | P60: ='Analysis - 1v1'!X85 -> 0
B61: 14 | C61: ='Analysis - 1v1'!D112 ->  | D61: ='Analysis - 1v1'!H112 ->  | E61: ='Analysis - 1v1'!L112 ->  | F61: ='Analysis - 1v1'!P112 ->  | G61: ='Analysis - 1v1'!T112 ->  | H61: ='Analysis - 1v1'!X112 ->  | J61: 14 | K61: ='Analysis - 1v1'!D86 -> 0 | L61: ='Analysis - 1v1'!H86 -> 0 | M61: ='Analysis - 1v1'!L86 -> 0 | N61: ='Analysis - 1v1'!P86 -> 0 | O61: ='Analysis - 1v1'!T86 -> 0 | P61: ='Analysis - 1v1'!X86 -> 0
B62: 15 | C62: ='Analysis - 1v1'!D113 ->  | D62: ='Analysis - 1v1'!H113 ->  | E62: ='Analysis - 1v1'!L113 ->  | F62: ='Analysis - 1v1'!P113 ->  | G62: ='Analysis - 1v1'!T113 ->  | H62: ='Analysis - 1v1'!X113 ->  | J62: 15 | K62: ='Analysis - 1v1'!D87 -> 0 | L62: ='Analysis - 1v1'!H87 -> 0 | M62: ='Analysis - 1v1'!L87 -> 0 | N62: ='Analysis - 1v1'!P87 -> 0 | O62: ='Analysis - 1v1'!T87 -> 0 | P62: ='Analysis - 1v1'!X87 -> 0
B63: 16 | C63: ='Analysis - 1v1'!D114 ->  | D63: ='Analysis - 1v1'!H114 ->  | E63: ='Analysis - 1v1'!L114 ->  | F63: ='Analysis - 1v1'!P114 ->  | G63: ='Analysis - 1v1'!T114 ->  | H63: ='Analysis - 1v1'!X114 ->  | J63: 16 | K63: ='Analysis - 1v1'!D88 -> 0 | L63: ='Analysis - 1v1'!H88 -> 0 | M63: ='Analysis - 1v1'!L88 -> 0 | N63: ='Analysis - 1v1'!P88 -> 0 | O63: ='Analysis - 1v1'!T88 -> 0 | P63: ='Analysis - 1v1'!X88 -> 0
B64: 17 | C64: ='Analysis - 1v1'!D115 ->  | D64: ='Analysis - 1v1'!H115 ->  | E64: ='Analysis - 1v1'!L115 ->  | F64: ='Analysis - 1v1'!P115 ->  | G64: ='Analysis - 1v1'!T115 ->  | H64: ='Analysis - 1v1'!X115 ->  | J64: 17 | K64: ='Analysis - 1v1'!D89 -> 0 | L64: ='Analysis - 1v1'!H89 -> 0 | M64: ='Analysis - 1v1'!L89 -> 0 | N64: ='Analysis - 1v1'!P89 -> 0 | O64: ='Analysis - 1v1'!T89 -> 0 | P64: ='Analysis - 1v1'!X89 -> 0
B65: 18 | C65: ='Analysis - 1v1'!D116 ->  | D65: ='Analysis - 1v1'!H116 ->  | E65: ='Analysis - 1v1'!L116 ->  | F65: ='Analysis - 1v1'!P116 ->  | G65: ='Analysis - 1v1'!T116 ->  | H65: ='Analysis - 1v1'!X116 ->  | J65: 18 | K65: ='Analysis - 1v1'!D90 -> 0 | L65: ='Analysis - 1v1'!H90 -> 0 | M65: ='Analysis - 1v1'!L90 -> 0 | N65: ='Analysis - 1v1'!P90 -> 0 | O65: ='Analysis - 1v1'!T90 -> 0 | P65: ='Analysis - 1v1'!X90 -> 0
C68: Random | K68: Random
B69: Weeks Remaining | C69: Bronze | D69: Silver | E69: Gold | F69: Platinum | G69: Diamond | H69: Master | J69: Weeks Remaining | K69: Bronze | L69: Silver | M69: Gold | N69: Platinum | O69: Diamond | P69: Master
A70: 2014-11-10 | B70: 1 | C70: ='Analysis - 1v1'!E99 -> 0.1290877797 | D70: ='Analysis - 1v1'!I99 -> 0.1332586786 | E70: ='Analysis - 1v1'!M99 -> 0.1036012526 | F70: ='Analysis - 1v1'!Q99 -> 0.08049935428 | G70: ='Analysis - 1v1'!U99 -> 0.04457720588 | H70: ='Analysis - 1v1'!Y99 -> 0 | J70: 1 | K70: ='Analysis - 1v1'!E73 -> 75 | L70: ='Analysis - 1v1'!I73 -> 119 | M70: ='Analysis - 1v1'!M73 -> 397 | N70: ='Analysis - 1v1'!Q73 -> 187 | O70: ='Analysis - 1v1'!U73 -> 97 | P70: ='Analysis - 1v1'!Y73 -> 0
A71: 2014-11-17 | B71: 2 | C71: ='Analysis - 1v1'!E100 -> 0.09852216749 | D71: ='Analysis - 1v1'!I100 -> 0.09946236559 | E71: ='Analysis - 1v1'!M100 -> 0.1017402945 | F71: ='Analysis - 1v1'!Q100 -> 0.09268292683 | G71: ='Analysis - 1v1'!U100 -> 0.05451713396 | H71: ='Analysis - 1v1'!Y100 -> 0.03448275862 | J71: 2 | K71: ='Analysis - 1v1'!E74 -> 20 | L71: ='Analysis - 1v1'!I74 -> 37 | M71: ='Analysis - 1v1'!M74 -> 152 | N71: ='Analysis - 1v1'!Q74 -> 76 | O71: ='Analysis - 1v1'!U74 -> 35 | P71: ='Analysis - 1v1'!Y74 -> 2
A72: 2014-11-24 | B72: 3 | C72: ='Analysis - 1v1'!E101 -> 0.07602339181 | D72: ='Analysis - 1v1'!I101 -> 0.1299303944 | E72: ='Analysis - 1v1'!M101 -> 0.1188630491 | F72: ='Analysis - 1v1'!Q101 -> 0.1143200963 | G72: ='Analysis - 1v1'!U101 -> 0.04537815126 | H72: ='Analysis - 1v1'!Y101 -> 0.03333333333 | J72: 3 | K72: ='Analysis - 1v1'!E75 -> 13 | L72: ='Analysis - 1v1'!I75 -> 56 | M72: ='Analysis - 1v1'!M75 -> 184 | N72: ='Analysis - 1v1'!Q75 -> 95 | O72: ='Analysis - 1v1'!U75 -> 27 | P72: ='Analysis - 1v1'!Y75 -> 2
A73: 2014-12-01 | B73: 4 | C73: ='Analysis - 1v1'!E102 -> 0.09090909091 | D73: ='Analysis - 1v1'!I102 -> 0.08384458078 | E73: ='Analysis - 1v1'!M102 -> 0.1061538462 | F73: ='Analysis - 1v1'!Q102 -> 0.09603340292 | G73: ='Analysis - 1v1'!U102 -> 0.05728314239 | H73: ='Analysis - 1v1'!Y102 -> 0.04444444444 | J73: 4 | K73: ='Analysis - 1v1'!E76 -> 20 | L73: ='Analysis - 1v1'!I76 -> 41 | M73: ='Analysis - 1v1'!M76 -> 207 | N73: ='Analysis - 1v1'!Q76 -> 92 | O73: ='Analysis - 1v1'!U76 -> 35 | P73: ='Analysis - 1v1'!Y76 -> 4
A74: 2014-12-08 | B74: 5 | C74: ='Analysis - 1v1'!E103 -> 0.07291666667 | D74: ='Analysis - 1v1'!I103 -> 0.1118881119 | E74: ='Analysis - 1v1'!M103 -> 0.09674892284 | F74: ='Analysis - 1v1'!Q103 -> 0.07520891365 | G74: ='Analysis - 1v1'!U103 -> 0.05864197531 | H74: ='Analysis - 1v1'!Y103 -> 0.025 | J74: 5 | K74: ='Analysis - 1v1'!E77 -> 21 | L74: ='Analysis - 1v1'!I77 -> 80 | M74: ='Analysis - 1v1'!M77 -> 247 | N74: ='Analysis - 1v1'!Q77 -> 81 | O74: ='Analysis - 1v1'!U77 -> 38 | P74: ='Analysis - 1v1'!Y77 -> 2
A75: 2014-12-15 | B75: 6 | C75: ='Analysis - 1v1'!E104 -> 0.07213930348 | D75: ='Analysis - 1v1'!I104 -> 0.1173986486 | E75: ='Analysis - 1v1'!M104 -> 0.1035487288 | F75: ='Analysis - 1v1'!Q104 -> 0.08606557377 | G75: ='Analysis - 1v1'!U104 -> 0.05515239478 | H75: ='Analysis - 1v1'!Y104 -> 0.0412371134 | J75: 6 | K75: ='Analysis - 1v1'!E78 -> 29 | L75: ='Analysis - 1v1'!I78 -> 139 | M75: ='Analysis - 1v1'!M78 -> 391 | N75: ='Analysis - 1v1'!Q78 -> 105 | O75: ='Analysis - 1v1'!U78 -> 38 | P75: ='Analysis - 1v1'!Y78 -> 4
A76: 2014-12-22 | B76: 7 | C76: ='Analysis - 1v1'!E105 -> 0.09442060086 | D76: ='Analysis - 1v1'!I105 -> 0.1154428463 | E76: ='Analysis - 1v1'!M105 -> 0.1223509934 | F76: ='Analysis - 1v1'!Q105 -> 0.08625525947 | G76: ='Analysis - 1v1'!U105 -> 0.05363984674 | H76: ='Analysis - 1v1'!Y105 -> 0.05263157895 | J76: 7 | K76: ='Analysis - 1v1'!E79 -> 66 | L76: ='Analysis - 1v1'!I79 -> 305 | M76: ='Analysis - 1v1'!M79 -> 739 | N76: ='Analysis - 1v1'!Q79 -> 123 | O76: ='Analysis - 1v1'!U79 -> 42 | P76: ='Analysis - 1v1'!Y79 -> 5
A77: 2014-12-29 | B77: 8 | C77: ='Analysis - 1v1'!E106 -> 0.1087135224 | D77: ='Analysis - 1v1'!I106 -> 0.1204751131 | E77: ='Analysis - 1v1'!M106 -> 0.1146695829 | F77: ='Analysis - 1v1'!Q106 -> 0.09216441875 | G77: ='Analysis - 1v1'!U106 -> 0.06797706798 | H77: ='Analysis - 1v1'!Y106 -> 0.02762430939 | J77: 8 | K77: ='Analysis - 1v1'!E80 -> 529 | L77: ='Analysis - 1v1'!I80 -> 2343 | M77: ='Analysis - 1v1'!M80 -> 1468 | N77: ='Analysis - 1v1'!Q80 -> 287 | O77: ='Analysis - 1v1'!U80 -> 83 | P77: ='Analysis - 1v1'!Y80 -> 5
A78: 1/5/2015 (season lock) | B78: 9 | C78: ='Analysis - 1v1'!E107 ->  | D78: ='Analysis - 1v1'!I107 ->  | E78: ='Analysis - 1v1'!M107 ->  | F78: ='Analysis - 1v1'!Q107 ->  | G78: ='Analysis - 1v1'!U107 ->  | H78: ='Analysis - 1v1'!Y107 ->  | J78: 9 | K78: ='Analysis - 1v1'!E81 -> 0 | L78: ='Analysis - 1v1'!I81 -> 0 | M78: ='Analysis - 1v1'!M81 -> 0 | N78: ='Analysis - 1v1'!Q81 -> 0 | O78: ='Analysis - 1v1'!U81 -> 0 | P78: ='Analysis - 1v1'!Y81 -> 0
A79: 2015-01-12 | B79: 10 | C79: ='Analysis - 1v1'!E108 ->  | D79: ='Analysis - 1v1'!I108 ->  | E79: ='Analysis - 1v1'!M108 ->  | F79: ='Analysis - 1v1'!Q108 ->  | G79: ='Analysis - 1v1'!U108 ->  | H79: ='Analysis - 1v1'!Y108 ->  | J79: 10 | K79: ='Analysis - 1v1'!E82 -> 0 | L79: ='Analysis - 1v1'!I82 -> 0 | M79: ='Analysis - 1v1'!M82 -> 0 | N79: ='Analysis - 1v1'!Q82 -> 0 | O79: ='Analysis - 1v1'!U82 -> 0 | P79: ='Analysis - 1v1'!Y82 -> 0
B80: 11 | C80: ='Analysis - 1v1'!E109 ->  | D80: ='Analysis - 1v1'!I109 ->  | E80: ='Analysis - 1v1'!M109 ->  | F80: ='Analysis - 1v1'!Q109 ->  | G80: ='Analysis - 1v1'!U109 ->  | H80: ='Analysis - 1v1'!Y109 ->  | J80: 11 | K80: ='Analysis - 1v1'!E83 -> 0 | L80: ='Analysis - 1v1'!I83 -> 0 | M80: ='Analysis - 1v1'!M83 -> 0 | N80: ='Analysis - 1v1'!Q83 -> 0 | O80: ='Analysis - 1v1'!U83 -> 0 | P80: ='Analysis - 1v1'!Y83 -> 0
B81: =B80+1 -> 12 | C81: ='Analysis - 1v1'!E110 ->  | D81: ='Analysis - 1v1'!I110 ->  | E81: ='Analysis - 1v1'!M110 ->  | F81: ='Analysis - 1v1'!Q110 ->  | G81: ='Analysis - 1v1'!U110 ->  | H81: ='Analysis - 1v1'!Y110 ->  | J81: =J80+1 -> 12 | K81: ='Analysis - 1v1'!E84 -> 0 | L81: ='Analysis - 1v1'!I84 -> 0 | M81: ='Analysis - 1v1'!M84 -> 0 | N81: ='Analysis - 1v1'!Q84 -> 0 | O81: ='Analysis - 1v1'!U84 -> 0 | P81: ='Analysis - 1v1'!Y84 -> 0
B82: =B81+1 -> 13 | C82: ='Analysis - 1v1'!E111 ->  | D82: ='Analysis - 1v1'!I111 ->  | E82: ='Analysis - 1v1'!M111 ->  | F82: ='Analysis - 1v1'!Q111 ->  | G82: ='Analysis - 1v1'!U111 ->  | H82: ='Analysis - 1v1'!Y111 ->  | J82: =J81+1 -> 13 | K82: ='Analysis - 1v1'!E85 -> 0 | L82: ='Analysis - 1v1'!I85 -> 0 | M82: ='Analysis - 1v1'!M85 -> 0 | N82: ='Analysis - 1v1'!Q85 -> 0 | O82: ='Analysis - 1v1'!U85 -> 0 | P82: ='Analysis - 1v1'!Y85 -> 0
B83: 14 | C83: ='Analysis - 1v1'!E112 ->  | D83: ='Analysis - 1v1'!I112 ->  | E83: ='Analysis - 1v1'!M112 ->  | F83: ='Analysis - 1v1'!Q112 ->  | G83: ='Analysis - 1v1'!U112 ->  | H83: ='Analysis - 1v1'!Y112 ->  | J83: 14 | K83: ='Analysis - 1v1'!E86 -> 0 | L83: ='Analysis - 1v1'!I86 -> 0 | M83: ='Analysis - 1v1'!M86 -> 0 | N83: ='Analysis - 1v1'!Q86 -> 0 | O83: ='Analysis - 1v1'!U86 -> 0 | P83: ='Analysis - 1v1'!Y86 -> 0
B84: 15 | C84: ='Analysis - 1v1'!E113 ->  | D84: ='Analysis - 1v1'!I113 ->  | E84: ='Analysis - 1v1'!M113 ->  | F84: ='Analysis - 1v1'!Q113 ->  | G84: ='Analysis - 1v1'!U113 ->  | H84: ='Analysis - 1v1'!Y113 ->  | J84: 15 | K84: ='Analysis - 1v1'!E87 -> 0 | L84: ='Analysis - 1v1'!I87 -> 0 | M84: ='Analysis - 1v1'!M87 -> 0 | N84: ='Analysis - 1v1'!Q87 -> 0 | O84: ='Analysis - 1v1'!U87 -> 0 | P84: ='Analysis - 1v1'!Y87 -> 0
B85: 16 | C85: ='Analysis - 1v1'!E114 ->  | D85: ='Analysis - 1v1'!I114 ->  | E85: ='Analysis - 1v1'!M114 ->  | F85: ='Analysis - 1v1'!Q114 ->  | G85: ='Analysis - 1v1'!U114 ->  | H85: ='Analysis - 1v1'!Y114 ->  | J85: 16 | K85: ='Analysis - 1v1'!E88 -> 0 | L85: ='Analysis - 1v1'!I88 -> 0 | M85: ='Analysis - 1v1'!M88 -> 0 | N85: ='Analysis - 1v1'!Q88 -> 0 | O85: ='Analysis - 1v1'!U88 -> 0 | P85: ='Analysis - 1v1'!Y88 -> 0
B86: 17 | C86: ='Analysis - 1v1'!E115 ->  | D86: ='Analysis - 1v1'!I115 ->  | E86: ='Analysis - 1v1'!M115 ->  | F86: ='Analysis - 1v1'!Q115 ->  | G86: ='Analysis - 1v1'!U115 ->  | H86: ='Analysis - 1v1'!Y115 ->  | J86: 17 | K86: ='Analysis - 1v1'!E89 -> 0 | L86: ='Analysis - 1v1'!I89 -> 0 | M86: ='Analysis - 1v1'!M89 -> 0 | N86: ='Analysis - 1v1'!Q89 -> 0 | O86: ='Analysis - 1v1'!U89 -> 0 | P86: ='Analysis - 1v1'!Y89 -> 0
B87: 18 | C87: ='Analysis - 1v1'!E116 ->  | D87: ='Analysis - 1v1'!I116 ->  | E87: ='Analysis - 1v1'!M116 ->  | F87: ='Analysis - 1v1'!Q116 ->  | G87: ='Analysis - 1v1'!U116 ->  | H87: ='Analysis - 1v1'!Y116 ->  | J87: 18 | K87: ='Analysis - 1v1'!E90 -> 0 | L87: ='Analysis - 1v1'!I90 -> 0 | M87: ='Analysis - 1v1'!M90 -> 0 | N87: ='Analysis - 1v1'!Q90 -> 0 | O87: ='Analysis - 1v1'!U90 -> 0 | P87: ='Analysis - 1v1'!Y90 -> 0

Sheet Analysis - 1v1
A1: Week Start | B1: Bonus Pool Per Week (Sub-Masters) | C1: Bonus Pool Per Week (Masters+GM) | D1: Cum. Bonus Pool (Sub-Masters) | E1: Cum. Bonus Pool (Masters+GM) | F1: Week # | H1: Program Run Notes | R1: x
A2: 2015-01-12 | B2: 104.4 | C2: 180 | D2: =B2 -> 104.4 | E2: =C2 -> 180 | F2: 1 | H2: 7/29/2014 runtime:
A3: =A2+7 -> 2015-01-19 | B3: 104.4 | C3: 180 | D3: =D2+B3 -> 208.8 | E3: =E2+C3 -> 360 | F3: =F2+1 -> 2 | H3: start | I3: 2014-07-21T16:36:39
A4: =A3+7 -> 2015-01-26 | B4: 104.4 | C4: 180 | D4: =D3+B4 -> 313.2 | E4: =E3+C4 -> 540 | F4: =F3+1 -> 3 | H4: end | I4: 2014-07-22T00:17:21
A5: 2015-02-02 | B5: 104.4 | C5: 180 | D5: 417.6 | E5: 720 | F5: 4
A6: 2015-02-09 | B6: 104.4 | C6: 180 | D6: =D5+B6 -> 522 | E6: =E5+C6 -> 900 | F6: 5 | H6: 2014-08-25
A7: 2015-02-16 | B7: 104.4 | C7: 180 | D7: =D6+B7 -> 626.4 | E7: =E6+C7 -> 1080 | F7: 6 | H7: start | I7: 2014-08-23T09:46:00
A8: 2015-02-23 | B8: 104.4 | C8: 180 | D8: 730.8 | E8: 1260 | F8: 7 | H8: end | I8: 2014-08-24T19:01:00
A9: 2015-03-02 | B9: 104.4 | C9: 180 | D9: 835.2 | E9: 1440 | F9: 8 | G9: <-
A10: 2015-03-09 | B10: 104.4 | C10: 180 | D10: =D9+B10 -> 939.6 | E10: =E9+C10 -> 1620 | F10: 9 | H10: 2014-09-30
A11: 2015-03-16 | B11: 104.4 | C11: 180 | D11: =D10+B11 -> 1044 | E11: =E10+C11 -> 1800 | F11: 10
A12: =A11+7 -> 2015-03-23 | B12: 104.4 | C12: 180 | D12: =D11+B12 -> 1148.4 | E12: =E11+C12 -> 1980 | F12: 11 | H12: 2014-11-05
H13: start | I13: 2014-11-04T22:36:00
H14: end | I14: 2014-11-05T05:31:16
H15: 2014-12-17
A23: Raw Counts | K23: % Distributions | R23: Weeks Behind Averager: | S23: 4
A24: Weeks Remaining | B24: Bronze | C24: Silver | D24: Gold | E24: Platinum | F24: Diamond | G24: Master | H24: Grandmaster | I24: Totals | J24: Percentages of Total | K24: Bronze | L24: Silver | M24: Gold | N24: Platinum | O24: Diamond | P24: Master | R24: Bronze | S24: Silver | T24: Gold | U24: Platinum | V24: Diamond | W24: Master
A25: 1 | B25: 581 | C25: 893 | D25: 3832 | E25: 2323 | F25: 2176 | G25: 116 | I25: =SUM(B25:H25) -> 9921 | J25: =I25/$I$44 -> 0.1133699006 | K25: =B25/$I25 -> 0.05856264489 | L25: =C25/$I25 -> 0.09001108759 | M25: =D25/$I25 -> 0.3862513859 | N25: =E25/$I25 -> 0.2341497833 | O25: =F25/$I25 -> 0.2193327286 | P25: =G25/$I25 -> 0.01169236972 | R25: =AVERAGEIFS(K25:K43,$A$25:$A$43,"<=4") -> 0.05327589447 | S25: 0.1063612142 | T25: 0.4199659661 | U25: 0.2282588774 | V25: 0.1758386746 | W25: 0.01629937328
A26: 2 | B26: 203 | C26: 372 | D26: 1494 | E26: 820 | F26: 642 | G26: 58 | I26: =SUM(B26:H26) -> 3589 | J26: =I26/$I$44 -> 0.04101245572 | K26: =B26/$I26 -> 0.05656171636 | L26: =C26/$I26 -> 0.1036500418 | M26: =D26/$I26 -> 0.416271942 | N26: =E26/$I26 -> 0.2284758986 | O26: =F26/$I26 -> 0.1788799108 | P26: =G26/$I26 -> 0.01616049039
A27: 3 | B27: 171 | C27: 431 | D27: 1548 | E27: 831 | F27: 595 | G27: 60 | I27: 3636 | J27: 0.0415495372 | K27: 0.04702970297 | L27: 0.1185368537 | M27: 0.4257425743 | N27: 0.2285478548 | O27: 0.1636413641 | P27: 0.01650165017
A28: 4 | B28: 220 | C28: 489 | D28: 1950 | E28: 958 | F28: 611 | G28: 90 | I28: 4318 | J28: 0.04934293224 | K28: 0.05094951366 | L28: 0.1132468736 | M28: 0.451597962 | N28: 0.2218619731 | O28: 0.1415006948 | P28: 0.02084298286
A29: 5 | B29: 288 | C29: 715 | D29: 2553 | E29: 1077 | F29: 648 | G29: 80 | I29: 5361 | J29: 0.06126157011 | K29: 0.05372132065 | L29: 0.1333706398 | M29: 0.4762171237 | N29: 0.2008953553 | O29: 0.1208729715 | P29: 0.01492258907
A30: 6 | B30: 402 | C30: 1184 | D30: 3776 | E30: 1220 | F30: 689 | G30: 97 | I30: 7368 | J30: 0.08419609188 | K30: 0.05456026059 | L30: 0.1606948969 | M30: 0.5124864278 | N30: 0.1655808903 | O30: 0.09351248643 | P30: 0.013165038
A31: 7 | B31: 699 | C31: 2642 | D31: 6040 | E31: 1426 | F31: 783 | G31: 95 | I31: 11685 | J31: 0.1335275968 | K31: 0.05982028241 | L31: 0.22610184 | M31: 0.5169020111 | N31: 0.1220367993 | O31: 0.06700898588 | P31: 0.008130081301
A32: 8 | B32: 4866 | C32: 19448 | D32: 12802 | E32: 3114 | F32: 1221 | G32: 181 | I32: 41632 | J32: =I32/$I$44 -> 0.4757399154 | K32: =B32/$I32 -> 0.1168812452 | L32: =C32/$I32 -> 0.467140661 | M32: =D32/$I32 -> 0.3075038432 | N32: =E32/$I32 -> 0.07479823213 | O32: =F32/$I32 -> 0.02932840123 | P32: =G32/$I32 -> 0.004347617218
A33: 9 | B33: 0 | C33: 0 | D33: 0 | E33: 0 | F33: 0 | G33: 0 | I33: 0 | J33: 0
A34: 10 | B34: 0 | C34: 0 | D34: 0 | E34: 0 | F34: 0 | G34: 0 | I34: 0 | J34: 0
A35: 11 | B35: 0 | C35: 0 | D35: 0 | E35: 0 | F35: 0 | G35: 0 | I35: 0 | J35: 0
A36: =A35+1 -> 12 | B36: 0 | C36: 0 | D36: 0 | E36: 0 | F36: 0 | G36: 0 | I36: =SUM(B36:H36) -> 0 | J36: =I36/$I$44 -> 0 | K36: =B36/$I36 ->  | L36: =C36/$I36 ->  | M36: =D36/$I36 ->  | N36: =E36/$I36 ->  | O36: =F36/$I36 ->  | P36: =G36/$I36 -> 
A37: =A36+1 -> 13 | I37: 0 | J37: 0
A38: 14 | I38: 0 | J38: 0
A39: 15 | I39: 0 | J39: 0
A40: 16 | I40: 0 | J40: 0
A41: 17 | I41: 0 | J41: 0
A42: 18 | I42: 0 | J42: 0
A43: 19
A44: Totals | B44: =SUM(B25:B43) -> 7430 | C44: =SUM(C25:C43) -> 26174 | D44: 33995 | E44: 11769 | F44: 7365 | G44: 777 | H44: 0 | I44: 87510 | K44: =B44/$I44 -> 0.08490458233 | L44: =C44/$I44 -> 0.299097246 | M44: =D44/$I44 -> 0.3884698892 | N44: =E44/$I44 -> 0.1344874871 | O44: =F44/$I44 -> 0.08416181008 | P44: =G44/$I44 -> 0.008878985259
J45: Targets: | K45: 0.08 | L45: 0.2 | M45: 0.32 | N45: 0.2 | O45: 0.18 | P45: 0.02
A47: For Reddit tables
A48: =A25&"* | "&B25&" | "&C25&" | "&D25&" | "&E25&" | "&F25&" | "&G25 -> 1* | 581 | 893 | 3832 | 2323 | 2176 | 116 | K48: =A25&"* | "&ROUNDDOWN(K25,4)*100&"% | "&ROUNDDOWN(L25,4)*100&"% | "&ROUNDDOWN(M25,4)*100&"% | "&ROUNDDOWN(N25,4)*100&"% | "&ROUNDDOWN(O25,4)*100&"% | "&ROUNDDOWN(P25,4)*100&"%" -> 1* | 5.85% | 9% | 38.62% | 23.41% | 21.93% | 1.16%
A49: =A26&" | "&B26&" | "&C26&" | "&D26&" | "&E26&" | "&F26&" | "&G26 -> 2 | 203 | 372 | 1494 | 820 | 642 | 58 | K49: =A26&" | "&ROUNDDOWN(K26,4)*100&"% | "&ROUNDDOWN(L26,4)*100&"% | "&ROUNDDOWN(M26,4)*100&"% | "&ROUNDDOWN(N26,4)*100&"% | "&ROUNDDOWN(O26,4)*100&"% | "&ROUNDDOWN(P26,4)*100&"%" -> 2 | 5.65% | 10.36% | 41.62% | 22.84% | 17.88% | 1.61%
A50: 3 | 171 | 431 | 1548 | 831 | 595 | 60 | K50: 3 | 4.7% | 11.85% | 42.57% | 22.85% | 16.36% | 1.65%
A51: 4 | 220 | 489 | 1950 | 958 | 611 | 90 | K51: 4 | 5.09% | 11.32% | 45.15% | 22.18% | 14.15% | 2.08%
A52: 5 | 288 | 715 | 2553 | 1077 | 648 | 80 | K52: 5 | 5.37% | 13.33% | 47.62% | 20.08% | 12.08% | 1.49%
A53: 6 | 402 | 1184 | 3776 | 1220 | 689 | 97 | K53: 6 | 5.45% | 16.06% | 51.24% | 16.55% | 9.35% | 1.31%
A54: 7 | 699 | 2642 | 6040 | 1426 | 783 | 95 | K54: 7 | 5.98% | 22.61% | 51.69% | 12.2% | 6.7% | 0.81%
A55: 8 | 4866 | 19448 | 12802 | 3114 | 1221 | 181 | K55: 8 | 11.68% | 46.71% | 30.75% | 7.47% | 2.93% | 0.43%
A56: 9 | 0 | 0 | 0 | 0 | 0 | 0
A57: 10 | 0 | 0 | 0 | 0 | 0 | 0
A58: =A35&" | "&B35&" | "&C35&" | "&D35&" | "&E35&" | "&F35&" | "&G35 -> 11 | 0 | 0 | 0 | 0 | 0 | 0 | K58: =A35&" | "&ROUNDDOWN(K35,4)*100&"% | "&ROUNDDOWN(L35,4)*100&"% | "&ROUNDDOWN(M35,4)*100&"% | "&ROUNDDOWN(N35,4)*100&"% | "&ROUNDDOWN(O35,4)*100&"% | "&ROUNDDOWN(P35,4)*100&"%" -> 
A59: =A36&" | "&B36&" | "&C36&" | "&D36&" | "&E36&" | "&F36&" | "&G36 -> 12 | 0 | 0 | 0 | 0 | 0 | 0 | K59: =A36&" | "&ROUNDDOWN(K36,4)*100&"% | "&ROUNDDOWN(L36,4)*100&"% | "&ROUNDDOWN(M36,4)*100&"% | "&ROUNDDOWN(N36,4)*100&"% | "&ROUNDDOWN(O36,4)*100&"% | "&ROUNDDOWN(P36,4)*100&"%" -> 
A60: 13 | | | | | |
A61: 14 | | | | | |
A62: 15 | | | | | |
A63: 16 | | | | | |
A64: 17 | | | | | |
A65: 18 | | | | | |
A66: 19 | | | | | | | K66: 19 | 0% | 0% | 0% | 0% | 0% | 0%
A70: Race Stats
B71: Bronze | F71: Silver | J71: Gold | N71: Platinum | R71: Diamond | V71: Master | Z71: Grandmaster | AD71: Totals | AH71: Totals Overall
A72: Weeks Remaining | B72: Z | C72: T | D72: P | E72: R | F72: Z | G72: T | H72: P | I72: R | J72: Z | K72: T | L72: P | M72: R | N72: Z | O72: T | P72: P | Q72: R | R72: Z | S72: T | T72: P | U72: R | V72: Z | W72: T | X72: P | Y72: R | Z72: Z | AA72: T | AB72: P | AC72: R | AD72: Z | AE72: T | AF72: P | AG72: R
A73: 1 | B73: 92 | C73: 255 | D73: 159 | E73: 75 | F73: 157 | G73: 365 | H73: 252 | I73: 119 | J73: 1154 | K73: 1327 | L73: 954 | M73: 397 | N73: 818 | O73: 720 | P73: 598 | Q73: 187 | R73: 771 | S73: 714 | T73: 594 | U73: 97 | V73: 42 | W73: 33 | X73: 41 | AD73: 2221 | AE73: 2668 | AF73: 1963 | AG73: 779 | AH73: =SUM(AD73:AG73) -> 7631 | AL73: 771 | AM73: 714 | AN73: 594 | AO73: 97 | AT73: 42 | AU73: 33 | AV73: 41
A74: 2 | B74: 30 | C74: 96 | D74: 57 | E74: 20 | F74: 73 | G74: 147 | H74: 115 | I74: 37 | J74: 469 | K74: 473 | L74: 400 | M74: 152 | N74: 294 | O74: 234 | P74: 216 | Q74: 76 | R74: 244 | S74: 202 | T74: 161 | U74: 35 | V74: 21 | W74: 13 | X74: 22 | Y74: 2 | AD74: 866 | AE74: 950 | AF74: 789 | AG74: 285 | AH74: =SUM(AD74:AG74) -> 2890 | AL74: 244 | AM74: 202 | AN74: 161 | AO74: 35 | AT74: 21 | AU74: 13 | AV74: 22 | AW74: 2
A75: 3 | B75: 32 | C75: 71 | D75: 55 | E75: 13 | F75: 109 | G75: 138 | H75: 128 | I75: 56 | J75: 506 | K75: 444 | L75: 414 | M75: 184 | N75: 314 | O75: 213 | P75: 209 | Q75: 95 | R75: 197 | S75: 210 | T75: 161 | U75: 27 | V75: 22 | W75: 21 | X75: 15 | Y75: 2 | AD75: 961 | AE75: 866 | AF75: 806 | AG75: 348 | AH75: 2981 | AL75: 197 | AM75: 210 | AN75: 161 | AO75: 27 | AT75: 22 | AU75: 21 | AV75: 15 | AW75: 2
A76: 4 | B76: 44 | C76: 88 | D76: 68 | E76: 20 | F76: 118 | G76: 170 | H76: 160 | I76: 41 | J76: 674 | K76: 537 | L76: 532 | M76: 207 | N76: 356 | O76: 264 | P76: 246 | Q76: 92 | R76: 211 | S76: 189 | T76: 176 | U76: 35 | V76: 34 | W76: 27 | X76: 25 | Y76: 4 | AD76: 1192 | AE76: 1060 | AF76: 1007 | AG76: 360 | AH76: 3619 | AL76: 211 | AM76: 189 | AN76: 177 | AO76: 35 | AT76: 34 | AU76: 27 | AV76: 25 | AW76: 4
A77: 5 | B77: 64 | C77: 117 | D77: 86 | E77: 21 | F77: 164 | G77: 258 | H77: 213 | I77: 80 | J77: 894 | K77: 692 | L77: 720 | M77: 247 | N77: 400 | O77: 321 | P77: 275 | Q77: 81 | R77: 234 | S77: 192 | T77: 184 | U77: 38 | V77: 24 | W77: 23 | X77: 31 | Y77: 2 | AD77: 1522 | AE77: 1389 | AF77: 1295 | AG77: 429 | AH77: 4635 | AL77: 234 | AM77: 192 | AN77: 184 | AO77: 38 | AT77: 24 | AU77: 23 | AV77: 31 | AW77: 2
A78: 6 | B78: 86 | C78: 166 | D78: 121 | E78: 29 | F78: 302 | G78: 400 | H78: 343 | I78: 139 | J78: 1294 | K78: 1055 | L78: 1036 | M78: 391 | N78: 476 | O78: 329 | P78: 310 | Q78: 105 | R78: 242 | S78: 229 | T78: 180 | U78: 38 | V78: 33 | W78: 26 | X78: 34 | Y78: 4 | AD78: 2163 | AE78: 1953 | AF78: 1812 | AG78: 664 | AH78: 6592 | AL78: 242 | AM78: 229 | AN78: 180 | AO78: 38 | AT78: 33 | AU78: 26 | AV78: 34 | AW78: 4
A79: 7 | B79: 154 | C79: 271 | D79: 208 | E79: 66 | F79: 701 | G79: 828 | H79: 808 | I79: 305 | J79: 2049 | K79: 1588 | L79: 1664 | M79: 739 | N79: 534 | O79: 421 | P79: 348 | Q79: 123 | R79: 266 | S79: 267 | T79: 208 | U79: 42 | V79: 23 | W79: 31 | X79: 36 | Y79: 5 | AD79: 3440 | AE79: 3110 | AF79: 3031 | AG79: 1234 | AH79: 10815 | AL79: 266 | AM79: 267 | AN79: 208 | AO79: 42 | AT79: 23 | AU79: 31 | AV79: 36 | AW79: 5
A80: 8 | B80: 1200 | C80: 1698 | D80: 1439 | E80: 529 | F80: 5274 | G80: 6060 | H80: 5771 | I80: 2343 | J80: 4313 | K80: 3590 | L80: 3431 | M80: 1468 | N80: 1099 | O80: 883 | P80: 845 | Q80: 287 | R80: 423 | S80: 381 | T80: 334 | U80: 83 | V80: 61 | W80: 64 | X80: 51 | Y80: 5 | AD80: 11896 | AE80: 12237 | AF80: 11495 | AG80: 4633 | AH80: 40261 | AL80: 423 | AM80: 381 | AN80: 334 | AO80: 83 | AT80: 61 | AU80: 64 | AV80: 51 | AW80: 5
A81: 9 | AD81: =B81+F81+J81+N81+R81+V81+Z81 -> 0 | AE81: =C81+G81+K81+O81+S81+W81+AA81 -> 0 | AF81: =D81+H81+L81+P81+T81+X81+AB81 -> 0 | AG81: =E81+I81+M81+Q81+U81+Y81+AC81 -> 0 | AH81: 0
A82: 10 | AD82: 0 | AE82: 0 | AF82: 0 | AG82: 0 | AH82: 0
A83: 11 | AD83: 0 | AE83: 0 | AF83: 0 | AG83: 0 | AH83: 0
A84: =A83+1 -> 12 | AD84: =B84+F84+J84+N84+R84+V84+Z84 -> 0 | AE84: =C84+G84+K84+O84+S84+W84+AA84 -> 0 | AF84: =D84+H84+L84+P84+T84+X84+AB84 -> 0 | AG84: =E84+I84+M84+Q84+U84+Y84+AC84 -> 0 | AH84: 0
A85: =A84+1 -> 13 | AD85: 0 | AE85: 0 | AF85: 0 | AG85: 0 | AH85: 0
A86: 14 | AD86: 0 | AE86: 0 | AF86: 0 | AG86: 0 | AH86: 0
A87: 15 | AD87: 0 | AE87: 0 | AF87: 0 | AG87: 0 | AH87: 0
A88: 16 | AD88: 0 | AE88: 0 | AF88: 0 | AG88: 0 | AH88: 0
A89: 17 | AD89: 0 | AE89: 0 | AF89: 0 | AG89: 0 | AH89: 0
A90: 18 | AD90: 0 | AE90: 0 | AF90: 0 | AG90: 0 | AH90: 0
A91: 19 | AD91: 0 | AE91: 0 | AF91: 0 | AG91: 0 | AH91: 0
A92: Totals | B92: =SUM(B73:B91) -> 1702 | C92: 2762 | D92: 2193 | E92: 773 | F92: 6898 | G92: 8366 | H92: 7790 | I92: 3120 | J92: 11353 | K92: 9706 | L92: 9151 | M92: 3785 | N92: 4291 | O92: 3385 | P92: 3047 | Q92: 1046 | R92: 2588 | S92: 2384 | T92: 1998 | U92: 395 | V92: 260 | W92: 238 | X92: 255 | Y92: 24 | Z92: 0 | AA92: 0 | AB92: 0 | AC92: 0 | AD92: =SUM(AD73:AD91) -> 24261 | AE92: =SUM(AE73:AE91) -> 24233 | AF92: 22198 | AG92: 8732 | AH92: 79424
A96: Percentages Race Stats
B97: Bronze | F97: Silver | J97: Gold | N97: Platinum | R97: Diamond | V97: Master | Z97: Grandmaster | AD97: Totals
A98: Weeks Remaining | B98: Z | C98: T | D98: P | E98: R | F98: Z | G98: T | H98: P | I98: R | J98: Z | K98: T | L98: P | M98: R | N98: Z | O98: T | P98: P | Q98: R | R98: Z | S98: T | T98: P | U98: R | V98: Z | W98: T | X98: P | Y98: R | Z98: Z | AA98: T | AB98: P | AC98: R | AD98: Z | AE98: T | AF98: P | AG98: R
A99: 1 | B99: =B73/$B25 -> 0.1583476764 | C99: 0.4388984509 | D99: 0.2736660929 | E99: 0.1290877797 | F99: =F73/$C25 -> 0.1758118701 | G99: 0.4087346025 | H99: 0.2821948488 | I99: 0.1332586786 | J99: =J73/$D25 -> 0.3011482255 | K99: 0.3462943633 | L99: 0.2489561587 | M99: 0.1036012526 | N99: =N73/$E25 -> 0.3521308653 | O99: 0.3099440379 | P99: 0.2574257426 | Q99: 0.08049935428 | R99: =R73/$F25 -> 0.3543198529 | S99: 0.328125 | T99: 0.2729779412 | U99: 0.04457720588 | V99: =V73/$G25 -> 0.3620689655 | W99: 0.2844827586 | X99: 0.3534482759 | Y99: 0 | Z99: =Z73/$H25 ->  | AB99: =AB73/$H25 ->  | AC99: =AC73/$H25 ->  | AD99: =AD73/$I25 -> 0.2238685616 | AE99: 0.2689245036 | AF99: 0.1978631186 | AG99: 0.07852031045
A100: 2 | B100: 0.1477832512 | C100: 0.4729064039 | D100: 0.2807881773 | E100: 0.09852216749 | F100: 0.1962365591 | G100: 0.3951612903 | H100: 0.3091397849 | I100: 0.09946236559 | J100: 0.3139223561 | K100: 0.3165997323 | L100: 0.2677376171 | M100: 0.1017402945 | N100: 0.3585365854 | O100: 0.2853658537 | P100: 0.2634146341 | Q100: 0.09268292683 | R100: 0.3800623053 | S100: 0.3146417445 | T100: 0.2507788162 | U100: 0.05451713396 | V100: 0.3620689655 | W100: 0.224137931 | X100: 0.3793103448 | Y100: 0.03448275862 | AB100: =AH74/$H26 ->  | AD100: 0.2412928392 | AE100: 0.2646976874 | AF100: 0.2198383951 | AG100: 0.07940930621
A101: 3 | B101: 0.1871345029 | C101: 0.4152046784 | D101: 0.3216374269 | E101: 0.07602339181 | F101: 0.252900232 | G101: 0.3201856148 | H101: 0.2969837587 | I101: 0.1299303944 | J101: 0.326873385 | K101: 0.2868217054 | L101: 0.2674418605 | M101: 0.1188630491 | N101: 0.3778580024 | O101: 0.2563176895 | P101: 0.2515042118 | Q101: 0.1143200963 | R101: 0.331092437 | S101: 0.3529411765 | T101: 0.2705882353 | U101: 0.04537815126 | V101: 0.3666666667 | W101: 0.35 | X101: 0.25 | Y101: 0.03333333333 | AD101: 0.2643014301 | AE101: 0.2381738174 | AF101: 0.2216721672 | AG101: 0.09570957096
A102: 4 | B102: 0.2 | C102: 0.4 | D102: 0.3090909091 | E102: 0.09090909091 | F102: 0.2413087935 | G102: 0.3476482618 | H102: 0.327198364 | I102: 0.08384458078 | J102: 0.3456410256 | K102: 0.2753846154 | L102: 0.2728205128 | M102: 0.1061538462 | N102: 0.3716075157 | O102: 0.2755741127 | P102: 0.2567849687 | Q102: 0.09603340292 | R102: 0.3453355155 | S102: 0.3093289689 | T102: 0.2880523732 | U102: 0.05728314239 | V102: 0.3777777778 | W102: 0.3 | X102: 0.2777777778 | Y102: 0.04444444444 | AD102: 0.2760537286 | AE102: 0.2454840204 | AF102: 0.2332098194 | AG102: 0.08337193145
A103: 5 | B103: 0.2222222222 | C103: 0.40625 | D103: 0.2986111111 | E103: 0.07291666667 | F103: 0.2293706294 | G103: 0.3608391608 | H103: 0.2979020979 | I103: 0.1118881119 | J103: 0.3501762632 | K103: 0.2710536624 | L103: 0.2820211516 | M103: 0.09674892284 | N103: 0.3714020427 | O103: 0.2980501393 | P103: 0.2553389044 | Q103: 0.07520891365 | R103: 0.3611111111 | S103: 0.2962962963 | T103: 0.2839506173 | U103: 0.05864197531 | V103: 0.3 | W103: 0.2875 | X103: 0.3875 | Y103: 0.025 | AD103: 0.283902257 | AE103: 0.2590934527 | AF103: 0.2415594106 | AG103: 0.08002238388
A104: 6 | B104: 0.2139303483 | C104: 0.4129353234 | D104: 0.3009950249 | E104: 0.07213930348 | F104: 0.2550675676 | G104: 0.3378378378 | H104: 0.2896959459 | I104: 0.1173986486 | J104: 0.342690678 | K104: 0.2793961864 | L104: 0.2743644068 | M104: 0.1035487288 | N104: 0.3901639344 | O104: 0.2696721311 | P104: 0.2540983607 | Q104: 0.08606557377 | R104: 0.351233672 | S104: 0.3323657475 | T104: 0.2612481858 | U104: 0.05515239478 | V104: 0.3402061856 | W104: 0.2680412371 | X104: 0.3505154639 | Y104: 0.0412371134 | AD104: 0.2935667752 | AE104: 0.2650651466 | AF104: 0.2459283388 | AG104: 0.0901194354
A105: 7 | B105: 0.2203147353 | C105: 0.3876967096 | D105: 0.2975679542 | E105: 0.09442060086 | F105: 0.265329296 | G105: 0.3133989402 | H105: 0.3058289175 | I105: 0.1154428463 | J105: 0.3392384106 | K105: 0.2629139073 | L105: 0.2754966887 | M105: 0.1223509934 | N105: 0.3744740533 | O105: 0.2952314165 | P105: 0.2440392707 | Q105: 0.08625525947 | R105: 0.3397190294 | S105: 0.3409961686 | T105: 0.2656449553 | U105: 0.05363984674 | V105: 0.2421052632 | W105: 0.3263157895 | X105: 0.3789473684 | Y105: 0.05263157895 | AD105: 0.2943945229 | AE105: 0.2661531878 | AF105: 0.2593923834 | AG105: 0.1056054771
A106: 8 | B106: 0.2466091245 | C106: 0.3489519112 | D106: 0.2957254418 | E106: 0.1087135224 | F106: 0.2711846977 | G106: 0.3116001645 | H106: 0.2967400247 | I106: 0.1204751131 | J106: 0.3369004843 | K106: 0.2804249336 | L106: 0.2680049992 | M106: 0.1146695829 | N106: 0.3529222864 | O106: 0.2835581246 | P106: 0.2713551702 | Q106: 0.09216441875 | R106: 0.3464373464 | S106: 0.312039312 | T106: 0.2735462735 | U106: 0.06797706798 | V106: 0.3370165746 | W106: 0.3535911602 | X106: 0.2817679558 | Y106: 0.02762430939 | AD106: 0.2857417371 | AE106: 0.2939325519 | AF106: 0.2761097233 | AG106: 0.1112845888
A107: 9
A108: 10
A109: 11
A110: =A109+1 -> 12 | B110: =B84/$B36 ->  | F110: =F84/$C36 ->  | J110: =J84/$D36 ->  | N110: =N84/$E36 ->  | R110: =R84/$F36 ->  | V110: =V84/$G36 ->  | Z110: =Z84/$H36 ->  | AB110: =AH84/$H36 ->  | AD110: =AD84/$I36 -> 
A111: =A110+1 -> 13 | B111: =B85/$B37 ->  | F111: =F85/$C37 ->  | J111: =J85/$D37 ->  | N111: =N85/$E37 ->  | R111: =R85/$F37 ->  | V111: =V85/$G37 ->  | Z111: =Z85/$H37 ->  | AD111: =AD85/$I37 -> 
A112: 14 | B112: =B86/$B38 ->  | F112: =F86/$C38 ->  | J112: =J86/$D38 ->  | N112: =N86/$E38 ->  | R112: =R86/$F38 ->  | V112: =V86/$G38 ->  | Z112: =Z86/$H38 ->  | AD112: =AD86/$I38 -> 
A113: 15 | B113: =B87/$B39 ->  | F113: =F87/$C39 ->  | J113: =J87/$D39 ->  | N113: =N87/$E39 ->  | R113: =R87/$F39 ->  | V113: =V87/$G39 ->  | Z113: =Z87/$H39 ->  | AD113: =AD87/$I39 -> 
A114: 16 | B114: =B88/$B40 ->  | F114: =F88/$C40 ->  | J114: =J88/$D40 ->  | N114: =N88/$E40 ->  | R114: =R88/$F40 ->  | V114: =V88/$G40 ->  | Z114: =Z88/$H40 ->  | AD114: =AD88/$I40 -> 
A115: 17 | B115: =B89/$B41 ->  | F115: =F89/$C41 ->  | J115: =J89/$D41 ->  | N115: =N89/$E41 ->  | R115: =R89/$F41 ->  | V115: =V89/$G41 ->  | Z115: =Z89/$H41 ->  | AD115: =AD89/$I41 -> 
A116: 18 | B116: =B90/$B42 ->  | F116: =F90/$C42 ->  | J116: =J90/$D42 ->  | N116: =N90/$E42 ->  | R116: =R90/$F42 ->  | V116: =V90/$G42 ->  | Z116: =Z90/$H42 ->  | AD116: =AD90/$I42 -> 
A117: 19 | B117: =B91/$B43 ->  | F117: =F91/$C43 ->  | J117: =J91/$D43 ->  | N117: =N91/$E43 ->  | R117: =R91/$F43 ->  | V117: =V91/$G43 ->  | Z117: =Z91/$H43 ->  | AD117: =AD91/$I43 -> 
A122: Most Recent Games
B123: Bronze | D123: Silver | F123: Gold | H123: Platinum | J123: Diamond | L123: Master | N123: Grandmaster | P123: Totals
A124: Weeks Remaining | B124: Last Week | C124: Last Month | D124: Last Week | E124: Last Month | F124: Last Week | G124: Last Month | H124: Last Week | I124: Last Month | J124: Last Week | K124: Last Month | L124: Last Week | M124: Last Month | N124: Last Week | O124: Last Month | P124: Last Week | Q124: Last Month
A125: 1 | B125: 579 | C125: 2 | D125: 892 | E125: 1 | F125: 3829 | G125: 3 | H125: 2323 | J125: 2175 | K125: 1 | L125: 116 | P125: 7625 | Q125: =C125+E125+G125+I125+K125+M125+O125 -> 7 | T125: 2175 | U125: 1 | X125: 116
A126: 2 | B126: 159 | C126: 44 | D126: 286 | E126: 86 | F126: 1108 | G126: 386 | H126: 578 | I126: 242 | J126: 450 | K126: 192 | L126: 49 | M126: 9 | P126: 2132 | Q126: 758 | T126: 450 | U126: 192 | X126: 49 | Y126: 9
A127: 3 | B127: 105 | C127: 66 | D127: 296 | E127: 134 | F127: 978 | G127: 570 | H127: 486 | I127: 345 | J127: 331 | K127: 264 | L127: 49 | M127: 11 | P127: 1865 | Q127: 1115 | T127: 331 | U127: 264 | X127: 49 | Y127: 11
A128: 4 | B128: 115 | C128: 105 | D128: 292 | E128: 197 | F128: 1093 | G128: 857 | H128: 492 | I128: 465 | J128: 296 | K128: 315 | L128: 58 | M128: 32 | P128: 1992 | Q128: 1626 | T128: 296 | U128: 316 | X128: 58 | Y128: 32
A129: 5 | B129: 142 | C129: 136 | D129: 387 | E129: 298 | F129: 1291 | G129: 1147 | H129: 474 | I129: 526 | J129: 277 | K129: 308 | L129: 42 | M129: 37 | P129: 2295 | Q129: 2108 | T129: 277 | U129: 308 | X129: 42 | Y129: 37
A130: 6 | B130: 161 | C130: 157 | D130: 549 | E130: 448 | F130: 1663 | G130: 1518 | H130: 459 | I130: 467 | J130: 226 | K130: 276 | L130: 45 | M130: 39 | P130: 2837 | Q130: 2594 | T130: 226 | U130: 276 | X130: 45 | Y130: 39
A131: 7 | B131: 222 | C131: 263 | D131: 1025 | E131: 1079 | F131: 2146 | G131: 2427 | H131: 437 | I131: 527 | J131: 220 | K131: 268 | L131: 38 | M131: 26 | P131: 3834 | Q131: 4299 | T131: 220 | U131: 268 | X131: 38 | Y131: 26
A132: 8 | B132: 923 | C132: 1778 | D132: 4030 | E132: 7959 | F132: 2861 | G132: 4914 | H132: 661 | I132: 1100 | J132: 206 | K132: 376 | L132: 34 | M132: 45 | P132: 8482 | Q132: 15762 | T132: 206 | U132: 376 | X132: 34 | Y132: 45
A133: 9 | P133: =B133+D133+F133+H133+J133+L133+N133 -> 0 | Q133: 0
A134: 10 | P134: 0 | Q134: 0
A135: 11 | P135: 0 | Q135: 0
A136: 12 | P136: =B136+D136+F136+H136+J136+L136+N136 -> 0 | Q136: =C136+E136+G136+I136+K136+M136+O136 -> 0
A137: 13 | P137: 0 | Q137: 0
A138: 14 | P138: 0 | Q138: 0
A139: 15 | P139: 0 | Q139: 0
A140: 16 | P140: 0 | Q140: 0
A141: 17 | P141: 0 | Q141: 0
A142: 18 | P142: 0 | Q142: 0
A143: 19
A144: Totals | B144: =SUM(B125:B143) -> 2406 | C144: 2551 | D144: 7757 | E144: 10202 | F144: 14969 | G144: 11822 | H144: 5910 | I144: 3672 | J144: 4181 | K144: 2000 | L144: 431 | M144: 199 | N144: 0 | O144: 0 | P144: 31062 | Q144: =SUM(Q125:Q143) -> 28269
A145: At least 1 game in the last month | B145: =SUM(B144:C144) -> 4957 | D145: =SUM(D144:E144) -> 17959 | F145: =SUM(F144:G144) -> 26791 | H145: =SUM(H144:I144) -> 9582 | J145: =SUM(J144:K144) -> 6181 | L145: =SUM(L144:M144) -> 630 | N145: =SUM(N144:O144) -> 0 | P145: =SUM(P144:Q144) -> 59331
A149: Percentages - Most Recent Games
B150: Bronze | D150: Silver | F150: Gold | H150: Platinum | J150: Diamond | L150: Master | N150: Grandmaster | P150: Totals
A151: Weeks Remaining | B151: Last Week | C151: Last Month | D151: Last Week | E151: Last Month | F151: Last Week | G151: Last Month | H151: Last Week | I151: Last Month | J151: Last Week | K151: Last Month | L151: Last Week | M151: Last Month | N151: Last Week | O151: Last Month | P151: Last Week | Q151: Last Month
A152: 1 | B152: =B125/$I25 -> 0.05836105231 | C152: 0.0002015925814 | D152: 0.0899102913 | E152: 0.0001007962907 | F152: 0.3859489971 | G152: 0.0003023888721 | H152: 0.2341497833 | I152: 0 | J152: 0.2192319323 | K152: 0.0001007962907 | L152: 0.01169236972 | M152: 0 | N152: 0 | O152: 0 | P152: 0.7685717166 | Q152: 0.0007055740349
A153: 2 | B153: =B126/$I26 -> 0.04430203399 | C153: 0.01225968236 | D153: 0.07968793536 | E153: 0.02396210644 | F153: 0.3087210922 | G153: 0.1075508498 | H153: 0.1610476456 | I153: 0.067428253 | J153: 0.1253831151 | K153: 0.05349679576 | L153: 0.01365282809 | M153: 0.002507662301 | N153: 0 | O153: 0 | P153: 0.5940373363 | Q153: 0.2112008916
A154: 3 | B154: =B127/$I27 -> 0.02887788779 | C154: 0.01815181518 | D154: 0.08140814081 | E154: 0.03685368537 | F154: 0.2689768977 | G154: 0.1567656766 | H154: 0.1336633663 | I154: 0.09488448845 | J154: 0.09103410341 | K154: 0.07260726073 | L154: 0.01347634763 | M154: 0.00302530253 | N154: 0 | O154: 0 | P154: 0.5129262926 | Q154: 0.3066556656
A155: 4 | B155: =B128/$I28 -> 0.02663270032 | C155: 0.02431681334 | D155: 0.06762389995 | E155: 0.0456229736 | F155: 0.2531264474 | G155: 0.1984715146 | H155: 0.1139416396 | I155: 0.1076887448 | J155: 0.06855025475 | K155: 0.07295044002 | L155: 0.01343214451 | M155: 0.007410838351 | N155: 0 | O155: 0 | P155: 0.4613246874 | Q155: 0.3765632237
A156: 5 | B156: =B129/$I29 -> 0.0264875956 | C156: 0.02536840142 | D156: 0.07218802462 | E156: 0.05558664428 | F156: 0.2408132811 | G156: 0.2139526208 | H156: 0.08841634024 | I156: 0.09811602313 | J156: 0.05166946465 | K156: 0.05745196792 | L156: 0.007834359261 | M156: 0.006901697445 | N156: 0 | O156: 0 | P156: 0.4280917739 | Q156: 0.393210222
A157: 6 | B157: =B130/$I30 -> 0.02185124864 | C157: 0.02130836048 | D157: 0.07451140065 | E157: 0.06080347448 | F157: 0.2257057546 | G157: 0.2060260586 | H157: 0.06229641694 | I157: 0.06338219327 | J157: 0.03067318132 | K157: 0.03745928339 | L157: 0.006107491857 | M157: 0.005293159609 | N157: 0 | O157: 0 | P157: 0.3850434311 | Q157: 0.352062975
A158: 7 | B158: =B131/$I31 -> 0.0189987163 | C158: 0.02250748823 | D158: 0.08771929825 | E158: 0.09234060762 | F158: 0.1836542576 | G158: 0.2077021823 | H158: 0.03739837398 | I158: 0.04510055627 | J158: 0.0188275567 | K158: 0.02293538725 | L158: 0.00325203252 | M158: 0.002225074882 | N158: 0 | O158: 0 | P158: 0.3281129653 | Q158: 0.3679075738
A159: 8 | B159: =B132/$I32 -> 0.02217044581 | C159: 0.04270753267 | D159: 0.09680053805 | E159: 0.1911750576 | F159: 0.06872117602 | G159: 0.1180342045 | H159: 0.01587720984 | I159: 0.02642198309 | J159: 0.004948116833 | K159: 0.00903151422 | L159: 0.0008166794773 | M159: 0.001080899308 | N159: 0 | O159: 0 | P159: 0.2037375096 | Q159: 0.3786029977
A160: 9 | B160: =B133/$I33 -> 
A161: 10 | B161: =B134/$I34 -> 
A162: 11 | B162: =B135/$I35 -> 
A163: 12 | B163: =B136/$I36 -> 
A164: 13 | B164: =B137/$I37 -> 
A165: 14 | B165: =B138/$I38 -> 
A166: 15 | B166: =B139/$I39 -> 
A167: 16 | B167: =B140/$I40 -> 
A168: 17 | B168: =B141/$I41 -> 
A169: 18 | B169: =B142/$I42 -> 
A170: 19
A171: Totals | B171: =B144/$I44 -> 0.02749400069 | C171: 0.02915095418 | D171: 0.08864129814 | E171: 0.1165809622 | F171: 0.1710547366 | G171: 0.1350931322 | H171: 0.06753513884 | I171: 0.04196091875 | J171: 0.04777739687 | K171: 0.02285453091 | L171: 0.004925151411 | M171: 0.002274025826 | N171: 0 | O171: 0 | P171: 0.3549537196 | Q171: 0.3230373672
A172: Percentage in the Last Month | B172: =SUM(B171:C171) -> 0.05664495486 | D172: =SUM(D171:E171) -> 0.2052222603 | F172: =SUM(F171:G171) -> 0.3061478688 | H172: =SUM(H171:I171) -> 0.1094960576 | J172: =SUM(J171:K171) -> 0.07063192778 | L172: =SUM(L171:M171) -> 0.007199177237 | N172: =SUM(N171:O171) -> 0 | P172: =SUM(P171:Q171) -> 0.6779910867
A173: Percentage out of the specific league, in the last week | B173: =B144/B44 -> 0.3238223419 | D173: =D144/C44 -> 0.2963628028 | F173: =F144/D44 -> 0.4403294602 | H173: =H144/E44 -> 0.5021667092 | J173: =I144/F44 -> 0.4985743381 | L173: =L144/G44 -> 0.5546975547 | N173: =N144/H44 -> 
A174: Percentage out of the specific league, in the last month | B174: =B145/B44 -> 0.6671601615 | D174: =D145/C44 -> 0.6861389165 | F174: =F145/D44 -> 0.7880864833 | H174: =H145/E44 -> 0.8141728269 | J174: =J145/F44 -> 0.839239647 | L174: =L145/G44 -> 0.8108108108 | N174: =N145/H44 -> 
A176: Inactive Player Analysis (Max bonus pool weeks remaining that have not played a game in the last month) | B176: Bronze | C176: Silver | D176: Gold | E176: Platinum | F176: Diamond | G176: Master | H176: Totals
A177: Total Players | B177: =AVERAGEIFS(#REF!,#REF!,'Analysis - 1v1'!B176,#REF!,MAX(#REF!)) ->  | C177: =AVERAGEIFS(#REF!,#REF!,'Analysis - 1v1'!C176,#REF!,MAX(#REF!)) ->  | D177: =AVERAGEIFS(#REF!,#REF!,'Analysis - 1v1'!D176,#REF!,MAX(#REF!)) ->  | E177: =AVERAGEIFS(#REF!,#REF!,'Analysis - 1v1'!E176,#REF!,MAX(#REF!)) ->  | F177: =AVERAGEIFS(#REF!,#REF!,'Analysis - 1v1'!F176,#REF!,MAX(#REF!)) ->  | G177: =AVERAGEIFS(#REF!,#REF!,'Analysis - 1v1'!G176,#REF!,MAX(#REF!)) ->  | H177: =AVERAGEIFS(#REF!,#REF!,MAX(#REF!)) -> 

Sheet 1v1
A1: PlayerID | B1: ServerID | C1: SubServerID | D1: PlayerName | E1: Race | F1: League | G1: DivisionName | H1: Wins | I1: Losses | J1: Score | K1: BonusPool | L1: JoinDate | M1: LastGame | N1: LastUpdate | O1: TrueID (A+C) | P1: Duplicate Check (sort by TrueID - if O curr row = O prev row then mark as 1 and then sort by Duplicate Check and delete all 1's) | Q1: Bonus Pool Weeks Remaining | R1: Ordered ID (used to preserve ordering from nios.kr) | S1: Total Games Played | T1: In Team? | U1: 1v1 League | W1: 2v2 Team | X1: 2v2 Team | Y1: 2v2 Team | Z1: 2v2 Team | AA1: 3v3 Team | AB1: 3v3 Team | AC1: 3v3 Team | AD1: 3v3 Team | AE1: 3v3 Team | AF1: 3v3 Team | AG1: 4v4 Team | AH1: 4v4 Team | AI1: 4v4 Team | AJ1: 4v4 Team | AK1: 4v4 Team | AL1: 4v4 Team | AM1: 4v4 Team | AN1: 4v4 Team | AO1: 2v2r | AP1: 3v3r | AQ1: 4v4r | AR1: 2v2r | AS1: 3v3r | AT1: 4v4r | AU1: Highest team league | AW1: Highest League in Team Types / 1v1 League | AX1: Bronze | AY1: Silver | AZ1: Gold | BA1: Platinum | BB1: Diamond | BC1: Master | BE1: <- 1v1
A2: 4107092 | B2: us | C2: 1 | D2: Bulletproof | E2: t | F2: Bronze | G2: Division Medivac Whiskey | H2: 36 | I2: 24 | J2: 657 | K2: 799 | L2: 2015-03-06 | M2: 13 hours | N2: 2015-03-07T14:45:43 | O2: 4107092-1 | P2: 0 | Q2: 8 | R2: 2 | AW2: Bronze | AX2: 1112 | AY2: 2848 | AZ2: 2162 | BA2: 299 | BB2: 106 | BC2: 4
A3: 727057 | B3: us | C3: 2 | D3: Infty | E3: p | F3: Bronze | G3: Division Medivac Whiskey | H3: 24 | I3: 24 | J3: 648 | K3: 828 | L3: 2015-02-28 | M3: 1 days | N3: 2015-03-07T14:46:31 | O3: 727057-2 | P3: 0 | Q3: 8 | R3: 3 | T3: 727057-2 | U3: Bronze | W3: 31700 | X3: 0 | Y3: Gold | Z3: 0 | AA3: 0 | AB3: 0 | AC3: 0 | AD3: 0 | AE3: 0 | AF3: 0 | AG3: 0 | AH3: 0 | AI3: 0 | AJ3: 0 | AK3: 0 | AL3: 0 | AM3: 0 | AN3: 0 | AO3: 0 | AP3: 0 | AQ3: 0 | AR3: 0 | AS3: 0 | AT3: 0 | AU3: Gold | AW3: Silver | AX3: 1050 | AY3: 4326 | AZ3: 5001 | BA3: 979 | BB3: 398 | BC3: 21
A4: 1833511 | B4: us | C4: 1 | D4: AmorAea | E4: z | F4: Bronze | G4: Division Kaloth Tango | H4: 64 | I4: 88 | J4: 872 | K4: 766 | L4: 2015-03-03 | M4: 1 minutes | N4: 2015-03-07T18:04:44 | O4: 1833511-1 | P4: 0 | Q4: 8 | R4: 4 | AW4: Gold | AX4: 345 | AY4: 1875 | AZ4: 5307 | BA4: 1730 | BB4: 778 | BC4: 35
A5: 2299884 | B5: us | C5: 1 | D5: pdhammer | E5: p | F5: Bronze | G5: Division Adun Sigma | H5: 30 | I5: 40 | J5: 804 | K5: 830 | L5: 2015-02-16 | M5: 18 minutes | N5: 2015-03-07T18:12:30 | O5: 2299884-1 | P5: 0 | Q5: 8 | R5: 5 | AW5: Platinum | AX5: 58 | AY5: 422 | AZ5: 2093 | BA5: 1492 | BB5: 1006 | BC5: 90
A6: 5280639 | B6: us | C6: 1 | D6: doctorwho | E6: t | F6: Bronze | G6: Division Immortal Zed | H6: 14 | I6: 25 | J6: 422 | K6: 771 | L6: 2015-03-01 | M6: 22 hours | N6: 2015-03-07T18:42:59 | O6: 5280639-1 | P6: 0 | Q6: 8 | R6: 6 | AW6: Diamond | AX6: 5 | AY6: 38 | AZ6: 292 | BA6: 568 | BB6: 695 | BC6: 76
A7: 3899347 | B7: us | C7: 1 | D7: BTRalex | E7: p | F7: Bronze | G7: Division Dragoon Victor | H7: 1 | I7: 16 | J7: 30 | K7: 769 | L7: 2015-03-03 | M7: 21 hours | N7: 2015-03-07T19:59:44 | O7: 3899347-1 | P7: 0 | Q7: 8 | R7: 7 | T7: 3899347-1 | U7: Bronze | W7: 0 | X7: 0 | Y7: 0 | Z7: 0 | AA7: 0 | AB7: 0 | AC7: 0 | AD7: 0 | AE7: 0 | AF7: 0 | AG7: 0 | AH7: 0 | AI7: 0 | AJ7: 0 | AK7: 0 | AL7: 0 | AM7: 0 | AN7: 0 | AO7: 12035 | AP7: 0 | AQ7: 0 | AR7: Silver | AS7: 0 | AT7: 0 | AU7: Silver | AW7: Master | AX7: 0 | AY7: 7 | AZ7: 21 | BA7: 61 | BB7: 237 | BC7: 68
A8: 4140612 | B8: us | C8: 1 | D8: Memphis | E8: t | F8: Bronze | G8: Division Medivac Whiskey | H8: 1 | I8: 8 | J8: 30 | K8: 831 | L8: 2015-01-18 | M8: 20 hours | N8: 2015-03-07T20:00:21 | O8: 4140612-1 | P8: 0 | Q8: 8 | R8: 8
A9: 4707424 | B9: us | C9: 1 | D9: LisaDB | E9: t | F9: Bronze | G9: Division Medivac Whiskey | H9: 0 | I9: 9 | J9: 0 | K9: 832 | L9: 2015-02-21 | M9: 5 days | N9: 2015-03-07T21:32:21 | O9: 4707424-1 | P9: 0 | Q9: 8 | R9: 9
A10: 5678216 | B10: us | C10: 1 | D10: Lid | E10: z | F10: Bronze | G10: Division Medivac Whiskey | H10: 1 | I10: 1 | J10: 0 | K10: 832 | L10: 2015-02-22 | M10: 7 days | N10: 2015-03-07T21:41:33 | O10: 5678216-1 | P10: 0 | Q10: 8 | R10: 10 | T10: 5678216-1 | U10: Bronze | W10: 26163 | X10: 0 | Y10: Gold | Z10: 0 | AA10: 0 | AB10: 0 | AC10: 0 | AD10: 0 | AE10: 0 | AF10: 0 | AG10: 0 | AH10: 0 | AI10: 0 | AJ10: 0 | AK10: 0 | AL10: 0 | AM10: 0 | AN10: 0 | AO10: 0 | AP10: 0 | AQ10: 0 | AR10: 0 | AS10: 0 | AT10: 0 | AU10: Gold
A11: 6194750 | B11: us | C11: 1 | D11: Chanman | E11: r | F11: Bronze | G11: Division Furinax Whiskey | H11: 94 | I11: 110 | J11: 1105 | K11: 17 | L11: 2015-02-17 | M11: 17 hours | N11: 2015-03-07T21:49:17 | O11: 6194750-1 | P11: 0 | Q11: 1 | R11: 11 | T11: 6194750-1 | U11: Bronze | W11: 0 | X11: 0 | Y11: 0 | Z11: 0 | AA11: 12452 | AB11: 0 | AC11: 0 | AD11: Gold | AE11: 0 | AF11: 0 | AG11: 0 | AH11: 0 | AI11: 0 | AJ11: 0 | AK11: 0 | AL11: 0 | AM11: 0 | AN11: 0 | AO11: 0 | AP11: 0 | AQ11: 0 | AR11: 0 | AS11: 0 | AT11: 0 | AU11: Gold
A12: 755262 | B12: us | C12: 1 | D12: Bawsk | E12: z | F12: Bronze | G12: Division Nova Mars | H12: 48 | I12: 26 | J12: 1014 | K12: 5 | L12: 2015-02-21 | M12: 1 hours | N12: 2015-03-07T21:49:18 | O12: 755262-1 | P12: 0 | Q12: 1 | R12: 12
A13: 2473634 | B13: us | C13: 1 | D13: GentleGiant | E13: z | F13: Bronze | G13: Division Hartley Beta | H13: 52 | I13: 42 | J13: 1012 | K13: 0 | L13: 2015-02-04 | M13: 9 hours | N13: 2015-03-07T21:49:18 | O13: 2473634-1 | P13: 0 | Q13: 1 | R13: 13
A14: 5626950 | B14: us | C14: 1 | D14: Caz | E14: p | F14: Bronze | G14: Division Korhal Sierra | H14: 81 | I14: 64 | J14: 1011 | K14: 13 | L14: 2015-01-14 | M14: 11 hours | N14: 2015-03-07T21:49:18 | O14: 5626950-1 | P14: 0 | Q14: 1 | R14: 14
A15: 6365445 | B15: us | C15: 1 | D15: HadesSacred | E15: z | F15: Bronze | G15: Division Pylon Mars | H15: 104 | I15: 120 | J15: 1008 | K15: 6 | L15: 2015-02-06 | M15: 3 hours | N15: 2015-03-07T21:49:19 | O15: 6365445-1 | P15: 0 | Q15: 1 | R15: 15 | T15: 6365445-1 | U15: Bronze | W15: 0 | X15: 0 | Y15: 0 | Z15: 0 | AA15: 0 | AB15: 0 | AC15: 0 | AD15: 0 | AE15: 0 | AF15: 0 | AG15: 0 | AH15: 0 | AI15: 0 | AJ15: 0 | AK15: 0 | AL15: 0 | AM15: 0 | AN15: 0 | AO15: 7545 | AP15: 21004 | AQ15: 0 | AR15: Silver | AT15: 0 | AU15: Silver
A16: 6054548 | B16: us | C16: 1 | D16: xStArMaSteRx | E16: z | F16: Bronze | G16: Division Tarsonis Delta | H16: 111 | I16: 119 | J16: 1004 | K16: 2 | L16: 2015-01-20 | M16: 4 hours | N16: 2015-03-07T21:49:19 | O16: 6054548-1 | P16: 0 | Q16: 1 | R16: 16 | T16: 6054548-1 | U16: Bronze | W16: 0 | X16: 0 | Y16: 0 | Z16: 0 | AA16: 0 | AB16: 0 | AC16: 0 | AD16: 0 | AE16: 0 | AF16: 0 | AG16: 0 | AH16: 0 | AI16: 0 | AJ16: 0 | AK16: 0 | AL16: 0 | AM16: 0 | AN16: 0 | AO16: 12825 | AP16: 15144 | AQ16: 0 | AR16: Silver | AT16: 0 | AU16: Silver
A17: 4072517 | B17: us | C17: 1 | D17: yes | E17: r | F17: Bronze | G17: Division Arbiter Alpha | H17: 51 | I17: 15 | J17: 1000 | K17: 149 | L17: 2015-02-22 | M17: 2 hours | N17: 2015-03-07T21:49:19 | O17: 4072517-1 | P17: 0 | Q17: 2 | R17: 17 | T17: 4072517-1 | U17: Bronze | W17: 0 | X17: 0 | Y17: 0 | Z17: 0 | AA17: 0 | AB17: 0 | AC17: 0 | AD17: 0 | AE17: 0 | AF17: 0 | AG17: 0 | AH17: 0 | AI17: 0 | AJ17: 0 | AK17: 0 | AL17: 0 | AM17: 0 | AN17: 0 | AO17: 13590 | AP17: 5021 | AQ17: 7413 | AR17: Gold | AS17: Silver | AU17: Gold
A18: 467953 | B18: us | C18: 1 | D18: Strappy | E18: t | F18: Bronze | G18: Division Hartley Beta | H18: 178 | I18: 180 | J18: 998 | K18: 0 | L18: 2015-01-12 | M18: 1 hours | N18: 2015-03-07T21:49:20 | O18: 467953-1 | P18: 0 | Q18: 1 | R18: 18
A19: 5900167 | B19: us | C19: 1 | D19: BoBerT | E19: t | F19: Bronze | G19: Division Viking Omicron | H19: 58 | I19: 58 | J19: 995 | K19: 6 | L19: 2015-03-01 | M19: 11 minutes | N19: 2015-03-07T21:49:20 | O19: 5900167-1 | P19: 0 | Q19: 1 | R19: 19
A20: 3902937 | B20: us | C20: 1 | D20: sirbismark | E20: t | F20: Bronze | G20: Division Uraj Gravity | H20: 66 | I20: 72 | J20: 994 | K20: 18 | L20: 2015-01-13 | M20: 17 hours | N20: 2015-03-07T21:49:20 | O20: 3902937-1 | P20: 0 | Q20: 1 | R20: 20
A21: 4881580 | B21: us | C21: 1 | D21: TRAUMA | E21: t | F21: Bronze | G21: Division Khalis Echo | H21: 110 | I21: 116 | J21: 994 | K21: 28 | L21: 2015-02-09 | M21: 1 days | N21: 2015-03-07T21:49:21 | O21: 4881580-1 | P21: 0 | Q21: 1 | R21: 21
A22: 2412396 | B22: us | C22: 1 | D22: ZergsTheWord | E22: z | F22: Bronze | G22: Division Korhal Sierra | H22: 49 | I22: 43 | J22: 993 | K22: 2 | L22: 2015-01-12 | M22: 15 hours | N22: 2015-03-07T21:49:21 | O22: 2412396-1 | P22: 0 | Q22: 1 | R22: 22 | T22: 2412396-1 | U22: Bronze | W22: 0 | X22: 0 | Y22: 0 | Z22: 0 | AA22: 0 | AB22: 0 | AC22: 0 | AD22: 0 | AE22: 0 | AF22: 0 | AG22: 0 | AH22: 0 | AI22: 0 | AJ22: 0 | AK22: 0 | AL22: 0 | AM22: 0 | AN22: 0 | AO22: 6188 | AP22: 4831 | AQ22: 4901 | AR22: Silver | AS22: Silver | AU22: Silver
A23: 5244428 | B23: us | C23: 1 | D23: IncaPaisa | E23: r | F23: Bronze | G23: Division Firebat Oscar | H23: 125 | I23: 118 | J23: 993 | K23: 8 | L23: 2015-02-15 | M23: 1 hours | N23: 2015-03-07T21:49:21 | O23: 5244428-1 | P23: 0 | Q23: 1 | R23: 23 | T23: 5244428-1 | U23: Bronze | W23: 13599 | X23: 0 | Y23: Silver | Z23: 0 | AA23: 0 | AB23: 0 | AC23: 0 | AD23: 0 | AE23: 0 | AF23: 0 | AG23: 0 | AH23: 0 | AI23: 0 | AJ23: 0 | AK23: 0 | AL23: 0 | AM23: 0 | AN23: 0 | AO23: 0 | AP23: 0 | AQ23: 0 | AR23: 0 | AS23: 0 | AT23: 0 | AU23: Silver
A24: 3635757 | B24: us | C24: 1 | D24: Chillguy | E24: t | F24: Bronze | G24: Division Meinhoff Nu | H24: 70 | I24: 47 | J24: 990 | K24: 1 | L24: 2015-01-15 | M24: 1 days | N24: 2015-03-07T21:49:21 | O24: 3635757-1 | P24: 0 | Q24: 1 | R24: 24
A25: 2219290 | B25: us | C25: 1 | D25: Lightmoon | E25: t | F25: Bronze | G25: Division Mutalisk Zeta | H25: 77 | I25: 73 | J25: 989 | K25: 1 | L25: 2015-01-13 | M25: 1 days | N25: 2015-03-07T21:49:22 | O25: 2219290-1 | P25: 0 | Q25: 1 | R25: 25
A26: 2345552 | B26: us | C26: 1 | D26: Grizzly | E26: t | F26: Bronze | G26: Division Tarsonis Delta | H26: 69 | I26: 60 | J26: 989 | K26: 20 | L26: 2015-01-20 | M26: 22 hours | N26: 2015-03-07T21:49:22 | O26: 2345552-1 | P26: 0 | Q26: 1 | R26: 26
A27: 4361809 | B27: us | C27: 1 | D27: SteveO | E27: z | F27: Bronze | G27: Division Reaver Tango | H27: 72 | I27: 70 | J27: 986 | K27: 18 | L27: 2015-01-12 | M27: 9 hours | N27: 2015-03-07T21:49:22 | O27: 4361809-1 | P27: 0 | Q27: 1 | R27: 27
A28: 679298 | B28: us | C28: 2 | D28: Nox | E28: p | F28: Bronze | G28: Division Pylon Mars | H28: 47 | I28: 37 | J28: 985 | K28: 7 | L28: 2015-02-11 | M28: 28 minutes | N28: 2015-03-07T21:49:23 | O28: 679298-2 | P28: 0 | Q28: 1 | R28: 28
A29: 2123054 | B29: us | C29: 1 | D29: Dawiz | E29: z | F29: Bronze | G29: Division Carrier Lima | H29: 131 | I29: 121 | J29: 981 | K29: 1 | L29: 2015-01-12 | M29: 8 hours | N29: 2015-03-07T21:49:23 | O29: 2123054-1 | P29: 0 | Q29: 1 | R29: 29
A30: 5682064 | B30: us | C30: 1 | D30: balls | E30: z | F30: Bronze | G30: Division Scarab Kilo | H30: 50 | I30: 33 | J30: 981 | K30: 17 | L30: 2015-01-13 | M30: 16 hours | N30: 2015-03-07T21:49:24 | O30: 5682064-1 | P30: 0 | Q30: 1 | R30: 30
A31: 2693283 | B31: us | C31: 1 | D31: ProMattyIce | E31: r | F31: Bronze | G31: Division Aiur Romeo | H31: 43 | I31: 38 | J31: 979 | K31: 1 | L31: 2015-02-22 | M31: 12 hours | N31: 2015-03-07T21:49:24 | O31: 2693283-1 | P31: 0 | Q31: 1 | R31: 31 | T31: 2693283-1 | U31: Bronze | W31: 0 | X31: 924 | Y31: 0 | Z31: Bronze | AA31: 0 | AB31: 0 | AC31: 0 | AD31: 0 | AE31: 0 | AF31: 0 | AG31: 0 | AH31: 0 | AI31: 0 | AJ31: 0 | AK31: 0 | AL31: 0 | AM31: 0 | AN31: 0 | AO31: 0 | AP31: 0 | AQ31: 0 | AR31: 0 | AS31: 0 | AT31: 0 | AU31: Bronze
A32: 5578541 | B32: us | C32: 1 | D32: Tuirrenn | E32: t | F32: Bronze | G32: Division Siege Tank Sigma | H32: 128 | I32: 127 | J32: 978 | K32: 0 | L32: 2015-01-13 | M32: 9 hours | N32: 2015-03-07T21:49:24 | O32: 5578541-1 | P32: 0 | Q32: 1 | R32: 32
A33: 3287571 | B33: us | C33: 1 | D33: Ciscopete | E33: t | F33: Bronze | G33: Division Nova Chi | H33: 70 | I33: 67 | J33: 973 | K33: 3 | L33: 2015-01-12 | M33: 10 hours | N33: 2015-03-07T21:49:24 | O33: 3287571-1 | P33: 0 | Q33: 1 | R33: 33
A34: 2529493 | B34: us | C34: 1 | D34: Weesan | E34: r | F34: Bronze | G34: Division Carrier Lima | H34: 55 | I34: 39 | J34: 971 | K34: 32 | L34: 2015-01-12 | M34: 13 hours | N34: 2015-03-07T21:49:25 | O34: 2529493-1 | P34: 0 | Q34: 1 | R34: 34 | T34: 2529493-1 | U34: Bronze | W34: 17585 | X34: 0 | Y34: Silver | Z34: 0 | AA34: 0 | AB34: 0 | AC34: 0 | AD34: 0 | AE34: 0 | AF34: 0 | AG34: 0 | AH34: 0 | AI34: 0 | AJ34: 0 | AK34: 0 | AL34: 0 | AM34: 0 | AN34: 0 | AO34: 6530 | AP34: 0 | AQ34: 0 | AR34: Silver | AS34: 0 | AT34: 0 | AU34: Silver
A35: 3251962 | B35: us | C35: 1 | D35: Wick | E35: t | F35: Bronze | G35: Division Akilae Sierra | H35: 65 | I35: 69 | J35: 971 | K35: 21 | L35: 2015-01-26 | M35: 19 hours | N35: 2015-03-07T21:49:25 | O35: 3251962-1 | P35: 0 | Q35: 1 | R35: 35
A36: 1577843 | B36: us | C36: 1 | D36: Victor | E36: r | F36: Bronze | G36: Division Reaver Tango | H36: 101 | I36: 102 | J36: 970 | K36: 16 | L36: 2015-01-12 | M36: 14 hours | N36: 2015-03-07T21:49:25 | O36: 1577843-1 | P36: 0 | Q36: 1 | R36: 36 | T36: 1577843-1 | U36: Bronze | W36: 0 | X36: 575 | Y36: 0 | Z36: Bronze | AA36: 0 | AB36: 0 | AC36: 0 | AD36: 0 | AE36: 0 | AF36: 0 | AG36: 0 | AH36: 0 | AI36: 0 | AJ36: 0 | AK36: 0 | AL36: 0 | AM36: 0 | AN36: 0 | AO36: 1717 | AP36: 0 | AQ36: 0 | AR36: Bronze | AS36: 0 | AT36: 0 | AU36: Bronze
A37: 1806180 | B37: us | C37: 1 | D37: MaxReaver | E37: t | F37: Bronze | G37: Division Araq Zed | H37: 109 | I37: 109 | J37: 970 | K37: 0 | L37: 2015-01-14 | M37: 1 hours | N37: 2015-03-07T21:49:26 | O37: 1806180-1 | P37: 0 | Q37: 1 | R37: 37
A38: 5114376 | B38: us | C38: 1 | D38: poledog | E38: p | F38: Bronze | G38: Division Reaver Tango | H38: 78 | I38: 78 | J38: 969 | K38: 9 | L38: 2015-01-12 | M38: 3 hours | N38: 2015-03-07T21:49:26 | O38: 5114376-1 | P38: 0 | Q38: 1 | R38: 38 | T38: 5114376-1 | U38: Bronze | W38: 6395 | X38: 0 | Y38: Bronze | Z38: 0 | AA38: 0 | AB38: 0 | AC38: 0 | AD38: 0 | AE38: 0 | AF38: 0 | AG38: 0 | AH38: 0 | AI38: 0 | AJ38: 0 | AK38: 0 | AL38: 0 | AM38: 0 | AN38: 0 | AO38: 0 | AP38: 0 | AQ38: 0 | AR38: 0 | AS38: 0 | AT38: 0 | AU38: Bronze
A39: 731783 | B39: us | C39: 1 | D39: LizStir | E39: p | F39: Bronze | G39: Division Scimitar Romeo | H39: 68 | I39: 73 | J39: 968 | K39: 0 | L39: 2015-01-13 | M39: 11 hours | N39: 2015-03-07T21:49:26 | O39: 731783-1 | P39: 0 | Q39: 1 | R39: 39
A40: 1817600 | B40: us | C40: 1 | D40: powermoves | E40: t | F40: Bronze | G40: Division Overseer Gamma | H40: 113 | I40: 109 | J40: 967 | K40: 20 | L40: 2015-01-12 | M40: 21 hours | N40: 2015-03-07T21:49:27 | O40: 1817600-1 | P40: 0 | Q40: 1 | R40: 40
A41: 1824202 | B41: us | C41: 1 | D41: MenschJager | E41: z | F41: Bronze | G41: Division UED Pepper | H41: 71 | I41: 64 | J41: 967 | K41: 12 | L41: 2015-01-13 | M41: 9 hours | N41: 2015-03-07T21:49:27 | O41: 1824202-1 | P41: 0 | Q41: 1 | R41: 41 | T41: 1824202-1 | U41: Bronze | W41: 11110 | X41: 0 | Y41: Bronze | Z41: 0 | AA41: 0 | AB41: 0 | AC41: 0 | AD41: 0 | AE41: 0 | AF41: 0 | AG41: 0 | AH41: 0 | AI41: 0 | AJ41: 0 | AK41: 0 | AL41: 0 | AM41: 0 | AN41: 0 | AO41: 0 | AP41: 0 | AQ41: 0 | AR41: 0 | AS41: 0 | AT41: 0 | AU41: Bronze
A42: 5842052 | B42: us | C42: 1 | D42: dezmoto | E42: p | F42: Bronze | G42: Division Anselm Bravo | H42: 41 | I42: 40 | J42: 967 | K42: 1 | L42: 2015-01-13 | M42: 20 hours | N42: 2015-03-07T21:49:27 | O42: 5842052-1 | P42: 0 | Q42: 1 | R42: 42
A43: 4512824 | B43: us | C43: 1 | D43: EvilEngine | E43: t | F43: Bronze | G43: Division Gateway Omega | H43: 45 | I43: 49 | J43: 965 | K43: 5 | L43: 2015-01-12 | M43: 16 hours | N43: 2015-03-07T21:49:28 | O43: 4512824-1 | P43: 0 | Q43: 1 | R43: 43 | T43: 4512824-1 | U43: Bronze | W43: 0 | X43: 0 | Y43: 0 | Z43: 0 | AA43: 0 | AB43: 0 | AC43: 0 | AD43: 0 | AE43: 0 | AF43: 0 | AG43: 0 | AH43: 0 | AI43: 0 | AJ43: 0 | AK43: 0 | AL43: 0 | AM43: 0 | AN43: 0 | AO43: 18808 | AP43: 3431 | AQ43: 0 | AR43: Gold | AS43: Silver | AT43: 0 | AU43: Gold
A44: 4582335 | B44: us | C44: 1 | D44: Driscoll | E44: t | F44: Bronze | G44: Division Norad Xi | H44: 46 | I44: 43 | J44: 963 | K44: 14 | L44: 2015-02-14 | M44: 11 hours | N44: 2015-03-07T21:49:28 | O44: 4582335-1 | P44: 0 | Q44: 1 | R44: 44
A45: 4187975 | B45: us | C45: 1 | D45: TreNegro | E45: z | F45: Bronze | G45: Division Khas Hawk | H45: 72 | I45: 81 | J45: 962 | K45: 11 | L45: 2015-02-03 | M45: 7 hours | N45: 2015-03-07T21:49:28 | O45: 4187975-1 | P45: 0 | Q45: 1 | R45: 45 | T45: 4187975-1 | U45: Bronze | W45: 483 | X45: 0 | Y45: Bronze | Z45: 0 | AA45: 0 | AB45: 0 | AC45: 0 | AD45: 0 | AE45: 0 | AF45: 0 | AG45: 0 | AH45: 0 | AI45: 0 | AJ45: 0 | AK45: 0 | AL45: 0 | AM45: 0 | AN45: 0 | AO45: 0 | AP45: 0 | AQ45: 0 | AR45: 0 | AS45: 0 | AT45: 0 | AU45: Bronze
A46: 5505629 | B46: us | C46: 1 | D46: Epsilon | E46: p | F46: Bronze | G46: Division Meinhoff Nu | H46: 41 | I46: 33 | J46: 962 | K46: 15 | L46: 2015-01-15 | M46: 12 hours | N46: 2015-03-07T21:49:28 | O46: 5505629-1 | P46: 0 | Q46: 1 | R46: 46
A47: 6172969 | B47: us | C47: 1 | D47: Scottaaron | E47: p | F47: Bronze | G47: Division Prelate Yankee | H47: 73 | I47: 57 | J47: 962 | K47: 17 | L47: 2015-01-12 | M47: 16 hours | N47: 2015-03-07T21:49:29 | O47: 6172969-1 | P47: 0 | Q47: 1 | R47: 47 | T47: 6172969-1 | U47: Bronze | W47: 0 | X47: 0 | Y47: 0 | Z47: 0 | AA47: 8346 | AB47: 0 | AC47: 0 | AD47: Silver | AE47: 0 | AF47: 0 | AG47: 0 | AH47: 0 | AI47: 0 | AJ47: 0 | AK47: 0 | AL47: 0 | AM47: 0 | AN47: 0 | AO47: 0 | AP47: 0 | AQ47: 0 | AR47: 0 | AS47: 0 | AT47: 0 | AU47: Silver
A48: 739226 | B48: us | C48: 2 | D48: kanon | E48: t | F48: Bronze | G48: Division Siege Tank Sigma | H48: 121 | I48: 109 | J48: 961 | K48: 22 | L48: 2015-01-13 | M48: 16 hours | N48: 2015-03-07T21:49:29 | O48: 739226-2 | P48: 0 | Q48: 1 | R48: 48
A49: 2625189 | B49: us | C49: 1 | D49: randomosis | E49: r | F49: Bronze | G49: Division Furinax Whiskey | H49: 36 | I49: 43 | J49: 959 | K49: 10 | L49: 2015-02-28 | M49: 5 hours | N49: 2015-03-07T21:49:29 | O49: 2625189-1 | P49: 0 | Q49: 1 | R49: 49 | T49: 2625189-1 | U49: Bronze | W49: 0 | X49: 220 | Y49: 0 | Z49: Bronze | AA49: 0 | AB49: 0 | AC49: 0 | AD49: 0 | AE49: 0 | AF49: 0 | AG49: 0 | AH49: 0 | AI49: 0 | AJ49: 0 | AK49: 0 | AL49: 0 | AM49: 0 | AN49: 0 | AO49: 0 | AP49: 0 | AQ49: 13680 | AR49: 0 | AS49: 0 | AU49: Bronze
A50: 5190377 | B50: us | C50: 1 | D50: GhOsT | E50: p | F50: Bronze | G50: Division Ultralisk Omega | H50: 79 | I50: 77 | J50: 959 | K50: 4 | L50: 2015-02-08 | M50: 23 hours | N50: 2015-03-07T21:49:30 | O50: 5190377-1 | P50: 0 | Q50: 1 | R50: 50 | T50: 5190377-1 | U50: Bronze | W50: 6503 | X50: 0 | Y50: Bronze | Z50: 0 | AA50: 0 | AB50: 0 | AC50: 0 | AD50: 0 | AE50: 0 | AF50: 0 | AG50: 0 | AH50: 0 | AI50: 0 | AJ50: 0 | AK50: 0 | AL50: 0 | AM50: 0 | AN50: 0 | AO50: 17564 | AP50: 0 | AQ50: 0 | AR50: Gold | AS50: 0 | AT50: 0 | AU50: Gold
A51: 363256 | B51: us | C51: 1 | D51: kojiki | E51: t | F51: Bronze | G51: Division Ehlna Alamo | H51: 612 | I51: 655 | J51: 958 | K51: 15 | L51: 2015-01-16 | M51: 13 hours | N51: 2015-03-07T21:49:30 | O51: 363256-1 | P51: 0 | Q51: 1 | R51: 51
A52: 872582 | B52: us | C52: 2 | D52: kioko | E52: t | F52: Bronze | G52: Division Pylon Mars | H52: 101 | I52: 91 | J52: 958 | K52: 4 | L52: 2015-02-05 | M52: 1 hours | N52: 2015-03-07T21:49:30 | O52: 872582-2 | P52: 0 | Q52: 1 | R52: 52
A53: 1182687 | B53: us | C53: 1 | D53: Carlo | E53: t | F53: Bronze | G53: Division Felanis Lambda | H53: 126 | I53: 126 | J53: 958 | K53: 1 | L53: 2015-01-14 | M53: 18 hours | N53: 2015-03-07T21:49:31 | O53: 1182687-1 | P53: 0 | Q53: 1 | R53: 53
A54: 2395370 | B54: us | C54: 1 | D54: Andynator | E54: t | F54: Bronze | G54: Division Dragoon Victor | H54: 117 | I54: 124 | J54: 958 | K54: 0 | L54: 2015-01-14 | M54: 10 hours | N54: 2015-03-07T21:49:31 | O54: 2395370-1 | P54: 0 | Q54: 1 | R54: 54 | T54: 2395370-1 | U54: Bronze | W54: 0 | X54: 8496 | Y54: 0 | Z54: Bronze | AA54: 7726 | AB54: 0 | AC54: 0 | AD54: Silver | AE54: 0 | AF54: 0 | AG54: 0 | AH54: 0 | AI54: 0 | AJ54: 0 | AK54: 0 | AL54: 0 | AM54: 0 | AN54: 0 | AO54: 4043 | AP54: 8857 | AQ54: 27135 | AR54: Silver | AS54: Silver | AU54: Silver
A55: 4151831 | B55: us | C55: 1 | D55: FaTalVizionZ | E55: z | F55: Bronze | G55: Division Meinhoff Nu | H55: 40 | I55: 31 | J55: 958 | K55: 20 | L55: 2015-01-19 | M55: 22 hours | N55: 2015-03-07T21:49:31 | O55: 4151831-1 | P55: 0 | Q55: 1 | R55: 55
A56: 4292739 | B56: us | C56: 1 | D56: Marzhina | E56: t | F56: Bronze | G56: Division Siege Tank Sigma | H56: 82 | I56: 90 | J56: 958 | K56: 3 | L56: 2015-03-02 | M56: 1 hours | N56: 2015-03-07T21:49:32 | O56: 4292739-1 | P56: 0 | Q56: 1 | R56: 56
A57: 6228914 | B57: us | C57: 1 | D57: xijangprox | E57: t | F57: Bronze | G57: Division Vermillion Yankee | H57: 71 | I57: 57 | J57: 958 | K57: 63 | L57: 2015-02-02 | M57: 3 days | N57: 2015-03-07T21:49:32 | O57: 6228914-1 | P57: 0 | Q57: 1 | R57: 57
A58: 5897956 | B58: us | C58: 1 | D58: tattooshaun | E58: z | F58: Bronze | G58: Division Ehlna Alamo | H58: 145 | I58: 149 | J58: 957 | K58: 16 | L58: 2015-01-14 | M58: 14 hours | N58: 2015-03-07T21:49:32 | O58: 5897956-1 | P58: 0 | Q58: 1 | R58: 58 | T58: 5897956-1 | U58: Bronze | W58: 15787 | X58: 29621 | Y58: Silver | Z58: Gold | AA58: 11736 | AB58: 0 | AC58: 0 | AD58: Gold | AE58: 0 | AF58: 0 | AG58: 0 | AH58: 0 | AI58: 0 | AJ58: 0 | AK58: 0 | AL58: 0 | AM58: 0 | AN58: 0 | AO58: 72 | AP58: 0 | AQ58: 0 | AR58: Bronze | AS58: 0 | AT58: 0 | AU58: Gold
A59: 6045322 | B59: us | C59: 1 | D59: Moneypkers | E59: t | F59: Bronze | G59: Division Ehlna Upsilon | H59: 56 | I59: 49 | J59: 957 | K59: 24 | L59: 2015-01-28 | M59: 7 hours | N59: 2015-03-07T21:49:33 | O59: 6045322-1 | P59: 0 | Q59: 1 | R59: 59 | T59: 6045322-1 | U59: Bronze | W59: 13379 | X59: 0 | Y59: Silver | Z59: 0 | AA59: 684 | AB59: 279 | AC59: 0 | AD59: Bronze | AE59: Bronze | AF59: 0 | AG59: 0 | AH59: 831 | AI59: 0 | AJ59: 0 | AK59: 0 | AL59: Bronze | AM59: 0 | AN59: 0 | AO59: 0 | AP59: 0 | AQ59: 0 | AR59: 0 | AS59: 0 | AT59: 0 | AU59: Silver
A60: 2490677 | B60: us | C60: 1 | D60: Arouraa | E60: r | F60: Bronze | G60: Division Prelate Yankee | H60: 95 | I60: 91 | J60: 956 | K60: 3 | L60: 2015-01-12 | M60: 16 hours | N60: 2015-03-07T21:49:33 | O60: 2490677-1 | P60: 0 | Q60: 1 | R60: 60 | T60: 2490677-1 | U60: Bronze | W60: 0 | X60: 0 | Y60: 0 | Z60: 0 | AA60: 0 | AB60: 0 | AC60: 0 | AD60: 0 | AE60: 0 | AF60: 0 | AG60: 0 | AH60: 0 | AI60: 0 | AJ60: 0 | AK60: 0 | AL60: 0 | AM60: 0 | AN60: 0 | AO60: 11359 | AP60: 0 | AQ60: 10455 | AR60: Silver | AS60: 0 | AU60: Silver
A61: 5935800 | B61: us | C61: 1 | D61: JohnsonandJ | E61: t | F61: Bronze | G61: Division Nova Chi | H61: 118 | I61: 119 | J61: 956 | K61: 2 | L61: 2015-01-12 | M61: 15 hours | N61: 2015-03-07T21:49:33 | O61: 5935800-1 | P61: 0 | Q61: 1 | R61: 61
A62: 6217654 | B62: us | C62: 1 | D62: Almightysoul | E62: p | F62: Bronze | G62: Division Uraj Gravity | H62: 144 | I62: 135 | J62: 955 | K62: 7 | L62: 2015-01-13 | M62: 1 hours | N62: 2015-03-07T21:49:34 | O62: 6217654-1 | P62: 0 | Q62: 1 | R62: 62 | T62: 6217654-1 | U62: Bronze | W62: 0 | X62: 0 | Y62: 0 | Z62: 0 | AA62: 0 | AB62: 0 | AC62: 0 | AD62: 0 | AE62: 0 | AF62: 0 | AG62: 0 | AH62: 0 | AI62: 0 | AJ62: 0 | AK62: 0 | AL62: 0 | AM62: 0 | AN62: 0 | AO62: 8530 | AP62: 0 | AQ62: 0 | AR62: Silver | AS62: 0 | AT62: 0 | AU62: Silver
A63: 557961 | B63: us | C63: 2 | D63: HERTZ | E63: p | F63: Bronze | G63: Division Routhe Quest | H63: 43 | I63: 41 | J63: 954 | K63: 3 | L63: 2015-02-19 | M63: 8 hours | N63: 2015-03-07T21:49:34 | O63: 557961-2 | P63: 0 | Q63: 1 | R63: 63 | T63: 557961-2 | U63: Bronze | W63: 9878 | X63: 0 | Y63: Bronze | Z63: 0 | AA63: 1135 | AB63: 0 | AC63: 0 | AD63: Bronze | AE63: 0 | AF63: 0 | AG63: 0 | AH63: 0 | AI63: 0 | AJ63: 0 | AK63: 0 | AL63: 0 | AM63: 0 | AN63: 0 | AO63: 0 | AP63: 12604 | AQ63: 0 | AR63: 0 | AS63: Silver | AT63: 0 | AU63: Silver
A64: 4873218 | B64: us | C64: 1 | D64: LegendaryHD | E64: z | F64: Bronze | G64: Division Khas Hawk | H64: 56 | I64: 54 | J64: 952 | K64: 8 | L64: 2015-02-03 | M64: 2 hours | N64: 2015-03-07T21:49:34 | O64: 4873218-1 | P64: 0 | Q64: 1 | R64: 64 | T64: 4873218-1 | U64: Bronze | W64: 0 | X64: 0 | Y64: 0 | Z64: 0 | AA64: 0 | AB64: 0 | AC64: 0 | AD64: 0 | AE64: 0 | AF64: 0 | AG64: 0 | AH64: 0 | AI64: 0 | AJ64: 0 | AK64: 0 | AL64: 0 | AM64: 0 | AN64: 0 | AO64: 12468 | AP64: 0 | AQ64: 0 | AR64: Silver | AS64: 0 | AT64: 0 | AU64: Silver
A65: 695799 | B65: us | C65: 1 | D65: diemondCrook | E65: p | F65: Bronze | G65: Division Prelate Yankee | H65: 115 | I65: 114 | J65: 951 | K65: 0 | L65: 2015-01-12 | M65: 8 hours | N65: 2015-03-07T21:49:34 | O65: 695799-1 | P65: 0 | Q65: 1 | R65: 65 | T65: 695799-1 | U65: Bronze | W65: 0 | X65: 2380 | Y65: 0 | Z65: Bronze | AA65: 0 | AB65: 0 | AC65: 0 | AD65: 0 | AE65: 0 | AF65: 0 | AG65: 0 | AH65: 0 | AI65: 0 | AJ65: 0 | AK65: 0 | AL65: 0 | AM65: 0 | AN65: 0 | AO65: 0 | AP65: 0 | AQ65: 0 | AR65: 0 | AS65: 0 | AT65: 0 | AU65: Bronze
A66: 6502249 | B66: us | C66: 1 | D66: Lotus | E66: p | F66: Bronze | G66: Division Norad Xi | H66: 38 | I66: 43 | J66: 951 | K66: 8 | L66: 2015-02-14 | M66: 2 hours | N66: 2015-03-07T21:49:35 | O66: 6502249-1 | P66: 0 | Q66: 1 | R66: 66
A67: 4953095 | B67: us | C67: 1 | D67: PartEMan | E67: p | F67: Bronze | G67: Division Shakuras Dixie | H67: 90 | I67: 84 | J67: 950 | K67: 0 | L67: 2015-01-17 | M67: 3 hours | N67: 2015-03-07T21:49:35 | O67: 4953095-1 | P67: 0 | Q67: 1 | R67: 67 | T67: 4953095-1 | U67: Bronze | W67: 0 | X67: 6503 | Y67: 0 | Z67: Bronze | AA67: 0 | AB67: 0 | AC67: 0 | AD67: 0 | AE67: 0 | AF67: 0 | AG67: 0 | AH67: 0 | AI67: 0 | AJ67: 0 | AK67: 0 | AL67: 0 | AM67: 0 | AN67: 0 | AO67: 0 | AP67: 0 | AQ67: 23486 | AR67: 0 | AS67: 0 | AU67: Bronze
A68: 5274490 | B68: us | C68: 1 | D68: BlackSparten | E68: p | F68: Bronze | G68: Division Felanis Lambda | H68: 40 | I68: 44 | J68: 950 | K68: 5 | L68: 2015-02-14 | M68: 27 minutes | N68: 2015-03-07T21:49:35 | O68: 5274490-1 | P68: 0 | Q68: 1 | R68: 68
A69: 1003058 | B69: us | C69: 1 | D69: TheHarkness | E69: t | F69: Bronze | G69: Division Mutalisk Omicron | H69: 115 | I69: 118 | J69: 948 | K69: 2 | L69: 2015-01-13 | M69: 1 days | N69: 2015-03-07T21:49:36 | O69: 1003058-1 | P69: 0 | Q69: 1 | R69: 69
A70: 2799789 | B70: us | C70: 1 | D70: Poulet | E70: z | F70: Bronze | G70: Division Forge Beta | H70: 49 | I70: 49 | J70: 948 | K70: 14 | L70: 2015-01-26 | M70: 12 hours | N70: 2015-03-07T21:49:36 | O70: 2799789-1 | P70: 0 | Q70: 1 | R70: 70
A71: 4800901 | B71: us | C71: 1 | D71: LogicSoldier | E71: z | F71: Bronze | G71: Division Aiur Romeo | H71: 56 | I71: 61 | J71: 948 | K71: 18 | L71: 2015-02-22 | M71: 19 hours | N71: 2015-03-07T21:49:37 | O71: 4800901-1 | P71: 0 | Q71: 1 | R71: 71 | T71: 4800901-1 | U71: Bronze | W71: 0 | X71: 0 | Y71: 0 | Z71: 0 | AA71: 0 | AB71: 0 | AC71: 0 | AD71: 0 | AE71: 0 | AF71: 0 | AG71: 0 | AH71: 0 | AI71: 0 | AJ71: 0 | AK71: 0 | AL71: 0 | AM71: 0 | AN71: 0 | AO71: 1092 | AP71: 0 | AQ71: 0 | AR71: Bronze | AS71: 0 | AT71: 0 | AU71: Bronze
A72: 1250316 | B72: us | C72: 1 | D72: StormCrow | E72: r | F72: Bronze | G72: Division Pridewater Hawk | H72: 59 | I72: 63 | J72: 947 | K72: 6 | L72: 2015-01-12 | M72: 1 minutes | N72: 2015-03-07T21:49:37 | O72: 1250316-1 | P72: 0 | Q72: 1 | R72: 72 | T72: 1250316-1 | U72: Bronze | W72: 0 | X72: 0 | Y72: 0 | Z72: 0 | AA72: 0 | AB72: 0 | AC72: 0 | AD72: 0 | AE72: 0 | AF72: 0 | AG72: 0 | AH72: 0 | AI72: 0 | AJ72: 0 | AK72: 0 | AL72: 0 | AM72: 0 | AN72: 0 | AO72: 10691 | AP72: 0 | AQ72: 0 | AR72: Silver | AS72: 0 | AT72: 0 | AU72: Silver
A73: 2583614 | B73: us | C73: 1 | D73: ColSchafer | E73: t | F73: Bronze | G73: Division Hive Kappa | H73: 46 | I73: 30 | J73: 947 | K73: 3 | L73: 2015-02-10 | M73: 12 hours | N73: 2015-03-07T21:49:37 | O73: 2583614-1 | P73: 0 | Q73: 1 | R73: 73 | T73: 2583614-1 | U73: Bronze | W73: 0 | X73: 64 | Y73: 0 | Z73: Bronze | AA73: 0 | AB73: 0 | AC73: 3684 | AD73: 0 | AE73: 0 | AF73: Bronze | AG73: 0 | AH73: 0 | AI73: 0 | AJ73: 811 | AK73: 0 | AL73: 0 | AM73: 0 | AN73: 0 | AO73: 0 | AP73: 0 | AQ73: 0 | AR73: 0 | AS73: 0 | AT73: 0 | AU73: Bronze
A74: 6231968 | B74: us | C74: 1 | D74: SushiOddJobs | E74: p | F74: Bronze | G74: Division Forge Beta | H74: 64 | I74: 61 | J74: 947 | K74: 0 | L74: 2015-01-26 | M74: 1 days | N74: 2015-03-07T21:49:38 | O74: 6231968-1 | P74: 0 | Q74: 1 | R74: 74 | T74: 6231968-1 | U74: Bronze | W74: 1408 | X74: 0 | Y74: Bronze | Z74: 0 | AA74: 0 | AB74: 0 | AC74: 0 | AD74: 0 | AE74: 0 | AF74: 0 | AG74: 0 | AH74: 0 | AI74: 0 | AJ74: 0 | AK74: 0 | AL74: 0 | AM74: 0 | AN74: 0 | AO74: 0 | AP74: 0 | AQ74: 0 | AR74: 0 | AS74: 0 | AT74: 0 | AU74: Bronze
A75: 4034941 | B75: us | C75: 1 | D75: paNix | E75: t | F75: Bronze | G75: Division Forge Beta | H75: 76 | I75: 55 | J75: 946 | K75: 0 | L75: 2015-02-11 | M75: 1 days | N75: 2015-03-07T21:49:38 | O75: 4034941-1 | P75: 0 | Q75: 1 | R75: 75 | T75: 4034941-1 | U75: Bronze | W75: 22258 | X75: 0 | Y75: Silver | Z75: 0 | AA75: 0 | AB75: 0 | AC75: 0 | AD75: 0 | AE75: 0 | AF75: 0 | AG75: 0 | AH75: 0 | AI75: 0 | AJ75: 0 | AK75: 0 | AL75: 0 | AM75: 0 | AN75: 0 | AO75: 0 | AP75: 0 | AQ75: 0 | AR75: 0 | AS75: 0 | AT75: 0 | AU75: Silver
A76: 5442813 | B76: us | C76: 1 | D76: Haafje | E76: r | F76: Bronze | G76: Division Brontes Tau | H76: 101 | I76: 93 | J76: 945 | K76: 76 | L76: 2015-01-15 | M76: 4 days | N76: 2015-03-07T21:49:38 | O76: 5442813-1 | P76: 0 | Q76: 1 | R76: 76
A77: 814965 | B77: us | C77: 1 | D77: Xenocide | E77: t | F77: Bronze | G77: Division Ladranix Xi | H77: 45 | I77: 39 | J77: 943 | K77: 74 | L77: 2015-01-13 | M77: 48 minutes | N77: 2015-03-07T21:49:39 | O77: 814965-1 | P77: 0 | Q77: 1 | R77: 77
A78: 2292753 | B78: us | C78: 1 | D78: kip | E78: t | F78: Bronze | G78: Division Hartley Beta | H78: 134 | I78: 149 | J78: 943 | K78: 8 | L78: 2015-01-12 | M78: 2 hours | N78: 2015-03-07T21:49:39 | O78: 2292753-1 | P78: 0 | Q78: 1 | R78: 78
A79: 4092473 | B79: us | C79: 1 | D79: whiteout | E79: p | F79: Bronze | G79: Division Nagglfar Dixie | H79: 43 | I79: 43 | J79: 943 | K79: 24 | L79: 2015-01-27 | M79: 1 days | N79: 2015-03-07T21:49:39 | O79: 4092473-1 | P79: 0 | Q79: 1 | R79: 79
A80: 6032277 | B80: us | C80: 1 | D80: jacksparrow | E80: p | F80: Bronze | G80: Division Hartley Beta | H80: 45 | I80: 38 | J80: 943 | K80: 8 | L80: 2015-01-17 | M80: 1 days | N80: 2015-03-07T21:49:40 | O80: 6032277-1 | P80: 0 | Q80: 1 | R80: 80
A81: 6094720 | B81: us | C81: 1 | D81: BeltaShelta | E81: t | F81: Bronze | G81: Division Ehlna Upsilon | H81: 44 | I81: 39 | J81: 943 | K81: 73 | L81: 2015-01-17 | M81: 17 hours | N81: 2015-03-07T21:49:40 | O81: 6094720-1 | P81: 0 | Q81: 1 | R81: 81
A82: 6192455 | B82: us | C82: 1 | D82: sosick | E82: t | F82: Bronze | G82: Division Furinax Whiskey | H82: 79 | I82: 79 | J82: 943 | K82: 4 | L82: 2015-01-14 | M82: 8 minutes | N82: 2015-03-07T21:49:40 | O82: 6192455-1 | P82: 0 | Q82: 1 | R82: 82
A83: 4430648 | B83: us | C83: 1 | D83: ATruck | E83: t | F83: Bronze | G83: Division Siege Tank Sigma | H83: 128 | I83: 110 | J83: 942 | K83: 1 | L83: 2015-01-13 | M83: 1 hours | N83: 2015-03-07T21:49:40 | O83: 4430648-1 | P83: 0 | Q83: 1 | R83: 83 | T83: 4430648-1 | U83: Bronze | W83: 0 | X83: 0 | Y83: 0 | Z83: 0 | AA83: 0 | AB83: 0 | AC83: 0 | AD83: 0 | AE83: 0 | AF83: 0 | AG83: 0 | AH83: 0 | AI83: 0 | AJ83: 0 | AK83: 0 | AL83: 0 | AM83: 0 | AN83: 0 | AO83: 12300 | AP83: 1149 | AQ83: 0 | AR83: Silver | AS83: Bronze | AT83: 0 | AU83: Silver
A84: 5583671 | B84: us | C84: 1 | D84: SkyhawkDelta | E84: t | F84: Bronze | G84: Division Scarab Kilo | H84: 83 | I84: 77 | J84: 942 | K84: 15 | L84: 2015-01-13 | M84: 14 hours | N84: 2015-03-07T21:49:41 | O84: 5583671-1 | P84: 0 | Q84: 1 | R84: 84
A85: 4196213 | B85: us | C85: 1 | D85: Thor | E85: z | F85: Bronze | G85: Division Araq Zed | H85: 84 | I85: 80 | J85: 940 | K85: 4 | L85: 2015-01-14 | M85: 18 hours | N85: 2015-03-07T21:49:41 | O85: 4196213-1 | P85: 0 | Q85: 1 | R85: 85 | T85: 4196213-1 | U85: Bronze | W85: 0 | X85: 0 | Y85: 0 | Z85: 0 | AA85: 0 | AB85: 0 | AC85: 0 | AD85: 0 | AE85: 0 | AF85: 0 | AG85: 0 | AH85: 0 | AI85: 0 | AJ85: 0 | AK85: 0 | AL85: 0 | AM85: 0 | AN85: 0 | AO85: 2220 | AP85: 0 | AQ85: 0 | AR85: Bronze | AS85: 0 | AT85: 0 | AU85: Bronze
A86: 1305781 | B86: us | C86: 1 | D86: HarryTuttle | E86: t | F86: Bronze | G86: Division Overmind Pi | H86: 48 | I86: 48 | J86: 938 | K86: 36 | L86: 2015-01-14 | M86: 8 hours | N86: 2015-03-07T21:49:41 | O86: 1305781-1 | P86: 0 | Q86: 1 | R86: 86 | T86: 1305781-1 | U86: Bronze | W86: 0 | X86: 0 | Y86: 0 | Z86: 0 | AA86: 0 | AB86: 0 | AC86: 0 | AD86: 0 | AE86: 0 | AF86: 0 | AG86: 0 | AH86: 0 | AI86: 0 | AJ86: 0 | AK86: 0 | AL86: 0 | AM86: 0 | AN86: 0 | AO86: 4126 | AP86: 5964 | AQ86: 6961 | AR86: Silver | AS86: Silver | AU86: Silver
A87: 2924265 | B87: us | C87: 1 | D87: dukenukem | E87: t | F87: Bronze | G87: Division Mutalisk Omicron | H87: 61 | I87: 70 | J87: 938 | K87: 13 | L87: 2015-01-13 | M87: 10 hours | N87: 2015-03-07T21:49:42 | O87: 2924265-1 | P87: 0 | Q87: 1 | R87: 87
A88: 4936059 | B88: us | C88: 1 | D88: Bretly | E88: z | F88: Bronze | G88: Division Meinhoff Nu | H88: 67 | I88: 61 | J88: 938 | K88: 52 | L88: 2015-01-15 | M88: 3 days | N88: 2015-03-07T21:49:42 | O88: 4936059-1 | P88: 0 | Q88: 1 | R88: 88 | T88: 4936059-1 | U88: Bronze | W88: 4690 | X88: 0 | Y88: Bronze | Z88: 0 | AA88: 0 | AB88: 0 | AC88: 0 | AD88: 0 | AE88: 0 | AF88: 0 | AG88: 0 | AH88: 0 | AI88: 0 | AJ88: 0 | AK88: 0 | AL88: 0 | AM88: 0 | AN88: 0 | AO88: 0 | AP88: 0 | AQ88: 0 | AR88: 0 | AS88: 0 | AT88: 0 | AU88: Bronze
A89: 117413 | B89: us | C89: 2 | D89: RODOS | E89: z | F89: Bronze | G89: Division Scourge X-Ray | H89: 140 | I89: 141 | J89: 937 | K89: 3 | L89: 2015-01-13 | M89: 8 hours | N89: 2015-03-07T21:49:42 | O89: 117413-2 | P89: 0 | Q89: 1 | R89: 89 | T89: 117413-2 | U89: Bronze | W89: 0 | X89: 0 | Y89: 0 | Z89: 0 | AA89: 0 | AB89: 0 | AC89: 0 | AD89: 0 | AE89: 0 | AF89: 0 | AG89: 0 | AH89: 0 | AI89: 0 | AJ89: 0 | AK89: 0 | AL89: 0 | AM89: 0 | AN89: 0 | AO89: 9712 | AP89: 4410 | AQ89: 10557 | AR89: Silver | AS89: Silver | AU89: Silver
A90: 2934944 | B90: us | C90: 1 | D90: meysamvatoo | E90: t | F90: Bronze | G90: Division Reaver Tango | H90: 71 | I90: 79 | J90: 937 | K90: 4 | L90: 2015-01-22 | M90: 18 hours | N90: 2015-03-07T21:49:43 | O90: 2934944-1 | P90: 0 | Q90: 1 | R90: 90
A91: 6310985 | B91: us | C91: 1 | D91: virtuostream | E91: p | F91: Bronze | G91: Division Roach Gravity | H91: 106 | I91: 95 | J91: 937 | K91: 15 | L91: 2015-02-12 | M91: 13 hours | N91: 2015-03-07T21:49:43 | O91: 6310985-1 | P91: 0 | Q91: 1 | R91: 91 | T91: 6310985-1 | U91: Bronze | W91: 13233 | X91: 0 | Y91: Silver | Z91: 0 | AA91: 0 | AB91: 0 | AC91: 0 | AD91: 0 | AE91: 0 | AF91: 0 | AG91: 0 | AH91: 0 | AI91: 0 | AJ91: 0 | AK91: 0 | AL91: 0 | AM91: 0 | AN91: 0 | AO91: 12917 | AP91: 0 | AQ91: 0 | AR91: Silver | AS91: 0 | AT91: 0 | AU91: Silver
A92: 221461 | B92: us | C92: 2 | D92: FALCON | E92: t | F92: Bronze | G92: Division Siege Tank Sigma | H92: 73 | I92: 77 | J92: 936 | K92: 16 | L92: 2015-01-12 | M92: 15 hours | N92: 2015-03-07T21:49:43 | O92: 221461-2 | P92: 0 | Q92: 1 | R92: 92 | T92: 221461-2 | U92: Bronze | W92: 0 | X92: 0 | Y92: 0 | Z92: 0 | AA92: 0 | AB92: 0 | AC92: 0 | AD92: 0 | AE92: 0 | AF92: 0 | AG92: 0 | AH92: 0 | AI92: 0 | AJ92: 0 | AK92: 0 | AL92: 0 | AM92: 0 | AN92: 0 | AO92: 5692 | AP92: 1613 | AQ92: 15601 | AR92: Silver | AS92: Bronze | AU92: Silver
A93: 455469 | B93: us | C93: 2 | D93: MAJCHRISTIAN | E93: p | F93: Bronze | G93: Division Observer Eta | H93: 62 | I93: 51 | J93: 936 | K93: 19 | L93: 2015-01-14 | M93: 20 hours | N93: 2015-03-07T21:49:44 | O93: 455469-2 | P93: 0 | Q93: 1 | R93: 93
A94: 2886297 | B94: us | C94: 1 | D94: TheTank | E94: p | F94: Bronze | G94: Division Anselm Bravo | H94: 72 | I94: 50 | J94: 935 | K94: 68 | L94: 2015-01-13 | M94: 11 hours | N94: 2015-03-07T21:49:44 | O94: 2886297-1 | P94: 0 | Q94: 1 | R94: 94 | T94: 2886297-1 | U94: Bronze | W94: 0 | X94: 0 | Y94: 0 | Z94: 0 | AA94: 0 | AB94: 0 | AC94: 0 | AD94: 0 | AE94: 0 | AF94: 0 | AG94: 0 | AH94: 0 | AI94: 0 | AJ94: 0 | AK94: 0 | AL94: 0 | AM94: 0 | AN94: 0 | AO94: 0 | AP94: 8844 | AQ94: 0 | AR94: 0 | AS94: Silver | AT94: 0 | AU94: Silver
A95: 5208360 | B95: us | C95: 1 | D95: ColdBlooded | E95: t | F95: Bronze | G95: Division Furinax Whiskey | H95: 66 | I95: 59 | J95: 935 | K95: 14 | L95: 2015-01-14 | M95: 1 hours | N95: 2015-03-07T21:49:44 | O95: 5208360-1 | P95: 0 | Q95: 1 | R95: 95
A96: 5754240 | B96: us | C96: 1 | D96: elitecush | E96: t | F96: Bronze | G96: Division Brontes Tau | H96: 113 | I96: 102 | J96: 935 | K96: 2 | L96: 2015-01-15 | M96: 2 hours | N96: 2015-03-07T21:49:45 | O96: 5754240-1 | P96: 0 | Q96: 1 | R96: 96
A97: 1230490 | B97: us | C97: 1 | D97: bob | E97: t | F97: Bronze | G97: Division Hydralisk Uncle | H97: 78 | I97: 80 | J97: 934 | K97: 0 | L97: 2015-01-13 | M97: 1 hours | N97: 2015-03-07T21:49:45 | O97: 1230490-1 | P97: 0 | Q97: 1 | R97: 97 | T97: 1230490-1 | U97: Bronze | W97: 0 | X97: 11695 | Y97: 0 | Z97: Bronze | AA97: 0 | AB97: 0 | AC97: 0 | AD97: 0 | AE97: 0 | AF97: 0 | AG97: 0 | AH97: 0 | AI97: 0 | AJ97: 0 | AK97: 0 | AL97: 0 | AM97: 0 | AN97: 0 | AO97: 0 | AP97: 0 | AQ97: 0 | AR97: 0 | AS97: 0 | AT97: 0 | AU97: Bronze
A98: 1708481 | B98: us | C98: 1 | D98: Decnutz | E98: t | F98: Bronze | G98: Division Pridewater Hawk | H98: 152 | I98: 161 | J98: 934 | K98: 0 | L98: 2015-01-12 | M98: 9 hours | N98: 2015-03-07T21:49:45 | O98: 1708481-1 | P98: 0 | Q98: 1 | R98: 98
A99: 4184820 | B99: us | C99: 1 | D99: Noc | E99: t | F99: Bronze | G99: Division Hyperion Charlie | H99: 123 | I99: 119 | J99: 934 | K99: 7 | L99: 2015-01-23 | M99: 39 minutes | N99: 2015-03-07T21:49:46 | O99: 4184820-1 | P99: 0 | Q99: 1 | R99: 99
A100: 13529 | B100: us | C100: 2 | D100: CLAUESTEBAN | E100: r | F100: Bronze | G100: Division Gateway Omega | H100: 101 | I100: 98 | J100: 933 | K100: 4 | L100: 2015-01-12 | M100: 18 hours | N100: 2015-03-07T21:49:46 | O100: 13529-2 | P100: 0 | Q100: 1 | R100: 100
A101: 1113170 | B101: us | C101: 1 | D101: mboon | E101: t | F101: Bronze | G101: Division Felanis Lambda | H101: 57 | I101: 54 | J101: 933 | K101: 2 | L101: 2015-01-14 | M101: 10 hours | N101: 2015-03-07T21:49:46 | O101: 1113170-1 | P101: 0 | Q101: 1 | R101: 101 | T101: 1113170-1 | U101: Bronze | W101: 0 | X101: 0 | Y101: 0 | Z101: 0 | AA101: 0 | AB101: 0 | AC101: 0 | AD101: 0 | AE101: 0 | AF101: 0 | AG101: 0 | AH101: 0 | AI101: 0 | AJ101: 0 | AK101: 0 | AL101: 0 | AM101: 0 | AN101: 0 | AO101: 0 | AP101: 1269 | AQ101: 23087 | AR101: 0 | AS101: Bronze | AU101: Bronze
A102: 1166250 | B102: us | C102: 1 | D102: macaddict | E102: t | F102: Bronze | G102: Division Nova Chi | H102: 63 | I102: 56 | J102: 933 | K102: 32 | L102: 2015-01-12 | M102: 3 hours | N102: 2015-03-07T21:49:47 | O102: 1166250-1 | P102: 0 | Q102: 1 | R102: 102
A103: 2782374 | B103: us | C103: 1 | D103: Madcow | E103: t | F103: Bronze | G103: Division Anselm Bravo | H103: 60 | I103: 58 | J103: 933 | K103: 14 | L103: 2015-01-13 | M103: 10 hours | N103: 2015-03-07T21:49:47 | O103: 2782374-1 | P103: 0 | Q103: 1 | R103: 103
A104: 5429250 | B104: us | C104: 1 | D104: Atlas | E104: p | F104: Bronze | G104: Division Guardian Lima | H104: 42 | I104: 47 | J104: 933 | K104: 6 | L104: 2015-01-24 | M104: 1 days | N104: 2015-03-07T21:49:47 | O104: 5429250-1 | P104: 0 | Q104: 1 | R104: 104
A105: 5247720 | B105: us | C105: 1 | D105: JivAsMthrfkr | E105: r | F105: Bronze | G105: Division Uraj Gravity | H105: 119 | I105: 142 | J105: 932 | K105: 9 | L105: 2015-01-14 | M105: 4 hours | N105: 2015-03-07T21:49:48 | O105: 5247720-1 | P105: 0 | Q105: 1 | R105: 105
A106: 258795 | B106: us | C106: 2 | D106: Wotan | E106: p | F106: Bronze | G106: Division Khalis Echo | H106: 87 | I106: 95 | J106: 930 | K106: 31 | L106: 2015-01-22 | M106: 1 days | N106: 2015-03-07T21:49:48 | O106: 258795-2 | P106: 0 | Q106: 1 | R106: 106
A107: 3645571 | B107: us | C107: 1 | D107: martino | E107: t | F107: Bronze | G107: Division Tarsonis Delta | H107: 75 | I107: 70 | J107: 930 | K107: 19 | L107: 2015-01-20 | M107: 1 days | N107: 2015-03-07T21:49:48 | O107: 3645571-1 | P107: 0 | Q107: 1 | R107: 107
A108: 4889100 | B108: us | C108: 1 | D108: stillmank | E108: r | F108: Bronze | G108: Division Observer Eta | H108: 100 | I108: 101 | J108: 930 | K108: 39 | L108: 2015-01-13 | M108: 1 days | N108: 2015-03-07T21:49:49 | O108: 4889100-1 | P108: 0 | Q108: 1 | R108: 108 | T108: 4889100-1 | U108: Bronze | W108: 0 | X108: 0 | Y108: 0 | Z108: 0 | AA108: 0 | AB108: 0 | AC108: 0 | AD108: 0 | AE108: 0 | AF108: 0 | AG108: 0 | AH108: 0 | AI108: 0 | AJ108: 0 | AK108: 0 | AL108: 0 | AM108: 0 | AN108: 0 | AO108: 7537 | AP108: 0 | AQ108: 0 | AR108: Silver | AS108: 0 | AT108: 0 | AU108: Silver
A109: 6301552 | B109: us | C109: 1 | D109: creduluscmb | E109: t | F109: Bronze | G109: Division Ehlna Alamo | H109: 41 | I109: 40 | J109: 930 | K109: 92 | L109: 2015-02-08 | M109: 9 hours | N109: 2015-03-07T21:49:49 | O109: 6301552-1 | P109: 0 | Q109: 1 | R109: 109 | T109: 6301552-1 | U109: Bronze | W109: 14452 | X109: 0 | Y109: Silver | Z109: 0 | AA109: 0 | AB109: 0 | AC109: 0 | AD109: 0 | AE109: 0 | AF109: 0 | AG109: 0 | AH109: 0 | AI109: 0 | AJ109: 0 | AK109: 0 | AL109: 0 | AM109: 0 | AN109: 0 | AO109: 0 | AP109: 9773 | AQ109: 6876 | AR109: 0 | AS109: Silver | AU109: Silver
A110: 6529852 | B110: us | C110: 1 | D110: Darrrkstar | E110: p | F110: Bronze | G110: Division Viking Zeta | H110: 50 | I110: 42 | J110: 930 | K110: 6 | L110: 2015-02-26 | M110: 8 hours | N110: 2015-03-07T21:49:50 | O110: 6529852-1 | P110: 0 | Q110: 1 | R110: 110
A111: 4187914 | B111: us | C111: 1 | D111: RKB | E111: r | F111: Bronze | G111: Division Executor Juliet | H111: 37 | I111: 36 | J111: 929 | K111: 36 | L111: 2015-01-18 | M111: 2 days | N111: 2015-03-07T21:49:50 | O111: 4187914-1 | P111: 0 | Q111: 1 | R111: 111
A112: 5367542 | B112: us | C112: 1 | D112: Aunir | E112: r | F112: Bronze | G112: Division Gateway Omega | H112: 67 | I112: 56 | J112: 929 | K112: 36 | L112: 2015-01-12 | M112: 1 days | N112: 2015-03-07T21:49:50 | O112: 5367542-1 | P112: 0 | Q112: 1 | R112: 112
A113: 287921 | B113: us | C113: 1 | D113: DeathsShadow | E113: z | F113: Bronze | G113: Division UED Pepper | H113: 51 | I113: 54 | J113: 928 | K113: 1 | L113: 2015-01-15 | M113: 3 days | N113: 2015-03-07T21:49:50 | O113: 287921-1 | P113: 0 | Q113: 1 | R113: 113 | T113: 287921-1 | U113: Bronze | W113: 0 | X113: 27 | Y113: 0 | Z113: Bronze | AA113: 0 | AB113: 0 | AC113: 0 | AD113: 0 | AE113: 0 | AF113: 0 | AG113: 0 | AH113: 0 | AI113: 0 | AJ113: 0 | AK113: 0 | AL113: 0 | AM113: 0 | AN113: 0 | AO113: 0 | AP113: 0 | AQ113: 0 | AR113: 0 | AS113: 0 | AT113: 0 | AU113: Bronze
A114: 6173616 | B114: us | C114: 1 | D114: Iggy | E114: r | F114: Bronze | G114: Division Nova Mars | H114: 40 | I114: 25 | J114: 928 | K114: 19 | L114: 2015-02-12 | M114: 11 hours | N114: 2015-03-07T21:49:51 | O114: 6173616-1 | P114: 0 | Q114: 1 | R114: 114 | T114: 6173616-1 | U114: Bronze | W114: 20411 | X114: 10763 | Y114: Silver | Z114: Bronze | AA114: 2628 | AB114: 0 | AC114: 0 | AD114: Bronze | AE114: 0 | AF114: 0 | AG114: 0 | AH114: 570 | AI114: 0 | AJ114: 0 | AK114: 0 | AL114: Bronze | AM114: 0 | AN114: 0 | AO114: 18999 | AP114: 0 | AQ114: 0 | AR114: Gold | AS114: 0 | AT114: 0 | AU114: Gold
A115: 3984673 | B115: us | C115: 1 | D115: OrleansKilla | E115: t | F115: Bronze | G115: Division Judicator Mu | H115: 49 | I115: 52 | J115: 925 | K115: 0 | L115: 2015-01-15 | M115: 11 hours | N115: 2015-03-07T21:49:51 | O115: 3984673-1 | P115: 0 | Q115: 1 | R115: 115 | T115: 3984673-1 | U115: Bronze | W115: 125 | X115: 0 | Y115: Bronze | Z115: 0 | AA115: 4067 | AB115: 0 | AC115: 0 | AD115: Bronze | AE115: 0 | AF115: 0 | AG115: 0 | AH115: 0 | AI115: 0 | AJ115: 0 | AK115: 0 | AL115: 0 | AM115: 0 | AN115: 0 | AO115: 0 | AP115: 0 | AQ115: 0 | AR115: 0 | AS115: 0 | AT115: 0 | AU115: Bronze
A116: 5339333 | B116: us | C116: 1 | D116: DasMan | E116: r | F116: Bronze | G116: Division Ehlna Alamo | H116: 145 | I116: 179 | J116: 925 | K116: 24 | L116: 2015-01-14 | M116: 1 days | N116: 2015-03-07T21:49:52 | O116: 5339333-1 | P116: 0 | Q116: 1 | R116: 116
A117: 6004663 | B117: us | C117: 1 | D117: Millerman | E117: t | F117: Bronze | G117: Division Executor Juliet | H117: 34 | I117: 47 | J117: 925 | K117: 6 | L117: 2015-02-24 | M117: 12 minutes | N117: 2015-03-07T21:49:52 | O117: 6004663-1 | P117: 0 | Q117: 1 | R117: 117
A118: 2511385 | B118: us | C118: 1 | D118: Rojan | E118: r | F118: Bronze | G118: Division UED Pepper | H118: 74 | I118: 79 | J118: 924 | K118: 6 | L118: 2015-01-17 | M118: 1 hours | N118: 2015-03-07T21:49:52 | O118: 2511385-1 | P118: 0 | Q118: 1 | R118: 118
A119: 4689609 | B119: us | C119: 1 | D119: Suntra | E119: r | F119: Bronze | G119: Division Scourge X-Ray | H119: 49 | I119: 44 | J119: 923 | K119: 95 | L119: 2015-01-13 | M119: 1 days | N119: 2015-03-07T21:49:53 | O119: 4689609-1 | P119: 0 | Q119: 1 | R119: 119
A120: 6247730 | B120: us | C120: 1 | D120: Motaeghor | E120: t | F120: Bronze | G120: Division Felanis Lambda | H120: 51 | I120: 54 | J120: 923 | K120: 36 | L120: 2015-01-18 | M120: 1 days | N120: 2015-03-07T21:49:53 | O120: 6247730-1 | P120: 0 | Q120: 1 | R120: 120
A121: 6442352 | B121: us | C121: 1 | D121: Shane | E121: z | F121: Bronze | G121: Division Pridewater Hawk | H121: 44 | I121: 47 | J121: 923 | K121: 0 | L121: 2015-02-17 | M121: 10 hours | N121: 2015-03-07T21:49:53 | O121: 6442352-1 | P121: 0 | Q121: 1 | R121: 121
A122: 282001 | B122: us | C122: 1 | D122: followpan | E122: t | F122: Bronze | G122: Division Scarab Kilo | H122: 32 | I122: 38 | J122: 922 | K122: 18 | L122: 2015-02-11 | M122: 4 hours | N122: 2015-03-07T21:49:54 | O122: 282001-1 | P122: 0 | Q122: 1 | R122: 122 | T122: 282001-1 | U122: Bronze | W122: 0 | X122: 22195 | Y122: 0 | Z122: Silver | AA122: 0 | AB122: 0 | AC122: 0 | AD122: 0 | AE122: 0 | AF122: 0 | AG122: 0 | AH122: 0 | AI122: 0 | AJ122: 0 | AK122: 0 | AL122: 0 | AM122: 0 | AN122: 0 | AO122: 9610 | AP122: 19649 | AQ122: 0 | AR122: Silver | AT122: 0 | AU122: Silver
A123: 895121 | B123: us | C123: 1 | D123: ImpietyGhost | E123: p | F123: Bronze | G123: Division Hartley Beta | H123: 117 | I123: 140 | J123: 922 | K123: 4 | L123: 2015-01-12 | M123: 1 hours | N123: 2015-03-07T21:49:54 | O123: 895121-1 | P123: 0 | Q123: 1 | R123: 123
A124: 906615 | B124: us | C124: 1 | D124: Reaper | E124: p | F124: Bronze | G124: Division Reaver Tango | H124: 55 | I124: 64 | J124: 922 | K124: 3 | L124: 2015-01-12 | M124: 5 minutes | N124: 2015-03-07T21:49:54 | O124: 906615-1 | P124: 0 | Q124: 1 | R124: 124
A125: 2105705 | B125: us | C125: 1 | D125: Jennemede | E125: r | F125: Bronze | G125: Division Guardian Lima | H125: 265 | I125: 265 | J125: 922 | K125: 4 | L125: 2015-01-28 | M125: 8 hours | N125: 2015-03-07T21:49:55 | O125: 2105705-1 | P125: 0 | Q125: 1 | R125: 125
A126: 3255223 | B126: us | C126: 1 | D126: llllllllllll | E126: r | F126: Bronze | G126: Division Norad Xi | H126: 41 | I126: 53 | J126: 922 | K126: 7 | L126: 2015-02-17 | M126: 58 minutes | N126: 2015-03-07T21:49:55 | O126: 3255223-1 | P126: 0 | Q126: 1 | R126: 126 | T126: 3255223-1 | U126: Bronze | W126: 0 | X126: 6178 | Y126: 0 | Z126: Bronze | AA126: 0 | AB126: 0 | AC126: 0 | AD126: 0 | AE126: 0 | AF126: 0 | AG126: 0 | AH126: 0 | AI126: 0 | AJ126: 0 | AK126: 0 | AL126: 0 | AM126: 0 | AN126: 0 | AO126: 0 | AP126: 0 | AQ126: 0 | AR126: 0 | AS126: 0 | AT126: 0 | AU126: Bronze
A127: 3736416 | B127: us | C127: 1 | D127: bigbollocks | E127: p | F127: Bronze | G127: Division Prelate Yankee | H127: 62 | I127: 57 | J127: 922 | K127: 45 | L127: 2015-01-12 | M127: 1 days | N127: 2015-03-07T21:49:55 | O127: 3736416-1 | P127: 0 | Q127: 1 | R127: 127 | T127: 3736416-1 | U127: Bronze | W127: 1134 | X127: 0 | Y127: Bronze | Z127: 0 | AA127: 0 | AB127: 0 | AC127: 0 | AD127: 0 | AE127: 0 | AF127: 0 | AG127: 0 | AH127: 0 | AI127: 0 | AJ127: 0 | AK127: 0 | AL127: 0 | AM127: 0 | AN127: 0 | AO127: 0 | AP127: 0 | AQ127: 0 | AR127: 0 | AS127: 0 | AT127: 0 | AU127: Bronze
A128: 6056147 | B128: us | C128: 1 | D128: Aldex | E128: p | F128: Bronze | G128: Division Ultralisk Omega | H128: 51 | I128: 51 | J128: 922 | K128: 1 | L128: 2015-02-08 | M128: 14 hours | N128: 2015-03-07T21:49:56 | O128: 6056147-1 | P128: 0 | Q128: 1 | R128: 128
A129: 6245938 | B129: us | C129: 1 | D129: Bob | E129: p | F129: Bronze | G129: Division Forge Beta | H129: 58 | I129: 60 | J129: 921 | K129: 32 | L129: 2015-01-26 | M129: 1 days | N129: 2015-03-07T21:49:56 | O129: 6245938-1 | P129: 0 | Q129: 1 | R129: 129 | T129: 6245938-1 | U129: Bronze | W129: 0 | X129: 0 | Y129: 0 | Z129: 0 | AA129: 1807 | AB129: 0 | AC129: 0 | AD129: Bronze | AE129: 0 | AF129: 0 | AG129: 929 | AH129: 0 | AI129: 0 | AJ129: 0 | AK129: Bronze | AL129: 0 | AM129: 0 | AN129: Bronze | AO129: 0 | AP129: 0 | AQ129: 0 | AR129: 0 | AS129: 0 | AT129: 0 | AU129: Bronze
A130: 6333125 | B130: us | C130: 1 | D130: CrOcS | E130: t | F130: Bronze | G130: Division Pridewater Hawk | H130: 54 | I130: 64 | J130: 921 | K130: 1 | L130: 2015-01-31 | M130: 1 minutes | N130: 2015-03-07T21:49:56 | O130: 6333125-1 | P130: 0 | Q130: 1 | R130: 130 | T130: 6333125-1 | U130: Bronze | W130: 3246 | X130: 0 | Y130: Bronze | Z130: 0 | AA130: 0 | AB130: 0 | AC130: 0 | AD130: 0 | AE130: 0 | AF130: 0 | AG130: 0 | AH130: 0 | AI130: 0 | AJ130: 0 | AK130: 0 | AL130: 0 | AM130: 0 | AN130: 0 | AO130: 627 | AP130: 0 | AQ130: 0 | AR130: Bronze | AS130: 0 | AT130: 0 | AU130: Bronze
A131: 866750 | B131: us | C131: 2 | D131: TONY | E131: p | F131: Bronze | G131: Division Mutalisk Zeta | H131: 99 | I131: 95 | J131: 920 | K131: 44 | L131: 2015-01-13 | M131: 2 days | N131: 2015-03-07T21:49:57 | O131: 866750-2 | P131: 0 | Q131: 1 | R131: 131
A132: 1151398 | B132: us | C132: 1 | D132: Jaco | E132: p | F132: Bronze | G132: Division Hartley Beta | H132: 50 | I132: 54 | J132: 920 | K132: 19 | L132: 2015-01-12 | M132: 20 hours | N132: 2015-03-07T21:49:57 | O132: 1151398-1 | P132: 0 | Q132: 1 | R132: 132
A133: 2139157 | B133: us | C133: 1 | D133: Spyderizer | E133: r | F133: Bronze | G133: Division Judicator Mu | H133: 47 | I133: 44 | J133: 920 | K133: 16 | L133: 2015-01-16 | M133: 15 hours | N133: 2015-03-07T21:49:57 | O133: 2139157-1 | P133: 0 | Q133: 1 | R133: 133 | T133: 2139157-1 | U133: Bronze | W133: 0 | X133: 12648 | Y133: 0 | Z133: Bronze | AA133: 0 | AB133: 0 | AC133: 2441 | AD133: 0 | AE133: 0 | AF133: Bronze | AG133: 0 | AH133: 0 | AI133: 0 | AJ133: 0 | AK133: 0 | AL133: 0 | AM133: 0 | AN133: 0 | AO133: 0 | AP133: 0 | AQ133: 0 | AR133: 0 | AS133: 0 | AT133: 0 | AU133: Bronze
A134: 2852601 | B134: us | C134: 1 | D134: DrPayne | E134: r | F134: Bronze | G134: Division Mutalisk Omicron | H134: 64 | I134: 59 | J134: 920 | K134: 8 | L134: 2015-01-13 | M134: 22 hours | N134: 2015-03-07T21:49:57 | O134: 2852601-1 | P134: 0 | Q134: 1 | R134: 134
A135: 4005304 | B135: us | C135: 1 | D135: Canadianzerg | E135: z | F135: Bronze | G135: Division Siege Tank Sigma | H135: 60 | I135: 49 | J135: 920 | K135: 29 | L135: 2015-01-13 | M135: 1 days | N135: 2015-03-07T21:49:58 | O135: 4005304-1 | P135: 0 | Q135: 1 | R135: 135 | T135: 4005304-1 | U135: Bronze | W135: 0 | X135: 0 | Y135: 0 | Z135: 0 | AA135: 0 | AB135: 0 | AC135: 0 | AD135: 0 | AE135: 0 | AF135: 0 | AG135: 0 | AH135: 0 | AI135: 0 | AJ135: 0 | AK135: 0 | AL135: 0 | AM135: 0 | AN135: 0 | AO135: 1122 | AP135: 0 | AQ135: 0 | AR135: Bronze | AS135: 0 | AT135: 0 | AU135: Bronze
A136: 4190534 | B136: us | C136: 1 | D136: ALLTHEFISH | E136: p | F136: Bronze | G136: Division Kaloth Tango | H136: 87 | I136: 78 | J136: 920 | K136: 4 | L136: 2015-02-02 | M136: 12 hours | N136: 2015-03-07T21:49:58 | O136: 4190534-1 | P136: 0 | Q136: 1 | R136: 136
A137: 6190646 | B137: us | C137: 1 | D137: Julian | E137: p | F137: Bronze | G137: Division Pridewater Hawk | H137: 132 | I137: 133 | J137: 920 | K137: 19 | L137: 2015-01-12 | M137: 1 days | N137: 2015-03-07T21:49:58 | O137: 6190646-1 | P137: 0 | Q137: 1 | R137: 137 | T137: 6190646-1 | U137: Bronze | W137: 0 | X137: 0 | Y137: 0 | Z137: 0 | AA137: 0 | AB137: 0 | AC137: 0 | AD137: 0 | AE137: 0 | AF137: 0 | AG137: 0 | AH137: 0 | AI137: 0 | AJ137: 0 | AK137: 0 | AL137: 0 | AM137: 0 | AN137: 0 | AO137: 17824 | AP137: 0 | AQ137: 0 | AR137: Gold | AS137: 0 | AT137: 0 | AU137: Gold
A138: 949468 | B138: us | C138: 1 | D138: WreckTango | E138: t | F138: Bronze | G138: Division Anselm Bravo | H138: 52 | I138: 50 | J138: 918 | K138: 22 | L138: 2015-01-15 | M138: 1 days | N138: 2015-03-07T21:49:59 | O138: 949468-1 | P138: 0 | Q138: 1 | R138: 138
A139: 262039 | B139: us | C139: 2 | D139: turko | E139: p | F139: Bronze | G139: Division Prelate Yankee | H139: 62 | I139: 41 | J139: 917 | K139: 76 | L139: 2015-01-12 | M139: 4 days | N139: 2015-03-07T21:49:59 | O139: 262039-2 | P139: 0 | Q139: 1 | R139: 139 | T139: 262039-2 | U139: Bronze | W139: 7456 | X139: 0 | Y139: Bronze | Z139: 0 | AA139: 0 | AB139: 0 | AC139: 0 | AD139: 0 | AE139: 0 | AF139: 0 | AG139: 0 | AH139: 0 | AI139: 0 | AJ139: 0 | AK139: 0 | AL139: 0 | AM139: 0 | AN139: 0 | AO139: 0 | AP139: 0 | AQ139: 0 | AR139: 0 | AS139: 0 | AT139: 0 | AU139: Bronze
A140: 1410879 | B140: us | C140: 1 | D140: BEastmann | E140: t | F140: Bronze | G140: Division Arbiter Alpha | H140: 119 | I140: 120 | J140: 916 | K140: 1 | L140: 2015-01-12 | M140: 1 days | N140: 2015-03-07T21:50:00 | O140: 1410879-1 | P140: 0 | Q140: 1 | R140: 140 | T140: 1410879-1 | U140: Bronze | W140: 30425 | X140: 0 | Y140: Gold | Z140: 0 | AA140: 2789 | AB140: 0 | AC140: 0 | AD140: Bronze | AE140: 0 | AF140: 0 | AG140: 0 | AH140: 0 | AI140: 0 | AJ140: 0 | AK140: 0 | AL140: 0 | AM140: 0 | AN140: 0 | AO140: 0 | AP140: 0 | AQ140: 0 | AR140: 0 | AS140: 0 | AT140: 0 | AU140: Gold
A141: 1536681 | B141: us | C141: 1 | D141: BJDSR | E141: p | F141: Bronze | G141: Division Hydralisk Uncle | H141: 34 | I141: 35 | J141: 916 | K141: 40 | L141: 2015-01-13 | M141: 1 days | N141: 2015-03-07T21:50:03 | O141: 1536681-1 | P141: 0 | Q141: 1 | R141: 141
A142: 5366726 | B142: us | C142: 1 | D142: bassman | E142: p | F142: Bronze | G142: Division Nova Mars | H142: 112 | I142: 117 | J142: 913 | K142: 0 | L142: 2015-01-12 | M142: 8 hours | N142: 2015-03-07T21:50:03 | O142: 5366726-1 | P142: 0 | Q142: 1 | R142: 142
A143: 6152420 | B143: us | C143: 1 | D143: Willerd | E143: p | F143: Bronze | G143: Division Overmind Pi | H143: 63 | I143: 60 | J143: 913 | K143: 15 | L143: 2015-01-14 | M143: 14 hours | N143: 2015-03-07T21:50:04 | O143: 6152420-1 | P143: 0 | Q143: 1 | R143: 143 | T143: 6152420-1 | U143: Bronze | W143: 31719 | X143: 0 | Y143: Gold | Z143: 0 | AA143: 8997 | AB143: 0 | AC143: 0 | AD143: Silver | AE143: 0 | AF143: 0 | AG143: 0 | AH143: 0 | AI143: 0 | AJ143: 0 | AK143: 0 | AL143: 0 | AM143: 0 | AN143: 0 | AO143: 0 | AP143: 0 | AQ143: 0 | AR143: 0 | AS143: 0 | AT143: 0 | AU143: Gold
A144: 6372578 | B144: us | C144: 1 | D144: Ragix | E144: t | F144: Bronze | G144: Division Khas Hawk | H144: 36 | I144: 49 | J144: 913 | K144: 0 | L144: 2015-02-03 | M144: 9 minutes | N144: 2015-03-07T21:50:04 | O144: 6372578-1 | P144: 0 | Q144: 1 | R144: 144 | T144: 6372578-1 | U144: Bronze | W144: 0 | X144: 6373 | Y144: 0 | Z144: Bronze | AA144: 0 | AB144: 0 | AC144: 0 | AD144: 0 | AE144: 0 | AF144: 0 | AG144: 0 | AH144: 0 | AI144: 0 | AJ144: 0 | AK144: 0 | AL144: 0 | AM144: 0 | AN144: 0 | AO144: 0 | AP144: 0 | AQ144: 0 | AR144: 0 | AS144: 0 | AT144: 0 | AU144: Bronze
A145: 876448 | B145: us | C145: 1 | D145: myNINJAjoe | E145: z | F145: Bronze | G145: Division Carrier Lima | H145: 166 | I145: 164 | J145: 912 | K145: 0 | L145: 2015-01-12 | M145: 1 hours | N145: 2015-03-07T21:50:04 | O145: 876448-1 | P145: 0 | Q145: 1 | R145: 145 | T145: 876448-1 | U145: Bronze | W145: 0 | X145: 0 | Y145: 0 | Z145: 0 | AA145: 0 | AB145: 0 | AC145: 0 | AD145: 0 | AE145: 0 | AF145: 0 | AG145: 0 | AH145: 0 | AI145: 0 | AJ145: 0 | AK145: 0 | AL145: 0 | AM145: 0 | AN145: 0 | AO145: 1526 | AP145: 0 | AQ145: 12133 | AR145: Bronze | AS145: 0 | AU145: Bronze
A146: 4522381 | B146: us | C146: 1 | D146: Airley | E146: t | F146: Bronze | G146: Division Guardian Lima | H146: 81 | I146: 95 | J146: 912 | K146: 40 | L146: 2015-01-27 | M146: 8 hours | N146: 2015-03-07T21:50:05 | O146: 4522381-1 | P146: 0 | Q146: 1 | R146: 146 | T146: 4522381-1 | U146: Bronze | W146: 0 | X146: 11157 | Y146: 0 | Z146: Bronze | AA146: 0 | AB146: 0 | AC146: 910 | AD146: 0 | AE146: 0 | AF146: Bronze | AG146: 0 | AH146: 0 | AI146: 0 | AJ146: 0 | AK146: 0 | AL146: 0 | AM146: 0 | AN146: 0 | AO146: 0 | AP146: 0 | AQ146: 0 | AR146: 0 | AS146: 0 | AT146: 0 | AU146: Bronze
A147: 538341 | B147: us | C147: 1 | D147: Crisper | E147: z | F147: Bronze | G147: Division Scourge X-Ray | H147: 80 | I147: 76 | J147: 911 | K147: 1 | L147: 2015-01-13 | M147: 16 minutes | N147: 2015-03-07T21:50:05 | O147: 538341-1 | P147: 0 | Q147: 1 | R147: 147
A148: 4606021 | B148: us | C148: 1 | D148: Cornbread | E148: r | F148: Bronze | G148: Division Mutalisk Zeta | H148: 102 | I148: 118 | J148: 911 | K148: 4 | L148: 2015-01-13 | M148: 3 hours | N148: 2015-03-07T21:50:05 | O148: 4606021-1 | P148: 0 | Q148: 1 | R148: 148 | T148: 4606021-1 | U148: Bronze | W148: 0 | X148: 4791 | Y148: 0 | Z148: Bronze | AA148: 0 | AB148: 0 | AC148: 0 | AD148: 0 | AE148: 0 | AF148: 0 | AG148: 0 | AH148: 0 | AI148: 0 | AJ148: 0 | AK148: 0 | AL148: 0 | AM148: 0 | AN148: 0 | AO148: 0 | AP148: 0 | AQ148: 0 | AR148: 0 | AS148: 0 | AT148: 0 | AU148: Bronze
A149: 6144584 | B149: us | C149: 1 | D149: Flex | E149: p | F149: Bronze | G149: Division Carrier Lima | H149: 419 | I149: 504 | J149: 911 | K149: 0 | L149: 2015-01-12 | M149: 7 hours | N149: 2015-03-07T21:50:05 | O149: 6144584-1 | P149: 0 | Q149: 1 | R149: 149
A150: 1717940 | B150: us | C150: 1 | D150: Jager | E150: t | F150: Bronze | G150: Division Mutalisk Zeta | H150: 55 | I150: 52 | J150: 910 | K150: 0 | L150: 2015-01-13 | M150: 1 days | N150: 2015-03-07T21:50:06 | O150: 1717940-1 | P150: 0 | Q150: 1 | R150: 150
A151: 2016582 | B151: us | C151: 1 | D151: Goosegg | E151: r | F151: Bronze | G151: Division Rimes Indigo | H151: 65 | I151: 72 | J151: 910 | K151: 19 | L151: 2015-01-17 | M151: 20 hours | N151: 2015-03-07T21:50:06 | O151: 2016582-1 | P151: 0 | Q151: 1 | R151: 151 | T151: 2016582-1 | U151: Bronze | W151: 0 | X151: 0 | Y151: 0 | Z151: 0 | AA151: 0 | AB151: 0 | AC151: 0 | AD151: 0 | AE151: 0 | AF151: 0 | AG151: 0 | AH151: 0 | AI151: 0 | AJ151: 0 | AK151: 0 | AL151: 0 | AM151: 0 | AN151: 0 | AO151: 8936 | AP151: 350 | AQ151: 9647 | AR151: Silver | AS151: Bronze | AU151: Silver
A152: 3498426 | B152: us | C152: 1 | D152: BaronOpal | E152: p | F152: Bronze | G152: Division Araq Zed | H152: 46 | I152: 41 | J152: 910 | K152: 50 | L152: 2015-01-14 | M152: 2 days | N152: 2015-03-07T21:50:06 | O152: 3498426-1 | P152: 0 | Q152: 1 | R152: 152 | T152: 3498426-1 | U152: Bronze | W152: 0 | X152: 0 | Y152: 0 | Z152: 0 | AA152: 0 | AB152: 0 | AC152: 0 | AD152: 0 | AE152: 0 | AF152: 0 | AG152: 0 | AH152: 0 | AI152: 0 | AJ152: 0 | AK152: 0 | AL152: 0 | AM152: 0 | AN152: 0 | AO152: 0 | AP152: 48 | AQ152: 0 | AR152: 0 | AS152: Bronze | AT152: 0 | AU152: Bronze
A153: 3671361 | B153: us | C153: 1 | D153: Monc | E153: t | F153: Bronze | G153: Division Furinax Whiskey | H153: 39 | I153: 44 | J153: 910 | K153: 18 | L153: 2015-01-14 | M153: 18 hours | N153: 2015-03-07T21:50:07 | O153: 3671361-1 | P153: 0 | Q153: 1 | R153: 153
A154: 1359256 | B154: us | C154: 1 | D154: AHauss | E154: z | F154: Bronze | G154: Division Araq Zed | H154: 190 | I154: 194 | J154: 909 | K154: 11 | L154: 2015-01-14 | M154: 8 hours | N154: 2015-03-07T21:50:07 | O154: 1359256-1 | P154: 0 | Q154: 1 | R154: 154 | T154: 1359256-1 | U154: Bronze | W154: 0 | X154: 0 | Y154: 0 | Z154: 0 | AA154: 0 | AB154: 0 | AC154: 0 | AD154: 0 | AE154: 0 | AF154: 0 | AG154: 0 | AH154: 0 | AI154: 0 | AJ154: 0 | AK154: 0 | AL154: 0 | AM154: 0 | AN154: 0 | AO154: 17098 | AP154: 13242 | AQ154: 0 | AR154: Gold | AS154: Silver | AT154: 0 | AU154: Gold
A155: 2904955 | B155: us | C155: 1 | D155: SmokingZerg | E155: z | F155: Bronze | G155: Division Korhal Sierra | H155: 84 | I155: 101 | J155: 909 | K155: 0 | L155: 2015-01-12 | M155: 4 hours | N155: 2015-03-07T21:50:07 | O155: 2904955-1 | P155: 0 | Q155: 1 | R155: 155 | T155: 2904955-1 | U155: Bronze | W155: 0 | X155: 8732 | Y155: 0 | Z155: Bronze | AA155: 0 | AB155: 9067 | AC155: 3656 | AD155: 0 | AE155: Silver | AF155: Bronze | AG155: 0 | AH155: 0 | AI155: 0 | AJ155: 0 | AK155: 0 | AL155: 0 | AM155: 0 | AN155: 0 | AO155: 5483 | AP155: 14073 | AQ155: 0 | AR155: Silver | AS155: Silver | AT155: 0 | AU155: Silver
A156: 3513059 | B156: us | C156: 1 | D156: billsfan | E156: p | F156: Bronze | G156: Division Rimes Indigo | H156: 33 | I156: 40 | J156: 909 | K156: 18 | L156: 2015-01-17 | M156: 18 hours | N156: 2015-03-07T21:50:08 | O156: 3513059-1 | P156: 0 | Q156: 1 | R156: 156
A157: 4155410 | B157: us | C157: 1 | D157: ElDuro | E157: p | F157: Bronze | G157: Division Arbiter Alpha | H157: 76 | I157: 75 | J157: 909 | K157: 4 | L157: 2015-01-12 | M157: 14 hours | N157: 2015-03-07T21:50:08 | O157: 4155410-1 | P157: 0 | Q157: 1 | R157: 157 | T157: 4155410-1 | U157: Bronze | W157: 0 | X157: 0 | Y157: 0 | Z157: 0 | AA157: 0 | AB157: 0 | AC157: 0 | AD157: 0 | AE157: 0 | AF157: 0 | AG157: 0 | AH157: 0 | AI157: 0 | AJ157: 0 | AK157: 0 | AL157: 0 | AM157: 0 | AN157: 0 | AO157: 2210 | AP157: 0 | AQ157: 0 | AR157: Bronze | AS157: 0 | AT157: 0 | AU157: Bronze
A158: 2544554 | B158: us | C158: 1 | D158: AskalaOfSiba | E158: t | F158: Bronze | G158: Division Shakuras Dixie | H158: 67 | I158: 63 | J158: 908 | K158: 15 | L158: 2015-01-12 | M158: 14 hours | N158: 2015-03-07T21:50:08 | O158: 2544554-1 | P158: 0 | Q158: 1 | R158: 158
A159: 2742835 | B159: us | C159: 1 | D159: Nutpot | E159: r | F159: Bronze | G159: Division Samiku Phi | H159: 84 | I159: 56 | J159: 908 | K159: 137 | L159: 2015-01-15 | M159: 2 days | N159: 2015-03-07T21:50:09 | O159: 2742835-1 | P159: 0 | Q159: 2 | R159: 159
A160: 619575 | B160: us | C160: 1 | D160: Kenodd | E160: t | F160: Bronze | G160: Division Scimitar Romeo | H160: 35 | I160: 37 | J160: 907 | K160: 15 | L160: 2015-01-13 | M160: 13 hours | N160: 2015-03-07T21:50:09 | O160: 619575-1 | P160: 0 | Q160: 1 | R160: 160
A161: 2409333 | B161: us | C161: 1 | D161: nizel | E161: t | F161: Bronze | G161: Division Furinax Whiskey | H161: 68 | I161: 68 | J161: 907 | K161: 14 | L161: 2015-01-14 | M161: 12 hours | N161: 2015-03-07T21:50:09 | O161: 2409333-1 | P161: 0 | Q161: 1 | R161: 161 | T161: 2409333-1 | U161: Bronze | W161: 0 | X161: 12255 | Y161: 0 | Z161: Bronze | AA161: 0 | AB161: 2949 | AC161: 268 | AD161: 0 | AE161: Bronze | AF161: Bronze | AG161: 0 | AH161: 0 | AI161: 993 | AJ161: 1030 | AK161: 0 | AL161: 0 | AM161: Bronze | AN161: 0 | AO161: 0 | AP161: 2406 | AQ161: 0 | AR161: 0 | AS161: Bronze | AT161: 0 | AU161: Bronze
A162: 4455266 | B162: us | C162: 1 | D162: SpiderMouse | E162: p | F162: Bronze | G162: Division Arbiter Alpha | H162: 78 | I162: 95 | J162: 907 | K162: 4 | L162: 2015-01-12 | M162: 4 minutes | N162: 2015-03-07T21:50:10 | O162: 4455266-1 | P162: 0 | Q162: 1 | R162: 162
A163: 6241606 | B163: us | C163: 1 | D163: captainbob | E163: p | F163: Bronze | G163: Division Nova Mars | H163: 242 | I163: 270 | J163: 907 | K163: 4 | L163: 2015-01-12 | M163: 15 hours | N163: 2015-03-07T21:50:10 | O163: 6241606-1 | P163: 0 | Q163: 1 | R163: 163 | T163: 6241606-1 | U163: Bronze | W163: 0 | X163: 0 | Y163: 0 | Z163: 0 | AA163: 0 | AB163: 0 | AC163: 0 | AD163: 0 | AE163: 0 | AF163: 0 | AG163: 0 | AH163: 0 | AI163: 0 | AJ163: 0 | AK163: 0 | AL163: 0 | AM163: 0 | AN163: 0 | AO163: 19026 | AP163: 0 | AQ163: 0 | AR163: Gold | AS163: 0 | AT163: 0 | AU163: Gold
A164: 2495427 | B164: us | C164: 1 | D164: DarkRanger | E164: r | F164: Bronze | G164: Division Tassadar Rho | H164: 89 | I164: 85 | J164: 906 | K164: 60 | L164: 2015-01-25 | M164: 3 days | N164: 2015-03-07T21:50:10 | O164: 2495427-1 | P164: 0 | Q164: 1 | R164: 164
A165: 3186019 | B165: us | C165: 1 | D165: Keltar | E165: t | F165: Bronze | G165: Division Overseer Gamma | H165: 83 | I165: 85 | J165: 906 | K165: 2 | L165: 2015-01-12 | M165: 4 minutes | N165: 2015-03-07T21:50:11 | O165: 3186019-1 | P165: 0 | Q165: 1 | R165: 165
A166: 3464621 | B166: us | C166: 1 | D166: Laserbeak | E166: p | F166: Bronze | G166: Division Hyperion Charlie | H166: 141 | I166: 149 | J166: 906 | K166: 0 | L166: 2015-01-19 | M166: 12 hours | N166: 2015-03-07T21:50:11 | O166: 3464621-1 | P166: 0 | Q166: 1 | R166: 166 | T166: 3464621-1 | U166: Bronze | W166: 20987 | X166: 34821 | Y166: Silver | Z166: Platinum | AA166: 8318 | AB166: 0 | AC166: 0 | AD166: Silver | AE166: 0 | AF166: 0 | AG166: 0 | AH166: 0 | AI166: 0 | AJ166: 0 | AK166: 0 | AL166: 0 | AM166: 0 | AN166: 0 | AO166: 20482 | AP166: 0 | AQ166: 0 | AR166: Platinum | AS166: 0 | AT166: 0 | AU166: Platinum
A167: 5322510 | B167: us | C167: 1 | D167: Ghor | E167: z | F167: Bronze | G167: Division Gateway Omega | H167: 104 | I167: 100 | J167: 906 | K167: 17 | L167: 2015-01-12 | M167: 14 hours | N167: 2015-03-07T21:50:11 | O167: 5322510-1 | P167: 0 | Q167: 1 | R167: 167 | T167: 5322510-1 | U167: Bronze | W167: 0 | X167: 8376 | Y167: 0 | Z167: Bronze | AA167: 0 | AB167: 0 | AC167: 0 | AD167: 0 | AE167: 0 | AF167: 0 | AG167: 0 | AH167: 0 | AI167: 0 | AJ167: 0 | AK167: 0 | AL167: 0 | AM167: 0 | AN167: 0 | AO167: 55 | AP167: 921 | AQ167: 9831 | AR167: Bronze | AS167: Bronze | AU167: Bronze
A168: 5333719 | B168: us | C168: 1 | D168: DAVID | E168: z | F168: Bronze | G168: Division Tassadar Rho | H168: 46 | I168: 42 | J168: 906 | K168: 70 | L168: 2015-01-18 | M168: 3 days | N168: 2015-03-07T21:50:11 | O168: 5333719-1 | P168: 0 | Q168: 1 | R168: 168
A169: 6200726 | B169: us | C169: 1 | D169: Celeritas | E169: t | F169: Bronze | G169: Division Hartley Beta | H169: 47 | I169: 51 | J169: 906 | K169: 34 | L169: 2015-01-28 | M169: 1 days | N169: 2015-03-07T21:50:12 | O169: 6200726-1 | P169: 0 | Q169: 1 | R169: 169
A170: 1528672 | B170: us | C170: 1 | D170: Kohaku | E170: z | F170: Bronze | G170: Division Tarsonis Delta | H170: 44 | I170: 47 | J170: 905 | K170: 53 | L170: 2015-01-20 | M170: 1 days | N170: 2015-03-07T21:50:12 | O170: 1528672-1 | P170: 0 | Q170: 1 | R170: 170 | T170: 1528672-1 | U170: Bronze | W170: 0 | X170: 0 | Y170: 0 | Z170: 0 | AA170: 0 | AB170: 0 | AC170: 0 | AD170: 0 | AE170: 0 | AF170: 0 | AG170: 0 | AH170: 0 | AI170: 0 | AJ170: 0 | AK170: 0 | AL170: 0 | AM170: 0 | AN170: 0 | AO170: 17700 | AP170: 0 | AQ170: 0 | AR170: Gold | AS170: 0 | AT170: 0 | AU170: Gold
A171: 3371857 | B171: us | C171: 1 | D171: DoctorA | E171: t | F171: Bronze | G171: Division Araq Zed | H171: 54 | I171: 50 | J171: 905 | K171: 12 | L171: 2015-01-14 | M171: 11 hours | N171: 2015-03-07T21:50:12 | O171: 3371857-1 | P171: 0 | Q171: 1 | R171: 171
A172: 4129226 | B172: us | C172: 1 | D172: Xavier | E172: p | F172: Bronze | G172: Division Scarab Kilo | H172: 46 | I172: 50 | J172: 905 | K172: 9 | L172: 2015-02-02 | M172: 4 hours | N172: 2015-03-07T21:50:13 | O172: 4129226-1 | P172: 0 | Q172: 1 | R172: 172
A173: 125994 | B173: us | C173: 2 | D173: Iridium | E173: p | F173: Bronze | G173: Division UED Pepper | H173: 43 | I173: 47 | J173: 904 | K173: 15 | L173: 2015-01-12 | M173: 13 hours | N173: 2015-03-07T21:50:13 | O173: 125994-2 | P173: 0 | Q173: 1 | R173: 173
A174: 1208999 | B174: us | C174: 1 | D174: CompleXX | E174: t | F174: Bronze | G174: Division Hartley Beta | H174: 52 | I174: 56 | J174: 904 | K174: 76 | L174: 2015-01-12 | M174: 1 days | N174: 2015-03-07T21:50:13 | O174: 1208999-1 | P174: 0 | Q174: 1 | R174: 174
A175: 1378630 | B175: us | C175: 1 | D175: Redvein | E175: z | F175: Bronze | G175: Division Judicator Mu | H175: 156 | I175: 160 | J175: 904 | K175: 0 | L175: 2015-01-15 | M175: 1 hours | N175: 2015-03-07T21:50:14 | O175: 1378630-1 | P175: 0 | Q175: 1 | R175: 175 | T175: 1378630-1 | U175: Bronze | W175: 0 | X175: 0 | Y175: 0 | Z175: 0 | AA175: 0 | AB175: 0 | AC175: 0 | AD175: 0 | AE175: 0 | AF175: 0 | AG175: 0 | AH175: 0 | AI175: 0 | AJ175: 0 | AK175: 0 | AL175: 0 | AM175: 0 | AN175: 0 | AO175: 1674 | AP175: 2144 | AQ175: 2893 | AR175: Bronze | AS175: Bronze | AT175: Bronze | AU175: Bronze
A176: 5780266 | B176: us | C176: 1 | D176: terminator | E176: t | F176: Bronze | G176: Division Nova Mars | H176: 106 | I176: 114 | J176: 904 | K176: 5 | L176: 2015-01-13 | M176: 10 hours | N176: 2015-03-07T21:50:14 | O176: 5780266-1 | P176: 0 | Q176: 1 | R176: 176 | T176: 5780266-1 | U176: Bronze | W176: 15336 | X176: 0 | Y176: Silver | Z176: 0 | AA176: 0 | AB176: 0 | AC176: 0 | AD176: 0 | AE176: 0 | AF176: 0 | AG176: 0 | AH176: 0 | AI176: 0 | AJ176: 0 | AK176: 0 | AL176: 0 | AM176: 0 | AN176: 0 | AO176: 0 | AP176: 0 | AQ176: 0 | AR176: 0 | AS176: 0 | AT176: 0 | AU176: Silver
A177: 6051189 | B177: us | C177: 1 | D177: Daggertooth | E177: p | F177: Bronze | G177: Division Felanis Lambda | H177: 56 | I177: 51 | J177: 904 | K177: 21 | L177: 2015-02-20 | M177: 23 hours | N177: 2015-03-07T21:50:14 | O177: 6051189-1 | P177: 0 | Q177: 1 | R177: 177
A178: 4831797 | B178: us | C178: 1 | D178: Ludwig | E178: p | F178: Bronze | G178: Division Scarab Kilo | H178: 57 | I178: 61 | J178: 903 | K178: 14 | L178: 2015-01-13 | M178: 7 hours | N178: 2015-03-07T21:50:15 | O178: 4831797-1 | P178: 0 | Q178: 1 | R178: 178 | T178: 4831797-1 | U178: Bronze | W178: 0 | X178: 0 | Y178: 0 | Z178: 0 | AA178: 0 | AB178: 0 | AC178: 0 | AD178: 0 | AE178: 0 | AF178: 0 | AG178: 0 | AH178: 0 | AI178: 0 | AJ178: 0 | AK178: 0 | AL178: 0 | AM178: 0 | AN178: 0 | AO178: 12449 | AP178: 0 | AQ178: 0 | AR178: Silver | AS178: 0 | AT178: 0 | AU178: Silver
A179: 6154965 | B179: us | C179: 1 | D179: sadghost | E179: t | F179: Bronze | G179: Division Khalis Echo | H179: 99 | I179: 78 | J179: 903 | K179: 26 | L179: 2015-01-21 | M179: 1 days | N179: 2015-03-07T21:50:15 | O179: 6154965-1 | P179: 0 | Q179: 1 | R179: 179
A180: 6319813 | B180: us | C180: 1 | D180: hogan | E180: t | F180: Bronze | G180: Division Nagglfar Dixie | H180: 99 | I180: 91 | J180: 903 | K180: 28 | L180: 2015-01-28 | M180: 1 days | N180: 2015-03-07T21:50:15 | O180: 6319813-1 | P180: 0 | Q180: 1 | R180: 180
A181: 658374 | B181: us | C181: 2 | D181: guerrero | E181: p | F181: Bronze | G181: Division Tychus Gamma | H181: 70 | I181: 63 | J181: 902 | K181: 2 | L181: 2015-02-08 | M181: 13 hours | N181: 2015-03-07T21:50:16 | O181: 658374-2 | P181: 0 | Q181: 1 | R181: 181
A182: 4961745 | B182: us | C182: 1 | D182: wirtsleg | E182: z | F182: Bronze | G182: Division Hartley Beta | H182: 119 | I182: 116 | J182: 902 | K182: 5 | L182: 2015-01-12 | M182: 41 minutes | N182: 2015-03-07T21:50:16 | O182: 4961745-1 | P182: 0 | Q182: 1 | R182: 182
A183: 5133071 | B183: us | C183: 1 | D183: BonJwA | E183: r | F183: Bronze | G183: Division Carrier Lima | H183: 32 | I183: 40 | J183: 902 | K183: 2 | L183: 2015-03-04 | M183: 14 hours | N183: 2015-03-07T21:50:17 | O183: 5133071-1 | P183: 0 | Q183: 1 | R183: 183 | T183: 5133071-1 | U183: Bronze | W183: 34106 | X183: 0 | Y183: Platinum | Z183: 0 | AA183: 0 | AB183: 0 | AC183: 0 | AD183: 0 | AE183: 0 | AF183: 0 | AG183: 0 | AH183: 0 | AI183: 0 | AJ183: 0 | AK183: 0 | AL183: 0 | AM183: 0 | AN183: 0 | AO183: 0 | AP183: 23783 | AQ183: 25155 | AR183: 0 | AU183: Platinum
A184: 5694866 | B184: us | C184: 1 | D184: ben | E184: p | F184: Bronze | G184: Division Carrier Lima | H184: 32 | I184: 29 | J184: 902 | K184: 93 | L184: 2015-01-14 | M184: 2 days | N184: 2015-03-07T21:50:17 | O184: 5694866-1 | P184: 0 | Q184: 1 | R184: 184
A185: 5705105 | B185: us | C185: 1 | D185: Makensi | E185: t | F185: Bronze | G185: Division Brontes Tau | H185: 35 | I185: 40 | J185: 902 | K185: 0 | L185: 2015-01-15 | M185: 13 hours | N185: 2015-03-07T21:50:17 | O185: 5705105-1 | P185: 0 | Q185: 1 | R185: 185
A186: 6087129 | B186: us | C186: 1 | D186: gubasaurus | E186: p | F186: Bronze | G186: Division Ladranix Xi | H186: 55 | I186: 48 | J186: 902 | K186: 5 | L186: 2015-01-21 | M186: 6 minutes | N186: 2015-03-07T21:50:18 | O186: 6087129-1 | P186: 0 | Q186: 1 | R186: 186 | T186: 6087129-1 | U186: Bronze | W186: 22862 | X186: 122 | Y186: Silver | Z186: Bronze | AA186: 0 | AB186: 2635 | AC186: 0 | AD186: 0 | AE186: Bronze | AF186: 0 | AG186: 0 | AH186: 0 | AI186: 0 | AJ186: 0 | AK186: 0 | AL186: 0 | AM186: 0 | AN186: 0 | AO186: 0 | AP186: 0 | AQ186: 0 | AR186: 0 | AS186: 0 | AT186: 0 | AU186: Silver
A187: 592439 | B187: us | C187: 1 | D187: Aaron | E187: r | F187: Bronze | G187: Division Ehlna Alamo | H187: 58 | I187: 80 | J187: 901 | K187: 8 | L187: 2015-01-14 | M187: 2 hours | N187: 2015-03-07T21:50:18 | O187: 592439-1 | P187: 0 | Q187: 1 | R187: 187 | T187: 592439-1 | U187: Bronze | W187: 0 | X187: 7709 | Y187: 0 | Z187: Bronze | AA187: 0 | AB187: 0 | AC187: 0 | AD187: 0 | AE187: 0 | AF187: 0 | AG187: 0 | AH187: 0 | AI187: 0 | AJ187: 0 | AK187: 0 | AL187: 0 | AM187: 0 | AN187: 0 | AO187: 10168 | AP187: 0 | AQ187: 0 | AR187: Silver | AS187: 0 | AT187: 0 | AU187: Silver
A188: 6273626 | B188: us | C188: 1 | D188: DarkWorld | E188: p | F188: Bronze | G188: Division Khaydarin Alpha | H188: 44 | I188: 51 | J188: 901 | K188: 23 | L188: 2015-01-23 | M188: 9 hours | N188: 2015-03-07T21:50:18 | O188: 6273626-1 | P188: 0 | Q188: 1 | R188: 188
A189: 584362 | B189: us | C189: 1 | D189: diamonddawg | E189: z | F189: Bronze | G189: Division Overmind Pi | H189: 48 | I189: 51 | J189: 900 | K189: 14 | L189: 2015-01-14 | M189: 12 hours | N189: 2015-03-07T21:50:19 | O189: 584362-1 | P189: 0 | Q189: 1 | R189: 189
A190: 1164759 | B190: us | C190: 1 | D190: StealthyChap | E190: p | F190: Bronze | G190: Division Prelate Yankee | H190: 140 | I190: 169 | J190: 900 | K190: 0 | L190: 2015-01-12 | M190: 4 hours | N190: 2015-03-07T21:50:19 | O190: 1164759-1 | P190: 0 | Q190: 1 | R190: 190
A191: 1612683 | B191: us | C191: 1 | D191: HarryKlynn | E191: t | F191: Bronze | G191: Division Judicator Mu | H191: 78 | I191: 87 | J191: 900 | K191: 2 | L191: 2015-01-15 | M191: 37 minutes | N191: 2015-03-07T21:50:19 | O191: 1612683-1 | P191: 0 | Q191: 1 | R191: 191
A192: 4158430 | B192: us | C192: 1 | D192: YungSeeche | E192: t | F192: Bronze | G192: Division Nova Chi | H192: 110 | I192: 107 | J192: 900 | K192: 22 | L192: 2015-01-12 | M192: 1 days | N192: 2015-03-07T21:50:20 | O192: 4158430-1 | P192: 0 | Q192: 1 | R192: 192 | T192: 4158430-1 | U192: Bronze | W192: 1863 | X192: 0 | Y192: Bronze | Z192: 0 | AA192: 0 | AB192: 0 | AC192: 0 | AD192: 0 | AE192: 0 | AF192: 0 | AG192: 0 | AH192: 0 | AI192: 0 | AJ192: 0 | AK192: 0 | AL192: 0 | AM192: 0 | AN192: 0 | AO192: 0 | AP192: 2831 | AQ192: 0 | AR192: 0 | AS192: Bronze | AT192: 0 | AU192: Bronze
A193: 5004360 | B193: us | C193: 1 | D193: KARONTE | E193: t | F193: Bronze | G193: Division Uraj Gravity | H193: 54 | I193: 62 | J193: 900 | K193: 17 | L193: 2015-01-13 | M193: 17 hours | N193: 2015-03-07T21:50:20 | O193: 5004360-1 | P193: 0 | Q193: 1 | R193: 193
A194: 6130284 | B194: us | C194: 1 | D194: Brandon | E194: t | F194: Bronze | G194: Division Carrier Lima | H194: 83 | I194: 118 | J194: 900 | K194: 18 | L194: 2015-01-12 | M194: 17 hours | N194: 2015-03-07T21:50:20 | O194: 6130284-1 | P194: 0 | Q194: 1 | R194: 194 | T194: 6130284-1 | U194: Bronze | W194: 774 | X194: 0 | Y194: Bronze | Z194: 0 | AA194: 0 | AB194: 0 | AC194: 0 | AD194: 0 | AE194: 0 | AF194: 0 | AG194: 0 | AH194: 0 | AI194: 0 | AJ194: 0 | AK194: 0 | AL194: 0 | AM194: 0 | AN194: 0 | AO194: 0 | AP194: 0 | AQ194: 15240 | AR194: 0 | AS194: 0 | AU194: Bronze
A195: 6247347 | B195: us | C195: 1 | D195: Hardride | E195: p | F195: Bronze | G195: Division Brontes Tau | H195: 245 | I195: 264 | J195: 900 | K195: 12 | L195: 2015-01-15 | M195: 9 hours | N195: 2015-03-07T21:50:20 | O195: 6247347-1 | P195: 0 | Q195: 1 | R195: 195
A196: 6160916 | B196: us | C196: 1 | D196: ybhhh | E196: p | F196: Bronze | G196: Division Araq Zed | H196: 43 | I196: 42 | J196: 899 | K196: 0 | L196: 2015-01-14 | M196: 7 hours | N196: 2015-03-07T21:50:21 | O196: 6160916-1 | P196: 0 | Q196: 1 | R196: 196 | T196: 6160916-1 | U196: Bronze | W196: 2410 | X196: 0 | Y196: Bronze | Z196: 0 | AA196: 0 | AB196: 0 | AC196: 0 | AD196: 0 | AE196: 0 | AF196: 0 | AG196: 0 | AH196: 0 | AI196: 0 | AJ196: 0 | AK196: 0 | AL196: 0 | AM196: 0 | AN196: 0 | AO196: 0 | AP196: 0 | AQ196: 0 | AR196: 0 | AS196: 0 | AT196: 0 | AU196: Bronze
A197: 6378223 | B197: us | C197: 1 | D197: Mariano | E197: z | F197: Bronze | G197: Division Nagglfar Dixie | H197: 91 | I197: 108 | J197: 899 | K197: 2 | L197: 2015-01-27 | M197: 3 hours | N197: 2015-03-07T21:50:21 | O197: 6378223-1 | P197: 0 | Q197: 1 | R197: 197 | T197: 6378223-1 | U197: Bronze | W197: 0 | X197: 0 | Y197: 0 | Z197: 0 | AA197: 0 | AB197: 0 | AC197: 0 | AD197: 0 | AE197: 0 | AF197: 0 | AG197: 0 | AH197: 0 | AI197: 0 | AJ197: 0 | AK197: 0 | AL197: 0 | AM197: 0 | AN197: 0 | AO197: 18058 | AP197: 15238 | AQ197: 0 | AR197: Gold | AT197: 0 | AU197: Gold
A198: 3717054 | B198: us | C198: 1 | D198: BarrnyRubble | E198: t | F198: Bronze | G198: Division Akilae Sierra | H198: 206 | I198: 240 | J198: 898 | K198: 0 | L198: 2015-01-24 | M198: 8 minutes | N198: 2015-03-07T21:50:21 | O198: 3717054-1 | P198: 0 | Q198: 1 | R198: 198
A199: 4176673 | B199: us | C199: 1 | D199: salamicake | E199: z | F199: Bronze | G199: Division Brontes Tau | H199: 69 | I199: 75 | J199: 898 | K199: 2 | L199: 2015-01-15 | M199: 16 hours | N199: 2015-03-07T21:50:22 | O199: 4176673-1 | P199: 0 | Q199: 1 | R199: 199
A200: 5057242 | B200: us | C200: 1 | D200: FpsMaster | E200: t | F200: Bronze | G200: Division Observer Eta | H200: 114 | I200: 139 | J200: 898 | K200: 2 | L200: 2015-01-31 | M200: 3 hours | N200: 2015-03-07T21:50:22 | O200: 5057242-1 | P200: 0 | Q200: 1 | R200: 200 | T200: 5057242-1 | U200: Bronze | W200: 12605 | X200: 0 | Y200: Bronze | Z200: 0 | AA200: 0 | AB200: 0 | AC200: 0 | AD200: 0 | AE200: 0 | AF200: 0 | AG200: 0 | AH200: 0 | AI200: 0 | AJ200: 0 | AK200: 0 | AL200: 0 | AM200: 0 | AN200: 0 | AO200: 0 | AP200: 0 | AQ200: 0 | AR200: 0 | AS200: 0 | AT200: 0 | AU200: Bronze
... 2050 more rows

Sheet Analysis - Team
A1: 2v2 - Most Recent Games
B2: Bronze | D2: Silver | F2: Gold | H2: Platinum | J2: Diamond | L2: Master | N2: Totals | P2: Total Team Count
A3: Category | B3: Last Week | C3: Last Month | D3: Last Week | E3: Last Month | F3: Last Week | G3: Last Month | H3: Last Week | I3: Last Month | J3: Last Week | K3: Last Month | L3: Last Week | M3: Last Month | N3: Last Week | O3: Last Month
A4: Totals | B4: 3159 | C4: 5333 | D4: 3321 | E4: 3993 | F4: 2974 | G4: 3624 | H4: 1269 | I4: 1348 | J4: 371 | K4: 350 | L4: 68 | M4: 58 | N4: 11162 | O4: 14706
A5: At least 1 game within the last month | B5: 8492 | D5: 7314 | F5: 6598 | H5: 2617 | J5: 721 | L5: 126 | N5: 25868
B6: Avg Wins | C6: Avg Losses | D6: Avg Wins | E6: Avg Losses | F6: Avg Wins | G6: Avg Losses | H6: Avg Wins | I6: Avg Losses | J6: Avg Wins | K6: Avg Losses | L6: Avg Wins | M6: Avg Losses | N6: Avg Wins | O6: Avg Losses
A7: Games Count | B7: 4.015207373 | C7: 5.661674347 | D7: 8.027838105 | E7: 7.752813425 | F7: 11.36942604 | G7: 8.869819162 | H7: 15.66377816 | I7: 11.2310803 | J7: 22.80811404 | K7: 14.94188596 | L7: 30.50898204 | M7: 14.89221557 | N7: 8.606492868 | O7: 7.821364158
A8: Avg Score | B8: 91.06843318 | D8: 163.972458 | F8: 201.196563 | H8: 237.7657423 | J8: 320.3804825 | L8: 314.3892216 | N8: 158.6555173
A9: Total Team Count | B9: 13020 | D9: 10130 | F9: 8903 | H9: 3462 | J9: 912 | L9: 167 | N9: 36594
A13: 3v3 - Most Recent Games
B14: Bronze | D14: Silver | F14: Gold | H14: Platinum | J14: Diamond | L14: Master | N14: Totals | P14: Total Team Count
A15: Category | B15: Last Week | C15: Last Month | D15: Last Week | E15: Last Month | F15: Last Week | G15: Last Month | H15: Last Week | I15: Last Month | J15: Last Week | K15: Last Month | L15: Last Week | M15: Last Month | N15: Last Week | O15: Last Month
A16: Totals | B16: 1023 | C16: 1911 | D16: 1263 | E16: 2182 | F16: 894 | G16: 1503 | H16: 290 | I16: 449 | J16: 59 | K16: 84 | L16: 14 | M16: 17 | N16: 3543 | O16: 6146
A17: At least 1 game within the last month | B17: 2934 | D17: 3445 | F17: 2397 | H17: 739 | J17: 143 | L17: 31 | N17: 9689
B18: Avg Wins | C18: Avg Losses | D18: Avg Wins | E18: Avg Losses | F18: Avg Wins | G18: Avg Losses | H18: Avg Wins | I18: Avg Losses | J18: Avg Wins | K18: Avg Losses | L18: Avg Wins | M18: Avg Losses | N18: Avg Wins | O18: Avg Losses
A19: Games Count | B19: 2.781922831 | C19: 4.024728203 | D19: 5.320568496 | E19: 4.821950257 | F19: 7.907428571 | G19: 5.506571429 | H19: 9.912248629 | I19: 5.47166362 | J19: 13.06666667 | K19: 5.728571429 | L19: 25.48717949 | M19: 9.358974359 | N19: 5.983356164 | O19: 4.974109589
A20: Avg Score | B20: 60.67085909 | D20: 103.909396 | F20: 116.4957143 | H20: 114.3244973 | J20: 144.2 | L20: 196.8205128 | N20: 98.23828767
A21: Total Team Count | B21: 4691 | D21: 5066 | F21: 3500 | H21: 1094 | J21: 210 | L21: 39 | N21: 14600
A25: 4v4 - Most Recent Games
B26: Bronze | D26: Silver | F26: Gold | H26: Platinum | J26: Diamond | L26: Master | N26: Totals | P26: Total Team Count
A27: Category | B27: Last Week | C27: Last Month | D27: Last Week | E27: Last Month | F27: Last Week | G27: Last Month | H27: Last Week | I27: Last Month | J27: Last Week | K27: Last Month | L27: Last Week | M27: Last Month | N27: Last Week | O27: Last Month
A28: Totals | B28: 196 | C28: 459 | D28: 498 | E28: 1171 | F28: 131 | G28: 189 | H28: 75 | I28: 178 | J28: 11 | K28: 53 | L28: 5 | M28: 7 | N28: 916 | O28: 2057
A29: At least 1 game within the last month | B29: 655 | D29: 1669 | F29: 320 | H29: 253 | J29: 64 | L29: 12 | N29: 2973
B30: Avg Wins | C30: Avg Losses | D30: Avg Wins | E30: Avg Losses | F30: Avg Wins | G30: Avg Losses | H30: Avg Wins | I30: Avg Losses | J30: Avg Wins | K30: Avg Losses | L30: Avg Wins | M30: Avg Losses | N30: Avg Wins | O30: Avg Losses
A31: Games Count | B31: 2.318140383 | C31: 3.209662716 | D31: 4.022771131 | E31: 3.219992281 | F31: 9.879732739 | G31: 6.510022272 | H31: 5.340707965 | I31: 1.378318584 | J31: 8.15625 | K31: 2.416666667 | L31: 41.13333333 | M31: 8.666666667 | N31: 4.725531915 | O31: 3.433404255
A32: Avg Score | B32: 47.72561531 | D32: 65.37977615 | F32: 156.6169265 | H32: 26.61946903 | J32: 78.67708333 | L32: 227.0666667 | N32: 68.66851064
A33: Total Team Count | B33: 1097 | D33: 2591 | F33: 449 | H33: 452 | J33: 96 | L33: 15 | N33: 4700
A37: 2v2r - Most Recent Games
B38: Bronze | D38: Silver | F38: Gold | H38: Platinum | J38: Diamond | L38: Master | N38: Totals
A39: Category | B39: Last Week | C39: Last Month | D39: Last Week | E39: Last Month | F39: Last Week | G39: Last Month | H39: Last Week | I39: Last Month | J39: Last Week | K39: Last Month | L39: Last Week | M39: Last Month | N39: Last Week | O39: Last Month
A40: Totals | B40: 652 | C40: 1014 | D40: 3405 | E40: 4204 | F40: 2718 | G40: 2176 | H40: 1159 | I40: 805 | J40: 506 | K40: 301 | L40: 192 | M40: 91 | N40: 8632 | O40: 8591
A41: At least 1 game within the last month | B41: 1666 | D41: 7609 | F41: 4894 | H41: 1964 | J41: 807 | L41: 283 | N41: 17223
B42: Avg Wins | C42: Avg Losses | D42: Avg Wins | E42: Avg Losses | F42: Avg Wins | G42: Avg Losses | H42: Avg Wins | I42: Avg Losses | J42: Avg Wins | K42: Avg Losses | L42: Avg Wins | M42: Avg Losses | N42: Avg Wins | O42: Avg Losses
A43: Games Count | B43: 0 | C43: 7.54763749 | D43: 0 | E43: 8.78045966 | F43: 0 | G43: 17.06726239 | H43: 0 | I43: 23.03477905 | J43: 0 | K43: 30.31919192 | L43: 0 | M43: 38.45592705 | N43: 0 | O43: 13.74776191
A44: Avg Score | B44: 85.91324555 | D44: 136.6523704 | F44: 325.0599513 | H44: 389.3228314 | J44: 468.0909091 | L44: 568.1610942 | N44: 229.0693917
A45: Total Player Count | B45: 2582 | D45: 10399 | F45: 6155 | H45: 2444 | J45: 990 | L45: 329 | N45: 22899
A49: 3v3r - Most Recent Games
B50: Bronze | D50: Silver | F50: Gold | H50: Platinum | J50: Diamond | L50: Master | N50: Totals
A51: Category | B51: Last Week | C51: Last Month | D51: Last Week | E51: Last Month | F51: Last Week | G51: Last Month | H51: Last Week | I51: Last Month | J51: Last Week | K51: Last Month | L51: Last Week | M51: Last Month | N51: Last Week | O51: Last Month
A52: Totals | B52: 841 | C52: 1170 | D52: 4597 | E52: 4592 | F52: 2719 | G52: 1894 | H52: 832 | I52: 533 | J52: 322 | K52: 211 | L52: 186 | M52: 94 | N52: 9497 | O52: 8494
A53: At least 1 game within the last month | B53: 2011 | D53: 9189 | F53: 4613 | H53: 1365 | J53: 533 | L53: 280 | N53: 17991
B54: Avg Wins | C54: Avg Losses | D54: Avg Wins | E54: Avg Losses | F54: Avg Wins | G54: Avg Losses | H54: Avg Wins | I54: Avg Losses | J54: Avg Wins | K54: Avg Losses | L54: Avg Wins | M54: Avg Losses | N54: Avg Wins | O54: Avg Losses
A55: Games Count | B55: 0 | C55: 9.093709884 | D55: 0 | E55: 11.77977805 | F55: 0 | G55: 22.26209048 | H55: 0 | I55: 23.81973759 | J55: 0 | K55: 25.96520424 | L55: 0 | M55: 28.19402985 | N55: 0 | O55: 16.01256355
A56: Avg Score | B56: 102.5060976 | D56: 183.1127826 | F56: 366.1962212 | H56: 383.5276669 | J56: 387.9863843 | L56: 559.0895522 | N56: 250.538468
A57: Total Player Count | B57: 3116 | D57: 12165 | F57: 5769 | H57: 1753 | J57: 661 | L57: 335 | N57: 23799
A61: 4v4r - Most Recent Games
B62: Bronze | D62: Silver | F62: Gold | H62: Platinum | J62: Diamond | L62: Master | N62: Totals
A63: Category | B63: Last Week | C63: Last Month | D63: Last Week | E63: Last Month | F63: Last Week | G63: Last Month | H63: Last Week | I63: Last Month | J63: Last Week | K63: Last Month | L63: Last Week | M63: Last Month | N63: Last Week | O63: Last Month
A64: Totals | B64: 1133 | C64: 1699 | D64: 5774 | E64: 5462 | F64: 3333 | G64: 1873 | H64: 573 | I64: 450 | J64: 274 | K64: 190 | L64: 166 | M64: 76 | N64: 11253 | O64: 9750
A65: At least 1 game within the last month | B65: 2832 | D65: 11236 | F65: 5206 | H65: 1023 | J65: 464 | L65: 242 | N65: 21003
B66: Avg Wins | C66: Avg Losses | D66: Avg Wins | E66: Avg Losses | F66: Avg Wins | G66: Avg Losses | H66: Avg Wins | I66: Avg Losses | J66: Avg Wins | K66: Avg Losses | L66: Avg Wins | M66: Avg Losses | N66: Avg Wins | O66: Avg Losses
A67: Games Count | B67: 0 | C67: 9.143521749 | D67: 0 | E67: 12.28099117 | F67: 0 | G67: 28.84781917 | H67: 0 | I67: 21.29295988 | J67: 0 | K67: 28.2739726 | L67: 0 | M67: 25.72535211 | N67: 0 | O67: 16.82981818
A68: Avg Score | B68: 99.2091184 | D68: 197.4899525 | F68: 419.6972302 | H68: 312.3663891 | J68: 389.1010274 | L68: 559.3802817 | N68: 253.0216364
A69: Total Player Count | B69: 4299 | D69: 14730 | F69: 6282 | H69: 1321 | J69: 584 | L69: 284 | N69: 27500
A73: Most Recent Game Played
A74: Percentages of Total | B74: Last Week | C74: Last Month
A75: 2v2 | B75: =N4/N9 -> 0.3050226813 | C75: =N5/N9 -> 0.7068918402
A76: 3v3 | B76: =N16/N21 -> 0.2426712329 | C76: =N17/N21 -> 0.663630137
A77: 4v4 | B77: =N28/N33 -> 0.194893617 | C77: =N29/N33 -> 0.6325531915
A78: 2v2 Random | B78: =N40/N45 -> 0.3769596926 | C78: =N41/N45 -> 0.7521289139
A79: 3v3 Random | B79: =N52/N57 -> 0.3990503803 | C79: =N53/N57 -> 0.7559561326
A80: 4v4 Random | B80: =N64/N69 -> 0.4092 | C80: =N65/N69 -> 0.7637454545
A84: Unique Player Counts
A85: Team Type | B85: Counts
A86: 2v2 | B86: =N9 -> 36594
A87: 3v3 | B87: =N21 -> 14600
A88: 4v4 | B88: =N33 -> 4700
A89: 2v2 Random | B89: =N45 -> 22899
A90: 3v3 Random | B90: =N57 -> 23799
A91: 4v4 Random | B91: =N69 -> 27500
A95: League Distributions - Based on Having Played At Least 1 Game Last Month | I95: League Distributions - All Teams
A96: Team Type | B96: Bronze | C96: Silver | D96: Gold | E96: Platinum | F96: Diamond | G96: Master | I96: Team Type | J96: Bronze | K96: Silver | L96: Gold | M96: Platinum | N96: Diamond | O96: Master
A97: 2v2 | B97: =B5/N5 -> 0.3282820473 | C97: =D5/N5 -> 0.2827431576 | D97: =F5/N5 -> 0.2550641719 | E97: =H5/N5 -> 0.1011674656 | F97: =J5/N5 -> 0.02787227463 | G97: =L5/N5 -> 0.004870882944 | I97: 2v2 | J97: =B9/N9 -> 0.3557960321 | K97: =D9/N9 -> 0.2768213368 | L97: =F9/N9 -> 0.2432912499 | M97: =H9/N9 -> 0.09460567306 | N97: =J9/N9 -> 0.02492211838 | O97: =L9/N9 -> 0.00456358966
A98: 3v3 | B98: =B17/N17 -> 0.3028176282 | C98: =D17/N17 -> 0.3555578491 | D98: =F17/N17 -> 0.2473939519 | E98: =H17/N17 -> 0.0762720611 | F98: =J17/N17 -> 0.01475900506 | G98: =L17/N17 -> 0.003199504593 | I98: 3v3 | J98: =B21/N21 -> 0.3213013699 | K98: =D21/N21 -> 0.3469863014 | L98: =F21/N21 -> 0.2397260274 | M98: =H21/N21 -> 0.07493150685 | N98: =J21/N21 -> 0.01438356164 | O98: =L21/N21 -> 0.002671232877
A99: 4v4 | B99: =B29/N29 -> 0.2203161789 | C99: =D29/N29 -> 0.5613858056 | D99: =F29/N29 -> 0.1076353851 | E99: =H29/N29 -> 0.08509922637 | F99: =J29/N29 -> 0.02152707703 | G99: =L29/N29 -> 0.004036326942 | I99: 4v4 | J99: =B33/N33 -> 0.2334042553 | K99: =D33/N33 -> 0.5512765957 | L99: =F33/N33 -> 0.09553191489 | M99: =H33/N33 -> 0.09617021277 | N99: =J33/N33 -> 0.02042553191 | O99: =L33/N33 -> 0.003191489362
A100: 2v2 Random | B100: =B41/N41 -> 0.09673111537 | C100: =D41/N41 -> 0.4417929513 | D100: =F41/N41 -> 0.2841549091 | E100: =H41/N41 -> 0.1140335598 | F100: =J41/N41 -> 0.04685594844 | G100: =L41/N41 -> 0.016431516 | I100: 2v2 Random | J100: =B45/N45 -> 0.1127560155 | K100: =D45/N45 -> 0.4541246343 | L100: =F45/N45 -> 0.2687890301 | M100: =H45/N45 -> 0.1067295515 | N100: =J45/N45 -> 0.04323332897 | O100: =L45/N45 -> 0.01436743963
A101: 3v3 Random | B101: =B53/N53 -> 0.1117781113 | C101: =D53/N53 -> 0.5107553777 | D101: =F53/N53 -> 0.2564059808 | E101: =H53/N53 -> 0.07587126897 | F101: =J53/N53 -> 0.02962592407 | G101: =L53/N53 -> 0.01556333722 | I101: 3v3 Random | J101: =B57/N57 -> 0.130929871 | K101: =D57/N57 -> 0.5111559309 | L101: =F57/N57 -> 0.2424051431 | M101: =H57/N57 -> 0.07365855708 | N101: =J57/N57 -> 0.02777427623 | O101: =L57/N57 -> 0.01407622169
A102: 4v4 Random | B102: =B65/N65 -> 0.1348378803 | C102: =D65/N65 -> 0.5349711946 | D102: =F65/N65 -> 0.247869352 | E102: =H65/N65 -> 0.04870732752 | F102: =J65/N65 -> 0.02209208208 | G102: =L65/N65 -> 0.0115221635 | I102: 4v4 Random | J102: =B69/N69 -> 0.1563272727 | K102: =D69/N69 -> 0.5356363636 | L102: =F69/N69 -> 0.2284363636 | M102: =H69/N69 -> 0.04803636364 | N102: =J69/N69 -> 0.02123636364 | O102: =L69/N69 -> 0.01032727273
A104: 2v2 matched | B104: =A104&": "&$B$96&": "&ROUNDDOWN(B97,2)*100 & "% | " &$C$96&": "&ROUNDDOWN(C97,2)*100 & "% | " &$D$96&": "&ROUNDDOWN(D97,2)*100 & "% | " &$E$96&": "&ROUNDDOWN(E97,2)*100 & "% | " &$F$96&": "&ROUNDDOWN(F97,2)*100 & "% | " &$G$96&": "&ROUND(G97*100,2) & "% | " -> 2v2 matched: Bronze: 32% | Silver: 28% | Gold: 25% | Platinum: 10% | Diamond: 2% | Master: 0.49% |
A105: 3v3 matched | B105: =A105&": "&$B$96&": "&ROUNDDOWN(B98,2)*100 & "% | " &$C$96&": "&ROUNDDOWN(C98,2)*100 & "% | " &$D$96&": "&ROUNDDOWN(D98,2)*100 & "% | " &$E$96&": "&ROUNDDOWN(E98,2)*100 & "% | " &$F$96&": "&ROUNDDOWN(F98,2)*100 & "% | " &$G$96&": "&ROUND(G98*100,2) & "% | " -> 3v3 matched: Bronze: 30% | Silver: 35% | Gold: 24% | Platinum: 7% | Diamond: 1% | Master: 0.32% |
A106: 4v4 matched | B106: 4v4 matched: Bronze: 22% | Silver: 56% | Gold: 10% | Platinum: 8% | Diamond: 2% | Master: 0.4% |
A107: 2v2 random | B107: 2v2 random: Bronze: 9% | Silver: 44% | Gold: 28% | Platinum: 11% | Diamond: 4% | Master: 1.64% |
A108: 3v3 random | B108: 3v3 random: Bronze: 11% | Silver: 51% | Gold: 25% | Platinum: 7% | Diamond: 2% | Master: 1.56% |
A109: 4v4 random | B109: 4v4 random: Bronze: 13% | Silver: 53% | Gold: 24% | Platinum: 4% | Diamond: 2% | Master: 1.15% |

Sheet IDs
A1: Player IDs | B1: Team Type | D1: Unique IDs | E1: # of team types | F1: Only in team games (if error) | G1: Unique 1v1 | H1: Only in 1v1 (if error) | I1: # of team types | J1: # of team-only players | K1: # of 1v1-only players
A2: 1000018-1 | B2: 2v2Team | D2: 1000018-1 | E2: 4 | G2: 1000063-1 | H2: 1000063-1 | I2: =VLOOKUP(H2,$D$2:$E$86812,2,FALSE) -> 1 | J2: =COUNTIF(F2:F148173,"#N/A") -> 55776 | K2: =COUNTIF(H2:H148173,"#N/A") -> 49406
A3: 1000018-1 | B3: 2v2r | D3: 1000063-1 | E3: 1 | F3: 1000063-1 | G3: 1000180-1 | H3: 1000180-1 | I3: =VLOOKUP(H3,$D$2:$E$86812,2,FALSE) -> 9
A4: 1000018-1 | B4: 3v3r | D4: 1000096-1 | E4: 1 | G4: 1000199-1 | H4: 1000199-1 | J4: Total 1v1 players | K4: ='Analysis - 1v1'!I44 -> 87510
A5: 1000018-1 | B5: 4v4r | D5: 1000114-1 | E5: 5 | G5: 1000301-1 | H5: 1000301-1 | J5: 1v1 players that also placed with a team type | K5: =K4-K2 -> 38104
A6: 1000063-1 | B6: 2v2Team | D6: 1000180-1 | E6: 9 | F6: 1000180-1 | G6: 1000395-1 | J6: # of 1v1 players that have completed placement matches for 3 or more team types | K6: =COUNTIF(I2:I148173,">=3") -> 1
A7: 1000096-1 | B7: 4v4r | D7: 1000199-1 | E7: 2 | F7: 1000199-1 | G7: 1000433-1 | J7: Team players that only placed with 1 team | K7: =COUNTIFS(E2:E148173,1,F2:F148173,"#N/A") -> 21843
A8: 1000114-1 | B8: 2v2Team | D8: 1000243-1 | E8: 1 | G8: 1000486-1 | J8: % of team-only with only 1 team | K8: =K7/J2 -> 0.3916200516
A9: 1000114-1 | B9: 2v2Team | D9: 1000251-1 | E9: 1 | G9: 1000528-1 | H9: 1000528-1 | J9: Most teams placed with | K9: =MAX(E2:E123096) -> 130
A10: 1000114-1 | B10: 2v2Team | D10: 1000301-1 | E10: 1 | F10: 1000301-1 | G10: 1000658-1 | J10: Average # of team types | K10: =AVERAGE(E2:E148173) -> 2.771602045
A11: 1000114-1 | B11: 3v3Team | D11: 1000324-1 | E11: 4 | G11: 1000906-1
A12: 1000114-1 | B12: 4v4Team | D12: 1000387-1 | E12: 2 | G12: 1001011-1
A13: 1000180-1 | B13: 2v2Team | D13: 1000423-1 | E13: 1 | G13: 1001060-1
A14: 1000180-1 | B14: 2v2Team | D14: 1000500-1 | E14: 1 | G14: 1001106-1
A15: 1000180-1 | B15: 2v2Team | D15: 1000528-1 | E15: 3 | F15: 1000528-1 | G15: 1001122-1
A16: 1000180-1 | B16: 2v2Team | D16: 1000538-1 | E16: 1 | G16: 1001131-1 | H16: 1001131-1
A17: 1000180-1 | B17: 3v3Team | D17: 1000855-1 | E17: 2 | G17: 1001174-1
A18: 1000180-1 | B18: 3v3Team | D18: 1000869-1 | E18: 1 | G18: 1001181-1 | H18: 1001181-1
A19: 1000180-1 | B19: 2v2r | D19: 1001061-1 | E19: 1 | G19: 1001185-1 | H19: 1001185-1
A20: 1000180-1 | B20: 3v3r | D20: 1001131-1 | E20: 2 | F20: 1001131-1 | G20: 10013-2
A21: 1000180-1 | B21: 4v4r | D21: 1001140-1 | E21: 2 | G21: 1001348-1 | H21: 1001348-1
A22: 1000199-1 | B22: 2v2r | D22: 1001181-1 | E22: 2 | F22: 1001181-1 | G22: 1001492-1 | H22: 1001492-1
A23: 1000199-1 | B23: 4v4r | D23: 1001185-1 | E23: 3 | F23: 1001185-1 | G23: 1001510-1 | H23: 1001510-1
A24: 1000243-1 | B24: 2v2Team | D24: 1001282-1 | E24: 1 | G24: 1001538-1
A25: 1000251-1 | B25: 2v2r | D25: 1001284-1 | E25: 2 | G25: 1001602-1 | H25: 1001602-1
A26: 1000301-1 | B26: 2v2Team | D26: 1001304-1 | E26: 1 | G26: 1001721-1 | H26: 1001721-1
A27: 1000324-1 | B27: 2v2Team | D27: 1001314-1 | E27: 2 | G27: 1001724-1
A28: 1000324-1 | B28: 2v2r | D28: 1001348-1 | E28: 1 | F28: 1001348-1 | G28: 1001804-1
A29: 1000324-1 | B29: 3v3r | D29: 1001351-1 | E29: 1 | G29: 1001915-1
A30: 1000324-1 | B30: 4v4r | D30: 10014-2 | E30: 5 | G30: 1001916-1
A31: 1000387-1 | B31: 2v2Team | D31: 1001423-1 | E31: 2 | G31: 1001999-1
A32: 1000387-1 | B32: 4v4r | D32: 1001441-1 | E32: 2 | G32: 1002022-1 | H32: 1002022-1
A33: 1000423-1 | B33: 2v2r | D33: 1001469-1 | E33: 2 | G33: 1002214-1
A34: 1000500-1 | B34: 4v4r | D34: 1001492-1 | E34: 3 | F34: 1001492-1 | G34: 1002381-1
A35: 1000528-1 | B35: 2v2Team | D35: 1001510-1 | E35: 1 | F35: 1001510-1 | G35: 1002410-1
A36: 1000528-1 | B36: 2v2r | D36: 1001513-1 | E36: 5 | G36: 1002436-1
A37: 1000528-1 | B37: 3v3r | D37: 1001602-1 | E37: 2 | F37: 1001602-1 | G37: 1002439-1 | H37: 1002439-1
A38: 1000538-1 | B38: 4v4r | D38: 1001652-1 | E38: 1 | G38: 1002488-1
A39: 1000855-1 | B39: 3v3Team | D39: 1001705-1 | E39: 1 | G39: 1002622-1 | H39: 1002622-1
A40: 1000855-1 | B40: 4v4Team | D40: 1001721-1 | E40: 9 | F40: 1001721-1 | G40: 1002623-1
A41: 1000869-1 | B41: 3v3r | D41: 1001759-1 | E41: 1 | G41: 1002625-1
A42: 1001061-1 | B42: 4v4r | D42: 1001768-1 | E42: 1 | G42: 1002810-1 | H42: 1002810-1
A43: 1001131-1 | B43: 2v2Team | D43: 1001844-1 | E43: 1 | G43: 1003058-1
A44: 1001131-1 | B44: 3v3r | D44: 1001858-1 | E44: 1 | G44: 1003073-1
A45: 1001140-1 | B45: 2v2Team | D45: 1001927-1 | E45: 1 | G45: 1003116-1
A46: 1001140-1 | B46: 2v2Team | D46: 1001947-1 | E46: 1 | G46: 1003138-1 | H46: 1003138-1
A47: 1001181-1 | B47: 2v2Team | D47: 1002022-1 | E47: 2 | F47: 1002022-1 | G47: 1003197-1
A48: 1001181-1 | B48: 2v2r | D48: 1002046-1 | E48: 1 | G48: 1003207-1 | H48: 1003207-1
A49: 1001185-1 | B49: 2v2Team | D49: 1002137-1 | E49: 1 | G49: 1003224-1 | H49: 1003224-1
A50: 1001185-1 | B50: 2v2r | D50: 1002161-1 | E50: 1 | G50: 1003236-1
A51: 1001185-1 | B51: 4v4r | D51: 1002165-1 | E51: 8 | G51: 1003404-1
A52: 1001282-1 | B52: 3v3r | D52: 1002298-1 | E52: 1 | G52: 1003411-1
A53: 1001284-1 | B53: 3v3r | D53: 1002439-1 | E53: 2 | F53: 1002439-1 | G53: 1003685-1 | H53: 1003685-1
A54: 1001284-1 | B54: 4v4r | D54: 10026-2 | E54: 1 | G54: 1003793-1
A55: 1001304-1 | B55: 4v4r | D55: 1002622-1 | E55: 8 | F55: 1002622-1 | G55: 1003805-1 | H55: 1003805-1
A56: 1001314-1 | B56: 2v2Team | D56: 1002704-1 | E56: 1 | G56: 1003860-1
A57: 1001314-1 | B57: 3v3Team | D57: 1002708-1 | E57: 1 | G57: 1003898-1 | H57: 1003898-1
A58: 1001348-1 | B58: 3v3r | D58: 1002810-1 | E58: 1 | F58: 1002810-1 | G58: 1003970-1
A59: 1001351-1 | B59: 2v2Team | D59: 1002878-1 | E59: 1 | G59: 1004124-1
A60: 10014-2 | B60: 2v2Team | D60: 1002927-1 | E60: 4 | G60: 1004240-1 | H60: 1004240-1
A61: 10014-2 | B61: 2v2Team | D61: 1002970-1 | E61: 1 | G61: 1004385-1
A62: 10014-2 | B62: 3v3Team | D62: 10030-2 | E62: 2 | G62: 1004395-1 | H62: 1004395-1
A63: 10014-2 | B63: 3v3Team | D63: 1003034-1 | E63: 4 | G63: 1004485-1 | H63: 1004485-1
A64: 10014-2 | B64: 3v3Team | D64: 1003138-1 | E64: 2 | F64: 1003138-1 | G64: 1004550-1
A65: 1001423-1 | B65: 3v3Team | D65: 1003151-1 | E65: 2 | G65: 1004574-1
A66: 1001423-1 | B66: 3v3r | D66: 1003195-1 | E66: 1 | G66: 1004764-1 | H66: 1004764-1
A67: 1001441-1 | B67: 3v3r | D67: 1003207-1 | E67: 1 | F67: 1003207-1 | G67: 1004782-1
A68: 1001441-1 | B68: 4v4r | D68: 1003224-1 | E68: 1 | F68: 1003224-1 | G68: 1004870-1
A69: 1001469-1 | B69: 2v2Team | D69: 1003284-1 | E69: 3 | G69: 1004879-1 | H69: 1004879-1
A70: 1001469-1 | B70: 2v2Team | D70: 1003325-1 | E70: 1 | G70: 1004940-1 | H70: 1004940-1
A71: 1001492-1 | B71: 2v2r | D71: 1003441-1 | E71: 2 | G71: 1004991-1
A72: 1001492-1 | B72: 3v3r | D72: 1003478-1 | E72: 1 | G72: 1005058-1 | H72: 1005058-1
A73: 1001492-1 | B73: 4v4r | D73: 1003567-1 | E73: 1 | G73: 1005127-1 | H73: 1005127-1
A74: 1001510-1 | B74: 2v2r | D74: 1003613-1 | E74: 3 | G74: 1005198-1
A75: 1001513-1 | B75: 2v2Team | D75: 1003685-1 | E75: 1 | F75: 1003685-1 | G75: 1005333-1
A76: 1001513-1 | B76: 2v2Team | D76: 1003805-1 | E76: 2 | F76: 1003805-1 | G76: 1005420-1 | H76: 1005420-1
A77: 1001513-1 | B77: 2v2r | D77: 1003881-1 | E77: 2 | G77: 1005641-1 | H77: 1005641-1
A78: 1001513-1 | B78: 3v3r | D78: 1003898-1 | E78: 3 | F78: 1003898-1 | G78: 10057-2
A79: 1001513-1 | B79: 4v4r | D79: 1003901-1 | E79: 1 | G79: 1005804-1
A80: 1001602-1 | B80: 2v2Team | D80: 1003932-1 | E80: 1 | G80: 1005837-1
A81: 1001602-1 | B81: 2v2Team | D81: 1003959-1 | E81: 1 | G81: 1005983-1
A82: 1001652-1 | B82: 3v3Team | D82: 1004029-1 | E82: 1 | G82: 1005985-1 | H82: 1005985-1
A83: 1001705-1 | B83: 2v2Team | D83: 1004240-1 | E83: 1 | F83: 1004240-1 | G83: 10060-2 | H83: 10060-2
A84: 1001721-1 | B84: 2v2Team | D84: 1004395-1 | E84: 2 | F84: 1004395-1 | G84: 1006071-1 | H84: 1006071-1
A85: 1001721-1 | B85: 2v2Team | D85: 1004485-1 | E85: 1 | F85: 1004485-1 | G85: 1006180-1 | H85: 1006180-1
A86: 1001721-1 | B86: 2v2Team | D86: 1004559-1 | E86: 1 | G86: 1006232-1
A87: 1001721-1 | B87: 2v2Team | D87: 1004704-1 | E87: 1 | G87: 1006247-1 | H87: 1006247-1
A88: 1001721-1 | B88: 2v2Team | D88: 1004745-1 | E88: 1 | G88: 1006264-1
A89: 1001721-1 | B89: 3v3Team | D89: 1004764-1 | E89: 1 | F89: 1004764-1 | G89: 1006281-1 | H89: 1006281-1
A90: 1001721-1 | B90: 2v2r | D90: 1004795-1 | E90: 3 | G90: 1006494-1
A91: 1001721-1 | B91: 3v3r | D91: 1004879-1 | E91: 3 | F91: 1004879-1 | G91: 1006655-1 | H91: 1006655-1
A92: 1001721-1 | B92: 4v4r | D92: 1004889-1 | E92: 1 | G92: 1006682-1
A93: 1001759-1 | B93: 4v4r | D93: 1004940-1 | E93: 1 | F93: 1004940-1 | G93: 1006749-1
A94: 1001768-1 | B94: 2v2Team | D94: 1005053-1 | E94: 1 | G94: 1006802-1
A95: 1001844-1 | B95: 2v2r | D95: 1005058-1 | E95: 1 | F95: 1005058-1 | G95: 1006950-1
A96: 1001858-1 | B96: 4v4r | D96: 1005127-1 | E96: 1 | F96: 1005127-1 | G96: 1006959-1 | H96: 1006959-1
A97: 1001927-1 | B97: 3v3r | D97: 1005183-1 | E97: 2 | G97: 1007012-1 | H97: 1007012-1
A98: 1001947-1 | B98: 4v4r | D98: 1005-2 | E98: 1 | G98: 1007069-1 | H98: 1007069-1
A99: 1002022-1 | B99: 2v2Team | D99: 1005267-1 | E99: 1 | G99: 1007149-1
A100: 1002022-1 | B100: 2v2r | D100: 1005331-1 | E100: 2 | G100: 1007159-1
A101: 1002046-1 | B101: 2v2r | D101: 1005354-1 | E101: 1 | G101: 1007214-1 | H101: 1007214-1
A102: 1002137-1 | B102: 2v2Team | D102: 1005373-1 | E102: 1 | G102: 1007401-1 | H102: 1007401-1
A103: 1002161-1 | B103: 4v4r | D103: 1005420-1 | E103: 2 | F103: 1005420-1 | G103: 1007421-1 | H103: 1007421-1
A104: 1002165-1 | B104: 2v2Team | D104: 1005423-1 | E104: 1 | G104: 1007445-1
A105: 1002165-1 | B105: 2v2Team | D105: 1005432-1 | E105: 1 | G105: 1007496-1 | H105: 1007496-1
A106: 1002165-1 | B106: 3v3Team | D106: 1005482-1 | E106: 1 | G106: 1007588-1 | H106: 1007588-1
A107: 1002165-1 | B107: 3v3Team | D107: 1005511-1 | E107: 2 | G107: 100785-2
A108: 1002165-1 | B108: 3v3Team | D108: 1005598-1 | E108: 1 | G108: 1007855-1
A109: 1002165-1 | B109: 2v2r | D109: 1005629-1 | E109: 1 | G109: 1007868-1 | H109: 1007868-1
A110: 1002165-1 | B110: 3v3r | D110: 1005641-1 | E110: 3 | F110: 1005641-1 | G110: 100792-2
A111: 1002165-1 | B111: 4v4r | D111: 1005658-1 | E111: 1 | G111: 100793-2 | H111: 100793-2
A112: 1002298-1 | B112: 2v2Team | D112: 1005672-1 | E112: 1 | G112: 1007936-1 | H112: 1007936-1
A113: 1002439-1 | B113: 2v2Team | D113: 1005739-1 | E113: 1 | G113: 1007938-1 | H113: 1007938-1
A114: 1002439-1 | B114: 4v4r | D114: 1005756-1 | E114: 1 | G114: 100797-2 | H114: 100797-2
A115: 10026-2 | B115: 2v2Team | D115: 1005767-1 | E115: 2 | G115: 1007976-1 | H115: 1007976-1
A116: 1002622-1 | B116: 2v2Team | D116: 1005781-1 | E116: 2 | G116: 1007979-1
A117: 1002622-1 | B117: 2v2Team | D117: 1005787-1 | E117: 1 | G117: 10080-2
A118: 1002622-1 | B118: 2v2Team | D118: 1005808-1 | E118: 1 | G118: 1008048-1 | H118: 1008048-1
A119: 1002622-1 | B119: 2v2Team | D119: 1005922-1 | E119: 1 | G119: 1008270-1
A120: 1002622-1 | B120: 4v4Team | D120: 1005963-1 | E120: 1 | G120: 1008369-1 | H120: 1008369-1
A121: 1002622-1 | B121: 2v2r | D121: 1005979-1 | E121: 1 | G121: 1008523-1 | H121: 1008523-1
A122: 1002622-1 | B122: 3v3r | D122: 1005985-1 | E122: 2 | F122: 1005985-1 | G122: 1008526-1
A123: 1002622-1 | B123: 4v4r | D123: 1006008-1 | E123: 1 | G123: 1008567-1
A124: 1002704-1 | B124: 2v2Team | D124: 10060-2 | E124: 3 | F124: 10060-2 | G124: 1008635-1 | H124: 1008635-1
A125: 1002708-1 | B125: 4v4r | D125: 1006036-1 | E125: 1 | G125: 1008759-1 | H125: 1008759-1
A126: 1002810-1 | B126: 3v3r | D126: 1006071-1 | E126: 2 | F126: 1006071-1 | G126: 1008907-1 | H126: 1008907-1
A127: 1002878-1 | B127: 2v2Team | D127: 1006153-1 | E127: 2 | G127: 1009063-1
A128: 1002927-1 | B128: 2v2Team | D128: 1006180-1 | E128: 3 | F128: 1006180-1 | G128: 1009101-1
A129: 1002927-1 | B129: 2v2Team | D129: 1006210-1 | E129: 2 | G129: 1009218-1 | H129: 1009218-1
A130: 1002927-1 | B130: 2v2r | D130: 1006247-1 | E130: 2 | F130: 1006247-1 | G130: 1009240-1
A131: 1002927-1 | B131: 3v3r | D131: 1006259-1 | E131: 1 | G131: 1009262-1
A132: 1002970-1 | B132: 2v2Team | D132: 1006281-1 | E132: 1 | F132: 1006281-1 | G132: 1009271-1
A133: 10030-2 | B133: 2v2Team | D133: 1006305-1 | E133: 2 | G133: 1009403-1 | H133: 1009403-1
A134: 10030-2 | B134: 2v2r | D134: 1006636-1 | E134: 3 | G134: 1009461-1 | H134: 1009461-1
A135: 1003034-1 | B135: 2v2Team | D135: 1006655-1 | E135: 1 | F135: 1006655-1 | G135: 1009548-1 | H135: 1009548-1
A136: 1003034-1 | B136: 3v3Team | D136: 1006657-1 | E136: 1 | G136: 1009554-1 | H136: 1009554-1
A137: 1003034-1 | B137: 3v3Team | D137: 1006695-1 | E137: 1 | G137: 1009610-1 | H137: 1009610-1
A138: 1003034-1 | B138: 4v4r | D138: 1006761-1 | E138: 1 | G138: 1009704-1 | H138: 1009704-1
A139: 1003138-1 | B139: 2v2r | D139: 1006793-1 | E139: 1 | G139: 1009830-1 | H139: 1009830-1
A140: 1003138-1 | B140: 3v3r | D140: 1006918-1 | E140: 2 | G140: 1009945-1 | H140: 1009945-1
A141: 1003151-1 | B141: 2v2Team | D141: 1006959-1 | E141: 6 | F141: 1006959-1 | G141: 1009995-1
A142: 1003151-1 | B142: 3v3r | D142: 1006975-1 | E142: 3 | G142: 1010131-1
A143: 1003195-1 | B143: 2v2Team | D143: 1007012-1 | E143: 1 | F143: 1007012-1 | G143: 1010224-1
A144: 1003207-1 | B144: 2v2r | D144: 1007069-1 | E144: 3 | F144: 1007069-1 | G144: 1010272-1 | H144: 1010272-1
A145: 1003224-1 | B145: 2v2Team | D145: 1007091-1 | E145: 1 | G145: 1010453-1
A146: 1003284-1 | B146: 3v3Team | D146: 1007101-1 | E146: 2 | G146: 1010570-1 | H146: 1010570-1
A147: 1003284-1 | B147: 3v3r | D147: 1007146-1 | E147: 1 | G147: 1010593-1 | H147: 1010593-1
A148: 1003284-1 | B148: 4v4r | D148: 1007182-1 | E148: 1 | G148: 1010758-1 | H148: 1010758-1
A149: 1003325-1 | B149: 2v2Team | D149: 1007214-1 | E149: 3 | F149: 1007214-1 | G149: 1010797-1
A150: 1003441-1 | B150: 2v2Team | D150: 1007401-1 | E150: 1 | F150: 1007401-1 | G150: 1010805-1 | H150: 1010805-1
A151: 1003441-1 | B151: 2v2r | D151: 1007421-1 | E151: 3 | F151: 1007421-1 | G151: 1010852-1
A152: 1003478-1 | B152: 4v4r | D152: 1007435-1 | E152: 2 | G152: 1010886-1 | H152: 1010886-1
A153: 1003567-1 | B153: 2v2Team | D153: 1007453-1 | E153: 1 | G153: 1010888-1
A154: 1003613-1 | B154: 2v2r | D154: 1007477-1 | E154: 3 | G154: 1010999-1 | H154: 1010999-1
A155: 1003613-1 | B155: 3v3r | D155: 1007496-1 | E155: 4 | F155: 1007496-1 | G155: 1011077-1
A156: 1003613-1 | B156: 4v4r | D156: 1007578-1 | E156: 1 | G156: 1011162-1
A157: 1003685-1 | B157: 3v3r | D157: 1007588-1 | E157: 2 | F157: 1007588-1 | G157: 1011221-1 | H157: 1011221-1
A158: 1003805-1 | B158: 2v2Team | D158: 1007592-1 | E158: 1 | G158: 1011234-1
A159: 1003805-1 | B159: 2v2Team | D159: 1007610-1 | E159: 1 | G159: 1011250-1
A160: 1003881-1 | B160: 2v2Team | D160: 1007797-1 | E160: 1 | G160: 1011291-1 | H160: 1011291-1
A161: 1003881-1 | B161: 4v4r | D161: 1007834-1 | E161: 1 | G161: 1011303-1 | H161: 1011303-1
A162: 1003898-1 | B162: 2v2r | D162: 1007868-1 | E162: 1 | F162: 1007868-1 | G162: 1011477-1
A163: 1003898-1 | B163: 3v3r | D163: 1007907-1 | E163: 2 | G163: 1011598-1
A164: 1003898-1 | B164: 4v4r | D164: 100793-2 | E164: 22 | F164: 100793-2 | G164: 1011732-1
A165: 1003901-1 | B165: 3v3Team | D165: 1007936-1 | E165: 1 | F165: 1007936-1 | G165: 1011752-1 | H165: 1011752-1
A166: 1003932-1 | B166: 4v4r | D166: 1007938-1 | E166: 1 | F166: 1007938-1 | G166: 1011754-1
A167: 1003959-1 | B167: 2v2r | D167: 1007969-1 | E167: 1 | G167: 1011809-1 | H167: 1011809-1
A168: 1004029-1 | B168: 3v3r | D168: 100797-2 | E168: 3 | F168: 100797-2 | G168: 1011812-1 | H168: 1011812-1
A169: 1004240-1 | B169: 2v2Team | D169: 1007976-1 | E169: 6 | F169: 1007976-1 | G169: 1011818-1 | H169: 1011818-1
A170: 1004395-1 | B170: 2v2Team | D170: 1008037-1 | E170: 1 | G170: 1011889-1
A171: 1004395-1 | B171: 2v2r | D171: 1008048-1 | E171: 1 | F171: 1008048-1 | G171: 1011995-1 | H171: 1011995-1
A172: 1004485-1 | B172: 2v2r | D172: 1008223-1 | E172: 1 | G172: 1012039-1 | H172: 1012039-1
A173: 1004559-1 | B173: 4v4r | D173: 1008228-1 | E173: 2 | G173: 1012074-1 | H173: 1012074-1
A174: 1004704-1 | B174: 2v2Team | D174: 1008257-1 | E174: 1 | G174: 1012085-1
A175: 1004745-1 | B175: 2v2Team | D175: 1008293-1 | E175: 1 | G175: 1012157-1
A176: 1004764-1 | B176: 2v2r | D176: 1008305-1 | E176: 1 | G176: 1012269-1
A177: 1004795-1 | B177: 2v2r | D177: 1008369-1 | E177: 3 | F177: 1008369-1 | G177: 1012298-1 | H177: 1012298-1
A178: 1004795-1 | B178: 3v3r | D178: 1008370-1 | E178: 1 | G178: 1012353-1
A179: 1004795-1 | B179: 4v4r | D179: 1008440-1 | E179: 1 | G179: 1012440-1 | H179: 1012440-1
A180: 1004879-1 | B180: 2v2Team | D180: 1008489-1 | E180: 1 | G180: 1012502-1 | H180: 1012502-1
A181: 1004879-1 | B181: 2v2Team | D181: 1008523-1 | E181: 2 | F181: 1008523-1 | G181: 1012509-1 | H181: 1012509-1
A182: 1004879-1 | B182: 2v2r | D182: 1008583-1 | E182: 1 | G182: 1012557-1
A183: 1004889-1 | B183: 2v2Team | D183: 1008606-1 | E183: 1 | G183: 1012590-1
A184: 1004940-1 | B184: 3v3Team | D184: 1008623-1 | E184: 1 | G184: 1012721-1 | H184: 1012721-1
A185: 1005053-1 | B185: 4v4r | D185: 1008635-1 | E185: 6 | F185: 1008635-1 | G185: 1012769-1 | H185: 1012769-1
A186: 1005058-1 | B186: 2v2Team | D186: 1008706-1 | E186: 1 | G186: 1012846-1 | H186: 1012846-1
A187: 1005127-1 | B187: 2v2r | D187: 1008759-1 | E187: 3 | F187: 1008759-1 | G187: 1012860-1 | H187: 1012860-1
A188: 1005183-1 | B188: 3v3Team | D188: 1008842-1 | E188: 1 | G188: 1012880-1
A189: 1005183-1 | B189: 4v4Team | D189: 1008906-1 | E189: 1 | G189: 1012881-1 | H189: 1012881-1
A190: 1005-2 | B190: 2v2Team | D190: 1008907-1 | E190: 1 | F190: 1008907-1 | G190: 1012927-1
A191: 1005267-1 | B191: 4v4r | D191: 1009131-1 | E191: 1 | G191: 1012997-1 | H191: 1012997-1
A192: 1005331-1 | B192: 3v3r | D192: 1009173-1 | E192: 1 | G192: 1013058-1
A193: 1005331-1 | B193: 4v4r | D193: 1009185-1 | E193: 3 | G193: 1013062-1 | H193: 1013062-1
A194: 1005354-1 | B194: 3v3r | D194: 1009205-1 | E194: 2 | G194: 1013105-1 | H194: 1013105-1
A195: 1005373-1 | B195: 2v2Team | D195: 1009218-1 | E195: 1 | F195: 1009218-1 | G195: 1013156-1
A196: 1005420-1 | B196: 2v2Team | D196: 1009382-1 | E196: 1 | G196: 1013231-1 | H196: 1013231-1
A197: 1005420-1 | B197: 2v2r | D197: 1009401-1 | E197: 1 | G197: 1013451-1 | H197: 1013451-1
A198: 1005423-1 | B198: 3v3r | D198: 1009403-1 | E198: 2 | F198: 1009403-1 | G198: 1013458-1
A199: 1005432-1 | B199: 4v4r | D199: 1009461-1 | E199: 1 | F199: 1009461-1 | G199: 1013607-1 | H199: 1013607-1
A200: 1005482-1 | B200: 4v4r | D200: 1009548-1 | E200: 3 | F200: 1009548-1 | G200: 1013631-1
... 4300 more rows

Sheet 2v2Team
A1: Player ID 1 | B1: Player 1 Region | C1: Player 1 Subregion | D1: Player 1 Name | E1: Player 1 Race | F1: Player ID 2 | G1: Player 2 Region | H1: Player 2 Subregion | I1: Player 2 Name | J1: Player 2 Race | K1: League | L1: Win | M1: Loss | N1: Score | O1: Date Joined | P1: Last Game | Q1: Timestamp | R1: Player ID 1- Player 1 Subregion| Player ID 2- Player 2 Subregion | S1: Duplicate | T1: OrderID
A2: 4425041 | B2: us | C2: 1 | D2: Kira | E2: r | F2: 4424145 | G2: us | H2: 1 | I2: Cluster | J2: t | K2: Bronze | L2: 31 | M2: 33 | N2: 746 | O2: 2015-01-24 | P2: 12 hours | Q2: 2015-03-07T22:50:28 | R2: 4425041-1|4424145-1 | S2: 0 | T2: 2 | U2: 4425041-1 | V2: 4424145-1 | W2: Bronze
A3: 6365918 | B3: us | C3: 1 | D3: Zymar | E3: t | F3: 1842079 | G3: us | H3: 1 | I3: BigBoss | J3: z | K3: Bronze | L3: 48 | M3: 51 | N3: 735 | O3: 2015-01-14 | P3: 1 days | Q3: 2015-03-07T22:50:28 | R3: 6365918-1|1842079-1 | S3: 0 | T3: 3 | U3: 6365918-1 | V3: 1842079-1 | W3: Bronze
A4: 4834570 | B4: us | C4: 1 | D4: Hexplayer | E4: t | F4: 4451587 | G4: us | H4: 1 | I4: Xenocider | J4: z | K4: Bronze | L4: 29 | M4: 31 | N4: 725 | O4: 2015-01-18 | P4: 4 hours | Q4: 2015-03-07T22:50:28 | R4: 4834570-1|4451587-1 | S4: 0 | T4: 4 | U4: 4834570-1 | V4: 4451587-1 | W4: Bronze
A5: 6252087 | B5: us | C5: 1 | D5: NewTullius | E5: p | F5: 2792780 | G5: us | H5: 1 | I5: Rizlatnar | J5: t | K5: Bronze | L5: 24 | M5: 26 | N5: 723 | O5: 2015-01-30 | P5: 3 hours | Q5: 2015-03-07T22:50:28 | R5: 6252087-1|2792780-1 | S5: 0 | T5: 5 | U5: 6252087-1 | V5: 2792780-1 | W5: Bronze
A6: 706362 | B6: us | C6: 1 | D6: Languidly | E6: p | F6: 660851 | G6: us | H6: 1 | I6: GreedyFool | J6: t | K6: Bronze | L6: 32 | M6: 32 | N6: 717 | O6: 2015-01-23 | P6: 1 hours | Q6: 2015-03-07T22:50:28 | R6: 706362-1|660851-1 | S6: 0 | T6: 6 | U6: 706362-1 | V6: 660851-1 | W6: Bronze
A7: 2864359 | B7: us | C7: 1 | D7: GrandAdmJon | E7: z | F7: 2035700 | G7: us | H7: 1 | I7: HolyPeanuts | J7: p | K7: Bronze | L7: 30 | M7: 34 | N7: 709 | O7: 2015-02-22 | P7: 7 hours | Q7: 2015-03-07T22:50:28 | R7: 2864359-1|2035700-1 | S7: 0 | T7: 7 | U7: 2864359-1 | V7: 2035700-1 | W7: Bronze
A8: 864032 | B8: us | C8: 2 | D8: mchleyva | E8: r | F8: 860136 | G8: us | H8: 2 | I8: macros | J8: r | K8: Bronze | L8: 23 | M8: 26 | N8: 708 | O8: 2015-01-14 | P8: 2 days | Q8: 2015-03-07T22:50:28 | R8: 864032-2|860136-2 | S8: 0 | T8: 8 | U8: 864032-2 | V8: 860136-2 | W8: Bronze
A9: 1707650 | B9: us | C9: 1 | D9: DevilGuard | E9: t | F9: 680402 | G9: us | H9: 1 | I9: tossin | J9: p | K9: Bronze | L9: 58 | M9: 72 | N9: 706 | O9: 2015-01-30 | P9: 18 hours | Q9: 2015-03-07T22:50:28 | R9: 1707650-1|680402-1 | S9: 0 | T9: 9 | U9: 1707650-1 | V9: 680402-1 | W9: Bronze
A10: 6591564 | B10: us | C10: 1 | D10: Dentist | E10: p | F10: 6313644 | G10: us | H10: 1 | I10: HeRbaLisT | J10: p | K10: Bronze | L10: 32 | M10: 40 | N10: 703 | O10: 2015-03-03 | P10: 6 hours | Q10: 2015-03-07T22:50:28 | R10: 6591564-1|6313644-1 | S10: 0 | T10: 10 | U10: 6591564-1 | V10: 6313644-1 | W10: Bronze
A11: 1393705 | B11: us | C11: 1 | D11: Andronden | E11: z | F11: 731308 | G11: us | H11: 1 | I11: yauyau | J11: p | K11: Bronze | L11: 39 | M11: 44 | N11: 702 | O11: 2015-01-13 | P11: 10 hours | Q11: 2015-03-07T22:50:28 | R11: 1393705-1|731308-1 | S11: 0 | T11: 11 | U11: 1393705-1 | V11: 731308-1 | W11: Bronze
A12: 691389 | B12: us | C12: 1 | D12: Rumsfeld | E12: t | F12: 625323 | G12: us | H12: 1 | I12: Rehnquist | J12: z | K12: Bronze | L12: 76 | M12: 102 | N12: 702 | O12: 2015-01-17 | P12: 1 hours | Q12: 2015-03-07T22:50:28 | R12: 691389-1|625323-1 | S12: 0 | T12: 12 | U12: 691389-1 | V12: 625323-1 | W12: Bronze
A13: 2910366 | B13: us | C13: 1 | D13: Sugimori | E13: z | F13: 327745 | G13: us | H13: 1 | I13: nightmare | J13: t | K13: Bronze | L13: 34 | M13: 35 | N13: 701 | O13: 2015-01-13 | P13: 1 days | Q13: 2015-03-07T22:50:28 | R13: 2910366-1|327745-1 | S13: 0 | T13: 13 | U13: 2910366-1 | V13: 327745-1 | W13: Bronze
A14: 5345592 | B14: us | C14: 1 | D14: BLAQNOVA | E14: p | F14: 3770848 | G14: us | H14: 1 | I14: Antonius | J14: t | K14: Bronze | L14: 32 | M14: 41 | N14: 700 | O14: 2015-01-20 | P14: 1 hours | Q14: 2015-03-07T22:50:28 | R14: 5345592-1|3770848-1 | S14: 0 | T14: 14 | U14: 5345592-1 | V14: 3770848-1 | W14: Bronze
A15: 2428767 | B15: us | C15: 1 | D15: Yuchee | E15: p | F15: 2413057 | G15: us | H15: 1 | I15: phantomNinja | J15: r | K15: Bronze | L15: 27 | M15: 25 | N15: 698 | O15: 2015-02-04 | P15: 4 minutes | Q15: 2015-03-07T22:50:28 | R15: 2428767-1|2413057-1 | S15: 0 | T15: 15 | U15: 2428767-1 | V15: 2413057-1 | W15: Bronze
A16: 6393422 | B16: us | C16: 1 | D16: Pinkiemind | E16: t | F16: 4863805 | G16: us | H16: 1 | I16: Optiacku | J16: z | K16: Bronze | L16: 61 | M16: 80 | N16: 697 | O16: 2015-01-21 | P16: 9 minutes | Q16: 2015-03-07T22:50:28 | R16: 6393422-1|4863805-1 | S16: 0 | T16: 16 | U16: 6393422-1 | V16: 4863805-1 | W16: Bronze
A17: 4356011 | B17: us | C17: 1 | D17: caavila | E17: t | F17: 2017386 | G17: us | H17: 1 | I17: Lastat | J17: r | K17: Bronze | L17: 58 | M17: 57 | N17: 696 | O17: 2015-01-13 | P17: 2 days | Q17: 2015-03-07T22:50:28 | R17: 4356011-1|2017386-1 | S17: 0 | T17: 17 | U17: 4356011-1 | V17: 2017386-1 | W17: Bronze
A18: 2363768 | B18: us | C18: 1 | D18: Iceman | E18: r | F18: 1181719 | G18: us | H18: 1 | I18: Slider | J18: t | K18: Bronze | L18: 25 | M18: 24 | N18: 695 | O18: 2015-01-30 | P18: 5 hours | Q18: 2015-03-07T22:50:28 | R18: 2363768-1|1181719-1 | S18: 0 | T18: 18 | U18: 2363768-1 | V18: 1181719-1 | W18: Bronze
A19: 6366485 | B19: us | C19: 1 | D19: OneStepAhead | E19: p | F19: 6340827 | G19: us | H19: 1 | I19: UrbanBlood | J19: t | K19: Bronze | L19: 47 | M19: 52 | N19: 693 | O19: 2015-02-03 | P19: 4 days | Q19: 2015-03-07T22:50:28 | R19: 6366485-1|6340827-1 | S19: 0 | T19: 19 | U19: 6366485-1 | V19: 6340827-1 | W19: Bronze
A20: 5903403 | B20: us | C20: 1 | D20: airton | E20: t | F20: 5636363 | G20: us | H20: 1 | I20: jaheh | J20: t | K20: Bronze | L20: 69 | M20: 76 | N20: 691 | O20: 2015-01-30 | P20: 2 hours | Q20: 2015-03-07T22:50:28 | R20: 5903403-1|5636363-1 | S20: 0 | T20: 20 | U20: 5903403-1 | V20: 5636363-1 | W20: Bronze
A21: 146157 | B21: us | C21: 2 | D21: XxMysticalxX | E21: p | F21: 57864 | G21: us | H21: 2 | I21: DeusX | J21: z | K21: Bronze | L21: 28 | M21: 33 | N21: 689 | O21: 2015-01-19 | P21: 23 hours | Q21: 2015-03-07T22:50:28 | R21: 146157-2|57864-2 | S21: 0 | T21: 21 | U21: 146157-2 | V21: 57864-2 | W21: Bronze
A22: 6441099 | B22: us | C22: 1 | D22: Koringul | E22: z | F22: 4149084 | G22: us | H22: 1 | I22: BoomDropper | J22: p | K22: Bronze | L22: 35 | M22: 43 | N22: 688 | O22: 2015-02-14 | P22: 4 hours | Q22: 2015-03-07T22:50:28 | R22: 6441099-1|4149084-1 | S22: 0 | T22: 22 | U22: 6441099-1 | V22: 4149084-1 | W22: Bronze
A23: 5200876 | B23: us | C23: 1 | D23: wehrmacht | E23: p | F23: 4998325 | G23: us | H23: 1 | I23: LinkFukZelda | J23: p | K23: Bronze | L23: 47 | M23: 67 | N23: 685 | O23: 2015-01-27 | P23: 4 hours | Q23: 2015-03-07T22:50:28 | R23: 5200876-1|4998325-1 | S23: 0 | T23: 23 | U23: 5200876-1 | V23: 4998325-1 | W23: Bronze
A24: 326910 | B24: us | C24: 2 | D24: SithPK | E24: p | F24: 33438 | G24: us | H24: 2 | I24: Gnostic | J24: r | K24: Bronze | L24: 31 | M24: 32 | N24: 682 | O24: 2015-01-13 | P24: 2 days | Q24: 2015-03-07T22:50:28 | R24: 326910-2|33438-2 | S24: 0 | T24: 24 | U24: 326910-2 | V24: 33438-2 | W24: Bronze
A25: 6436470 | B25: us | C25: 1 | D25: DarKo | E25: z | F25: 6217731 | G25: us | H25: 1 | I25: Protoman | J25: p | K25: Bronze | L25: 76 | M25: 82 | N25: 682 | O25: 2015-01-30 | P25: 2 days | Q25: 2015-03-07T22:50:28 | R25: 6436470-1|6217731-1 | S25: 0 | T25: 25 | U25: 6436470-1 | V25: 6217731-1 | W25: Bronze
A26: 3518111 | B26: us | C26: 1 | D26: Pat | E26: p | F26: 962202 | G26: us | H26: 1 | I26: Martendo | J26: p | K26: Bronze | L26: 51 | M26: 57 | N26: 681 | O26: 2015-01-16 | P26: 2 days | Q26: 2015-03-07T22:50:29 | R26: 3518111-1|962202-1 | S26: 0 | T26: 26 | U26: 3518111-1 | V26: 962202-1 | W26: Bronze
A27: 1618093 | B27: us | C27: 1 | D27: TaterSalad | E27: p | F27: 287921 | G27: us | H27: 1 | I27: DeathsShadow | J27: z | K27: Bronze | L27: 40 | M27: 43 | N27: 680 | O27: 2015-01-13 | P27: 2 days | Q27: 2015-03-07T22:50:29 | R27: 1618093-1|287921-1 | S27: 0 | T27: 27 | U27: 1618093-1 | V27: 287921-1 | W27: Bronze
A28: 4243193 | B28: us | C28: 1 | D28: Jae | E28: r | F28: 4162859 | G28: us | H28: 1 | I28: TFT | J28: r | K28: Bronze | L28: 82 | M28: 98 | N28: 680 | O28: 2015-01-18 | P28: 20 hours | Q28: 2015-03-07T22:50:29 | R28: 4243193-1|4162859-1 | S28: 0 | T28: 28 | U28: 4243193-1 | V28: 4162859-1 | W28: Bronze
A29: 1947017 | B29: us | C29: 1 | D29: Caliss | E29: z | F29: 1736980 | G29: us | H29: 1 | I29: RuStY | J29: t | K29: Bronze | L29: 46 | M29: 51 | N29: 678 | O29: 2015-01-13 | P29: 5 days | Q29: 2015-03-07T22:50:29 | R29: 1947017-1|1736980-1 | S29: 0 | T29: 29 | U29: 1947017-1 | V29: 1736980-1 | W29: Bronze
A30: 1358429 | B30: us | C30: 1 | D30: akrazyassho | E30: r | F30: 919851 | G30: us | H30: 1 | I30: Downeddragon | J30: r | K30: Bronze | L30: 46 | M30: 53 | N30: 678 | O30: 2015-01-15 | P30: 1 days | Q30: 2015-03-07T22:50:29 | R30: 1358429-1|919851-1 | S30: 0 | T30: 30 | U30: 1358429-1 | V30: 919851-1 | W30: Bronze
A31: 6347422 | B31: us | C31: 1 | D31: jupiterpoop | E31: p | F31: 2841577 | G31: us | H31: 1 | I31: Spife | J31: p | K31: Bronze | L31: 41 | M31: 52 | N31: 678 | O31: 2015-01-18 | P31: 3 days | Q31: 2015-03-07T22:50:29 | R31: 6347422-1|2841577-1 | S31: 0 | T31: 31 | U31: 6347422-1 | V31: 2841577-1 | W31: Bronze
A32: 4533804 | B32: us | C32: 1 | D32: nuffstar | E32: p | F32: 4500986 | G32: us | H32: 1 | I32: Bamahut | J32: p | K32: Bronze | L32: 41 | M32: 55 | N32: 678 | O32: 2015-01-12 | P32: 5 hours | Q32: 2015-03-07T22:50:29 | R32: 4533804-1|4500986-1 | S32: 0 | T32: 32 | U32: 4533804-1 | V32: 4500986-1 | W32: Bronze
A33: 4928371 | B33: us | C33: 1 | D33: Hobbes | E33: p | F33: 859926 | G33: us | H33: 1 | I33: JFC | J33: p | K33: Bronze | L33: 24 | M33: 27 | N33: 677 | O33: 2015-01-28 | P33: 7 hours | Q33: 2015-03-07T22:50:29 | R33: 4928371-1|859926-1 | S33: 0 | T33: 33 | U33: 4928371-1 | V33: 859926-1 | W33: Bronze
A34: 165786 | B34: us | C34: 2 | D34: FENIX | E34: p | F34: 3089759 | G34: us | H34: 1 | I34: ReyChaka | J34: t | K34: Bronze | L34: 54 | M34: 61 | N34: 677 | O34: 2015-01-13 | P34: 2 days | Q34: 2015-03-07T22:50:29 | R34: 165786-2|3089759-1 | S34: 0 | T34: 34 | U34: 165786-2 | V34: 3089759-1 | W34: Bronze
A35: 4201375 | B35: us | C35: 1 | D35: HomerHotshot | E35: z | F35: 1793497 | G35: us | H35: 1 | I35: Roland | J35: z | K35: Bronze | L35: 66 | M35: 76 | N35: 677 | O35: 2015-01-13 | P35: 17 hours | Q35: 2015-03-07T22:50:29 | R35: 4201375-1|1793497-1 | S35: 0 | T35: 35 | U35: 4201375-1 | V35: 1793497-1 | W35: Bronze
A36: 1993662 | B36: us | C36: 1 | D36: flakk | E36: p | F36: 1587941 | G36: us | H36: 1 | I36: PeaceKeeper | J36: p | K36: Bronze | L36: 70 | M36: 82 | N36: 676 | O36: 2015-01-13 | P36: 1 days | Q36: 2015-03-07T22:50:29 | R36: 1993662-1|1587941-1 | S36: 0 | T36: 36 | U36: 1993662-1 | V36: 1587941-1 | W36: Bronze
A37: 3375809 | B37: us | C37: 1 | D37: Xtacles | E37: t | F37: 1568515 | G37: us | H37: 1 | I37: Paxon | J37: t | K37: Bronze | L37: 36 | M37: 40 | N37: 673 | O37: 2015-01-31 | P37: 23 hours | Q37: 2015-03-07T22:50:29 | R37: 3375809-1|1568515-1 | S37: 0 | T37: 37 | U37: 3375809-1 | V37: 1568515-1 | W37: Bronze
A38: 4513199 | B38: us | C38: 1 | D38: NateStar | E38: t | F38: 2222654 | G38: us | H38: 1 | I38: dragon | J38: p | K38: Bronze | L38: 30 | M38: 37 | N38: 673 | O38: 2015-01-18 | P38: 23 hours | Q38: 2015-03-07T22:50:29 | R38: 4513199-1|2222654-1 | S38: 0 | T38: 38 | U38: 4513199-1 | V38: 2222654-1 | W38: Bronze
A39: 6150680 | B39: us | C39: 1 | D39: TallJim | E39: r | F39: 542605 | G39: us | H39: 1 | I39: MasterLEAN | J39: r | K39: Bronze | L39: 29 | M39: 24 | N39: 672 | O39: 2015-01-12 | P39: 1 hours | Q39: 2015-03-07T22:50:29 | R39: 6150680-1|542605-1 | S39: 0 | T39: 39 | U39: 6150680-1 | V39: 542605-1 | W39: Bronze
A40: 2518720 | B40: us | C40: 1 | D40: YamaArashi | E40: t | F40: 2418391 | G40: us | H40: 1 | I40: DarthColon | J40: t | K40: Bronze | L40: 30 | M40: 30 | N40: 672 | O40: 2015-01-15 | P40: 2 days | Q40: 2015-03-07T22:50:29 | R40: 2518720-1|2418391-1 | S40: 0 | T40: 40 | U40: 2518720-1 | V40: 2418391-1 | W40: Bronze
A41: 5921725 | B41: us | C41: 1 | D41: TheRoja | E41: p | F41: 1077203 | G41: us | H41: 1 | I41: Kraxor | J41: p | K41: Bronze | L41: 28 | M41: 29 | N41: 672 | O41: 2015-01-17 | P41: 1 days | Q41: 2015-03-07T22:50:29 | R41: 5921725-1|1077203-1 | S41: 0 | T41: 41 | U41: 5921725-1 | V41: 1077203-1 | W41: Bronze
A42: 6238044 | B42: us | C42: 1 | D42: ayyyyyyylmao | E42: z | F42: 6095805 | G42: us | H42: 1 | I42: XoloTec | J42: t | K42: Bronze | L42: 27 | M42: 30 | N42: 672 | O42: 2015-02-02 | P42: 6 hours | Q42: 2015-03-07T22:50:29 | R42: 6238044-1|6095805-1 | S42: 0 | T42: 42 | U42: 6238044-1 | V42: 6095805-1 | W42: Bronze
A43: 448867 | B43: us | C43: 1 | D43: Slaschnikoff | E43: z | F43: 415743 | G43: us | H43: 1 | I43: Mindless | J43: p | K43: Bronze | L43: 29 | M43: 29 | N43: 669 | O43: 2015-01-14 | P43: 3 days | Q43: 2015-03-07T22:50:29 | R43: 448867-1|415743-1 | S43: 0 | T43: 43 | U43: 448867-1 | V43: 415743-1 | W43: Bronze
A44: 4954630 | B44: us | C44: 1 | D44: kita | E44: p | F44: 4655789 | G44: us | H44: 1 | I44: sake | J44: r | K44: Bronze | L44: 33 | M44: 34 | N44: 667 | O44: 2015-01-18 | P44: 6 days | Q44: 2015-03-07T22:50:29 | R44: 4954630-1|4655789-1 | S44: 0 | T44: 44 | U44: 4954630-1 | V44: 4655789-1 | W44: Bronze
A45: 6236822 | B45: us | C45: 1 | D45: LardLad | E45: p | F45: 964459 | G45: us | H45: 1 | I45: rBot | J45: p | K45: Bronze | L45: 22 | M45: 21 | N45: 666 | O45: 2015-02-16 | P45: 18 hours | Q45: 2015-03-07T22:50:29 | R45: 6236822-1|964459-1 | S45: 0 | T45: 45 | U45: 6236822-1 | V45: 964459-1 | W45: Bronze
A46: 5341297 | B46: us | C46: 1 | D46: Smitty | E46: t | F46: 755492 | G46: us | H46: 1 | I46: Wonkadonka | J46: p | K46: Bronze | L46: 22 | M46: 29 | N46: 666 | O46: 2015-02-01 | P46: 2 days | Q46: 2015-03-07T22:50:29 | R46: 5341297-1|755492-1 | S46: 0 | T46: 46 | U46: 5341297-1 | V46: 755492-1 | W46: Bronze
A47: 6395382 | B47: us | C47: 1 | D47: RogerThat | E47: z | F47: 1117735 | G47: us | H47: 1 | I47: Nhec | J47: p | K47: Bronze | L47: 32 | M47: 41 | N47: 665 | O47: 2015-01-21 | P47: 19 hours | Q47: 2015-03-07T22:50:29 | R47: 6395382-1|1117735-1 | S47: 0 | T47: 47 | U47: 6395382-1 | V47: 1117735-1 | W47: Bronze
A48: 5832820 | B48: us | C48: 1 | D48: Andyroo | E48: t | F48: 3352252 | G48: us | H48: 1 | I48: AdmiralAkbar | J48: t | K48: Bronze | L48: 68 | M48: 79 | N48: 664 | O48: 2015-01-13 | P48: 3 days | Q48: 2015-03-07T22:50:29 | R48: 5832820-1|3352252-1 | S48: 0 | T48: 48 | U48: 5832820-1 | V48: 3352252-1 | W48: Bronze
A49: 1395252 | B49: us | C49: 1 | D49: queezyfish | E49: z | F49: 314709 | G49: us | H49: 1 | I49: Schecter | J49: r | K49: Bronze | L49: 57 | M49: 67 | N49: 664 | O49: 2015-01-26 | P49: 4 days | Q49: 2015-03-07T22:50:29 | R49: 1395252-1|314709-1 | S49: 0 | T49: 49 | U49: 1395252-1 | V49: 314709-1 | W49: Bronze
A50: 1363328 | B50: us | C50: 1 | D50: GrimChikeN | E50: z | F50: 782129 | G50: us | H50: 1 | I50: burtonsmom | J50: p | K50: Bronze | L50: 40 | M50: 48 | N50: 664 | O50: 2015-01-13 | P50: 3 days | Q50: 2015-03-07T22:50:29 | R50: 1363328-1|782129-1 | S50: 0 | T50: 50 | U50: 1363328-1 | V50: 782129-1 | W50: Bronze
A51: 912557 | B51: us | C51: 2 | D51: Ukchawa | E51: r | F51: 6116627 | G51: us | H51: 1 | I51: Paradox | J51: r | K51: Bronze | L51: 81 | M51: 101 | N51: 664 | O51: 2015-01-22 | P51: 8 hours | Q51: 2015-03-07T22:50:29 | R51: 912557-2|6116627-1 | S51: 0 | T51: 51 | U51: 912557-2 | V51: 6116627-1 | W51: Bronze
A52: 320432 | B52: us | C52: 2 | D52: Kenobi | E52: t | F52: 291413 | G52: us | H52: 2 | I52: Xchel | J52: p | K52: Bronze | L52: 23 | M52: 26 | N52: 661 | O52: 2015-01-24 | P52: 6 hours | Q52: 2015-03-07T22:50:29 | R52: 320432-2|291413-2 | S52: 0 | T52: 52 | U52: 320432-2 | V52: 291413-2 | W52: Bronze
A53: 6074499 | B53: us | C53: 1 | D53: MrPiggy | E53: z | F53: 4373498 | G53: us | H53: 1 | I53: slipknotnb | J53: r | K53: Bronze | L53: 39 | M53: 50 | N53: 661 | O53: 2015-01-28 | P53: 5 hours | Q53: 2015-03-07T22:50:29 | R53: 6074499-1|4373498-1 | S53: 0 | T53: 53 | U53: 6074499-1 | V53: 4373498-1 | W53: Bronze
A54: 6301579 | B54: us | C54: 1 | D54: Gastle | E54: t | F54: 4136917 | G54: us | H54: 1 | I54: BizarreFish | J54: p | K54: Bronze | L54: 34 | M54: 48 | N54: 661 | O54: 2015-01-27 | P54: 4 minutes | Q54: 2015-03-07T22:50:29 | R54: 6301579-1|4136917-1 | S54: 0 | T54: 54 | U54: 6301579-1 | V54: 4136917-1 | W54: Bronze
A55: 4955312 | B55: us | C55: 1 | D55: LegionOfBoom | E55: z | F55: 4953414 | G55: us | H55: 1 | I55: SAMA | J55: z | K55: Bronze | L55: 65 | M55: 68 | N55: 658 | O55: 2015-01-13 | P55: 4 days | Q55: 2015-03-07T22:50:29 | R55: 4955312-1|4953414-1 | S55: 0 | T55: 55 | U55: 4955312-1 | V55: 4953414-1 | W55: Bronze
A56: 5136819 | B56: us | C56: 1 | D56: Finch | E56: r | F56: 3190609 | G56: us | H56: 1 | I56: Johnson | J56: r | K56: Bronze | L56: 49 | M56: 53 | N56: 658 | O56: 2015-01-13 | P56: 3 days | Q56: 2015-03-07T22:50:29 | R56: 5136819-1|3190609-1 | S56: 0 | T56: 56 | U56: 5136819-1 | V56: 3190609-1 | W56: Bronze
A57: 5667073 | B57: us | C57: 1 | D57: Esther | E57: p | F57: 4288317 | G57: us | H57: 1 | I57: Zero | J57: r | K57: Bronze | L57: 56 | M57: 63 | N57: 658 | O57: 2015-01-15 | P57: 1 days | Q57: 2015-03-07T22:50:29 | R57: 5667073-1|4288317-1 | S57: 0 | T57: 57 | U57: 5667073-1 | V57: 4288317-1 | W57: Bronze
A58: 2117599 | B58: us | C58: 1 | D58: Stealth | E58: r | F58: 1093088 | G58: us | H58: 1 | I58: Bones | J58: r | K58: Bronze | L58: 35 | M58: 43 | N58: 658 | O58: 2015-01-19 | P58: 1 days | Q58: 2015-03-07T22:50:29 | R58: 2117599-1|1093088-1 | S58: 0 | T58: 58 | U58: 2117599-1 | V58: 1093088-1 | W58: Bronze
A59: 3040961 | B59: us | C59: 1 | D59: HalfSpin | E59: r | F59: 710484 | G59: us | H59: 1 | I59: Seductron | J59: z | K59: Bronze | L59: 27 | M59: 27 | N59: 656 | O59: 2015-01-14 | P59: 3 days | Q59: 2015-03-07T22:50:29 | R59: 3040961-1|710484-1 | S59: 0 | T59: 59 | U59: 3040961-1 | V59: 710484-1 | W59: Bronze
A60: 6354536 | B60: us | C60: 1 | D60: CripKillazz | E60: p | F60: 5862197 | G60: us | H60: 1 | I60: jayleno | J60: p | K60: Bronze | L60: 30 | M60: 36 | N60: 656 | O60: 2015-02-01 | P60: 3 days | Q60: 2015-03-07T22:50:29 | R60: 6354536-1|5862197-1 | S60: 0 | T60: 60 | U60: 6354536-1 | V60: 5862197-1 | W60: Bronze
A61: 3165048 | B61: us | C61: 1 | D61: bnetisgay | E61: z | F61: 1705224 | G61: us | H61: 1 | I61: ernherdn | J61: p | K61: Bronze | L61: 138 | M61: 172 | N61: 655 | O61: 2015-01-22 | P61: 5 hours | Q61: 2015-03-07T22:50:29 | R61: 3165048-1|1705224-1 | S61: 0 | T61: 61 | U61: 3165048-1 | V61: 1705224-1 | W61: Bronze
A62: 4440303 | B62: us | C62: 1 | D62: Ashmax | E62: p | F62: 4439041 | G62: us | H62: 1 | I62: buyukibne | J62: p | K62: Bronze | L62: 68 | M62: 78 | N62: 654 | O62: 2015-01-14 | P62: 1 days | Q62: 2015-03-07T22:50:29 | R62: 4440303-1|4439041-1 | S62: 0 | T62: 62 | U62: 4440303-1 | V62: 4439041-1 | W62: Bronze
A63: 1090893 | B63: us | C63: 1 | D63: SNAKEEYS | E63: r | F63: 572094 | G63: us | H63: 1 | I63: Vapon | J63: r | K63: Bronze | L63: 31 | M63: 37 | N63: 654 | O63: 2015-01-16 | P63: 3 hours | Q63: 2015-03-07T22:50:29 | R63: 1090893-1|572094-1 | S63: 0 | T63: 63 | U63: 1090893-1 | V63: 572094-1 | W63: Bronze
A64: 5864854 | B64: us | C64: 1 | D64: TheFreshman | E64: t | F64: 2583614 | G64: us | H64: 1 | I64: ColSchafer | J64: t | K64: Bronze | L64: 26 | M64: 27 | N64: 653 | O64: 2015-02-07 | P64: 15 minutes | Q64: 2015-03-07T22:50:29 | R64: 5864854-1|2583614-1 | S64: 0 | T64: 64 | U64: 5864854-1 | V64: 2583614-1 | W64: Bronze
A65: 1739675 | B65: us | C65: 1 | D65: Daedelus | E65: z | F65: 1572127 | G65: us | H65: 1 | I65: awgibbs | J65: t | K65: Bronze | L65: 41 | M65: 44 | N65: 653 | O65: 2015-01-17 | P65: 11 hours | Q65: 2015-03-07T22:50:29 | R65: 1739675-1|1572127-1 | S65: 0 | T65: 65 | U65: 1739675-1 | V65: 1572127-1 | W65: Bronze
A66: 862574 | B66: us | C66: 1 | D66: Sabre | E66: p | F66: 612270 | G66: us | H66: 1 | I66: Shadow | J66: p | K66: Bronze | L66: 65 | M66: 90 | N66: 653 | O66: 2015-01-27 | P66: 4 days | Q66: 2015-03-07T22:50:29 | R66: 862574-1|612270-1 | S66: 0 | T66: 66 | U66: 862574-1 | V66: 612270-1 | W66: Bronze
A67: 5910491 | B67: us | C67: 1 | D67: Ragusauce | E67: t | F67: 3531187 | G67: us | H67: 1 | I67: viatical | J67: p | K67: Bronze | L67: 23 | M67: 26 | N67: 652 | O67: 2015-02-28 | P67: 1 minutes | Q67: 2015-03-07T22:50:29 | R67: 5910491-1|3531187-1 | S67: 0 | T67: 67 | U67: 5910491-1 | V67: 3531187-1 | W67: Bronze
A68: 3087723 | B68: us | C68: 1 | D68: STAR | E68: t | F68: 3012431 | G68: us | H68: 1 | I68: NATO | J68: p | K68: Bronze | L68: 42 | M68: 52 | N68: 652 | O68: 2015-01-13 | P68: 3 hours | Q68: 2015-03-07T22:50:29 | R68: 3087723-1|3012431-1 | S68: 0 | T68: 68 | U68: 3087723-1 | V68: 3012431-1 | W68: Bronze
A69: 5600827 | B69: us | C69: 1 | D69: Antoker | E69: t | F69: 5489105 | G69: us | H69: 1 | I69: BonerCrusher | J69: p | K69: Bronze | L69: 87 | M69: 114 | N69: 652 | O69: 2015-01-14 | P69: 22 hours | Q69: 2015-03-07T22:50:29 | R69: 5600827-1|5489105-1 | S69: 0 | T69: 69 | U69: 5600827-1 | V69: 5489105-1 | W69: Bronze
A70: 5954830 | B70: us | C70: 1 | D70: Shiftske | E70: z | F70: 463881 | G70: us | H70: 1 | I70: Tearup | J70: p | K70: Bronze | L70: 40 | M70: 54 | N70: 652 | O70: 2015-02-28 | P70: 1 days | Q70: 2015-03-07T22:50:29 | R70: 5954830-1|463881-1 | S70: 0 | T70: 70 | U70: 5954830-1 | V70: 463881-1 | W70: Bronze
A71: 4731642 | B71: us | C71: 1 | D71: RAZIEL | E71: z | F71: 4566517 | G71: us | H71: 1 | I71: FANATIC | J71: z | K71: Bronze | L71: 58 | M71: 71 | N71: 651 | O71: 2015-01-13 | P71: 1 minutes | Q71: 2015-03-07T22:50:29 | R71: 4731642-1|4566517-1 | S71: 0 | T71: 71 | U71: 4731642-1 | V71: 4566517-1 | W71: Bronze
A72: 2071102 | B72: us | C72: 1 | D72: kivro | E72: t | F72: 1148964 | G72: us | H72: 1 | I72: skillsboy | J72: z | K72: Bronze | L72: 30 | M72: 29 | N72: 647 | O72: 2015-01-13 | P72: 2 days | Q72: 2015-03-07T22:50:29 | R72: 2071102-1|1148964-1 | S72: 0 | T72: 72 | U72: 2071102-1 | V72: 1148964-1 | W72: Bronze
A73: 6347557 | B73: us | C73: 1 | D73: Grombane | E73: z | F73: 6346959 | G73: us | H73: 1 | I73: NotLongEnoug | J73: t | K73: Bronze | L73: 30 | M73: 35 | N73: 647 | O73: 2015-02-24 | P73: 3 days | Q73: 2015-03-07T22:50:29 | R73: 6347557-1|6346959-1 | S73: 0 | T73: 73 | U73: 6347557-1 | V73: 6346959-1 | W73: Bronze
A74: 6350536 | B74: us | C74: 1 | D74: ImNotSoJake | E74: t | F74: 1337431 | G74: us | H74: 1 | I74: Hypnotic | J74: p | K74: Bronze | L74: 40 | M74: 48 | N74: 647 | O74: 2015-01-17 | P74: 1 days | Q74: 2015-03-07T22:50:29 | R74: 6350536-1|1337431-1 | S74: 0 | T74: 74 | U74: 6350536-1 | V74: 1337431-1 | W74: Bronze
A75: 2108974 | B75: us | C75: 1 | D75: Shaker | E75: t | F75: 2104314 | G75: us | H75: 1 | I75: Bugs | J75: p | K75: Bronze | L75: 37 | M75: 50 | N75: 647 | O75: 2015-01-13 | P75: 1 hours | Q75: 2015-03-07T22:50:29 | R75: 2108974-1|2104314-1 | S75: 0 | T75: 75 | U75: 2108974-1 | V75: 2104314-1 | W75: Bronze
A76: 2272428 | B76: us | C76: 1 | D76: Silas | E76: t | F76: 1694056 | G76: us | H76: 1 | I76: LivinThDream | J76: p | K76: Bronze | L76: 31 | M76: 46 | N76: 646 | O76: 2015-02-18 | P76: 2 hours | Q76: 2015-03-07T22:50:29 | R76: 2272428-1|1694056-1 | S76: 0 | T76: 76 | U76: 2272428-1 | V76: 1694056-1 | W76: Bronze
A77: 6366557 | B77: us | C77: 1 | D77: CrateTard | E77: r | F77: 6365425 | G77: us | H77: 1 | I77: TheLaw | J77: p | K77: Bronze | L77: 96 | M77: 111 | N77: 642 | O77: 2015-01-31 | P77: 3 days | Q77: 2015-03-07T22:50:29 | R77: 6366557-1|6365425-1 | S77: 0 | T77: 77 | U77: 6366557-1 | V77: 6365425-1 | W77: Bronze
A78: 1711934 | B78: us | C78: 1 | D78: TheAckleyKid | E78: p | F78: 758437 | G78: us | H78: 1 | I78: TwoFourZero | J78: t | K78: Bronze | L78: 55 | M78: 70 | N78: 642 | O78: 2015-01-16 | P78: 9 hours | Q78: 2015-03-07T22:50:29 | R78: 1711934-1|758437-1 | S78: 0 | T78: 78 | U78: 1711934-1 | V78: 758437-1 | W78: Bronze
A79: 4084350 | B79: us | C79: 1 | D79: ButtfaceMgee | E79: r | F79: 2518773 | G79: us | H79: 1 | I79: maxamus | J79: p | K79: Bronze | L79: 36 | M79: 41 | N79: 641 | O79: 2015-01-15 | P79: 7 days | Q79: 2015-03-07T22:50:29 | R79: 4084350-1|2518773-1 | S79: 0 | T79: 79 | U79: 4084350-1 | V79: 2518773-1 | W79: Bronze
A80: 611952 | B80: us | C80: 2 | D80: Iceface | E80: r | F80: 208289 | G80: us | H80: 2 | I80: TheParra | J80: r | K80: Bronze | L80: 27 | M80: 28 | N80: 640 | O80: 2015-02-03 | P80: 8 days | Q80: 2015-03-07T22:50:29 | R80: 611952-2|208289-2 | S80: 0 | T80: 80 | U80: 611952-2 | V80: 208289-2 | W80: Bronze
A81: 2424426 | B81: us | C81: 1 | D81: JediZealot | E81: z | F81: 325263 | G81: us | H81: 1 | I81: Elendil | J81: r | K81: Bronze | L81: 26 | M81: 30 | N81: 640 | O81: 2015-01-18 | P81: 6 days | Q81: 2015-03-07T22:50:29 | R81: 2424426-1|325263-1 | S81: 0 | T81: 81 | U81: 2424426-1 | V81: 325263-1 | W81: Bronze
A82: 6057343 | B82: us | C82: 1 | D82: StarLord | E82: p | F82: 2436331 | G82: us | H82: 1 | I82: vehga | J82: z | K82: Bronze | L82: 49 | M82: 60 | N82: 640 | O82: 2015-01-12 | P82: 1 days | Q82: 2015-03-07T22:50:29 | R82: 6057343-1|2436331-1 | S82: 0 | T82: 82 | U82: 6057343-1 | V82: 2436331-1 | W82: Bronze
A83: 1373099 | B83: us | C83: 1 | D83: Drock | E83: z | F83: 1077100 | G83: us | H83: 1 | I83: Scottastic | J83: r | K83: Bronze | L83: 41 | M83: 40 | N83: 639 | O83: 2015-01-15 | P83: 1 days | Q83: 2015-03-07T22:50:29 | R83: 1373099-1|1077100-1 | S83: 0 | T83: 83 | U83: 1373099-1 | V83: 1077100-1 | W83: Bronze
A84: 6345598 | B84: us | C84: 1 | D84: FreakDJ | E84: t | F84: 4967015 | G84: us | H84: 1 | I84: CrazyKorean | J84: t | K84: Bronze | L84: 23 | M84: 25 | N84: 639 | O84: 2015-01-25 | P84: 9 minutes | Q84: 2015-03-07T22:50:29 | R84: 6345598-1|4967015-1 | S84: 0 | T84: 84 | U84: 6345598-1 | V84: 4967015-1 | W84: Bronze
A85: 370072 | B85: us | C85: 2 | D85: cazador | E85: t | F85: 4551925 | G85: us | H85: 1 | I85: TERMINATOR | J85: r | K85: Bronze | L85: 31 | M85: 27 | N85: 638 | O85: 2015-01-17 | P85: 1 days | Q85: 2015-03-07T22:50:29 | R85: 370072-2|4551925-1 | S85: 0 | T85: 85 | U85: 370072-2 | V85: 4551925-1 | W85: Bronze
A86: 2887676 | B86: us | C86: 1 | D86: GraveRobber | E86: t | F86: 2075546 | G86: us | H86: 1 | I86: Pedro | J86: t | K86: Bronze | L86: 31 | M86: 34 | N86: 635 | O86: 2015-01-15 | P86: 21 hours | Q86: 2015-03-07T22:50:29 | R86: 2887676-1|2075546-1 | S86: 0 | T86: 86 | U86: 2887676-1 | V86: 2075546-1 | W86: Bronze
A87: 6262331 | B87: us | C87: 1 | D87: rustlejimmys | E87: p | F87: 4251422 | G87: us | H87: 1 | I87: Johno | J87: p | K87: Bronze | L87: 29 | M87: 32 | N87: 635 | O87: 2015-01-29 | P87: 1 days | Q87: 2015-03-07T22:50:29 | R87: 6262331-1|4251422-1 | S87: 0 | T87: 87 | U87: 6262331-1 | V87: 4251422-1 | W87: Bronze
A88: 898297 | B88: us | C88: 1 | D88: Hagbar | E88: t | F88: 446358 | G88: us | H88: 1 | I88: Autorock | J88: t | K88: Bronze | L88: 40 | M88: 55 | N88: 634 | O88: 2015-01-17 | P88: 1 days | Q88: 2015-03-07T22:50:29 | R88: 898297-1|446358-1 | S88: 0 | T88: 88 | U88: 898297-1 | V88: 446358-1 | W88: Bronze
A89: 672681 | B89: us | C89: 2 | D89: ObitoUchiha | E89: t | F89: 392593 | G89: us | H89: 2 | I89: WLKyo | J89: p | K89: Bronze | L89: 48 | M89: 59 | N89: 633 | O89: 2015-01-13 | P89: 10 hours | Q89: 2015-03-07T22:50:29 | R89: 672681-2|392593-2 | S89: 0 | T89: 89 | U89: 672681-2 | V89: 392593-2 | W89: Bronze
A90: 3681575 | B90: us | C90: 1 | D90: StagYoloSwag | E90: r | F90: 2662407 | G90: us | H90: 1 | I90: hashtagrekt | J90: p | K90: Bronze | L90: 174 | M90: 216 | N90: 632 | O90: 2015-01-13 | P90: 7 minutes | Q90: 2015-03-07T22:50:29 | R90: 3681575-1|2662407-1 | S90: 0 | T90: 90 | U90: 3681575-1 | V90: 2662407-1 | W90: Bronze
A91: 6419686 | B91: us | C91: 1 | D91: LTjigglypuff | E91: p | F91: 2379836 | G91: us | H91: 1 | I91: FoRTe | J91: p | K91: Bronze | L91: 46 | M91: 65 | N91: 632 | O91: 2015-01-25 | P91: 20 hours | Q91: 2015-03-07T22:50:29 | R91: 6419686-1|2379836-1 | S91: 0 | T91: 91 | U91: 6419686-1 | V91: 2379836-1 | W91: Bronze
A92: 5353647 | B92: us | C92: 1 | D92: Dallred | E92: t | F92: 1883448 | G92: us | H92: 1 | I92: dano | J92: t | K92: Bronze | L92: 32 | M92: 46 | N92: 632 | O92: 2015-01-13 | P92: 1 days | Q92: 2015-03-07T22:50:29 | R92: 5353647-1|1883448-1 | S92: 0 | T92: 92 | U92: 5353647-1 | V92: 1883448-1 | W92: Bronze
A93: 4881790 | B93: us | C93: 1 | D93: BeastEaston | E93: p | F93: 818888 | G93: us | H93: 1 | I93: TheSkunch | J93: p | K93: Bronze | L93: 55 | M93: 61 | N93: 631 | O93: 2015-01-12 | P93: 2 days | Q93: 2015-03-07T22:50:29 | R93: 4881790-1|818888-1 | S93: 0 | T93: 93 | U93: 4881790-1 | V93: 818888-1 | W93: Bronze
A94: 4123358 | B94: us | C94: 1 | D94: kingcoocs | E94: t | F94: 594260 | G94: us | H94: 1 | I94: AdmiralQ | J94: r | K94: Bronze | L94: 68 | M94: 78 | N94: 630 | O94: 2015-01-13 | P94: 4 days | Q94: 2015-03-07T22:50:29 | R94: 4123358-1|594260-1 | S94: 0 | T94: 94 | U94: 4123358-1 | V94: 594260-1 | W94: Bronze
A95: 776443 | B95: us | C95: 1 | D95: RustyLogic | E95: z | F95: 279720 | G95: us | H95: 1 | I95: Keon | J95: t | K95: Bronze | L95: 25 | M95: 34 | N95: 630 | O95: 2015-01-14 | P95: 1 days | Q95: 2015-03-07T22:50:29 | R95: 776443-1|279720-1 | S95: 0 | T95: 95 | U95: 776443-1 | V95: 279720-1 | W95: Bronze
A96: 326089 | B96: us | C96: 1 | D96: Tidepebs | E96: r | F96: 271884 | G96: us | H96: 1 | I96: skibud | J96: r | K96: Bronze | L96: 33 | M96: 37 | N96: 629 | O96: 2015-02-07 | P96: 7 days | Q96: 2015-03-07T22:50:29 | R96: 326089-1|271884-1 | S96: 0 | T96: 96 | U96: 326089-1 | V96: 271884-1 | W96: Bronze
A97: 4907751 | B97: us | C97: 1 | D97: SinCityBorn | E97: p | F97: 2150819 | G97: us | H97: 1 | I97: utopianruone | J97: t | K97: Bronze | L97: 57 | M97: 70 | N97: 629 | O97: 2015-01-27 | P97: 3 days | Q97: 2015-03-07T22:50:29 | R97: 4907751-1|2150819-1 | S97: 0 | T97: 97 | U97: 4907751-1 | V97: 2150819-1 | W97: Bronze
A98: 723242 | B98: us | C98: 2 | D98: combatwarrio | E98: p | F98: 4325684 | G98: us | H98: 1 | I98: JAZ | J98: t | K98: Bronze | L98: 22 | M98: 28 | N98: 628 | O98: 2015-01-14 | P98: 23 hours | Q98: 2015-03-07T22:50:29 | R98: 723242-2|4325684-1 | S98: 0 | T98: 98 | U98: 723242-2 | V98: 4325684-1 | W98: Bronze
A99: 6176143 | B99: us | C99: 1 | D99: FallingPoop | E99: t | F99: 1919798 | G99: us | H99: 1 | I99: Modestburns | J99: p | K99: Bronze | L99: 41 | M99: 54 | N99: 627 | O99: 2015-01-12 | P99: 4 hours | Q99: 2015-03-07T22:50:29 | R99: 6176143-1|1919798-1 | S99: 0 | T99: 99 | U99: 6176143-1 | V99: 1919798-1 | W99: Bronze
A100: 1343659 | B100: us | C100: 1 | D100: psilous | E100: r | F100: 1170498 | G100: us | H100: 1 | I100: BOSSNULL | J100: r | K100: Bronze | L100: 23 | M100: 27 | N100: 625 | O100: 2015-02-08 | P100: 4 days | Q100: 2015-03-07T22:50:29 | R100: 1343659-1|1170498-1 | S100: 0 | T100: 100 | U100: 1343659-1 | V100: 1170498-1 | W100: Bronze
A101: 2390864 | B101: us | C101: 1 | D101: DrumBum | E101: t | F101: 1993154 | G101: us | H101: 1 | I101: REEFERMADNES | J101: p | K101: Bronze | L101: 30 | M101: 37 | N101: 625 | O101: 2015-02-25 | P101: 8 days | Q101: 2015-03-07T22:50:29 | R101: 2390864-1|1993154-1 | S101: 0 | T101: 101 | U101: 2390864-1 | V101: 1993154-1 | W101: Bronze
A102: 3290366 | B102: us | C102: 1 | D102: Wolfgang | E102: p | F102: 1630661 | G102: us | H102: 1 | I102: MatteiusPi | J102: z | K102: Bronze | L102: 23 | M102: 18 | N102: 624 | O102: 2015-01-23 | P102: 26 minutes | Q102: 2015-03-07T22:50:29 | R102: 3290366-1|1630661-1 | S102: 0 | T102: 102 | U102: 3290366-1 | V102: 1630661-1 | W102: Bronze
A103: 2309184 | B103: us | C103: 1 | D103: Cosmos | E103: z | F103: 415060 | G103: us | H103: 1 | I103: MiKaeL | J103: z | K103: Bronze | L103: 38 | M103: 42 | N103: 624 | O103: 2015-01-13 | P103: 8 days | Q103: 2015-03-07T22:50:29 | R103: 2309184-1|415060-1 | S103: 0 | T103: 103 | U103: 2309184-1 | V103: 415060-1 | W103: Bronze
A104: 6540799 | B104: us | C104: 1 | D104: DrTicklesMD | E104: t | F104: 4261241 | G104: us | H104: 1 | I104: Dardstar | J104: p | K104: Bronze | L104: 46 | M104: 60 | N104: 624 | O104: 2015-02-19 | P104: 4 days | Q104: 2015-03-07T22:50:29 | R104: 6540799-1|4261241-1 | S104: 0 | T104: 104 | U104: 6540799-1 | V104: 4261241-1 | W104: Bronze
A105: 537953 | B105: us | C105: 2 | D105: LuizOtavio | E105: z | F105: 5228630 | G105: us | H105: 1 | I105: Rokkzilla | J105: z | K105: Bronze | L105: 20 | M105: 23 | N105: 622 | O105: 2015-02-24 | P105: 1 days | Q105: 2015-03-07T22:50:29 | R105: 537953-2|5228630-1 | S105: 0 | T105: 105 | U105: 537953-2 | V105: 5228630-1 | W105: Bronze
A106: 2457673 | B106: us | C106: 1 | D106: alien | E106: z | F106: 2075507 | G106: us | H106: 1 | I106: DawgDiesell | J106: t | K106: Bronze | L106: 50 | M106: 61 | N106: 622 | O106: 2015-01-13 | P106: 2 hours | Q106: 2015-03-07T22:50:29 | R106: 2457673-1|2075507-1 | S106: 0 | T106: 106 | U106: 2457673-1 | V106: 2075507-1 | W106: Bronze
A107: 2311579 | B107: us | C107: 1 | D107: Warbringer | E107: t | F107: 1261379 | G107: us | H107: 1 | I107: Hopeslayer | J107: z | K107: Bronze | L107: 23 | M107: 24 | N107: 621 | O107: 2015-01-18 | P107: 4 days | Q107: 2015-03-07T22:50:29 | R107: 2311579-1|1261379-1 | S107: 0 | T107: 107 | U107: 2311579-1 | V107: 1261379-1 | W107: Bronze
A108: 4613173 | B108: us | C108: 1 | D108: TRASHDOG | E108: z | F108: 560842 | G108: us | H108: 1 | I108: Arion | J108: z | K108: Bronze | L108: 70 | M108: 79 | N108: 621 | O108: 2015-01-17 | P108: 5 days | Q108: 2015-03-07T22:50:29 | R108: 4613173-1|560842-1 | S108: 0 | T108: 108 | U108: 4613173-1 | V108: 560842-1 | W108: Bronze
A109: 1008907 | B109: us | C109: 1 | D109: Shonuff | E109: z | F109: 902181 | G109: us | H109: 1 | I109: Bazinga | J109: t | K109: Bronze | L109: 37 | M109: 49 | N109: 621 | O109: 2015-01-15 | P109: 6 days | Q109: 2015-03-07T22:50:29 | R109: 1008907-1|902181-1 | S109: 0 | T109: 109 | U109: 1008907-1 | V109: 902181-1 | W109: Bronze
A110: 3811171 | B110: us | C110: 1 | D110: Banger | E110: r | F110: 3786379 | G110: us | H110: 1 | I110: HeMan | J110: t | K110: Bronze | L110: 25 | M110: 23 | N110: 620 | O110: 2015-01-13 | P110: 6 days | Q110: 2015-03-07T22:50:29 | R110: 3811171-1|3786379-1 | S110: 0 | T110: 110 | U110: 3811171-1 | V110: 3786379-1 | W110: Bronze
A111: 6262732 | B111: us | C111: 1 | D111: SiDRaM | E111: t | F111: 2733060 | G111: us | H111: 1 | I111: Joshua | J111: p | K111: Bronze | L111: 79 | M111: 86 | N111: 620 | O111: 2015-01-13 | P111: 9 days | Q111: 2015-03-07T22:50:29 | R111: 6262732-1|2733060-1 | S111: 0 | T111: 111 | U111: 6262732-1 | V111: 2733060-1 | W111: Bronze
A112: 2178897 | B112: us | C112: 1 | D112: DReaMe | E112: t | F112: 1610640 | G112: us | H112: 1 | I112: chagahawk | J112: p | K112: Bronze | L112: 35 | M112: 51 | N112: 620 | O112: 2015-01-17 | P112: 3 days | Q112: 2015-03-07T22:50:29 | R112: 2178897-1|1610640-1 | S112: 0 | T112: 112 | U112: 2178897-1 | V112: 1610640-1 | W112: Bronze
A113: 205017 | B113: us | C113: 2 | D113: solidwilliam | E113: z | F113: 5881190 | G113: us | H113: 1 | I113: JoseEddie | J113: t | K113: Bronze | L113: 34 | M113: 46 | N113: 619 | O113: 2015-01-15 | P113: 3 days | Q113: 2015-03-07T22:50:29 | R113: 205017-2|5881190-1 | S113: 0 | T113: 113 | U113: 205017-2 | V113: 5881190-1 | W113: Bronze
A114: 679010 | B114: us | C114: 2 | D114: ShadowKing | E114: p | F114: 614590 | G114: us | H114: 2 | I114: THEBLACKKING | J114: z | K114: Bronze | L114: 22 | M114: 32 | N114: 619 | O114: 2015-01-30 | P114: 1 days | Q114: 2015-03-07T22:50:29 | R114: 679010-2|614590-2 | S114: 0 | T114: 114 | U114: 679010-2 | V114: 614590-2 | W114: Bronze
A115: 6084126 | B115: us | C115: 1 | D115: ratchetjaw | E115: r | F115: 4418108 | G115: us | H115: 1 | I115: SlamJam | J115: r | K115: Bronze | L115: 43 | M115: 44 | N115: 618 | O115: 2015-01-14 | P115: 1 days | Q115: 2015-03-07T22:50:29 | R115: 6084126-1|4418108-1 | S115: 0 | T115: 115 | U115: 6084126-1 | V115: 4418108-1 | W115: Bronze
A116: 3391915 | B116: us | C116: 1 | D116: Dexter | E116: t | F116: 2945353 | G116: us | H116: 1 | I116: fastbstang | J116: t | K116: Bronze | L116: 29 | M116: 30 | N116: 618 | O116: 2015-01-13 | P116: 6 days | Q116: 2015-03-07T22:50:29 | R116: 3391915-1|2945353-1 | S116: 0 | T116: 116 | U116: 3391915-1 | V116: 2945353-1 | W116: Bronze
A117: 41883 | B117: us | C117: 2 | D117: kiNgkeTz | E117: p | F117: 4752532 | G117: us | H117: 1 | I117: xMENTALZEROx | J117: r | K117: Bronze | L117: 21 | M117: 22 | N117: 618 | O117: 2015-01-20 | P117: 6 days | Q117: 2015-03-07T22:50:29 | R117: 41883-2|4752532-1 | S117: 0 | T117: 117 | U117: 41883-2 | V117: 4752532-1 | W117: Bronze
A118: 800472 | B118: us | C118: 2 | D118: chivox | E118: r | F118: 322278 | G118: us | H118: 2 | I118: ManuelMQ | J118: z | K118: Bronze | L118: 24 | M118: 28 | N118: 618 | O118: 2015-01-31 | P118: 5 days | Q118: 2015-03-07T22:50:29 | R118: 800472-2|322278-2 | S118: 0 | T118: 118 | U118: 800472-2 | V118: 322278-2 | W118: Bronze
A119: 329792 | B119: us | C119: 2 | D119: megatron | E119: t | F119: 239305 | G119: us | H119: 2 | I119: byoxico | J119: p | K119: Bronze | L119: 28 | M119: 38 | N119: 618 | O119: 2015-01-13 | P119: 4 days | Q119: 2015-03-07T22:50:29 | R119: 329792-2|239305-2 | S119: 0 | T119: 119 | U119: 329792-2 | V119: 239305-2 | W119: Bronze
A120: 6297326 | B120: us | C120: 1 | D120: Skulcsar | E120: p | F120: 6281890 | G120: us | H120: 1 | I120: LoboWalker | J120: t | K120: Bronze | L120: 37 | M120: 52 | N120: 617 | O120: 2015-01-18 | P120: 45 minutes | Q120: 2015-03-07T22:50:29 | R120: 6297326-1|6281890-1 | S120: 0 | T120: 120 | U120: 6297326-1 | V120: 6281890-1 | W120: Bronze
A121: 6030156 | B121: us | C121: 1 | D121: Sapper | E121: t | F121: 5955534 | G121: us | H121: 1 | I121: Zac | J121: p | K121: Bronze | L121: 52 | M121: 68 | N121: 616 | O121: 2015-01-17 | P121: 17 hours | Q121: 2015-03-07T22:50:29 | R121: 6030156-1|5955534-1 | S121: 0 | T121: 121 | U121: 6030156-1 | V121: 5955534-1 | W121: Bronze
A122: 6172295 | B122: us | C122: 1 | D122: Gorak | E122: t | F122: 6087129 | G122: us | H122: 1 | I122: gubasaurus | J122: p | K122: Bronze | L122: 30 | M122: 32 | N122: 614 | O122: 2015-01-20 | P122: 3 days | Q122: 2015-03-07T22:50:29 | R122: 6172295-1|6087129-1 | S122: 0 | T122: 122 | U122: 6172295-1 | V122: 6087129-1 | W122: Bronze
A123: 6075416 | B123: us | C123: 1 | D123: PaNiiC | E123: z | F123: 5951085 | G123: us | H123: 1 | I123: Life | J123: t | K123: Bronze | L123: 31 | M123: 35 | N123: 614 | O123: 2015-02-18 | P123: 1 days | Q123: 2015-03-07T22:50:29 | R123: 6075416-1|5951085-1 | S123: 0 | T123: 123 | U123: 6075416-1 | V123: 5951085-1 | W123: Bronze
A124: 4372590 | B124: us | C124: 1 | D124: MotorMouf | E124: p | F124: 3957821 | G124: us | H124: 1 | I124: maxleee | J124: p | K124: Bronze | L124: 30 | M124: 41 | N124: 614 | O124: 2015-01-14 | P124: 1 days | Q124: 2015-03-07T22:50:29 | R124: 4372590-1|3957821-1 | S124: 0 | T124: 124 | U124: 4372590-1 | V124: 3957821-1 | W124: Bronze
A125: 3984673 | B125: us | C125: 1 | D125: OrleansKilla | E125: t | F125: 325597 | G125: us | H125: 1 | I125: Cobra | J125: p | K125: Bronze | L125: 57 | M125: 71 | N125: 613 | O125: 2015-01-14 | P125: 2 days | Q125: 2015-03-07T22:50:29 | R125: 3984673-1|325597-1 | S125: 0 | T125: 125 | U125: 3984673-1 | V125: 325597-1 | W125: Bronze
A126: 6072305 | B126: us | C126: 1 | D126: Nomak | E126: p | F126: 5742073 | G126: us | H126: 1 | I126: Varitech | J126: p | K126: Bronze | L126: 25 | M126: 33 | N126: 613 | O126: 2015-01-31 | P126: 2 days | Q126: 2015-03-07T22:50:29 | R126: 6072305-1|5742073-1 | S126: 0 | T126: 126 | U126: 6072305-1 | V126: 5742073-1 | W126: Bronze
A127: 6265809 | B127: us | C127: 1 | D127: High | E127: p | F127: 3176076 | G127: us | H127: 1 | I127: manh | J127: z | K127: Bronze | L127: 29 | M127: 33 | N127: 612 | O127: 2015-01-13 | P127: 3 days | Q127: 2015-03-07T22:50:29 | R127: 6265809-1|3176076-1 | S127: 0 | T127: 127 | U127: 6265809-1 | V127: 3176076-1 | W127: Bronze
A128: 3326180 | B128: us | C128: 1 | D128: MAXIMUS | E128: t | F128: 1792752 | G128: us | H128: 1 | I128: BASH | J128: t | K128: Bronze | L128: 22 | M128: 27 | N128: 612 | O128: 2015-01-17 | P128: 37 minutes | Q128: 2015-03-07T22:50:29 | R128: 3326180-1|1792752-1 | S128: 0 | T128: 128 | U128: 3326180-1 | V128: 1792752-1 | W128: Bronze
A129: 5318366 | B129: us | C129: 1 | D129: Mart | E129: z | F129: 2024241 | G129: us | H129: 1 | I129: ElGros | J129: r | K129: Bronze | L129: 36 | M129: 50 | N129: 611 | O129: 2015-01-13 | P129: 2 days | Q129: 2015-03-07T22:50:29 | R129: 5318366-1|2024241-1 | S129: 0 | T129: 129 | U129: 5318366-1 | V129: 2024241-1 | W129: Bronze
A130: 348629 | B130: us | C130: 1 | D130: CyrusII | E130: r | F130: 347945 | G130: us | H130: 1 | I130: Ideation | J130: r | K130: Bronze | L130: 23 | M130: 22 | N130: 610 | O130: 2015-01-17 | P130: 19 hours | Q130: 2015-03-07T22:50:29 | R130: 348629-1|347945-1 | S130: 0 | T130: 130 | U130: 348629-1 | V130: 347945-1 | W130: Bronze
A131: 243605 | B131: us | C131: 2 | D131: AssbestooS | E131: p | F131: 7978 | G131: us | H131: 2 | I131: DarthVader | J131: t | K131: Bronze | L131: 41 | M131: 42 | N131: 610 | O131: 2015-01-17 | P131: 7 days | Q131: 2015-03-07T22:50:29 | R131: 243605-2|7978-2 | S131: 0 | T131: 131 | U131: 243605-2 | V131: 7978-2 | W131: Bronze
A132: 4237404 | B132: us | C132: 1 | D132: GNoby | E132: r | F132: 4164865 | G132: us | H132: 1 | I132: ProtoPlasma | J132: r | K132: Bronze | L132: 40 | M132: 48 | N132: 610 | O132: 2015-01-13 | P132: 3 days | Q132: 2015-03-07T22:50:29 | R132: 4237404-1|4164865-1 | S132: 0 | T132: 132 | U132: 4237404-1 | V132: 4164865-1 | W132: Bronze
A133: 4987089 | B133: us | C133: 1 | D133: NavyGuy | E133: t | F133: 1381121 | G133: us | H133: 1 | I133: Rhaegar | J133: z | K133: Bronze | L133: 24 | M133: 24 | N133: 609 | O133: 2015-01-24 | P133: 6 days | Q133: 2015-03-07T22:50:29 | R133: 4987089-1|1381121-1 | S133: 0 | T133: 133 | U133: 4987089-1 | V133: 1381121-1 | W133: Bronze
A134: 5119480 | B134: us | C134: 1 | D134: Blackice | E134: z | F134: 1111519 | G134: us | H134: 1 | I134: Gerard | J134: p | K134: Bronze | L134: 22 | M134: 29 | N134: 607 | O134: 2015-02-11 | P134: 3 days | Q134: 2015-03-07T22:50:29 | R134: 5119480-1|1111519-1 | S134: 0 | T134: 134 | U134: 5119480-1 | V134: 1111519-1 | W134: Bronze
A135: 6434630 | B135: us | C135: 1 | D135: Jiub | E135: p | F135: 6154253 | G135: us | H135: 1 | I135: Instigator | J135: z | K135: Bronze | L135: 33 | M135: 44 | N135: 607 | O135: 2015-02-01 | P135: 8 hours | Q135: 2015-03-07T22:50:29 | R135: 6434630-1|6154253-1 | S135: 0 | T135: 135 | U135: 6434630-1 | V135: 6154253-1 | W135: Bronze
A136: 4937766 | B136: us | C136: 1 | D136: iRoik | E136: r | F136: 2808664 | G136: us | H136: 1 | I136: DoubleJay | J136: p | K136: Bronze | L136: 26 | M136: 38 | N136: 606 | O136: 2015-01-30 | P136: 2 days | Q136: 2015-03-07T22:50:29 | R136: 4937766-1|2808664-1 | S136: 0 | T136: 136 | U136: 4937766-1 | V136: 2808664-1 | W136: Bronze
A137: 2828624 | B137: us | C137: 1 | D137: RockstaR | E137: z | F137: 1202948 | G137: us | H137: 1 | I137: LewFerTwo | J137: t | K137: Bronze | L137: 21 | M137: 31 | N137: 606 | O137: 2015-02-15 | P137: 1 days | Q137: 2015-03-07T22:50:29 | R137: 2828624-1|1202948-1 | S137: 0 | T137: 137 | U137: 2828624-1 | V137: 1202948-1 | W137: Bronze
A138: 3817463 | B138: us | C138: 1 | D138: Ashes | E138: r | F138: 2494430 | G138: us | H138: 1 | I138: Caius | J138: p | K138: Bronze | L138: 20 | M138: 30 | N138: 606 | O138: 2015-02-02 | P138: 11 hours | Q138: 2015-03-07T22:50:29 | R138: 3817463-1|2494430-1 | S138: 0 | T138: 138 | U138: 3817463-1 | V138: 2494430-1 | W138: Bronze
A139: 1753174 | B139: us | C139: 1 | D139: Jebanator | E139: p | F139: 1736913 | G139: us | H139: 1 | I139: Hawk | J139: z | K139: Bronze | L139: 22 | M139: 27 | N139: 605 | O139: 2015-02-11 | P139: 9 days | Q139: 2015-03-07T22:50:29 | R139: 1753174-1|1736913-1 | S139: 0 | T139: 139 | U139: 1753174-1 | V139: 1736913-1 | W139: Bronze
A140: 5970673 | B140: us | C140: 1 | D140: Reaper | E140: z | F140: 4891936 | G140: us | H140: 1 | I140: DerpMagikarp | J140: t | K140: Bronze | L140: 25 | M140: 45 | N140: 605 | O140: 2015-01-16 | P140: 1 days | Q140: 2015-03-07T22:50:29 | R140: 5970673-1|4891936-1 | S140: 0 | T140: 140 | U140: 5970673-1 | V140: 4891936-1 | W140: Bronze
A141: 1277566 | B141: us | C141: 1 | D141: BOOM | E141: t | F141: 1106994 | G141: us | H141: 1 | I141: Ultimate | J141: p | K141: Bronze | L141: 20 | M141: 31 | N141: 604 | O141: 2015-01-13 | P141: 8 hours | Q141: 2015-03-07T22:50:29 | R141: 1277566-1|1106994-1 | S141: 0 | T141: 141 | U141: 1277566-1 | V141: 1106994-1 | W141: Bronze
A142: 6528862 | B142: us | C142: 1 | D142: hebrewhammer | E142: r | F142: 2397798 | G142: us | H142: 1 | I142: Klepto | J142: r | K142: Bronze | L142: 36 | M142: 47 | N142: 603 | O142: 2015-02-15 | P142: 19 minutes | Q142: 2015-03-07T22:50:29 | R142: 6528862-1|2397798-1 | S142: 0 | T142: 142 | U142: 6528862-1 | V142: 2397798-1 | W142: Bronze
A143: 636990 | B143: us | C143: 1 | D143: Mosko | E143: t | F143: 433699 | G143: us | H143: 1 | I143: pender | J143: t | K143: Bronze | L143: 34 | M143: 37 | N143: 602 | O143: 2015-01-12 | P143: 8 days | Q143: 2015-03-07T22:50:29 | R143: 636990-1|433699-1 | S143: 0 | T143: 143 | U143: 636990-1 | V143: 433699-1 | W143: Bronze
A144: 2525688 | B144: us | C144: 1 | D144: PurpleLizard | E144: z | F144: 1980582 | G144: us | H144: 1 | I144: RenderMan | J144: r | K144: Bronze | L144: 27 | M144: 31 | N144: 602 | O144: 2015-01-13 | P144: 7 days | Q144: 2015-03-07T22:50:29 | R144: 2525688-1|1980582-1 | S144: 0 | T144: 144 | U144: 2525688-1 | V144: 1980582-1 | W144: Bronze
A145: 4161032 | B145: us | C145: 1 | D145: Azure | E145: r | F145: 2327454 | G145: us | H145: 1 | I145: Dafrostie | J145: r | K145: Bronze | L145: 20 | M145: 23 | N145: 602 | O145: 2015-02-09 | P145: 21 hours | Q145: 2015-03-07T22:50:29 | R145: 4161032-1|2327454-1 | S145: 0 | T145: 145 | U145: 4161032-1 | V145: 2327454-1 | W145: Bronze
A146: 2198816 | B146: us | C146: 1 | D146: zergerking | E146: p | F146: 599849 | G146: us | H146: 1 | I146: VoidStrike | J146: p | K146: Bronze | L146: 21 | M146: 24 | N146: 601 | O146: 2015-01-31 | P146: 6 days | Q146: 2015-03-07T22:50:29 | R146: 2198816-1|599849-1 | S146: 0 | T146: 146 | U146: 2198816-1 | V146: 599849-1 | W146: Bronze
A147: 2012642 | B147: us | C147: 1 | D147: Baskerville | E147: z | F147: 842495 | G147: us | H147: 1 | I147: Fiddlestix | J147: t | K147: Bronze | L147: 29 | M147: 37 | N147: 601 | O147: 2015-01-19 | P147: 6 days | Q147: 2015-03-07T22:50:29 | R147: 2012642-1|842495-1 | S147: 0 | T147: 147 | U147: 2012642-1 | V147: 842495-1 | W147: Bronze
A148: 847799 | B148: us | C148: 1 | D148: apocolypse | E148: t | F148: 498401 | G148: us | H148: 1 | I148: DopeSic | J148: p | K148: Bronze | L148: 26 | M148: 35 | N148: 601 | O148: 2015-01-24 | P148: 1 hours | Q148: 2015-03-07T22:50:29 | R148: 847799-1|498401-1 | S148: 0 | T148: 148 | U148: 847799-1 | V148: 498401-1 | W148: Bronze
A149: 6234737 | B149: us | C149: 1 | D149: Guled | E149: z | F149: 2494851 | G149: us | H149: 1 | I149: Krizzleman | J149: z | K149: Bronze | L149: 48 | M149: 81 | N149: 601 | O149: 2015-02-07 | P149: 4 hours | Q149: 2015-03-07T22:50:29 | R149: 6234737-1|2494851-1 | S149: 0 | T149: 149 | U149: 6234737-1 | V149: 2494851-1 | W149: Bronze
A150: 3554848 | B150: us | C150: 1 | D150: Splifsoldier | E150: z | F150: 567859 | G150: us | H150: 1 | I150: clisholder | J150: r | K150: Bronze | L150: 38 | M150: 36 | N150: 600 | O150: 2015-01-13 | P150: 6 days | Q150: 2015-03-07T22:50:29 | R150: 3554848-1|567859-1 | S150: 0 | T150: 150 | U150: 3554848-1 | V150: 567859-1 | W150: Bronze
A151: 5523246 | B151: us | C151: 1 | D151: Fafeo | E151: r | F151: 3990750 | G151: us | H151: 1 | I151: doobee | J151: r | K151: Bronze | L151: 20 | M151: 21 | N151: 600 | O151: 2015-03-02 | P151: 3 hours | Q151: 2015-03-07T22:50:29 | R151: 5523246-1|3990750-1 | S151: 0 | T151: 151 | U151: 5523246-1 | V151: 3990750-1 | W151: Bronze
A152: 1864648 | B152: us | C152: 1 | D152: Dan | E152: r | F152: 691258 | G152: us | H152: 1 | I152: DaveH | J152: r | K152: Bronze | L152: 40 | M152: 54 | N152: 600 | O152: 2015-01-18 | P152: 1 hours | Q152: 2015-03-07T22:50:29 | R152: 1864648-1|691258-1 | S152: 0 | T152: 152 | U152: 1864648-1 | V152: 691258-1 | W152: Bronze
A153: 3286911 | B153: us | C153: 1 | D153: Annihilator | E153: z | F153: 3246316 | G153: us | H153: 1 | I153: Chatsworth | J153: p | K153: Bronze | L153: 22 | M153: 33 | N153: 600 | O153: 2015-01-17 | P153: 22 hours | Q153: 2015-03-07T22:50:29 | R153: 3286911-1|3246316-1 | S153: 0 | T153: 153 | U153: 3286911-1 | V153: 3246316-1 | W153: Bronze
A154: 2576079 | B154: us | C154: 1 | D154: SuperFIsh | E154: z | F154: 408600 | G154: us | H154: 1 | I154: SquirrelDLX | J154: z | K154: Bronze | L154: 24 | M154: 40 | N154: 600 | O154: 2015-01-28 | P154: 5 hours | Q154: 2015-03-07T22:50:29 | R154: 2576079-1|408600-1 | S154: 0 | T154: 154 | U154: 2576079-1 | V154: 408600-1 | W154: Bronze
A155: 5145358 | B155: us | C155: 1 | D155: Fredz | E155: z | F155: 1257513 | G155: us | H155: 1 | I155: xstarz | J155: t | K155: Bronze | L155: 19 | M155: 34 | N155: 600 | O155: 2015-01-23 | P155: 1 days | Q155: 2015-03-07T22:50:29 | R155: 5145358-1|1257513-1 | S155: 0 | T155: 155 | U155: 5145358-1 | V155: 1257513-1 | W155: Bronze
A156: 4909140 | B156: us | C156: 1 | D156: LEO | E156: t | F156: 1410280 | G156: us | H156: 1 | I156: JTH | J156: t | K156: Bronze | L156: 26 | M156: 36 | N156: 599 | O156: 2015-01-22 | P156: 1 days | Q156: 2015-03-07T22:50:29 | R156: 4909140-1|1410280-1 | S156: 0 | T156: 156 | U156: 4909140-1 | V156: 1410280-1 | W156: Bronze
A157: 4885292 | B157: us | C157: 1 | D157: TedElectric | E157: p | F157: 1445753 | G157: us | H157: 1 | I157: Marto | J157: z | K157: Bronze | L157: 67 | M157: 108 | N157: 599 | O157: 2015-01-12 | P157: 4 hours | Q157: 2015-03-07T22:50:29 | R157: 4885292-1|1445753-1 | S157: 0 | T157: 157 | U157: 4885292-1 | V157: 1445753-1 | W157: Bronze
A158: 5831058 | B158: us | C158: 1 | D158: Talon | E158: t | F158: 5126153 | G158: us | H158: 1 | I158: JoeBlow | J158: t | K158: Bronze | L158: 26 | M158: 49 | N158: 598 | O158: 2015-01-17 | P158: 11 hours | Q158: 2015-03-07T22:50:29 | R158: 5831058-1|5126153-1 | S158: 0 | T158: 158 | U158: 5831058-1 | V158: 5126153-1 | W158: Bronze
A159: 5540557 | B159: us | C159: 1 | D159: katriel | E159: z | F159: 5105376 | G159: us | H159: 1 | I159: ZULU | J159: p | K159: Bronze | L159: 39 | M159: 50 | N159: 597 | O159: 2015-01-19 | P159: 6 days | Q159: 2015-03-07T22:50:29 | R159: 5540557-1|5105376-1 | S159: 0 | T159: 159 | U159: 5540557-1 | V159: 5105376-1 | W159: Bronze
A160: 6241249 | B160: us | C160: 1 | D160: Lepistre | E160: t | F160: 2777385 | G160: us | H160: 1 | I160: Karma | J160: r | K160: Bronze | L160: 32 | M160: 43 | N160: 597 | O160: 2015-01-15 | P160: 22 hours | Q160: 2015-03-07T22:50:29 | R160: 6241249-1|2777385-1 | S160: 0 | T160: 160 | U160: 6241249-1 | V160: 2777385-1 | W160: Bronze
A161: 5320101 | B161: us | C161: 1 | D161: Spigot | E161: t | F161: 577434 | G161: us | H161: 1 | I161: Androthos | J161: z | K161: Bronze | L161: 39 | M161: 40 | N161: 596 | O161: 2015-01-19 | P161: 1 days | Q161: 2015-03-07T22:50:29 | R161: 5320101-1|577434-1 | S161: 0 | T161: 161 | U161: 5320101-1 | V161: 577434-1 | W161: Bronze
A162: 5076016 | B162: us | C162: 1 | D162: imakeebbq | E162: p | F162: 3619131 | G162: us | H162: 1 | I162: xHellscythex | J162: r | K162: Bronze | L162: 18 | M162: 20 | N162: 596 | O162: 2015-01-13 | P162: 29 minutes | Q162: 2015-03-07T22:50:29 | R162: 5076016-1|3619131-1 | S162: 0 | T162: 162 | U162: 5076016-1 | V162: 3619131-1 | W162: Bronze
A163: 5522325 | B163: us | C163: 1 | D163: hole | E163: t | F163: 5520867 | G163: us | H163: 1 | I163: Tatzelwurm | J163: p | K163: Bronze | L163: 19 | M163: 23 | N163: 594 | O163: 2015-01-16 | P163: 1 days | Q163: 2015-03-07T22:50:29 | R163: 5522325-1|5520867-1 | S163: 0 | T163: 163 | U163: 5522325-1 | V163: 5520867-1 | W163: Bronze
A164: 4650287 | B164: us | C164: 1 | D164: Farseer | E164: t | F164: 3171660 | G164: us | H164: 1 | I164: BruceWayne | J164: r | K164: Bronze | L164: 63 | M164: 82 | N164: 594 | O164: 2015-01-16 | P164: 1 days | Q164: 2015-03-07T22:50:29 | R164: 4650287-1|3171660-1 | S164: 0 | T164: 164 | U164: 4650287-1 | V164: 3171660-1 | W164: Bronze
A165: 5969813 | B165: us | C165: 1 | D165: LexJauregui | E165: p | F165: 2561768 | G165: us | H165: 1 | I165: Yio | J165: t | K165: Bronze | L165: 20 | M165: 28 | N165: 594 | O165: 2015-01-22 | P165: 1 days | Q165: 2015-03-07T22:50:29 | R165: 5969813-1|2561768-1 | S165: 0 | T165: 165 | U165: 5969813-1 | V165: 2561768-1 | W165: Bronze
A166: 2477213 | B166: us | C166: 1 | D166: PonyPrincess | E166: p | F166: 2471985 | G166: us | H166: 1 | I166: Rossana | J166: z | K166: Bronze | L166: 32 | M166: 53 | N166: 593 | O166: 2015-02-17 | P166: 31 minutes | Q166: 2015-03-07T22:50:29 | R166: 2477213-1|2471985-1 | S166: 0 | T166: 166 | U166: 2477213-1 | V166: 2471985-1 | W166: Bronze
A167: 5825257 | B167: us | C167: 1 | D167: gottagofast | E167: p | F167: 636624 | G167: us | H167: 1 | I167: Doon | J167: p | K167: Bronze | L167: 43 | M167: 54 | N167: 592 | O167: 2015-02-10 | P167: 1 days | Q167: 2015-03-07T22:50:29 | R167: 5825257-1|636624-1 | S167: 0 | T167: 167 | U167: 5825257-1 | V167: 636624-1 | W167: Bronze
A168: 5160111 | B168: us | C168: 1 | D168: Berserk | E168: p | F168: 5155354 | G168: us | H168: 1 | I168: jiks | J168: r | K168: Bronze | L168: 76 | M168: 104 | N168: 592 | O168: 2015-01-14 | P168: 3 days | Q168: 2015-03-07T22:50:29 | R168: 5160111-1|5155354-1 | S168: 0 | T168: 168 | U168: 5160111-1 | V168: 5155354-1 | W168: Bronze
A169: 6140644 | B169: us | C169: 1 | D169: CHIEF | E169: t | F169: 580029 | G169: us | H169: 1 | I169: Sycho | J169: r | K169: Bronze | L169: 44 | M169: 53 | N169: 591 | O169: 2015-01-13 | P169: 12 hours | Q169: 2015-03-07T22:50:29 | R169: 6140644-1|580029-1 | S169: 0 | T169: 169 | U169: 6140644-1 | V169: 580029-1 | W169: Bronze
A170: 6090421 | B170: us | C170: 1 | D170: strikeboy | E170: t | F170: 704093 | G170: us | H170: 1 | I170: mataleon | J170: p | K170: Bronze | L170: 21 | M170: 26 | N170: 591 | O170: 2015-02-10 | P170: 3 days | Q170: 2015-03-07T22:50:29 | R170: 6090421-1|704093-1 | S170: 0 | T170: 170 | U170: 6090421-1 | V170: 704093-1 | W170: Bronze
A171: 3037086 | B171: us | C171: 1 | D171: Sproo | E171: z | F171: 1441809 | G171: us | H171: 1 | I171: Shred | J171: r | K171: Bronze | L171: 57 | M171: 54 | N171: 590 | O171: 2015-01-13 | P171: 9 minutes | Q171: 2015-03-07T22:50:29 | R171: 3037086-1|1441809-1 | S171: 0 | T171: 171 | U171: 3037086-1 | V171: 1441809-1 | W171: Bronze
A172: 5724216 | B172: us | C172: 1 | D172: Sean | E172: p | F172: 363116 | G172: us | H172: 1 | I172: Nyrro | J172: r | K172: Bronze | L172: 21 | M172: 21 | N172: 589 | O172: 2015-02-04 | P172: 12 days | Q172: 2015-03-07T22:50:29 | R172: 5724216-1|363116-1 | S172: 0 | T172: 172 | U172: 5724216-1 | V172: 363116-1 | W172: Bronze
A173: 6326345 | B173: us | C173: 1 | D173: zosimov | E173: p | F173: 6264256 | G173: us | H173: 1 | I173: Savage | J173: t | K173: Bronze | L173: 39 | M173: 50 | N173: 589 | O173: 2015-01-25 | P173: 1 hours | Q173: 2015-03-07T22:50:29 | R173: 6326345-1|6264256-1 | S173: 0 | T173: 173 | U173: 6326345-1 | V173: 6264256-1 | W173: Bronze
A174: 1755427 | B174: us | C174: 1 | D174: ManBearPig | E174: p | F174: 1196651 | G174: us | H174: 1 | I174: DirkDiggler | J174: p | K174: Bronze | L174: 19 | M174: 19 | N174: 588 | O174: 2015-01-15 | P174: 21 hours | Q174: 2015-03-07T22:50:29 | R174: 1755427-1|1196651-1 | S174: 0 | T174: 174 | U174: 1755427-1 | V174: 1196651-1 | W174: Bronze
A175: 967092 | B175: us | C175: 2 | D175: Efadrael | E175: p | F175: 1522581 | G175: us | H175: 1 | I175: IMissYouGrMa | J175: r | K175: Bronze | L175: 20 | M175: 21 | N175: 588 | O175: 2015-02-18 | P175: 1 days | Q175: 2015-03-07T22:50:29 | R175: 967092-2|1522581-1 | S175: 0 | T175: 175 | U175: 967092-2 | V175: 1522581-1 | W175: Bronze
A176: 5224379 | B176: us | C176: 1 | D176: Dradiof | E176: z | F176: 568912 | G176: us | H176: 1 | I176: bycircle | J176: z | K176: Bronze | L176: 21 | M176: 24 | N176: 588 | O176: 2015-01-15 | P176: 10 days | Q176: 2015-03-07T22:50:29 | R176: 5224379-1|568912-1 | S176: 0 | T176: 176 | U176: 5224379-1 | V176: 568912-1 | W176: Bronze
A177: 875840 | B177: us | C177: 1 | D177: SkySabre | E177: p | F177: 782280 | G177: us | H177: 1 | I177: Hanzumjack | J177: p | K177: Bronze | L177: 96 | M177: 116 | N177: 588 | O177: 2015-01-13 | P177: 3 minutes | Q177: 2015-03-07T22:50:29 | R177: 875840-1|782280-1 | S177: 0 | T177: 177 | U177: 875840-1 | V177: 782280-1 | W177: Bronze
A178: 6018330 | B178: us | C178: 1 | D178: avishay | E178: p | F178: 5022457 | G178: us | H178: 1 | I178: data | J178: p | K178: Bronze | L178: 23 | M178: 30 | N178: 588 | O178: 2015-01-27 | P178: 12 hours | Q178: 2015-03-07T22:50:29 | R178: 6018330-1|5022457-1 | S178: 0 | T178: 178 | U178: 6018330-1 | V178: 5022457-1 | W178: Bronze
A179: 6084208 | B179: us | C179: 1 | D179: Pip | E179: z | F179: 4844558 | G179: us | H179: 1 | I179: DogePrince | J179: z | K179: Bronze | L179: 26 | M179: 34 | N179: 588 | O179: 2015-01-24 | P179: 9 days | Q179: 2015-03-07T22:50:29 | R179: 6084208-1|4844558-1 | S179: 0 | T179: 179 | U179: 6084208-1 | V179: 4844558-1 | W179: Bronze
A180: 6176936 | B180: us | C180: 1 | D180: LadiesMan | E180: p | F180: 348847 | G180: us | H180: 1 | I180: LethalLegion | J180: p | K180: Bronze | L180: 24 | M180: 34 | N180: 588 | O180: 2015-02-10 | P180: 8 days | Q180: 2015-03-07T22:50:29 | R180: 6176936-1|348847-1 | S180: 0 | T180: 180 | U180: 6176936-1 | V180: 348847-1 | W180: Bronze
A181: 6256905 | B181: us | C181: 1 | D181: NamSlay | E181: p | F181: 1846654 | G181: us | H181: 1 | I181: Hawkes | J181: t | K181: Bronze | L181: 21 | M181: 23 | N181: 586 | O181: 2015-01-18 | P181: 1 days | Q181: 2015-03-07T22:50:29 | R181: 6256905-1|1846654-1 | S181: 0 | T181: 181 | U181: 6256905-1 | V181: 1846654-1 | W181: Bronze
A182: 3672108 | B182: us | C182: 1 | D182: Cin | E182: t | F182: 3085964 | G182: us | H182: 1 | I182: ZookaMan | J182: r | K182: Bronze | L182: 18 | M182: 23 | N182: 586 | O182: 2015-02-02 | P182: 9 days | Q182: 2015-03-07T22:50:29 | R182: 3672108-1|3085964-1 | S182: 0 | T182: 182 | U182: 3672108-1 | V182: 3085964-1 | W182: Bronze
A183: 3796351 | B183: us | C183: 1 | D183: Fade | E183: p | F183: 3715630 | G183: us | H183: 1 | I183: Narsil | J183: p | K183: Bronze | L183: 26 | M183: 24 | N183: 585 | O183: 2015-01-14 | P183: 2 days | Q183: 2015-03-07T22:50:29 | R183: 3796351-1|3715630-1 | S183: 0 | T183: 183 | U183: 3796351-1 | V183: 3715630-1 | W183: Bronze
A184: 6403783 | B184: us | C184: 1 | D184: pikekilla | E184: p | F184: 599442 | G184: us | H184: 1 | I184: shog | J184: t | K184: Bronze | L184: 24 | M184: 46 | N184: 585 | O184: 2015-02-02 | P184: 21 hours | Q184: 2015-03-07T22:50:29 | R184: 6403783-1|599442-1 | S184: 0 | T184: 184 | U184: 6403783-1 | V184: 599442-1 | W184: Bronze
A185: 106730 | B185: us | C185: 2 | D185: xXMURIXx | E185: p | F185: 89299 | G185: us | H185: 2 | I185: Johnnson | J185: t | K185: Bronze | L185: 35 | M185: 40 | N185: 584 | O185: 2015-01-14 | P185: 5 days | Q185: 2015-03-07T22:50:29 | R185: 106730-2|89299-2 | S185: 0 | T185: 185 | U185: 106730-2 | V185: 89299-2 | W185: Bronze
A186: 2935574 | B186: us | C186: 1 | D186: EGHuK | E186: r | F186: 2230203 | G186: us | H186: 1 | I186: JJRedeck | J186: t | K186: Bronze | L186: 45 | M186: 46 | N186: 583 | O186: 2015-01-31 | P186: 14 days | Q186: 2015-03-07T22:50:29 | R186: 2935574-1|2230203-1 | S186: 0 | T186: 186 | U186: 2935574-1 | V186: 2230203-1 | W186: Bronze
A187: 2704977 | B187: us | C187: 1 | D187: DaimonX | E187: r | F187: 2120044 | G187: us | H187: 1 | I187: NothernNUTZ | J187: r | K187: Bronze | L187: 99 | M187: 149 | N187: 583 | O187: 2015-01-15 | P187: 4 days | Q187: 2015-03-07T22:50:29 | R187: 2704977-1|2120044-1 | S187: 0 | T187: 187 | U187: 2704977-1 | V187: 2120044-1 | W187: Bronze
A188: 3822052 | B188: us | C188: 1 | D188: Poundasaurus | E188: p | F188: 1665911 | G188: us | H188: 1 | I188: Eldarion | J188: p | K188: Bronze | L188: 30 | M188: 30 | N188: 582 | O188: 2015-01-12 | P188: 7 days | Q188: 2015-03-07T22:50:29 | R188: 3822052-1|1665911-1 | S188: 0 | T188: 188 | U188: 3822052-1 | V188: 1665911-1 | W188: Bronze
A189: 1543459 | B189: us | C189: 1 | D189: MinscBoo | E189: r | F189: 587067 | G189: us | H189: 1 | I189: Smouse | J189: r | K189: Bronze | L189: 20 | M189: 20 | N189: 582 | O189: 2015-01-21 | P189: 2 days | Q189: 2015-03-07T22:50:29 | R189: 1543459-1|587067-1 | S189: 0 | T189: 189 | U189: 1543459-1 | V189: 587067-1 | W189: Bronze
A190: 4453389 | B190: us | C190: 1 | D190: Lonestar | E190: t | F190: 4094419 | G190: us | H190: 1 | I190: Crono | J190: z | K190: Bronze | L190: 18 | M190: 22 | N190: 582 | O190: 2015-01-28 | P190: 2 hours | Q190: 2015-03-07T22:50:29 | R190: 4453389-1|4094419-1 | S190: 0 | T190: 190 | U190: 4453389-1 | V190: 4094419-1 | W190: Bronze
A191: 1939451 | B191: us | C191: 1 | D191: PowrslavE | E191: p | F191: 585102 | G191: us | H191: 1 | I191: mindcrime | J191: t | K191: Bronze | L191: 57 | M191: 87 | N191: 581 | O191: 2015-01-28 | P191: 16 minutes | Q191: 2015-03-07T22:50:29 | R191: 1939451-1|585102-1 | S191: 0 | T191: 191 | U191: 1939451-1 | V191: 585102-1 | W191: Bronze
A192: 6381686 | B192: us | C192: 1 | D192: Longpatrol | E192: z | F192: 2336866 | G192: us | H192: 1 | I192: FUNKYBUTTLUV | J192: p | K192: Bronze | L192: 21 | M192: 27 | N192: 580 | O192: 2015-02-07 | P192: 20 minutes | Q192: 2015-03-07T22:50:29 | R192: 6381686-1|2336866-1 | S192: 0 | T192: 192 | U192: 6381686-1 | V192: 2336866-1 | W192: Bronze
A193: 6211924 | B193: us | C193: 1 | D193: lovecreamer | E193: t | F193: 3472969 | G193: us | H193: 1 | I193: Scipio | J193: z | K193: Bronze | L193: 79 | M193: 117 | N193: 580 | O193: 2015-01-12 | P193: 6 hours | Q193: 2015-03-07T22:50:29 | R193: 6211924-1|3472969-1 | S193: 0 | T193: 193 | U193: 6211924-1 | V193: 3472969-1 | W193: Bronze
A194: 1534552 | B194: us | C194: 1 | D194: Outlaw | E194: p | F194: 1526665 | G194: us | H194: 1 | I194: PAblo | J194: z | K194: Bronze | L194: 23 | M194: 30 | N194: 579 | O194: 2015-01-17 | P194: 7 minutes | Q194: 2015-03-07T22:50:29 | R194: 1534552-1|1526665-1 | S194: 0 | T194: 194 | U194: 1534552-1 | V194: 1526665-1 | W194: Bronze
A195: 6288742 | B195: us | C195: 1 | D195: meezy | E195: z | F195: 6056144 | G195: us | H195: 1 | I195: SaVaGe | J195: z | K195: Bronze | L195: 37 | M195: 55 | N195: 579 | O195: 2015-01-14 | P195: 1 days | Q195: 2015-03-07T22:50:29 | R195: 6288742-1|6056144-1 | S195: 0 | T195: 195 | U195: 6288742-1 | V195: 6056144-1 | W195: Bronze
A196: 6207821 | B196: us | C196: 1 | D196: dormeus | E196: t | F196: 309866 | G196: us | H196: 1 | I196: AlteredsEgo | J196: p | K196: Bronze | L196: 24 | M196: 29 | N196: 578 | O196: 2015-02-25 | P196: 19 hours | Q196: 2015-03-07T22:50:29 | R196: 6207821-1|309866-1 | S196: 0 | T196: 196 | U196: 6207821-1 | V196: 309866-1 | W196: Bronze
A197: 3922552 | B197: us | C197: 1 | D197: phantom | E197: t | F197: 3679043 | G197: us | H197: 1 | I197: sojuboi | J197: t | K197: Bronze | L197: 19 | M197: 34 | N197: 578 | O197: 2015-02-18 | P197: 33 minutes | Q197: 2015-03-07T22:50:29 | R197: 3922552-1|3679043-1 | S197: 0 | T197: 197 | U197: 3922552-1 | V197: 3679043-1 | W197: Bronze
A198: 5255176 | B198: us | C198: 1 | D198: Hector | E198: t | F198: 5209185 | G198: us | H198: 1 | I198: chunnymoney | J198: p | K198: Bronze | L198: 22 | M198: 21 | N198: 577 | O198: 2015-01-15 | P198: 3 days | Q198: 2015-03-07T22:50:29 | R198: 5255176-1|5209185-1 | S198: 0 | T198: 198 | U198: 5255176-1 | V198: 5209185-1 | W198: Bronze
A199: 1927293 | B199: us | C199: 1 | D199: Vincente | E199: z | F199: 1082770 | G199: us | H199: 1 | I199: VoodooToo | J199: z | K199: Bronze | L199: 27 | M199: 29 | N199: 577 | O199: 2015-01-28 | P199: 2 days | Q199: 2015-03-07T22:50:29 | R199: 1927293-1|1082770-1 | S199: 0 | T199: 199 | U199: 1927293-1 | V199: 1082770-1 | W199: Bronze
A200: 6188397 | B200: us | C200: 1 | D200: Fuziion | E200: p | F200: 5106869 | G200: us | H200: 1 | I200: Hybrid | J200: p | K200: Bronze | L200: 23 | M200: 26 | N200: 577 | O200: 2015-01-29 | P200: 11 days | Q200: 2015-03-07T22:50:29 | R200: 6188397-1|5106869-1 | S200: 0 | T200: 200 | U200: 6188397-1 | V200: 5106869-1 | W200: Bronze
... 2050 more rows

Sheet 3v3Team
A1: Player ID 1 | B1: Player 1 Region | C1: Player 1 Subregion | D1: Player 1 Name | E1: Player 1 Race | F1: Player ID 2 | G1: Player 2 Region | H1: Player 2 Subregion | I1: Player 2 Name | J1: Player 2 Race | K1: Player ID 3 | L1: Player 3 Region | M1: Player 3 Subregion | N1: Player 3 Name | O1: Player 3 Race | P1: League | Q1: Win | R1: Loss | S1: Score | T1: Date Joined | U1: Last Game | V1: Timestamp | W1: Player ID 1- Player 1 Subregion| Player ID 2- Player 2 Subregion| Player ID 3- Player 3 Subregion | X1: Duplicate | Y1: OrderID
A2: 4954630 | B2: us | C2: 1 | D2: kita | E2: t | F2: 4655789 | G2: us | H2: 1 | I2: sake | J2: r | K2: 4612486 | L2: us | M2: 1 | N2: RYU | O2: p | P2: Bronze | Q2: 60 | R2: 70 | S2: 479 | T2: 2015-01-17 | U2: 11 hours | V2: 2015-03-07T22:53:04 | W2: 4954630-1|4655789-1|4612486-1 | X2: 0 | Y2: 2 | Z2: 4954630-1 | AA2: 4655789-1 | AB2: 4612486-1 | AC2: Bronze
A3: 3563614 | B3: us | C3: 1 | D3: johnnylaw | E3: t | F3: 1383978 | G3: us | H3: 1 | I3: Grenerd | J3: z | K3: 676119 | L3: us | M3: 1 | N3: BigBoss | O3: z | P3: Bronze | Q3: 20 | R3: 18 | S3: 466 | T3: 2015-01-14 | U3: 7 hours | V3: 2015-03-07T22:53:04 | W3: 3563614-1|1383978-1|676119-1 | X3: 0 | Y3: 3 | Z3: 3563614-1 | AA3: 1383978-1 | AB3: 676119-1 | AC3: Bronze
A4: 3058560 | B4: us | C4: 1 | D4: SethRogan | E4: t | F4: 2837950 | G4: us | H4: 1 | I4: Corncobsoup | J4: p | K4: 1759074 | L4: us | M4: 1 | N4: Cutepants | O4: p | P4: Bronze | Q4: 14 | R4: 11 | S4: 452 | T4: 2015-03-05 | U4: 15 minutes | V4: 2015-03-07T22:53:04 | W4: 3058560-1|2837950-1|1759074-1 | X4: 0 | Y4: 4 | Z4: 3058560-1 | AA4: 2837950-1 | AB4: 1759074-1 | AC4: Bronze
A5: 3911951 | B5: us | C5: 1 | D5: GiantSqwid | E5: p | F5: 3549452 | G5: us | H5: 1 | I5: ThomboSTRIKE | J5: r | K5: 2779914 | L5: us | M5: 1 | N5: JehutyReign | O5: r | P5: Bronze | Q5: 18 | R5: 24 | S5: 429 | T5: 2015-01-14 | U5: 57 minutes | V5: 2015-03-07T22:53:04 | W5: 3911951-1|3549452-1|2779914-1 | X5: 0 | Y5: 5 | Z5: 3911951-1 | AA5: 3549452-1 | AB5: 2779914-1 | AC5: Bronze
A6: 2494107 | B6: us | C6: 1 | D6: Greywulf | E6: t | F6: 1135768 | G6: us | H6: 1 | I6: Swiftus | J6: z | K6: 1064622 | L6: us | M6: 1 | N6: Trevicahn | O6: p | P6: Bronze | Q6: 26 | R6: 31 | S6: 422 | T6: 2015-01-14 | U6: 4 hours | V6: 2015-03-07T22:53:04 | W6: 2494107-1|1135768-1|1064622-1 | X6: 0 | Y6: 6 | Z6: 2494107-1 | AA6: 1135768-1 | AB6: 1064622-1 | AC6: Bronze
A7: 4937766 | B7: us | C7: 1 | D7: iRoik | E7: r | F7: 2955705 | G7: us | H7: 1 | I7: Spectre | J7: p | K7: 2808664 | L7: us | M7: 1 | N7: DoubleJay | O7: p | P7: Bronze | Q7: 23 | R7: 27 | S7: 413 | T7: 2015-01-12 | U7: 2 days | V7: 2015-03-07T22:53:04 | W7: 4937766-1|2955705-1|2808664-1 | X7: 0 | Y7: 7 | Z7: 4937766-1 | AA7: 2955705-1 | AB7: 2808664-1 | AC7: Bronze
A8: 5995955 | B8: us | C8: 1 | D8: Sloaner | E8: t | F8: 1524460 | G8: us | H8: 1 | I8: McGnarsty | J8: r | K8: 476011 | L8: us | M8: 1 | N8: boldham | O8: r | P8: Bronze | Q8: 36 | R8: 60 | S8: 413 | T8: 2015-01-24 | U8: 2 days | V8: 2015-03-07T22:53:04 | W8: 5995955-1|1524460-1|476011-1 | X8: 0 | Y8: 8 | Z8: 5995955-1 | AA8: 1524460-1 | AB8: 476011-1 | AC8: Bronze
A9: 5592827 | B9: us | C9: 1 | D9: Phil | E9: z | F9: 3138422 | G9: us | H9: 1 | I9: Hawkwing | J9: z | K9: 1941993 | L9: us | M9: 1 | N9: Plakat | O9: t | P9: Bronze | Q9: 14 | R9: 4 | S9: 403 | T9: 2015-01-29 | U9: 4 days | V9: 2015-03-07T22:53:04 | W9: 5592827-1|3138422-1|1941993-1 | X9: 0 | Y9: 9 | Z9: 5592827-1 | AA9: 3138422-1 | AB9: 1941993-1 | AC9: Bronze
A10: 5420613 | B10: us | C10: 1 | D10: SweetTea | E10: p | F10: 1760079 | G10: us | H10: 1 | I10: SpikedTea | J10: z | K10: 524659 | L10: us | M10: 1 | N10: IcedTea | O10: t | P10: Bronze | Q10: 27 | R10: 35 | S10: 403 | T10: 2015-02-02 | U10: 4 days | V10: 2015-03-07T22:53:04 | W10: 5420613-1|1760079-1|524659-1 | X10: 0 | Y10: 10 | Z10: 5420613-1 | AA10: 1760079-1 | AB10: 524659-1 | AC10: Bronze
A11: 3262192 | B11: us | C11: 1 | D11: ImaZebraa | E11: r | F11: 2856744 | G11: us | H11: 1 | I11: ImaWalrusa | J11: p | K11: 2843445 | L11: us | M11: 1 | N11: ImaLlamaa | O11: r | P11: Bronze | Q11: 20 | R11: 23 | S11: 397 | T11: 2015-01-25 | U11: 6 days | V11: 2015-03-07T22:53:04 | W11: 3262192-1|2856744-1|2843445-1 | X11: 0 | Y11: 11 | Z11: 3262192-1 | AA11: 2856744-1 | AB11: 2843445-1 | AC11: Bronze
A12: 715353 | B12: us | C12: 2 | D12: Amstromg | E12: p | F12: 329792 | G12: us | H12: 2 | I12: megatron | J12: t | K12: 239305 | L12: us | M12: 2 | N12: byoxico | O12: p | P12: Bronze | Q12: 22 | R12: 23 | S12: 393 | T12: 2015-01-16 | U12: 6 minutes | V12: 2015-03-07T22:53:04 | W12: 715353-2|329792-2|239305-2 | X12: 0 | Y12: 12 | Z12: 715353-2 | AA12: 329792-2 | AB12: 239305-2 | AC12: Bronze
A13: 688560 | B13: us | C13: 2 | D13: Wetlander | E13: r | F13: 6419121 | G13: us | H13: 1 | I13: saidivan | J13: t | K13: 4494795 | L13: us | M13: 1 | N13: abaris | O13: r | P13: Bronze | Q13: 25 | R13: 42 | S13: 393 | T13: 2015-01-29 | U13: 8 hours | V13: 2015-03-07T22:53:04 | W13: 688560-2|6419121-1|4494795-1 | X13: 0 | Y13: 13 | Z13: 688560-2 | AA13: 6419121-1 | AB13: 4494795-1 | AC13: Bronze
A14: 6039225 | B14: us | C14: 1 | D14: Zephr | E14: z | F14: 1271404 | G14: us | H14: 1 | I14: islandboi | J14: r | K14: 1232169 | L14: us | M14: 1 | N14: Phriesz | O14: r | P14: Bronze | Q14: 16 | R14: 6 | S14: 385 | T14: 2015-02-10 | U14: 24 days | V14: 2015-03-07T22:53:04 | W14: 6039225-1|1271404-1|1232169-1 | X14: 0 | Y14: 14 | Z14: 6039225-1 | AA14: 1271404-1 | AB14: 1232169-1 | AC14: Bronze
A15: 6233302 | B15: us | C15: 1 | D15: JDTags | E15: z | F15: 3460073 | G15: us | H15: 1 | I15: ArjunS | J15: p | K15: 929359 | L15: us | M15: 1 | N15: Drezor | O15: z | P15: Bronze | Q15: 15 | R15: 16 | S15: 384 | T15: 2015-01-31 | U15: 1 days | V15: 2015-03-07T22:53:04 | W15: 6233302-1|3460073-1|929359-1 | X15: 0 | Y15: 15 | Z15: 6233302-1 | AA15: 3460073-1 | AB15: 929359-1 | AC15: Bronze
A16: 124289 | B16: us | C16: 2 | D16: scannerxt | E16: p | F16: 5735843 | G16: us | H16: 1 | I16: DivineCalais | J16: p | K16: 5709190 | L16: us | M16: 1 | N16: DarkEnergy | O16: t | P16: Bronze | Q16: 31 | R16: 50 | S16: 382 | T16: 2015-01-12 | U16: 3 days | V16: 2015-03-07T22:53:04 | W16: 124289-2|5735843-1|5709190-1 | X16: 0 | Y16: 16 | Z16: 124289-2 | AA16: 5735843-1 | AB16: 5709190-1 | AC16: Bronze
A17: 6432872 | B17: us | C17: 1 | D17: GanNimaBi | E17: t | F17: 5322706 | G17: us | H17: 1 | I17: wzem | J17: r | K17: 5320045 | L17: us | M17: 1 | N17: daddy | O17: r | P17: Bronze | Q17: 18 | R17: 23 | S17: 380 | T17: 2015-02-17 | U17: 17 hours | V17: 2015-03-07T22:53:04 | W17: 6432872-1|5322706-1|5320045-1 | X17: 0 | Y17: 17 | Z17: 6432872-1 | AA17: 5322706-1 | AB17: 5320045-1 | AC17: Bronze
A18: 5184979 | B18: us | C18: 1 | D18: Anson | E18: z | F18: 1834573 | G18: us | H18: 1 | I18: EmoGinger | J18: z | K18: 829084 | L18: us | M18: 1 | N18: Aeden | O18: p | P18: Bronze | Q18: 19 | R18: 15 | S18: 377 | T18: 2015-01-17 | U18: 8 days | V18: 2015-03-07T22:53:04 | W18: 5184979-1|1834573-1|829084-1 | X18: 0 | Y18: 18 | Z18: 5184979-1 | AA18: 1834573-1 | AB18: 829084-1 | AC18: Bronze
A19: 5037161 | B19: us | C19: 1 | D19: Zoltaron | E19: p | F19: 1624083 | G19: us | H19: 1 | I19: Achilles | J19: r | K19: 1044903 | L19: us | M19: 1 | N19: Haru | O19: p | P19: Bronze | Q19: 17 | R19: 21 | S19: 376 | T19: 2015-01-30 | U19: 2 days | V19: 2015-03-07T22:53:04 | W19: 5037161-1|1624083-1|1044903-1 | X19: 0 | Y19: 19 | Z19: 5037161-1 | AA19: 1624083-1 | AB19: 1044903-1 | AC19: Bronze
A20: 5593432 | B20: us | C20: 1 | D20: bobdrupal | E20: z | F20: 492411 | G20: us | H20: 1 | I20: Wheatey | J20: z | K20: 345171 | L20: us | M20: 1 | N20: Bunkk | O20: t | P20: Bronze | Q20: 15 | R20: 21 | S20: 370 | T20: 2015-01-19 | U20: 6 days | V20: 2015-03-07T22:53:04 | W20: 5593432-1|492411-1|345171-1 | X20: 0 | Y20: 20 | Z20: 5593432-1 | AA20: 492411-1 | AB20: 345171-1 | AC20: Bronze
A21: 5116529 | B21: us | C21: 1 | D21: LtGoose | E21: p | F21: 5114629 | G21: us | H21: 1 | I21: yeababy | J21: p | K21: 4240120 | L21: us | M21: 1 | N21: zurtron | O21: z | P21: Bronze | Q21: 22 | R21: 32 | S21: 369 | T21: 2015-01-14 | U21: 9 minutes | V21: 2015-03-07T22:53:04 | W21: 5116529-1|5114629-1|4240120-1 | X21: 0 | Y21: 21 | Z21: 5116529-1 | AA21: 5114629-1 | AB21: 4240120-1 | AC21: Bronze
A22: 840351 | B22: us | C22: 1 | D22: SeaBass | E22: t | F22: 575958 | G22: us | H22: 1 | I22: HorrorBuddy | J22: p | K22: 415090 | L22: us | M22: 1 | N22: HorrorHound | O22: z | P22: Bronze | Q22: 12 | R22: 9 | S22: 366 | T22: 2015-02-01 | U22: 4 days | V22: 2015-03-07T22:53:04 | W22: 840351-1|575958-1|415090-1 | X22: 0 | Y22: 22 | Z22: 840351-1 | AA22: 575958-1 | AB22: 415090-1 | AC22: Bronze
A23: 3509463 | B23: us | C23: 1 | D23: Bemky | E23: t | F23: 2689822 | G23: us | H23: 1 | I23: waratuman | J23: t | K23: 2045056 | L23: us | M23: 1 | N23: malomalo | O23: p | P23: Bronze | Q23: 12 | R23: 18 | S23: 360 | T23: 2015-01-15 | U23: 1 days | V23: 2015-03-07T22:53:04 | W23: 3509463-1|2689822-1|2045056-1 | X23: 0 | Y23: 23 | Z23: 3509463-1 | AA23: 2689822-1 | AB23: 2045056-1 | AC23: Bronze
A24: 1751532 | B24: us | C24: 1 | D24: MrEverybody | E24: t | F24: 717221 | G24: us | H24: 1 | I24: MrHistorio | J24: r | K24: 442386 | L24: us | M24: 1 | N24: MrNobody | O24: z | P24: Bronze | Q24: 15 | R24: 17 | S24: 358 | T24: 2015-01-17 | U24: 22 hours | V24: 2015-03-07T22:53:04 | W24: 1751532-1|717221-1|442386-1 | X24: 0 | Y24: 24 | Z24: 1751532-1 | AA24: 717221-1 | AB24: 442386-1 | AC24: Bronze
A25: 2659621 | B25: us | C25: 1 | D25: BucNasty | E25: t | F25: 2655965 | G25: us | H25: 1 | I25: Bremo | J25: t | K25: 2321264 | L25: us | M25: 1 | N25: Xjay | O25: z | P25: Bronze | Q25: 12 | R25: 17 | S25: 358 | T25: 2015-02-09 | U25: 22 hours | V25: 2015-03-07T22:53:04 | W25: 2659621-1|2655965-1|2321264-1 | X25: 0 | Y25: 25 | Z25: 2659621-1 | AA25: 2655965-1 | AB25: 2321264-1 | AC25: Bronze
A26: 5990139 | B26: us | C26: 1 | D26: DanBeesKnees | E26: p | F26: 2039825 | G26: us | H26: 1 | I26: Bardeen | J26: z | K26: 278602 | L26: us | M26: 1 | N26: BlackBox | O26: p | P26: Bronze | Q26: 36 | R26: 53 | S26: 358 | T26: 2015-01-14 | U26: 7 days | V26: 2015-03-07T22:53:04 | W26: 5990139-1|2039825-1|278602-1 | X26: 0 | Y26: 26 | Z26: 5990139-1 | AA26: 2039825-1 | AB26: 278602-1 | AC26: Bronze
A27: 6321740 | B27: us | C27: 1 | D27: TooMuchDoge | E27: t | F27: 6318583 | G27: us | H27: 1 | I27: Dietfried | J27: p | K27: 6295984 | L27: us | M27: 1 | N27: Stormageddon | O27: z | P27: Bronze | Q27: 16 | R27: 19 | S27: 357 | T27: 2015-02-01 | U27: 6 days | V27: 2015-03-07T22:53:04 | W27: 6321740-1|6318583-1|6295984-1 | X27: 0 | Y27: 27 | Z27: 6321740-1 | AA27: 6318583-1 | AB27: 6295984-1 | AC27: Bronze
A28: 4465150 | B28: us | C28: 1 | D28: BigT | E28: p | F28: 4303048 | G28: us | H28: 1 | I28: JOTA | J28: r | K28: 4289448 | L28: us | M28: 1 | N28: Rosinator | O28: r | P28: Bronze | Q28: 11 | R28: 19 | S28: 357 | T28: 2015-01-25 | U28: 1 days | V28: 2015-03-07T22:53:04 | W28: 4465150-1|4303048-1|4289448-1 | X28: 0 | Y28: 28 | Z28: 4465150-1 | AA28: 4303048-1 | AB28: 4289448-1 | AC28: Bronze
A29: 4082776 | B29: us | C29: 1 | D29: PhoHunter | E29: z | F29: 3650058 | G29: us | H29: 1 | I29: avenger | J29: r | K29: 2240128 | L29: us | M29: 1 | N29: Sylveon | O29: r | P29: Bronze | Q29: 11 | R29: 3 | S29: 354 | T29: 2015-03-07 | U29: 12 hours | V29: 2015-03-07T22:53:04 | W29: 4082776-1|3650058-1|2240128-1 | X29: 0 | Y29: 29 | Z29: 4082776-1 | AA29: 3650058-1 | AB29: 2240128-1 | AC29: Bronze
A30: 6390506 | B30: us | C30: 1 | D30: Antonio | E30: z | F30: 3740168 | G30: us | H30: 1 | I30: cTown | J30: p | K30: 2327031 | L30: us | M30: 1 | N30: IWatersEdgeI | O30: z | P30: Bronze | Q30: 11 | R30: 9 | S30: 354 | T30: 2015-03-01 | U30: 3 hours | V30: 2015-03-07T22:53:04 | W30: 6390506-1|3740168-1|2327031-1 | X30: 0 | Y30: 30 | Z30: 6390506-1 | AA30: 3740168-1 | AB30: 2327031-1 | AC30: Bronze
A31: 6252490 | B31: us | C31: 1 | D31: RedBeard | E31: t | F31: 6235893 | G31: us | H31: 1 | I31: jimbru | J31: p | K31: 1031604 | L31: us | M31: 1 | N31: Venantius | O31: r | P31: Bronze | Q31: 14 | R31: 35 | S31: 352 | T31: 2015-01-23 | U31: 1 days | V31: 2015-03-07T22:53:04 | W31: 6252490-1|6235893-1|1031604-1 | X31: 0 | Y31: 31 | Z31: 6252490-1 | AA31: 6235893-1 | AB31: 1031604-1 | AC31: Bronze
A32: 5063679 | B32: us | C32: 1 | D32: Atorn | E32: p | F32: 600732 | G32: us | H32: 1 | I32: CatfishJohn | J32: p | K32: 543173 | L32: us | M32: 1 | N32: Arlian | O32: t | P32: Bronze | Q32: 14 | R32: 14 | S32: 350 | T32: 2015-02-08 | U32: 2 days | V32: 2015-03-07T22:53:04 | W32: 5063679-1|600732-1|543173-1 | X32: 0 | Y32: 32 | Z32: 5063679-1 | AA32: 600732-1 | AB32: 543173-1 | AC32: Bronze
A33: 6357081 | B33: us | C33: 1 | D33: Supafly | E33: t | F33: 6348194 | G33: us | H33: 1 | I33: Jealoussy | J33: z | K33: 6314920 | L33: us | M33: 1 | N33: Phokso | O33: t | P33: Bronze | Q33: 33 | R33: 77 | S33: 350 | T33: 2015-01-13 | U33: 13 hours | V33: 2015-03-07T22:53:04 | W33: 6357081-1|6348194-1|6314920-1 | X33: 0 | Y33: 33 | Z33: 6357081-1 | AA33: 6348194-1 | AB33: 6314920-1 | AC33: Bronze
A34: 781192 | B34: us | C34: 2 | D34: JOHNNY | E34: t | F34: 639867 | G34: us | H34: 2 | I34: StoneCold | J34: r | K34: 4016828 | L34: us | M34: 1 | N34: Gerald | O34: p | P34: Bronze | Q34: 15 | R34: 18 | S34: 349 | T34: 2015-01-15 | U34: 2 days | V34: 2015-03-07T22:53:04 | W34: 781192-2|639867-2|4016828-1 | X34: 0 | Y34: 34 | Z34: 781192-2 | AA34: 639867-2 | AB34: 4016828-1 | AC34: Bronze
A35: 2198922 | B35: us | C35: 1 | D35: Maxx | E35: p | F35: 1984251 | G35: us | H35: 1 | I35: FpsAction | J35: z | K35: 1573918 | L35: us | M35: 1 | N35: Nitrus | O35: t | P35: Bronze | Q35: 22 | R35: 32 | S35: 349 | T35: 2015-01-30 | U35: 1 days | V35: 2015-03-07T22:53:04 | W35: 2198922-1|1984251-1|1573918-1 | X35: 0 | Y35: 35 | Z35: 2198922-1 | AA35: 1984251-1 | AB35: 1573918-1 | AC35: Bronze
A36: 6252087 | B36: us | C36: 1 | D36: NewTullius | E36: p | F36: 2957247 | G36: us | H36: 1 | I36: ProtossHero | J36: p | K36: 2792780 | L36: us | M36: 1 | N36: Rizlatnar | O36: p | P36: Bronze | Q36: 15 | R36: 25 | S36: 349 | T36: 2015-01-30 | U36: 14 hours | V36: 2015-03-07T22:53:04 | W36: 6252087-1|2957247-1|2792780-1 | X36: 0 | Y36: 36 | Z36: 6252087-1 | AA36: 2957247-1 | AB36: 2792780-1 | AC36: Bronze
A37: 360867 | B37: us | C37: 2 | D37: AFTERSHOCK | E37: t | F37: 6142734 | G37: us | H37: 1 | I37: OptimusPrime | J37: t | K37: 4921969 | L37: us | M37: 1 | N37: KAISERHOFF | O37: t | P37: Bronze | Q37: 12 | R37: 9 | S37: 347 | T37: 2015-01-12 | U37: 13 days | V37: 2015-03-07T22:53:04 | W37: 360867-2|6142734-1|4921969-1 | X37: 0 | Y37: 37 | Z37: 360867-2 | AA37: 6142734-1 | AB37: 4921969-1 | AC37: Bronze
A38: 6434630 | B38: us | C38: 1 | D38: Jiub | E38: t | F38: 6154253 | G38: us | H38: 1 | I38: Instigator | J38: z | K38: 4727146 | L38: us | M38: 1 | N38: Hollywood | O38: t | P38: Bronze | Q38: 15 | R38: 20 | S38: 346 | T38: 2015-02-05 | U38: 22 hours | V38: 2015-03-07T22:53:04 | W38: 6434630-1|6154253-1|4727146-1 | X38: 0 | Y38: 38 | Z38: 6434630-1 | AA38: 6154253-1 | AB38: 4727146-1 | AC38: Bronze
A39: 6548809 | B39: us | C39: 1 | D39: SHAWNYEWEST | E39: z | F39: 704206 | G39: us | H39: 1 | I39: Sketchcraft | J39: t | K39: 542153 | L39: us | M39: 1 | N39: DKMG | O39: z | P39: Bronze | Q39: 10 | R39: 14 | S39: 346 | T39: 2015-03-04 | U39: 21 hours | V39: 2015-03-07T22:53:04 | W39: 6548809-1|704206-1|542153-1 | X39: 0 | Y39: 39 | Z39: 6548809-1 | AA39: 704206-1 | AB39: 542153-1 | AC39: Bronze
A40: 4525930 | B40: us | C40: 1 | D40: BiZzouNCe | E40: t | F40: 4170483 | G40: us | H40: 1 | I40: Shockwave | J40: z | K40: 2491092 | L40: us | M40: 1 | N40: Fishdog | O40: z | P40: Bronze | Q40: 24 | R40: 28 | S40: 342 | T40: 2015-02-04 | U40: 3 days | V40: 2015-03-07T22:53:04 | W40: 4525930-1|4170483-1|2491092-1 | X40: 0 | Y40: 40 | Z40: 4525930-1 | AA40: 4170483-1 | AB40: 2491092-1 | AC40: Bronze
A41: 5261154 | B41: us | C41: 1 | D41: Bounce | E41: t | F41: 4289930 | G41: us | H41: 1 | I41: KuroUsagi | J41: z | K41: 3282543 | L41: us | M41: 1 | N41: tenacity | O41: p | P41: Bronze | Q41: 11 | R41: 15 | S41: 342 | T41: 2015-02-20 | U41: 3 minutes | V41: 2015-03-07T22:53:04 | W41: 5261154-1|4289930-1|3282543-1 | X41: 0 | Y41: 41 | Z41: 5261154-1 | AA41: 4289930-1 | AB41: 3282543-1 | AC41: Bronze
A42: 2491022 | B42: us | C42: 1 | D42: ShadowSix | E42: p | F42: 933898 | G42: us | H42: 1 | I42: Grumpntug | J42: t | K42: 728014 | L42: us | M42: 1 | N42: GuavaSplinks | O42: r | P42: Bronze | Q42: 19 | R42: 31 | S42: 339 | T42: 2015-01-14 | U42: 2 days | V42: 2015-03-07T22:53:04 | W42: 2491022-1|933898-1|728014-1 | X42: 0 | Y42: 42 | Z42: 2491022-1 | AA42: 933898-1 | AB42: 728014-1 | AC42: Bronze
A43: 5641505 | B43: us | C43: 1 | D43: BluntedGnome | E43: z | F43: 1435905 | G43: us | H43: 1 | I43: Jpants | J43: t | K43: 691655 | L43: us | M43: 1 | N43: infinite | O43: r | P43: Bronze | Q43: 9 | R43: 8 | S43: 338 | T43: 2015-01-24 | U43: 2 days | V43: 2015-03-07T22:53:04 | W43: 5641505-1|1435905-1|691655-1 | X43: 0 | Y43: 43 | Z43: 5641505-1 | AA43: 1435905-1 | AB43: 691655-1 | AC43: Bronze
A44: 1472370 | B44: us | C44: 1 | D44: DaArchitect | E44: t | F44: 890469 | G44: us | H44: 1 | I44: Nick | J44: p | K44: 739288 | L44: us | M44: 1 | N44: Terrable | O44: z | P44: Bronze | Q44: 14 | R44: 15 | S44: 338 | T44: 2015-01-15 | U44: 3 days | V44: 2015-03-07T22:53:04 | W44: 1472370-1|890469-1|739288-1 | X44: 0 | Y44: 44 | Z44: 1472370-1 | AA44: 890469-1 | AB44: 739288-1 | AC44: Bronze
A45: 5329810 | B45: us | C45: 1 | D45: anAnarchist | E45: p | F45: 2133653 | G45: us | H45: 1 | I45: TheDudeMan | J45: p | K45: 1030679 | L45: us | M45: 1 | N45: Starnaught | O45: z | P45: Bronze | Q45: 12 | R45: 9 | S45: 336 | T45: 2015-03-03 | U45: 22 hours | V45: 2015-03-07T22:53:04 | W45: 5329810-1|2133653-1|1030679-1 | X45: 0 | Y45: 45 | Z45: 5329810-1 | AA45: 2133653-1 | AB45: 1030679-1 | AC45: Bronze
A46: 868116 | B46: us | C46: 2 | D46: Anibal | E46: p | F46: 733633 | G46: us | H46: 2 | I46: Pavel | J46: t | K46: 6286381 | L46: us | M46: 1 | N46: sebastian | O46: t | P46: Bronze | Q46: 11 | R46: 13 | S46: 336 | T46: 2015-02-28 | U46: 1 hours | V46: 2015-03-07T22:53:04 | W46: 868116-2|733633-2|6286381-1 | X46: 0 | Y46: 46 | Z46: 868116-2 | AA46: 733633-2 | AB46: 6286381-1 | AC46: Bronze
A47: 6059783 | B47: us | C47: 1 | D47: Athelestan | E47: p | F47: 4681210 | G47: us | H47: 1 | I47: Hatty | J47: t | K47: 3789310 | L47: us | M47: 1 | N47: Chigadigadee | O47: r | P47: Bronze | Q47: 10 | R47: 2 | S47: 335 | T47: 2015-01-13 | U47: 3 days | V47: 2015-03-07T22:53:04 | W47: 6059783-1|4681210-1|3789310-1 | X47: 0 | Y47: 47 | Z47: 6059783-1 | AA47: 4681210-1 | AB47: 3789310-1 | AC47: Bronze
A48: 3978637 | B48: us | C48: 1 | D48: ImYourType | E48: t | F48: 3926249 | G48: us | H48: 1 | I48: Rachor | J48: z | K48: 3892016 | L48: us | M48: 1 | N48: Elesmoth | O48: p | P48: Bronze | Q48: 12 | R48: 12 | S48: 334 | T48: 2015-02-22 | U48: 5 days | V48: 2015-03-07T22:53:04 | W48: 3978637-1|3926249-1|3892016-1 | X48: 0 | Y48: 48 | Z48: 3978637-1 | AA48: 3926249-1 | AB48: 3892016-1 | AC48: Bronze
A49: 116976 | B49: us | C49: 2 | D49: ThorEGo | E49: t | F49: 115376 | G49: us | H49: 2 | I49: Liqueprime | J49: z | K49: 112789 | L49: us | M49: 2 | N49: DarkLeont | O49: p | P49: Bronze | Q49: 20 | R49: 28 | S49: 334 | T49: 2015-01-28 | U49: 4 days | V49: 2015-03-07T22:53:04 | W49: 116976-2|115376-2|112789-2 | X49: 0 | Y49: 49 | Z49: 116976-2 | AA49: 115376-2 | AB49: 112789-2 | AC49: Bronze
A50: 5374495 | B50: us | C50: 1 | D50: Anotherjoe | E50: r | F50: 3867605 | G50: us | H50: 1 | I50: ThrustinJ | J50: r | K50: 1626767 | L50: us | M50: 1 | N50: FISHSLAYERR | O50: p | P50: Bronze | Q50: 11 | R50: 15 | S50: 333 | T50: 2015-02-02 | U50: 10 days | V50: 2015-03-07T22:53:04 | W50: 5374495-1|3867605-1|1626767-1 | X50: 0 | Y50: 50 | Z50: 5374495-1 | AA50: 3867605-1 | AB50: 1626767-1 | AC50: Bronze
A51: 435804 | B51: us | C51: 2 | D51: Gomes | E51: z | F51: 100797 | G51: us | H51: 2 | I51: Sanchey | J51: t | K51: 5137138 | L51: us | M51: 1 | N51: krigoror | O51: p | P51: Bronze | Q51: 18 | R51: 34 | S51: 331 | T51: 2015-02-21 | U51: 6 hours | V51: 2015-03-07T22:53:04 | W51: 435804-2|100797-2|5137138-1 | X51: 0 | Y51: 51 | Z51: 435804-2 | AA51: 100797-2 | AB51: 5137138-1 | AC51: Bronze
A52: 5565573 | B52: us | C52: 1 | D52: Assassin | E52: p | F52: 1800724 | G52: us | H52: 1 | I52: Bosestyle | J52: t | K52: 646200 | L52: us | M52: 1 | N52: WingnutSC | O52: p | P52: Bronze | Q52: 10 | R52: 1 | S52: 326 | T52: 2015-02-22 | U52: 13 days | V52: 2015-03-07T22:53:04 | W52: 5565573-1|1800724-1|646200-1 | X52: 0 | Y52: 52 | Z52: 5565573-1 | AA52: 1800724-1 | AB52: 646200-1 | AC52: Bronze
A53: 3650058 | B53: us | C53: 1 | D53: avenger | E53: r | F53: 2607615 | G53: us | H53: 1 | I53: Tocool | J53: p | K53: 2240128 | L53: us | M53: 1 | N53: Sylveon | O53: t | P53: Bronze | Q53: 10 | R53: 3 | S53: 326 | T53: 2015-02-26 | U53: 9 days | V53: 2015-03-07T22:53:04 | W53: 3650058-1|2607615-1|2240128-1 | X53: 0 | Y53: 53 | Z53: 3650058-1 | AA53: 2607615-1 | AB53: 2240128-1 | AC53: Bronze
A54: 6442325 | B54: us | C54: 1 | D54: Guillermo | E54: t | F54: 2809182 | G54: us | H54: 1 | I54: Ninetyfour | J54: z | K54: 1302239 | L54: us | M54: 1 | N54: Mike | O54: p | P54: Bronze | Q54: 10 | R54: 16 | S54: 326 | T54: 2015-02-06 | U54: 1 days | V54: 2015-03-07T22:53:04 | W54: 6442325-1|2809182-1|1302239-1 | X54: 0 | Y54: 54 | Z54: 6442325-1 | AA54: 2809182-1 | AB54: 1302239-1 | AC54: Bronze
A55: 1130575 | B55: us | C55: 1 | D55: Hodafus | E55: p | F55: 715865 | G55: us | H55: 1 | I55: Killeron | J55: t | K55: 470605 | L55: us | M55: 1 | N55: Goodkind | O55: t | P55: Bronze | Q55: 13 | R55: 22 | S55: 326 | T55: 2015-02-01 | U55: 3 days | V55: 2015-03-07T22:53:04 | W55: 1130575-1|715865-1|470605-1 | X55: 0 | Y55: 55 | Z55: 1130575-1 | AA55: 715865-1 | AB55: 470605-1 | AC55: Bronze
A56: 4249002 | B56: us | C56: 1 | D56: wombat | E56: t | F56: 589496 | G56: us | H56: 1 | I56: raven | J56: p | K56: 458474 | L56: us | M56: 1 | N56: Shamm | O56: t | P56: Bronze | Q56: 26 | R56: 41 | S56: 325 | T56: 2015-01-27 | U56: 2 hours | V56: 2015-03-07T22:53:04 | W56: 4249002-1|589496-1|458474-1 | X56: 0 | Y56: 56 | Z56: 4249002-1 | AA56: 589496-1 | AB56: 458474-1 | AC56: Bronze
A57: 1579685 | B57: us | C57: 1 | D57: SCButterFree | E57: r | F57: 983383 | G57: us | H57: 1 | I57: MonkeyEarz | J57: r | K57: 737184 | L57: us | M57: 1 | N57: BeanLunDoe | O57: r | P57: Bronze | Q57: 17 | R57: 20 | S57: 324 | T57: 2015-01-23 | U57: 3 days | V57: 2015-03-07T22:53:04 | W57: 1579685-1|983383-1|737184-1 | X57: 0 | Y57: 57 | Z57: 1579685-1 | AA57: 983383-1 | AB57: 737184-1 | AC57: Bronze
A58: 4077179 | B58: us | C58: 1 | D58: Pheelicks | E58: z | F58: 3244386 | G58: us | H58: 1 | I58: Furkins | J58: t | K58: 3056100 | L58: us | M58: 1 | N58: rocketman | O58: z | P58: Bronze | Q58: 9 | R58: 13 | S58: 322 | T58: 2015-02-16 | U58: 2 minutes | V58: 2015-03-07T22:53:04 | W58: 4077179-1|3244386-1|3056100-1 | X58: 0 | Y58: 58 | Z58: 4077179-1 | AA58: 3244386-1 | AB58: 3056100-1 | AC58: Bronze
A59: 4014618 | B59: us | C59: 1 | D59: CashMoney | E59: p | F59: 3355246 | G59: us | H59: 1 | I59: TopHatMan | J59: z | K59: 746177 | L59: us | M59: 1 | N59: Frank | O59: z | P59: Bronze | Q59: 11 | R59: 6 | S59: 321 | T59: 2015-01-17 | U59: 8 days | V59: 2015-03-07T22:53:04 | W59: 4014618-1|3355246-1|746177-1 | X59: 0 | Y59: 59 | Z59: 4014618-1 | AA59: 3355246-1 | AB59: 746177-1 | AC59: Bronze
A60: 6436470 | B60: us | C60: 1 | D60: DarKo | E60: z | F60: 6217731 | G60: us | H60: 1 | I60: Protoman | J60: t | K60: 2182780 | L60: us | M60: 1 | N60: XDeathMatchX | O60: r | P60: Bronze | Q60: 10 | R60: 12 | S60: 321 | T60: 2015-01-30 | U60: 16 days | V60: 2015-03-07T22:53:04 | W60: 6436470-1|6217731-1|2182780-1 | X60: 0 | Y60: 60 | Z60: 6436470-1 | AA60: 6217731-1 | AB60: 2182780-1 | AC60: Bronze
A61: 759558 | B61: us | C61: 2 | D61: TOSSco | E61: p | F61: 1738827 | G61: us | H61: 1 | I61: PrimaryKey | J61: r | K61: 972129 | L61: us | M61: 1 | N61: VelhoBurro | O61: r | P61: Bronze | Q61: 10 | R61: 6 | S61: 320 | T61: 2015-01-18 | U61: 14 days | V61: 2015-03-07T22:53:04 | W61: 759558-2|1738827-1|972129-1 | X61: 0 | Y61: 61 | Z61: 759558-2 | AA61: 1738827-1 | AB61: 972129-1 | AC61: Bronze
A62: 6381046 | B62: us | C62: 1 | D62: Warrick | E62: t | F62: 4141021 | G62: us | H62: 1 | I62: TheAmerican | J62: z | K62: 3814727 | L62: us | M62: 1 | N62: Jannisary | O62: p | P62: Bronze | Q62: 16 | R62: 28 | S62: 319 | T62: 2015-01-29 | U62: 3 days | V62: 2015-03-07T22:53:04 | W62: 6381046-1|4141021-1|3814727-1 | X62: 0 | Y62: 62 | Z62: 6381046-1 | AA62: 4141021-1 | AB62: 3814727-1 | AC62: Bronze
A63: 799716 | B63: us | C63: 2 | D63: StrikE | E63: p | F63: 5119035 | G63: us | H63: 1 | I63: Dackes | J63: r | K63: 5043486 | L63: us | M63: 1 | N63: Goronox | O63: t | P63: Bronze | Q63: 10 | R63: 1 | S63: 318 | T63: 2015-02-05 | U63: 9 days | V63: 2015-03-07T22:53:04 | W63: 799716-2|5119035-1|5043486-1 | X63: 0 | Y63: 63 | Z63: 799716-2 | AA63: 5119035-1 | AB63: 5043486-1 | AC63: Bronze
A64: 797205 | B64: us | C64: 2 | D64: AURIA | E64: p | F64: 5315021 | G64: us | H64: 1 | I64: ramboman | J64: z | K64: 5313940 | L64: us | M64: 1 | N64: COLINZ | O64: t | P64: Bronze | Q64: 43 | R64: 64 | S64: 318 | T64: 2015-01-25 | U64: 6 days | V64: 2015-03-07T22:53:04 | W64: 797205-2|5315021-1|5313940-1 | X64: 0 | Y64: 64 | Z64: 797205-2 | AA64: 5315021-1 | AB64: 5313940-1 | AC64: Bronze
A65: 6011386 | B65: us | C65: 1 | D65: manoloco | E65: t | F65: 5421797 | G65: us | H65: 1 | I65: cogeculos | J65: t | K65: 5121829 | L65: us | M65: 1 | N65: cesc | O65: t | P65: Bronze | Q65: 21 | R65: 40 | S65: 317 | T65: 2015-01-14 | U65: 6 days | V65: 2015-03-07T22:53:04 | W65: 6011386-1|5421797-1|5121829-1 | X65: 0 | Y65: 65 | Z65: 6011386-1 | AA65: 5421797-1 | AB65: 5121829-1 | AC65: Bronze
A66: 4342564 | B66: us | C66: 1 | D66: Che | E66: r | F66: 4314878 | G66: us | H66: 1 | I66: XPC | J66: r | K66: 4303334 | L66: us | M66: 1 | N66: MMT | O66: r | P66: Bronze | Q66: 16 | R66: 20 | S66: 316 | T66: 2015-02-06 | U66: 16 days | V66: 2015-03-07T22:53:04 | W66: 4342564-1|4314878-1|4303334-1 | X66: 0 | Y66: 66 | Z66: 4342564-1 | AA66: 4314878-1 | AB66: 4303334-1 | AC66: Bronze
A67: 1394789 | B67: us | C67: 1 | D67: OldManPete | E67: z | F67: 859908 | G67: us | H67: 1 | I67: rehabbound | J67: t | K67: 366686 | L67: us | M67: 1 | N67: YakZSmelk | O67: z | P67: Bronze | Q67: 16 | R67: 26 | S67: 315 | T67: 2015-01-13 | U67: 6 days | V67: 2015-03-07T22:53:04 | W67: 1394789-1|859908-1|366686-1 | X67: 0 | Y67: 67 | Z67: 1394789-1 | AA67: 859908-1 | AB67: 366686-1 | AC67: Bronze
A68: 5707814 | B68: us | C68: 1 | D68: conner | E68: p | F68: 3920878 | G68: us | H68: 1 | I68: HellFireOSK | J68: z | K68: 1310535 | L68: us | M68: 1 | N68: KillerKline | O68: z | P68: Bronze | Q68: 9 | R68: 8 | S68: 314 | T68: 2015-02-21 | U68: 3 hours | V68: 2015-03-07T22:53:04 | W68: 5707814-1|3920878-1|1310535-1 | X68: 0 | Y68: 68 | Z68: 5707814-1 | AA68: 3920878-1 | AB68: 1310535-1 | AC68: Bronze
A69: 4055430 | B69: us | C69: 1 | D69: BarraksOnya | E69: t | F69: 2230553 | G69: us | H69: 1 | I69: rIPdOWN | J69: t | K69: 2223753 | L69: us | M69: 1 | N69: Sokool | O69: p | P69: Bronze | Q69: 25 | R69: 36 | S69: 314 | T69: 2015-02-05 | U69: 1 days | V69: 2015-03-07T22:53:04 | W69: 4055430-1|2230553-1|2223753-1 | X69: 0 | Y69: 69 | Z69: 4055430-1 | AA69: 2230553-1 | AB69: 2223753-1 | AC69: Bronze
A70: 3413620 | B70: us | C70: 1 | D70: kawika | E70: t | F70: 1728324 | G70: us | H70: 1 | I70: Charlie | J70: r | K70: 619986 | L70: us | M70: 1 | N70: Tobyzzz | O70: p | P70: Bronze | Q70: 18 | R70: 31 | S70: 314 | T70: 2015-02-21 | U70: 1 days | V70: 2015-03-07T22:53:04 | W70: 3413620-1|1728324-1|619986-1 | X70: 0 | Y70: 70 | Z70: 3413620-1 | AA70: 1728324-1 | AB70: 619986-1 | AC70: Bronze
A71: 6181198 | B71: us | C71: 1 | D71: HeaterTD | E71: p | F71: 4866714 | G71: us | H71: 1 | I71: Chasel | J71: p | K71: 852098 | L71: us | M71: 1 | N71: DaddyPhil | O71: z | P71: Bronze | Q71: 18 | R71: 30 | S71: 313 | T71: 2015-01-19 | U71: 2 days | V71: 2015-03-07T22:53:04 | W71: 6181198-1|4866714-1|852098-1 | X71: 0 | Y71: 71 | Z71: 6181198-1 | AA71: 4866714-1 | AB71: 852098-1 | AC71: Bronze
A72: 5899994 | B72: us | C72: 1 | D72: Spitzenhund | E72: z | F72: 2838504 | G72: us | H72: 1 | I72: halox | J72: p | K72: 1219452 | L72: us | M72: 1 | N72: Tyler | O72: z | P72: Bronze | Q72: 11 | R72: 20 | S72: 311 | T72: 2015-01-16 | U72: 14 days | V72: 2015-03-07T22:53:04 | W72: 5899994-1|2838504-1|1219452-1 | X72: 0 | Y72: 72 | Z72: 5899994-1 | AA72: 2838504-1 | AB72: 1219452-1 | AC72: Bronze
A73: 1679674 | B73: us | C73: 1 | D73: KillerPoodle | E73: z | F73: 1644938 | G73: us | H73: 1 | I73: DonVito | J73: p | K73: 1395769 | L73: us | M73: 1 | N73: Hawkeye | O73: t | P73: Bronze | Q73: 11 | R73: 14 | S73: 310 | T73: 2015-01-16 | U73: 4 days | V73: 2015-03-07T22:53:04 | W73: 1679674-1|1644938-1|1395769-1 | X73: 0 | Y73: 73 | Z73: 1679674-1 | AA73: 1644938-1 | AB73: 1395769-1 | AC73: Bronze
A74: 5143550 | B74: us | C74: 1 | D74: ChuckChunder | E74: t | F74: 5142370 | G74: us | H74: 1 | I74: Bobbo | J74: p | K74: 5142042 | L74: us | M74: 1 | N74: Will | O74: p | P74: Bronze | Q74: 13 | R74: 13 | S74: 308 | T74: 2015-02-25 | U74: 10 days | V74: 2015-03-07T22:53:04 | W74: 5143550-1|5142370-1|5142042-1 | X74: 0 | Y74: 74 | Z74: 5143550-1 | AA74: 5142370-1 | AB74: 5142042-1 | AC74: Bronze
A75: 4243193 | B75: us | C75: 1 | D75: Jae | E75: r | F75: 4162859 | G75: us | H75: 1 | I75: TFT | J75: r | K75: 273836 | L75: us | M75: 1 | N75: BroodlllKing | O75: p | P75: Bronze | Q75: 15 | R75: 24 | S75: 308 | T75: 2015-01-17 | U75: 8 days | V75: 2015-03-07T22:53:04 | W75: 4243193-1|4162859-1|273836-1 | X75: 0 | Y75: 75 | Z75: 4243193-1 | AA75: 4162859-1 | AB75: 273836-1 | AC75: Bronze
A76: 6074499 | B76: us | C76: 1 | D76: MrPiggy | E76: z | F76: 5012981 | G76: us | H76: 1 | I76: EjktanToruk | J76: r | K76: 4373498 | L76: us | M76: 1 | N76: slipknotnb | O76: r | P76: Bronze | Q76: 19 | R76: 38 | S76: 308 | T76: 2015-01-15 | U76: 4 days | V76: 2015-03-07T22:53:04 | W76: 6074499-1|5012981-1|4373498-1 | X76: 0 | Y76: 76 | Z76: 6074499-1 | AA76: 5012981-1 | AB76: 4373498-1 | AC76: Bronze
A77: 690356 | B77: us | C77: 1 | D77: SiZZerB | E77: t | F77: 683274 | G77: us | H77: 1 | I77: Elderfleur | J77: r | K77: 291576 | L77: us | M77: 1 | N77: JezuzJonez | O77: r | P77: Bronze | Q77: 11 | R77: 3 | S77: 306 | T77: 2015-01-21 | U77: 2 days | V77: 2015-03-07T22:53:04 | W77: 690356-1|683274-1|291576-1 | X77: 0 | Y77: 77 | Z77: 690356-1 | AA77: 683274-1 | AB77: 291576-1 | AC77: Bronze
A78: 3369399 | B78: us | C78: 1 | D78: UEAdmiral | E78: t | F78: 2235955 | G78: us | H78: 1 | I78: DashRantic | J78: t | K78: 1095520 | L78: us | M78: 1 | N78: AngleOSaxon | O78: p | P78: Bronze | Q78: 8 | R78: 11 | S78: 306 | T78: 2015-02-15 | U78: 14 days | V78: 2015-03-07T22:53:04 | W78: 3369399-1|2235955-1|1095520-1 | X78: 0 | Y78: 78 | Z78: 3369399-1 | AA78: 2235955-1 | AB78: 1095520-1 | AC78: Bronze
A79: 1986723 | B79: us | C79: 1 | D79: ShootToCow | E79: t | F79: 1316109 | G79: us | H79: 1 | I79: Aurius | J79: r | K79: 441039 | L79: us | M79: 1 | N79: Exmortus | O79: r | P79: Bronze | Q79: 13 | R79: 17 | S79: 305 | T79: 2015-01-18 | U79: 14 days | V79: 2015-03-07T22:53:04 | W79: 1986723-1|1316109-1|441039-1 | X79: 0 | Y79: 79 | Z79: 1986723-1 | AA79: 1316109-1 | AB79: 441039-1 | AC79: Bronze
A80: 3138866 | B80: us | C80: 1 | D80: Overcome | E80: z | F80: 3102098 | G80: us | H80: 1 | I80: Orestes | J80: r | K80: 450617 | L80: us | M80: 1 | N80: StarfleetCMD | O80: p | P80: Bronze | Q80: 11 | R80: 5 | S80: 304 | T80: 2015-01-21 | U80: 3 days | V80: 2015-03-07T22:53:04 | W80: 3138866-1|3102098-1|450617-1 | X80: 0 | Y80: 80 | Z80: 3138866-1 | AA80: 3102098-1 | AB80: 450617-1 | AC80: Bronze
A81: 6312079 | B81: us | C81: 1 | D81: samisafggt | E81: p | F81: 6310016 | G81: us | H81: 1 | I81: DildoGaggins | J81: t | K81: 6188807 | L81: us | M81: 1 | N81: DurtyMike | O81: t | P81: Bronze | Q81: 18 | R81: 24 | S81: 304 | T81: 2015-02-08 | U81: 21 days | V81: 2015-03-07T22:53:04 | W81: 6312079-1|6310016-1|6188807-1 | X81: 0 | Y81: 81 | Z81: 6312079-1 | AA81: 6310016-1 | AB81: 6188807-1 | AC81: Bronze
A82: 2917816 | B82: us | C82: 1 | D82: Ilurah | E82: t | F82: 2335249 | G82: us | H82: 1 | I82: EHoba | J82: r | K82: 2279024 | L82: us | M82: 1 | N82: btbtbtbt | O82: z | P82: Bronze | Q82: 11 | R82: 12 | S82: 303 | T82: 2015-01-20 | U82: 11 days | V82: 2015-03-07T22:53:04 | W82: 2917816-1|2335249-1|2279024-1 | X82: 0 | Y82: 82 | Z82: 2917816-1 | AA82: 2335249-1 | AB82: 2279024-1 | AC82: Bronze
A83: 2457673 | B83: us | C83: 1 | D83: alien | E83: z | F83: 2075507 | G83: us | H83: 1 | I83: DawgDiesell | J83: t | K83: 715488 | L83: us | M83: 1 | N83: Predator | O83: z | P83: Bronze | Q83: 30 | R83: 38 | S83: 302 | T83: 2015-01-13 | U83: 18 days | V83: 2015-03-07T22:53:04 | W83: 2457673-1|2075507-1|715488-1 | X83: 0 | Y83: 83 | Z83: 2457673-1 | AA83: 2075507-1 | AB83: 715488-1 | AC83: Bronze
A84: 1292847 | B84: us | C84: 1 | D84: rchard | E84: t | F84: 719377 | G84: us | H84: 1 | I84: FATASS | J84: r | K84: 718303 | L84: us | M84: 1 | N84: Wing | O84: r | P84: Bronze | Q84: 11 | R84: 7 | S84: 300 | T84: 2015-01-28 | U84: 31 days | V84: 2015-03-07T22:53:04 | W84: 1292847-1|719377-1|718303-1 | X84: 0 | Y84: 84 | Z84: 1292847-1 | AA84: 719377-1 | AB84: 718303-1 | AC84: Bronze
A85: 5054713 | B85: us | C85: 1 | D85: Muerto | E85: t | F85: 4292471 | G85: us | H85: 1 | I85: ELNegro | J85: t | K85: 2739196 | L85: us | M85: 1 | N85: IstvanDV | O85: p | P85: Bronze | Q85: 19 | R85: 23 | S85: 300 | T85: 2015-01-17 | U85: 10 days | V85: 2015-03-07T22:53:04 | W85: 5054713-1|4292471-1|2739196-1 | X85: 0 | Y85: 85 | Z85: 5054713-1 | AA85: 4292471-1 | AB85: 2739196-1 | AC85: Bronze
A86: 136138 | B86: us | C86: 2 | D86: LONGDONG | E86: p | F86: 95707 | G86: us | H86: 2 | I86: RedNose | J86: t | K86: 3787394 | L86: us | M86: 1 | N86: nilyraManson | O86: r | P86: Bronze | Q86: 12 | R86: 13 | S86: 299 | T86: 2015-01-27 | U86: 11 days | V86: 2015-03-07T22:53:04 | W86: 136138-2|95707-2|3787394-1 | X86: 0 | Y86: 86 | Z86: 136138-2 | AA86: 95707-2 | AB86: 3787394-1 | AC86: Bronze
A87: 5495911 | B87: us | C87: 1 | D87: eqo | E87: r | F87: 5013133 | G87: us | H87: 1 | I87: DarthDordi | J87: t | K87: 4867628 | L87: us | M87: 1 | N87: SpaceGhost | O87: r | P87: Bronze | Q87: 9 | R87: 12 | S87: 298 | T87: 2015-02-06 | U87: 3 days | V87: 2015-03-07T22:53:04 | W87: 5495911-1|5013133-1|4867628-1 | X87: 0 | Y87: 87 | Z87: 5495911-1 | AA87: 5013133-1 | AB87: 4867628-1 | AC87: Bronze
A88: 6226334 | B88: us | C88: 1 | D88: stpbt | E88: p | F88: 1557383 | G88: us | H88: 1 | I88: Cruz | J88: t | K88: 1403806 | L88: us | M88: 1 | N88: SWer | O88: z | P88: Bronze | Q88: 11 | R88: 20 | S88: 297 | T88: 2015-01-25 | U88: 13 days | V88: 2015-03-07T22:53:04 | W88: 6226334-1|1557383-1|1403806-1 | X88: 0 | Y88: 88 | Z88: 6226334-1 | AA88: 1557383-1 | AB88: 1403806-1 | AC88: Bronze
A89: 6014735 | B89: us | C89: 1 | D89: Burning | E89: p | F89: 5491513 | G89: us | H89: 1 | I89: Nirvana | J89: z | K89: 5386442 | L89: us | M89: 1 | N89: Salo | O89: p | P89: Bronze | Q89: 8 | R89: 3 | S89: 296 | T89: 2015-02-14 | U89: 15 days | V89: 2015-03-07T22:53:04 | W89: 6014735-1|5491513-1|5386442-1 | X89: 0 | Y89: 89 | Z89: 6014735-1 | AA89: 5491513-1 | AB89: 5386442-1 | AC89: Bronze
A90: 589905 | B90: us | C90: 2 | D90: livix | E90: r | F90: 167103 | G90: us | H90: 2 | I90: DaveXJaguar | J90: p | K90: 32212 | L90: us | M90: 2 | N90: Garr | O90: p | P90: Bronze | Q90: 7 | R90: 5 | S90: 296 | T90: 2015-02-01 | U90: 5 days | V90: 2015-03-07T22:53:04 | W90: 589905-2|167103-2|32212-2 | X90: 0 | Y90: 90 | Z90: 589905-2 | AA90: 167103-2 | AB90: 32212-2 | AC90: Bronze
A91: 227960 | B91: us | C91: 2 | D91: MrLumpkins | E91: z | F91: 6185350 | G91: us | H91: 1 | I91: Ostos | J91: p | K91: 3035629 | L91: us | M91: 1 | N91: Falcon | O91: r | P91: Bronze | Q91: 16 | R91: 23 | S91: 296 | T91: 2015-01-24 | U91: 13 days | V91: 2015-03-07T22:53:04 | W91: 227960-2|6185350-1|3035629-1 | X91: 0 | Y91: 91 | Z91: 227960-2 | AA91: 6185350-1 | AB91: 3035629-1 | AC91: Bronze
A92: 370072 | B92: us | C92: 2 | D92: cazador | E92: t | F92: 4551925 | G92: us | H92: 1 | I92: TERMINATOR | J92: r | K92: 2013073 | L92: us | M92: 1 | N92: OzKarhAl | O92: t | P92: Bronze | Q92: 13 | R92: 20 | S92: 296 | T92: 2015-01-14 | U92: 15 days | V92: 2015-03-07T22:53:04 | W92: 370072-2|4551925-1|2013073-1 | X92: 0 | Y92: 92 | Z92: 370072-2 | AA92: 4551925-1 | AB92: 2013073-1 | AC92: Bronze
A93: 6014009 | B93: us | C93: 1 | D93: Ashram | E93: p | F93: 6002512 | G93: us | H93: 1 | I93: Smudg | J93: t | K93: 5861143 | L93: us | M93: 1 | N93: Biscottie | O93: z | P93: Bronze | Q93: 25 | R93: 50 | S93: 296 | T93: 2015-01-25 | U93: 19 hours | V93: 2015-03-07T22:53:04 | W93: 6014009-1|6002512-1|5861143-1 | X93: 0 | Y93: 93 | Z93: 6014009-1 | AA93: 6002512-1 | AB93: 5861143-1 | AC93: Bronze
A94: 952954 | B94: us | C94: 2 | D94: Krauss | E94: r | F94: 950863 | G94: us | H94: 2 | I94: Skynet | J94: r | K94: 944752 | L94: us | M94: 2 | N94: ken | O94: p | P94: Bronze | Q94: 10 | R94: 7 | S94: 294 | T94: 2015-01-22 | U94: 24 days | V94: 2015-03-07T22:53:04 | W94: 952954-2|950863-2|944752-2 | X94: 0 | Y94: 94 | Z94: 952954-2 | AA94: 950863-2 | AB94: 944752-2 | AC94: Bronze
A95: 909294 | B95: us | C95: 1 | D95: nathanjay | E95: r | F95: 686909 | G95: us | H95: 1 | I95: MAXIMUS | J95: z | K95: 528548 | L95: us | M95: 1 | N95: XIII | O95: r | P95: Bronze | Q95: 13 | R95: 14 | S95: 294 | T95: 2015-01-19 | U95: 12 days | V95: 2015-03-07T22:53:04 | W95: 909294-1|686909-1|528548-1 | X95: 0 | Y95: 95 | Z95: 909294-1 | AA95: 686909-1 | AB95: 528548-1 | AC95: Bronze
A96: 4887606 | B96: us | C96: 1 | D96: DemonXelo | E96: p | F96: 3967553 | G96: us | H96: 1 | I96: AceTDE | J96: t | K96: 299419 | L96: us | M96: 1 | N96: Cyprus | O96: t | P96: Bronze | Q96: 13 | R96: 16 | S96: 294 | T96: 2015-03-04 | U96: 14 hours | V96: 2015-03-07T22:53:04 | W96: 4887606-1|3967553-1|299419-1 | X96: 0 | Y96: 96 | Z96: 4887606-1 | AA96: 3967553-1 | AB96: 299419-1 | AC96: Bronze
A97: 5861647 | B97: us | C97: 1 | D97: Kabraxcis | E97: p | F97: 1986106 | G97: us | H97: 1 | I97: DarthBear | J97: r | K97: 1837296 | L97: us | M97: 1 | N97: LittleHippo | O97: r | P97: Bronze | Q97: 11 | R97: 10 | S97: 293 | T97: 2015-02-17 | U97: 18 days | V97: 2015-03-07T22:53:04 | W97: 5861647-1|1986106-1|1837296-1 | X97: 0 | Y97: 97 | Z97: 5861647-1 | AA97: 1986106-1 | AB97: 1837296-1 | AC97: Bronze
A98: 6238069 | B98: us | C98: 1 | D98: Bulldog | E98: t | F98: 6068401 | G98: us | H98: 1 | I98: RAMPAGE | J98: p | K98: 3200791 | L98: us | M98: 1 | N98: MrMarakesh | O98: t | P98: Bronze | Q98: 28 | R98: 40 | S98: 293 | T98: 2015-01-14 | U98: 9 days | V98: 2015-03-07T22:53:04 | W98: 6238069-1|6068401-1|3200791-1 | X98: 0 | Y98: 98 | Z98: 6238069-1 | AA98: 6068401-1 | AB98: 3200791-1 | AC98: Bronze
A99: 5578325 | B99: us | C99: 1 | D99: koolca | E99: p | F99: 5224379 | G99: us | H99: 1 | I99: Dradiof | J99: z | K99: 568912 | L99: us | M99: 1 | N99: bycircle | O99: z | P99: Bronze | Q99: 12 | R99: 18 | S99: 293 | T99: 2015-02-12 | U99: 16 days | V99: 2015-03-07T22:53:04 | W99: 5578325-1|5224379-1|568912-1 | X99: 0 | Y99: 99 | Z99: 5578325-1 | AA99: 5224379-1 | AB99: 568912-1 | AC99: Bronze
A100: 6034235 | B100: us | C100: 1 | D100: asoof | E100: t | F100: 6034118 | G100: us | H100: 1 | I100: BARNATO | J100: p | K100: 4975048 | L100: us | M100: 1 | N100: Murat | O100: p | P100: Bronze | Q100: 7 | R100: 8 | S100: 292 | T100: 2015-02-20 | U100: 2 days | V100: 2015-03-07T22:53:04 | W100: 6034235-1|6034118-1|4975048-1 | X100: 0 | Y100: 100 | Z100: 6034235-1 | AA100: 6034118-1 | AB100: 4975048-1 | AC100: Bronze
A101: 6156378 | B101: us | C101: 1 | D101: BiegeNinja | E101: t | F101: 1457008 | G101: us | H101: 1 | I101: Superion | J101: p | K101: 1140153 | L101: us | M101: 1 | N101: Shade | O101: t | P101: Bronze | Q101: 8 | R101: 10 | S101: 292 | T101: 2015-02-18 | U101: 8 days | V101: 2015-03-07T22:53:04 | W101: 6156378-1|1457008-1|1140153-1 | X101: 0 | Y101: 101 | Z101: 6156378-1 | AA101: 1457008-1 | AB101: 1140153-1 | AC101: Bronze
A102: 2091253 | B102: us | C102: 1 | D102: PunjabiProbe | E102: z | F102: 1604850 | G102: us | H102: 1 | I102: SikhSCV | J102: p | K102: 341574 | L102: us | M102: 1 | N102: PunjabiPylon | O102: t | P102: Bronze | Q102: 19 | R102: 29 | S102: 291 | T102: 2015-02-14 | U102: 13 days | V102: 2015-03-07T22:53:04 | W102: 2091253-1|1604850-1|341574-1 | X102: 0 | Y102: 102 | Z102: 2091253-1 | AA102: 1604850-1 | AB102: 341574-1 | AC102: Bronze
A103: 1694057 | B103: us | C103: 1 | D103: Battlekid | E103: r | F103: 1675839 | G103: us | H103: 1 | I103: Gremio | J103: z | K103: 454302 | L103: us | M103: 1 | N103: Matt | O103: p | P103: Bronze | Q103: 8 | R103: 6 | S103: 290 | T103: 2015-02-01 | U103: 5 days | V103: 2015-03-07T22:53:04 | W103: 1694057-1|1675839-1|454302-1 | X103: 0 | Y103: 103 | Z103: 1694057-1 | AA103: 1675839-1 | AB103: 454302-1 | AC103: Bronze
A104: 916229 | B104: us | C104: 2 | D104: Hazack | E104: t | F104: 913310 | G104: us | H104: 2 | I104: DexHeart | J104: p | K104: 4394418 | L104: us | M104: 1 | N104: Pannry | O104: p | P104: Bronze | Q104: 31 | R104: 42 | S104: 290 | T104: 2015-02-03 | U104: 18 days | V104: 2015-03-07T22:53:04 | W104: 916229-2|913310-2|4394418-1 | X104: 0 | Y104: 104 | Z104: 916229-2 | AA104: 913310-2 | AB104: 4394418-1 | AC104: Bronze
A105: 6304483 | B105: us | C105: 1 | D105: ohmetallica | E105: t | F105: 4856802 | G105: us | H105: 1 | I105: SuperNova | J105: t | K105: 4297497 | L105: us | M105: 1 | N105: AbsoluTe | O105: r | P105: Bronze | Q105: 11 | R105: 17 | S105: 290 | T105: 2015-01-18 | U105: 15 days | V105: 2015-03-07T22:53:04 | W105: 6304483-1|4856802-1|4297497-1 | X105: 0 | Y105: 105 | Z105: 6304483-1 | AA105: 4856802-1 | AB105: 4297497-1 | AC105: Bronze
A106: 6159377 | B106: us | C106: 1 | D106: talon | E106: t | F106: 6081564 | G106: us | H106: 1 | I106: bigJohnson | J106: t | K106: 1806773 | L106: us | M106: 1 | N106: gunner | O106: p | P106: Bronze | Q106: 10 | R106: 21 | S106: 290 | T106: 2015-01-19 | U106: 1 days | V106: 2015-03-07T22:53:04 | W106: 6159377-1|6081564-1|1806773-1 | X106: 0 | Y106: 106 | Z106: 6159377-1 | AA106: 6081564-1 | AB106: 1806773-1 | AC106: Bronze
A107: 673726 | B107: us | C107: 2 | D107: ElchoroDiego | E107: t | F107: 668486 | G107: us | H107: 2 | I107: octaviotin | J107: t | K107: 223355 | L107: us | M107: 2 | N107: Machucaooooo | O107: p | P107: Bronze | Q107: 9 | R107: 14 | S107: 288 | T107: 2015-02-25 | U107: 5 days | V107: 2015-03-07T22:53:04 | W107: 673726-2|668486-2|223355-2 | X107: 0 | Y107: 107 | Z107: 673726-2 | AA107: 668486-2 | AB107: 223355-2 | AC107: Bronze
A108: 4135237 | B108: us | C108: 1 | D108: SkinRocket | E108: t | F108: 2491499 | G108: us | H108: 1 | I108: RailKing | J108: t | K108: 416734 | L108: us | M108: 1 | N108: Crappykiller | O108: p | P108: Bronze | Q108: 9 | R108: 10 | S108: 286 | T108: 2015-02-10 | U108: 21 days | V108: 2015-03-07T22:53:04 | W108: 4135237-1|2491499-1|416734-1 | X108: 0 | Y108: 108 | Z108: 4135237-1 | AA108: 2491499-1 | AB108: 416734-1 | AC108: Bronze
A109: 4855070 | B109: us | C109: 1 | D109: qpunpun | E109: p | F109: 4848870 | G109: us | H109: 1 | I109: zidna | J109: p | K109: 4216686 | L109: us | M109: 1 | N109: Arendal | O109: z | P109: Bronze | Q109: 12 | R109: 15 | S109: 285 | T109: 2015-01-23 | U109: 7 days | V109: 2015-03-07T22:53:04 | W109: 4855070-1|4848870-1|4216686-1 | X109: 0 | Y109: 109 | Z109: 4855070-1 | AA109: 4848870-1 | AB109: 4216686-1 | AC109: Bronze
A110: 6354711 | B110: us | C110: 1 | D110: HeiwaToAi | E110: t | F110: 6203759 | G110: us | H110: 1 | I110: JonathanT | J110: t | K110: 6196324 | L110: us | M110: 1 | N110: Stkai | O110: r | P110: Bronze | Q110: 21 | R110: 32 | S110: 285 | T110: 2015-01-15 | U110: 17 days | V110: 2015-03-07T22:53:04 | W110: 6354711-1|6203759-1|6196324-1 | X110: 0 | Y110: 110 | Z110: 6354711-1 | AA110: 6203759-1 | AB110: 6196324-1 | AC110: Bronze
A111: 4669352 | B111: us | C111: 1 | D111: HellKitchen | E111: t | F111: 4110246 | G111: us | H111: 1 | I111: Nazeen | J111: p | K111: 1090047 | L111: us | M111: 1 | N111: luciD | O111: p | P111: Bronze | Q111: 8 | R111: 2 | S111: 284 | T111: 2015-02-18 | U111: 8 days | V111: 2015-03-07T22:53:04 | W111: 4669352-1|4110246-1|1090047-1 | X111: 0 | Y111: 111 | Z111: 4669352-1 | AA111: 4110246-1 | AB111: 1090047-1 | AC111: Bronze
A112: 622884 | B112: us | C112: 2 | D112: ivan | E112: p | F112: 320412 | G112: us | H112: 2 | I112: XacuX | J112: p | K112: 5587674 | L112: us | M112: 1 | N112: THEFREAK | O112: p | P112: Bronze | Q112: 15 | R112: 15 | S112: 284 | T112: 2015-01-14 | U112: 21 days | V112: 2015-03-07T22:53:04 | W112: 622884-2|320412-2|5587674-1 | X112: 0 | Y112: 112 | Z112: 622884-2 | AA112: 320412-2 | AB112: 5587674-1 | AC112: Bronze
A113: 2043292 | B113: us | C113: 1 | D113: Kazanna | E113: p | F113: 1366454 | G113: us | H113: 1 | I113: Xerxes | J113: p | K113: 1073800 | L113: us | M113: 1 | N113: ZomBRoadrash | O113: t | P113: Bronze | Q113: 11 | R113: 15 | S113: 284 | T113: 2015-02-14 | U113: 6 days | V113: 2015-03-07T22:53:04 | W113: 2043292-1|1366454-1|1073800-1 | X113: 0 | Y113: 113 | Z113: 2043292-1 | AA113: 1366454-1 | AB113: 1073800-1 | AC113: Bronze
A114: 4894462 | B114: us | C114: 1 | D114: ironboar | E114: z | F114: 2664734 | G114: us | H114: 1 | I114: HYPERSAVV | J114: t | K114: 1608543 | L114: us | M114: 1 | N114: Jimbo | O114: t | P114: Bronze | Q114: 10 | R114: 18 | S114: 284 | T114: 2015-02-22 | U114: 3 days | V114: 2015-03-07T22:53:04 | W114: 4894462-1|2664734-1|1608543-1 | X114: 0 | Y114: 114 | Z114: 4894462-1 | AA114: 2664734-1 | AB114: 1608543-1 | AC114: Bronze
A115: 5011292 | B115: us | C115: 1 | D115: buckchris | E115: r | F115: 5007976 | G115: us | H115: 1 | I115: DAMCKENNA | J115: t | K115: 308045 | L115: us | M115: 1 | N115: Damph | O115: p | P115: Bronze | Q115: 9 | R115: 9 | S115: 282 | T115: 2015-02-08 | U115: 3 days | V115: 2015-03-07T22:53:04 | W115: 5011292-1|5007976-1|308045-1 | X115: 0 | Y115: 115 | Z115: 5011292-1 | AA115: 5007976-1 | AB115: 308045-1 | AC115: Bronze
A116: 818108 | B116: us | C116: 2 | D116: memita | E116: p | F116: 785707 | G116: us | H116: 2 | I116: patitoloko | J116: t | K116: 5493841 | L116: us | M116: 1 | N116: NewFears | O116: p | P116: Bronze | Q116: 8 | R116: 9 | S116: 278 | T116: 2015-02-16 | U116: 3 days | V116: 2015-03-07T22:53:04 | W116: 818108-2|785707-2|5493841-1 | X116: 0 | Y116: 116 | Z116: 818108-2 | AA116: 785707-2 | AB116: 5493841-1 | AC116: Bronze
A117: 6195617 | B117: us | C117: 1 | D117: KerryBF | E117: t | F117: 6194251 | G117: us | H117: 1 | I117: MAHIRALI | J117: p | K117: 5241837 | L117: us | M117: 1 | N117: evercool | O117: p | P117: Bronze | Q117: 24 | R117: 41 | S117: 278 | T117: 2015-01-18 | U117: 9 hours | V117: 2015-03-07T22:53:04 | W117: 6195617-1|6194251-1|5241837-1 | X117: 0 | Y117: 117 | Z117: 6195617-1 | AA117: 6194251-1 | AB117: 5241837-1 | AC117: Bronze
A118: 6441099 | B118: us | C118: 1 | D118: Koringul | E118: z | F118: 6394582 | G118: us | H118: 1 | I118: allagashbill | J118: t | K118: 4149084 | L118: us | M118: 1 | N118: BoomDropper | O118: p | P118: Bronze | Q118: 11 | R118: 22 | S118: 278 | T118: 2015-02-10 | U118: 6 hours | V118: 2015-03-07T22:53:04 | W118: 6441099-1|6394582-1|4149084-1 | X118: 0 | Y118: 118 | Z118: 6441099-1 | AA118: 6394582-1 | AB118: 4149084-1 | AC118: Bronze
A119: 6425428 | B119: us | C119: 1 | D119: ROOT | E119: t | F119: 2067457 | G119: us | H119: 1 | I119: WarBird | J119: p | K119: 1439560 | L119: us | M119: 1 | N119: Sabek | O119: t | P119: Bronze | Q119: 13 | R119: 33 | S119: 278 | T119: 2015-02-21 | U119: 21 hours | V119: 2015-03-07T22:53:04 | W119: 6425428-1|2067457-1|1439560-1 | X119: 0 | Y119: 119 | Z119: 6425428-1 | AA119: 2067457-1 | AB119: 1439560-1 | AC119: Bronze
A120: 4107769 | B120: us | C120: 1 | D120: justinjedi | E120: p | F120: 890149 | G120: us | H120: 1 | I120: Cheezitz | J120: z | K120: 415966 | L120: us | M120: 1 | N120: sknard | O120: z | P120: Bronze | Q120: 10 | R120: 33 | S120: 275 | T120: 2015-02-20 | U120: 3 days | V120: 2015-03-07T22:53:04 | W120: 4107769-1|890149-1|415966-1 | X120: 0 | Y120: 120 | Z120: 4107769-1 | AA120: 890149-1 | AB120: 415966-1 | AC120: Bronze
A121: 4439446 | B121: us | C121: 1 | D121: charlie | E121: z | F121: 4236693 | G121: us | H121: 1 | I121: billythekid | J121: p | K121: 3506715 | L121: us | M121: 1 | N121: EyesRSquared | O121: p | P121: Bronze | Q121: 8 | R121: 3 | S121: 274 | T121: 2015-02-03 | U121: 21 hours | V121: 2015-03-07T22:53:04 | W121: 4439446-1|4236693-1|3506715-1 | X121: 0 | Y121: 121 | Z121: 4439446-1 | AA121: 4236693-1 | AB121: 3506715-1 | AC121: Bronze
A122: 5504678 | B122: us | C122: 1 | D122: KMR | E122: z | F122: 4887327 | G122: us | H122: 1 | I122: RockChalk | J122: z | K122: 609113 | L122: us | M122: 1 | N122: SWOLEROSIS | O122: z | P122: Bronze | Q122: 7 | R122: 4 | S122: 274 | T122: 2015-01-19 | U122: 17 days | V122: 2015-03-07T22:53:04 | W122: 5504678-1|4887327-1|609113-1 | X122: 0 | Y122: 122 | Z122: 5504678-1 | AA122: 4887327-1 | AB122: 609113-1 | AC122: Bronze
A123: 4098343 | B123: us | C123: 1 | D123: Szon | E123: p | F123: 3457046 | G123: us | H123: 1 | I123: BuenoCrusher | J123: t | K123: 2380031 | L123: us | M123: 1 | N123: oldmanzerg | O123: p | P123: Bronze | Q123: 9 | R123: 10 | S123: 274 | T123: 2015-01-19 | U123: 3 days | V123: 2015-03-07T22:53:04 | W123: 4098343-1|3457046-1|2380031-1 | X123: 0 | Y123: 123 | Z123: 4098343-1 | AA123: 3457046-1 | AB123: 2380031-1 | AC123: Bronze
A124: 482984 | B124: us | C124: 2 | D124: SirCasts | E124: t | F124: 4643475 | G124: us | H124: 1 | I124: DEL | J124: p | K124: 4641873 | L124: us | M124: 1 | N124: JLC | O124: p | P124: Bronze | Q124: 10 | R124: 12 | S124: 274 | T124: 2015-01-19 | U124: 17 days | V124: 2015-03-07T22:53:04 | W124: 482984-2|4643475-1|4641873-1 | X124: 0 | Y124: 124 | Z124: 482984-2 | AA124: 4643475-1 | AB124: 4641873-1 | AC124: Bronze
A125: 6126842 | B125: us | C125: 1 | D125: Zakrajsek | E125: p | F125: 3795050 | G125: us | H125: 1 | I125: BudKingPrime | J125: p | K125: 342865 | L125: us | M125: 1 | N125: Lonestaz | O125: z | P125: Bronze | Q125: 13 | R125: 19 | S125: 274 | T125: 2015-01-15 | U125: 18 days | V125: 2015-03-07T22:53:04 | W125: 6126842-1|3795050-1|342865-1 | X125: 0 | Y125: 125 | Z125: 6126842-1 | AA125: 3795050-1 | AB125: 342865-1 | AC125: Bronze
A126: 3888098 | B126: us | C126: 1 | D126: Yukie | E126: z | F126: 3122551 | G126: us | H126: 1 | I126: ToxicShade | J126: r | K126: 2984236 | L126: us | M126: 1 | N126: LesHord | O126: r | P126: Bronze | Q126: 9 | R126: 4 | S126: 272 | T126: 2015-02-10 | U126: 14 days | V126: 2015-03-07T22:53:04 | W126: 3888098-1|3122551-1|2984236-1 | X126: 0 | Y126: 126 | Z126: 3888098-1 | AA126: 3122551-1 | AB126: 2984236-1 | AC126: Bronze
A127: 612138 | B127: us | C127: 2 | D127: comunidad | E127: t | F127: 4288528 | G127: us | H127: 1 | I127: Ehecatl | J127: p | K127: 3973720 | L127: us | M127: 1 | N127: Tlaloc | O127: p | P127: Bronze | Q127: 11 | R127: 10 | S127: 272 | T127: 2015-01-13 | U127: 6 days | V127: 2015-03-07T22:53:04 | W127: 612138-2|4288528-1|3973720-1 | X127: 0 | Y127: 127 | Z127: 612138-2 | AA127: 4288528-1 | AB127: 3973720-1 | AC127: Bronze
A128: 3893789 | B128: us | C128: 1 | D128: DarkMaster | E128: p | F128: 2272113 | G128: us | H128: 1 | I128: MoneyMan | J128: t | K128: 2269806 | L128: us | M128: 1 | N128: Snakekiller | O128: t | P128: Bronze | Q128: 10 | R128: 14 | S128: 272 | T128: 2015-01-27 | U128: 44 minutes | V128: 2015-03-07T22:53:04 | W128: 3893789-1|2272113-1|2269806-1 | X128: 0 | Y128: 128 | Z128: 3893789-1 | AA128: 2272113-1 | AB128: 2269806-1 | AC128: Bronze
A129: 1193267 | B129: us | C129: 1 | D129: Teaboy | E129: z | F129: 878065 | G129: us | H129: 1 | I129: Goob | J129: p | K129: 665105 | L129: us | M129: 1 | N129: SoapMan | O129: z | P129: Bronze | Q129: 8 | R129: 13 | S129: 272 | T129: 2015-01-18 | U129: 13 days | V129: 2015-03-07T22:53:04 | W129: 1193267-1|878065-1|665105-1 | X129: 0 | Y129: 129 | Z129: 1193267-1 | AA129: 878065-1 | AB129: 665105-1 | AC129: Bronze
A130: 5489941 | B130: us | C130: 1 | D130: SupereLimace | E130: z | F130: 3074467 | G130: us | H130: 1 | I130: BassGroove | J130: r | K130: 3021261 | L130: us | M130: 1 | N130: PWizard | O130: r | P130: Bronze | Q130: 8 | R130: 8 | S130: 270 | T130: 2015-01-31 | U130: 5 days | V130: 2015-03-07T22:53:04 | W130: 5489941-1|3074467-1|3021261-1 | X130: 0 | Y130: 130 | Z130: 5489941-1 | AA130: 3074467-1 | AB130: 3021261-1 | AC130: Bronze
A131: 4460090 | B131: us | C131: 1 | D131: Scoodle | E131: p | F131: 2276747 | G131: us | H131: 1 | I131: Higgiesmallz | J131: t | K131: 1031214 | L131: us | M131: 1 | N131: VGPrimate | O131: t | P131: Bronze | Q131: 9 | R131: 13 | S131: 270 | T131: 2015-01-17 | U131: 12 days | V131: 2015-03-07T22:53:04 | W131: 4460090-1|2276747-1|1031214-1 | X131: 0 | Y131: 131 | Z131: 4460090-1 | AA131: 2276747-1 | AB131: 1031214-1 | AC131: Bronze
A132: 5377329 | B132: us | C132: 1 | D132: AlexSoFast | E132: z | F132: 925044 | G132: us | H132: 1 | I132: Dustane | J132: r | K132: 690565 | L132: us | M132: 1 | N132: BigTrout | O132: r | P132: Bronze | Q132: 8 | R132: 15 | S132: 270 | T132: 2015-01-17 | U132: 1 days | V132: 2015-03-07T22:53:04 | W132: 5377329-1|925044-1|690565-1 | X132: 0 | Y132: 132 | Z132: 5377329-1 | AA132: 925044-1 | AB132: 690565-1 | AC132: Bronze
A133: 6113286 | B133: us | C133: 1 | D133: SurF | E133: z | F133: 6042135 | G133: us | H133: 1 | I133: MurDeR | J133: p | K133: 5527161 | L133: us | M133: 1 | N133: GiFteD | O133: p | P133: Bronze | Q133: 8 | R133: 8 | S133: 268 | T133: 2015-02-07 | U133: 10 days | V133: 2015-03-07T22:53:04 | W133: 6113286-1|6042135-1|5527161-1 | X133: 0 | Y133: 133 | Z133: 6113286-1 | AA133: 6042135-1 | AB133: 5527161-1 | AC133: Bronze
A134: 5032033 | B134: us | C134: 1 | D134: BlueArmy | E134: p | F134: 5006328 | G134: us | H134: 1 | I134: TeamKaiju | J134: t | K134: 4527149 | L134: us | M134: 1 | N134: TeamDoNkEy | O134: z | P134: Bronze | Q134: 7 | R134: 8 | S134: 268 | T134: 2015-02-20 | U134: 15 days | V134: 2015-03-07T22:53:04 | W134: 5032033-1|5006328-1|4527149-1 | X134: 0 | Y134: 134 | Z134: 5032033-1 | AA134: 5006328-1 | AB134: 4527149-1 | AC134: Bronze
A135: 781192 | B135: us | C135: 2 | D135: JOHNNY | E135: t | F135: 5854137 | G135: us | H135: 1 | I135: Zeudos | J135: z | K135: 4016828 | L135: us | M135: 1 | N135: Gerald | O135: t | P135: Bronze | Q135: 9 | R135: 14 | S135: 268 | T135: 2015-02-07 | U135: 10 days | V135: 2015-03-07T22:53:04 | W135: 781192-2|5854137-1|4016828-1 | X135: 0 | Y135: 135 | Z135: 781192-2 | AA135: 5854137-1 | AB135: 4016828-1 | AC135: Bronze
A136: 3014771 | B136: us | C136: 1 | D136: heebon | E136: p | F136: 1626752 | G136: us | H136: 1 | I136: gouriki | J136: t | K136: 1311169 | L136: us | M136: 1 | N136: cyberken | O136: r | P136: Bronze | Q136: 10 | R136: 10 | S136: 266 | T136: 2015-01-12 | U136: 14 hours | V136: 2015-03-07T22:53:04 | W136: 3014771-1|1626752-1|1311169-1 | X136: 0 | Y136: 136 | Z136: 3014771-1 | AA136: 1626752-1 | AB136: 1311169-1 | AC136: Bronze
A137: 6582652 | B137: us | C137: 1 | D137: Barney | E137: t | F137: 6578675 | G137: us | H137: 1 | I137: KanyeRest | J137: p | K137: 2197523 | L137: us | M137: 1 | N137: mietemps | O137: t | P137: Bronze | Q137: 9 | R137: 9 | S137: 266 | T137: 2015-02-28 | U137: 1 days | V137: 2015-03-07T22:53:04 | W137: 6582652-1|6578675-1|2197523-1 | X137: 0 | Y137: 137 | Z137: 6582652-1 | AA137: 6578675-1 | AB137: 2197523-1 | AC137: Bronze
A138: 5154316 | B138: us | C138: 1 | D138: eliasgoltie | E138: t | F138: 3997703 | G138: us | H138: 1 | I138: WrathChild | J138: r | K138: 3991878 | L138: us | M138: 1 | N138: Mordred | O138: t | P138: Bronze | Q138: 39 | R138: 65 | S138: 265 | T138: 2015-01-18 | U138: 2 days | V138: 2015-03-07T22:53:04 | W138: 5154316-1|3997703-1|3991878-1 | X138: 0 | Y138: 138 | Z138: 5154316-1 | AA138: 3997703-1 | AB138: 3991878-1 | AC138: Bronze
A139: 6383851 | B139: us | C139: 1 | D139: Murph | E139: t | F139: 3377650 | G139: us | H139: 1 | I139: Brett | J139: r | K139: 3362405 | L139: us | M139: 1 | N139: Xerxius | O139: z | P139: Bronze | Q139: 13 | R139: 15 | S139: 263 | T139: 2015-01-18 | U139: 24 days | V139: 2015-03-07T22:53:04 | W139: 6383851-1|3377650-1|3362405-1 | X139: 0 | Y139: 139 | Z139: 6383851-1 | AA139: 3377650-1 | AB139: 3362405-1 | AC139: Bronze
A140: 770307 | B140: us | C140: 2 | D140: Gonzalo | E140: z | F140: 5584968 | G140: us | H140: 1 | I140: Maquina | J140: p | K140: 5174972 | L140: us | M140: 1 | N140: zirk | O140: z | P140: Bronze | Q140: 9 | R140: 3 | S140: 262 | T140: 2015-02-06 | U140: 29 days | V140: 2015-03-07T22:53:04 | W140: 770307-2|5584968-1|5174972-1 | X140: 0 | Y140: 140 | Z140: 770307-2 | AA140: 5584968-1 | AB140: 5174972-1 | AC140: Bronze
A141: 838734 | B141: us | C141: 2 | D141: bicepzinho | E141: z | F141: 5633105 | G141: us | H141: 1 | I141: Tyler | J141: z | K141: 4466101 | L141: us | M141: 1 | N141: chikkennbeer | O141: t | P141: Bronze | Q141: 11 | R141: 6 | S141: 262 | T141: 2015-03-07 | U141: 18 hours | V141: 2015-03-07T22:53:04 | W141: 838734-2|5633105-1|4466101-1 | X141: 0 | Y141: 141 | Z141: 838734-2 | AA141: 5633105-1 | AB141: 4466101-1 | AC141: Bronze
A142: 4218286 | B142: us | C142: 1 | D142: imnotgood | E142: z | F142: 4197920 | G142: us | H142: 1 | I142: Saber | J142: p | K142: 4197174 | L142: us | M142: 1 | N142: Chocofudge | O142: t | P142: Bronze | Q142: 8 | R142: 15 | S142: 262 | T142: 2015-02-19 | U142: 1 days | V142: 2015-03-07T22:53:04 | W142: 4218286-1|4197920-1|4197174-1 | X142: 0 | Y142: 142 | Z142: 4218286-1 | AA142: 4197920-1 | AB142: 4197174-1 | AC142: Bronze
A143: 5934845 | B143: us | C143: 1 | D143: Drake | E143: p | F143: 4874460 | G143: us | H143: 1 | I143: DaBerns | J143: p | K143: 463539 | L143: us | M143: 1 | N143: LoLThief | O143: t | P143: Bronze | Q143: 10 | R143: 13 | S143: 261 | T143: 2015-01-15 | U143: 21 days | V143: 2015-03-07T22:53:04 | W143: 5934845-1|4874460-1|463539-1 | X143: 0 | Y143: 143 | Z143: 5934845-1 | AA143: 4874460-1 | AB143: 463539-1 | AC143: Bronze
A144: 3950123 | B144: us | C144: 1 | D144: Wilnos | E144: r | F144: 3936848 | G144: us | H144: 1 | I144: SyongBoy | J144: z | K144: 3082995 | L144: us | M144: 1 | N144: CountGdog | O144: t | P144: Bronze | Q144: 11 | R144: 15 | S144: 261 | T144: 2015-01-17 | U144: 11 days | V144: 2015-03-07T22:53:04 | W144: 3950123-1|3936848-1|3082995-1 | X144: 0 | Y144: 144 | Z144: 3950123-1 | AA144: 3936848-1 | AB144: 3082995-1 | AC144: Bronze
A145: 6398343 | B145: us | C145: 1 | D145: TazzoMenace | E145: t | F145: 5380597 | G145: us | H145: 1 | I145: CrowFather | J145: p | K145: 3121616 | L145: us | M145: 1 | N145: bolsak | O145: z | P145: Bronze | Q145: 11 | R145: 21 | S145: 259 | T145: 2015-01-25 | U145: 18 days | V145: 2015-03-07T22:53:04 | W145: 6398343-1|5380597-1|3121616-1 | X145: 0 | Y145: 145 | Z145: 6398343-1 | AA145: 5380597-1 | AB145: 3121616-1 | AC145: Bronze
A146: 4674914 | B146: us | C146: 1 | D146: elduderino | E146: t | F146: 4573883 | G146: us | H146: 1 | I146: Lanstash | J146: p | K146: 462801 | L146: us | M146: 1 | N146: Human | O146: t | P146: Bronze | Q146: 9 | R146: 22 | S146: 257 | T146: 2015-02-22 | U146: 7 days | V146: 2015-03-07T22:53:04 | W146: 4674914-1|4573883-1|462801-1 | X146: 0 | Y146: 146 | Z146: 4674914-1 | AA146: 4573883-1 | AB146: 462801-1 | AC146: Bronze
A147: 4430399 | B147: us | C147: 1 | D147: Migi | E147: p | F147: 4264899 | G147: us | H147: 1 | I147: Shinichi | J147: r | K147: 1637022 | L147: us | M147: 1 | N147: DeX | O147: z | P147: Bronze | Q147: 8 | R147: 4 | S147: 256 | T147: 2015-01-24 | U147: 27 days | V147: 2015-03-07T22:53:04 | W147: 4430399-1|4264899-1|1637022-1 | X147: 0 | Y147: 147 | Z147: 4430399-1 | AA147: 4264899-1 | AB147: 1637022-1 | AC147: Bronze
A148: 1024799 | B148: us | C148: 1 | D148: EvoJDM | E148: r | F148: 656601 | G148: us | H148: 1 | I148: CronoXZero | J148: z | K148: 365995 | L148: us | M148: 1 | N148: Logan | O148: t | P148: Bronze | Q148: 12 | R148: 17 | S148: 256 | T148: 2015-01-18 | U148: 6 days | V148: 2015-03-07T22:53:04 | W148: 1024799-1|656601-1|365995-1 | X148: 0 | Y148: 148 | Z148: 1024799-1 | AA148: 656601-1 | AB148: 365995-1 | AC148: Bronze
A149: 4855070 | B149: us | C149: 1 | D149: qpunpun | E149: p | F149: 4848870 | G149: us | H149: 1 | I149: zidna | J149: p | K149: 4848550 | L149: us | M149: 1 | N149: Kidaichi | O149: t | P149: Bronze | Q149: 16 | R149: 30 | S149: 256 | T149: 2015-01-23 | U149: 1 days | V149: 2015-03-07T22:53:04 | W149: 4855070-1|4848870-1|4848550-1 | X149: 0 | Y149: 149 | Z149: 4855070-1 | AA149: 4848870-1 | AB149: 4848550-1 | AC149: Bronze
